Workbook

Sheet Results
A1: Soil Lab, Geological Survey of Israel
A2: Particle Size Analysis by laser diffraction, Instrument: Mastersizer 2000
A3: Aviv Lee Zada
A4: Sample description: sand
A5: Samples ID's: [4428-4445]
A8: Particle | C8: ='raw files'!C1 -> [4428] Chile_10_T1_0 bulk - c - Average | J8: Particle | L8: ='raw files'!I1 -> [4429] Chile_10_T1_2 bulk- a - Average | S8: Particle | U8: ='raw files'!O1 -> [4430] C10_T1_10 bulk - a - Average | AB8: Particle | AD8: ='raw files'!V1 -> [4431] C10_T1_11 bulk - c - Average | AK8: Particle | AM8: ='raw files'!AB1 -> [4432] C10_T1_21 bulk - a - Average | AT8: Particle | AV8: ='raw files'!AH1 -> [4433] C10_T1_25 bulk - a - Average | BC8: Particle | BE8: ='raw files'!AN1 -> [4433a] C10_T1_25 bulk- a - Average | BL8: Particle | BN8: ='raw files'!AT1 -> [4434] C10_T1_31 bulk - d - Average | BU8: Particle | BW8: ='raw files'!AZ1 -> [4435] C10_T1_34 bulk - a - Average | CC8: Particle | CE8: ='raw files'!BF1 -> [4436] C10_T1_39 bulk - a - Average
A9: Diameter | C9: Differential Volume (%) | J9: Diameter | L9: Differential Volume (%) | S9: Diameter | U9: Differential Volume (%) | AB9: Diameter | AD9: Differential Volume (%) | AK9: Diameter | AM9: Differential Volume (%) | AT9: Diameter | AV9: Differential Volume (%) | BC9: Diameter | BE9: Differential Volume (%) | BL9: Diameter | BN9: Differential Volume (%) | BU9: Diameter | BW9: Differential Volume (%) | CC9: Diameter | CE9: Differential Volume (%)
A10: Range (mm) | B10: Size Class | C10: Rep. 1 | D10: Rep. 2 | E10: Rep. 3 | F10: Average | G10: SE | J10: Range (mm) | K10: Size Class | L10: Rep. 1 | M10: Rep. 2 | N10: Rep. 3 | O10: Average | P10: SE | S10: Range (mm) | T10: Size Class | U10: Rep. 1 | V10: Rep. 2 | W10: Rep. 3 | X10: Average | Y10: SE | AB10: Range (mm) | AC10: Size Class | AD10: Rep. 1 | AE10: Rep. 2 | AF10: Rep. 3 | AG10: Average | AH10: SE | AK10: Range (mm) | AL10: Size Class | AM10: Rep. 1 | AN10: Rep. 2 | AO10: Rep. 3 | AP10: Average | AQ10: SE | AT10: Range (mm) | AU10: Size Class | AV10: Rep. 1 | AW10: Rep. 2 | AX10: Rep. 3 | AY10: Average | AZ10: SE | BC10: Range (mm) | BD10: Size Class | BE10: Rep. 1 | BF10: Rep. 2 | BG10: Rep. 3 | BH10: Average | BI10: SE | BL10: Range (mm) | BM10: Size Class | BN10: Rep. 1 | BO10: Rep. 2 | BP10: Rep. 3 | BQ10: Average | BR10: SE | BT10: Range (mm) | BU10: Size Class | BV10: Rep. 1 | BW10: Rep. 2 | BX10: Rep. 3 | BY10: Average | BZ10: SE | CC10: Range (mm) | CD10: Size Class | CE10: Rep. 1 | CF10: Rep. 2 | CG10: Rep. 3 | CH10: Average | CI10: SE
A11: < 6 | B11: Clay | C11: ='raw files'!C13 -> 1.657 | D11: ='raw files'!D13 -> 2.317 | E11: ='raw files'!E13 -> 2.433 | F11: =AVERAGE(C11:E11) -> 2.135666667 | G11: =(STDEV(C11:E11))/SQRT(3) -> 0.2416645977 | J11: < 6 | K11: Clay | L11: ='raw files'!I13 -> 2.067 | M11: ='raw files'!J13 -> 1.938 | N11: ='raw files'!K13 -> 1.66 | O11: =AVERAGE(L11,N11) -> 1.8635 | P11: =(STDEV(L11:N11))/SQRT(3) -> 0.1200865429 | S11: < 6 | T11: Clay | U11: ='raw files'!O13 -> 0.613 | V11: ='raw files'!P13 -> 1.476 | W11: ='raw files'!Q13 -> 1.325 | X11: =AVERAGE(U11:W11) -> 1.138 | Y11: =(STDEV(U11:W11))/SQRT(3) -> 0.2660945947 | AB11: < 6 | AC11: Clay | AD11: ='raw files'!U13 -> 0.665 | AE11: ='raw files'!V13 -> 1.718 | AF11: ='raw files'!W13 -> 1.797 | AG11: =AVERAGE(AD11:AF11) -> 1.393333333 | AH11: =(STDEV(AD11:AF11))/SQRT(3) -> 0.3648800412 | AK11: < 6 | AL11: Clay | AM11: ='raw files'!AB13 -> 0.288 | AN11: ='raw files'!AC13 -> 0.374 | AO11: ='raw files'!AD13 -> 0.361 | AP11: =AVERAGE(AM11:AO11) -> 0.341 | AQ11: =(STDEV(AM11:AO11))/SQRT(3) -> 0.02676440422 | AT11: < 6 | AU11: Clay | AV11: ='raw files'!AH13 -> 0 | AW11: ='raw files'!AI13 -> 0 | AX11: ='raw files'!AJ13 -> 0 | AY11: =AVERAGE(AV11:AX11) -> 0 | AZ11: =(STDEV(AV11:AX11))/SQRT(3) -> 0 | BC11: < 6 | BD11: Clay | BE11: ='raw files'!AN13 -> 1.037 | BF11: ='raw files'!AO13 -> 0.966 | BG11: ='raw files'!AP13 -> 1.058 | BH11: =AVERAGE(BE11:BG11) -> 1.020333333 | BI11: =(STDEV(BE11:BG11))/SQRT(3) -> 0.0278348303 | BL11: < 6 | BM11: Clay | BN11: ='raw files'!AT13 -> 1.48 | BO11: ='raw files'!AU13 -> 1.521 | BP11: ='raw files'!AV13 -> 2.871 | BQ11: =AVERAGE(BN11:BP11) -> 1.957333333 | BR11: =(STDEV(BN11:BP11))/SQRT(3) -> 0.4569866276 | BT11: < 6 | BU11: Clay | BV11: ='raw files'!AZ13 -> 1.516 | BW11: ='raw files'!BA13 -> 1.299 | BX11: ='raw files'!BB13 -> 2.251 | BY11: =AVERAGE(BV11:BX11) -> 1.688666667 | BZ11: =(STDEV(BV11:BX11))/SQRT(3) -> 0.2880603718 | CC11: < 6 | CD11: Clay | CE11: ='raw files'!BF13 -> 6.741 | CF11: ='raw files'!BG13 -> 7.234 | CG11: ='raw files'!BH13 -> 7.003 | CH11: =AVERAGE(CE11:CG11) -> 6.992666667 | CI11: =(STDEV(CE11:CG11))/SQRT(3) -> 0.1424105957
A12: 6 - 63 | B12: Silt | C12: ='raw files'!C14 -> 5.249 | D12: ='raw files'!D14 -> 6.491 | E12: ='raw files'!E14 -> 6.714 | F12: =AVERAGE(C12:E12) -> 6.151333333 | G12: =(STDEV(C12:E12))/SQRT(3) -> 0.4557361566 | J12: 6 - 63 | K12: Silt | L12: ='raw files'!I14 -> 5.783 | M12: ='raw files'!J14 -> 5.478 | N12: ='raw files'!K14 -> 4.713 | O12: =AVERAGE(L12,N12) -> 5.248 | P12: =(STDEV(L12:N12))/SQRT(3) -> 0.3182547896 | S12: 6 - 63 | T12: Silt | U12: ='raw files'!O14 -> 1.793 | V12: ='raw files'!P14 -> 3.557 | W12: ='raw files'!Q14 -> 2.954 | X12: =AVERAGE(U12:W12) -> 2.768 | Y12: =(STDEV(U12:W12))/SQRT(3) -> 0.5176456317 | AB12: 6 - 63 | AC12: Silt | AD12: ='raw files'!U14 -> 3.052 | AE12: ='raw files'!V14 -> 4.789 | AF12: ='raw files'!W14 -> 5.452 | AG12: =AVERAGE(AD12:AF12) -> 4.431 | AH12: =(STDEV(AD12:AF12))/SQRT(3) -> 0.7155704018 | AK12: 6 - 63 | AL12: Silt | AM12: ='raw files'!AB14 -> 0.408 | AN12: ='raw files'!AC14 -> 2.243 | AO12: ='raw files'!AD14 -> 0.376 | AP12: =AVERAGE(AM12:AO12) -> 1.009 | AQ12: =(STDEV(AM12:AO12))/SQRT(3) -> 0.6170691479 | AT12: 6 - 63 | AU12: Silt | AV12: ='raw files'!AH14 -> 0 | AW12: ='raw files'!AI14 -> 0 | AX12: ='raw files'!AJ14 -> 0 | AY12: =AVERAGE(AV12:AX12) -> 0 | AZ12: =(STDEV(AV12:AX12))/SQRT(3) -> 0 | BC12: 6 - 63 | BD12: Silt | BE12: ='raw files'!AN14 -> 5.544 | BF12: ='raw files'!AO14 -> 5.317 | BG12: ='raw files'!AP14 -> 4.672 | BH12: =AVERAGE(BE12:BG12) -> 5.177666667 | BI12: =(STDEV(BE12:BG12))/SQRT(3) -> 0.2611872466 | BL12: 6 - 63 | BM12: Silt | BN12: ='raw files'!AT14 -> 5.115 | BO12: ='raw files'!AU14 -> 5.283 | BP12: ='raw files'!AV14 -> 8.795 | BQ12: =AVERAGE(BN12:BP12) -> 6.397666667 | BR12: =(STDEV(BN12:BP12))/SQRT(3) -> 1.199647356 | BT12: 6 - 63 | BU12: Silt | BV12: ='raw files'!AZ14 -> 4.655 | BW12: ='raw files'!BA14 -> 3.877 | BX12: ='raw files'!BB14 -> 6.043 | BY12: =AVERAGE(BV12:BX12) -> 4.858333333 | BZ12: =(STDEV(BV12:BX12))/SQRT(3) -> 0.633481737 | CC12: 6 - 63 | CD12: Silt | CE12: ='raw files'!BF14 -> 19.938 | CF12: ='raw files'!BG14 -> 20.448 | CG12: ='raw files'!BH14 -> 19.753 | CH12: =AVERAGE(CE12:CG12) -> 20.04633333 | CI12: =(STDEV(CE12:CG12))/SQRT(3) -> 0.2078126827
A13: 63 - 2000 | B13: Sand | C13: ='raw files'!C15 -> 93.094 | D13: ='raw files'!D15 -> 91.192 | E13: ='raw files'!E15 -> 90.853 | F13: 91.713 | G13: =(STDEV(C13:E13))/SQRT(3) -> 0.6974001721 | J13: 63 - 2000 | K13: Sand | L13: ='raw files'!I15 -> 92.149 | M13: ='raw files'!J15 -> 92.584 | N13: ='raw files'!K15 -> 93.627 | O13: 92.888 | P13: =(STDEV(L13:N13))/SQRT(3) -> 0.4385302473 | S13: 63 - 2000 | T13: Sand | U13: ='raw files'!O15 -> 97.593 | V13: ='raw files'!P15 -> 94.967 | W13: ='raw files'!Q15 -> 95.721 | X13: 96.09366667 | Y13: =(STDEV(U13:W13))/SQRT(3) -> 0.780625675 | AB13: 63 - 2000 | AC13: Sand | AD13: ='raw files'!U15 -> 96.283 | AE13: ='raw files'!V15 -> 93.493 | AF13: ='raw files'!W15 -> 92.751 | AG13: 94.17566667 | AH13: =(STDEV(AD13:AF13))/SQRT(3) -> 1.075218014 | AK13: 63 - 2000 | AL13: Sand | AM13: ='raw files'!AB15 -> 99.305 | AN13: ='raw files'!AC15 -> 97.383 | AO13: ='raw files'!AD15 -> 99.263 | AP13: 98.65033333 | AQ13: 0.6337826476 | AT13: 63 - 2000 | AU13: Sand | AV13: ='raw files'!AH15 -> 100 | AW13: ='raw files'!AI15 -> 100 | AX13: ='raw files'!AJ15 -> 100 | AY13: 100 | AZ13: 0 | BC13: 63 - 2000 | BD13: Sand | BE13: ='raw files'!AN15 -> 93.419 | BF13: ='raw files'!AO15 -> 93.717 | BG13: ='raw files'!AP15 -> 94.269 | BH13: 93.80166667 | BI13: =(STDEV(BE13:BG13))/SQRT(3) -> 0.2489988844 | BL13: 63 - 2000 | BM13: Sand | BN13: ='raw files'!AT15 -> 93.405 | BO13: ='raw files'!AU15 -> 93.196 | BP13: ='raw files'!AV15 -> 88.334 | BQ13: 91.645 | BR13: 1.656599026 | BT13: 63 - 2000 | BU13: Sand | BV13: ='raw files'!AZ15 -> 93.829 | BW13: ='raw files'!BA15 -> 94.824 | BX13: ='raw files'!BB15 -> 91.706 | BY13: 93.453 | BZ13: =(STDEV(BV13:BX13))/SQRT(3) -> 0.9195130958 | CC13: 63 - 2000 | CD13: Sand | CE13: ='raw files'!BF15 -> 73.321 | CF13: ='raw files'!BG15 -> 72.319 | CG13: ='raw files'!BH15 -> 73.244 | CH13: 72.96133333 | CI13: =(STDEV(CE13:CG13))/SQRT(3) -> 0.3219349486
A14: 63 - 125 | B14: VF Sand | C14: ='raw files'!C16 -> 3.886 | D14: ='raw files'!D16 -> 4.829 | E14: ='raw files'!E16 -> 4.907 | F14: 4.540666667 | G14: 0.3281068593 | J14: 63 - 125 | K14: VF Sand | L14: ='raw files'!I16 -> 4.959 | M14: ='raw files'!J16 -> 3.795 | N14: ='raw files'!K16 -> 4.009 | O14: 4.484 | P14: 0.3577081368 | S14: 63 - 125 | T14: VF Sand | U14: ='raw files'!O16 -> 2.078 | V14: ='raw files'!P16 -> 3.467 | W14: ='raw files'!Q16 -> 2.367 | X14: 2.637333333 | Y14: 0.4231391943 | AB14: 63 - 125 | AC14: VF Sand | AD14: ='raw files'!U16 -> 2.366 | AE14: ='raw files'!V16 -> 3.457 | AF14: ='raw files'!W16 -> 4.486 | AG14: 3.436333333 | AH14: 0.6120785171 | AK14: 63 - 125 | AL14: VF Sand | AM14: ='raw files'!AB16 -> 0.154 | AN14: ='raw files'!AC16 -> 0.193 | AO14: ='raw files'!AD16 -> 0.614 | AP14: 0.3203333333 | AQ14: 0.1472643126 | AT14: 63 - 125 | AU14: VF Sand | AV14: ='raw files'!AH16 -> 1.491 | AW14: ='raw files'!AI16 -> 2.812 | AX14: ='raw files'!AJ16 -> 1.788 | AY14: 2.030333333 | AZ14: 0.4001267855 | BC14: 63 - 125 | BD14: VF Sand | BE14: ='raw files'!AN16 -> 11.761 | BF14: ='raw files'!AO16 -> 11.407 | BG14: ='raw files'!AP16 -> 10.258 | BH14: =AVERAGE(BE14:BG14) -> 11.142 | BI14: =(STDEV(BE14:BG14))/SQRT(3) -> 0.453659564 | BL14: 63 - 125 | BM14: VF Sand | BN14: ='raw files'!AT16 -> 7.74 | BO14: ='raw files'!AU16 -> 8.092 | BP14: ='raw files'!AV16 -> 12.01 | BQ14: =AVERAGE(BN14:BP14) -> 9.280666667 | BR14: 1.368444535 | BT14: 63 - 125 | BU14: VF Sand | BV14: ='raw files'!AZ16 -> 11.665 | BW14: ='raw files'!BA16 -> 11.517 | BX14: ='raw files'!BB16 -> 15.432 | BY14: 12.87133333 | BZ14: 1.28104597 | CC14: 63 - 125 | CD14: VF Sand | CE14: ='raw files'!BF16 -> 17.001 | CF14: ='raw files'!BG16 -> 17.872 | CG14: ='raw files'!BH16 -> 16.908 | CH14: 17.26033333 | CI14: 0.3070094099
A15: 125 - 250 | B15: F Sand | C15: ='raw files'!C17 -> 21.667 | D15: ='raw files'!D17 -> 22.912 | E15: ='raw files'!E17 -> 21.398 | F15: 21.99233333 | G15: 0.4663440552 | J15: 125 - 250 | K15: F Sand | L15: ='raw files'!I17 -> 36.019 | M15: ='raw files'!J17 -> 38.375 | N15: ='raw files'!K17 -> 36.628 | O15: 36.3235 | P15: 0.7060699525 | S15: 125 - 250 | T15: F Sand | U15: ='raw files'!O17 -> 11.017 | V15: ='raw files'!P17 -> 14.114 | W15: ='raw files'!Q17 -> 13.526 | X15: 12.88566667 | Y15: 0.9496266518 | AB15: 125 - 250 | AC15: F Sand | AD15: ='raw files'!U17 -> 30.163 | AE15: ='raw files'!V17 -> 31.395 | AF15: ='raw files'!W17 -> 32.856 | AG15: 31.47133333 | AH15: 0.7783384725 | AK15: 125 - 250 | AL15: F Sand | AM15: ='raw files'!AB17 -> 26.303 | AN15: ='raw files'!AC17 -> 28.341 | AO15: ='raw files'!AD17 -> 33.038 | AP15: 29.22733333 | AQ15: 1.994095144 | AT15: 125 - 250 | AU15: F Sand | AV15: ='raw files'!AH17 -> 55.783 | AW15: ='raw files'!AI17 -> 55.451 | AX15: ='raw files'!AJ17 -> 57.92 | AY15: 56.38466667 | AZ15: 0.7736261658 | BC15: 125 - 250 | BD15: F Sand | BE15: ='raw files'!AN17 -> 44.131 | BF15: ='raw files'!AO17 -> 46.549 | BG15: ='raw files'!AP17 -> 47.845 | BH15: =AVERAGE(BE15:BG15) -> 46.175 | BI15: =(STDEV(BE15:BG15))/SQRT(3) -> 1.088325319 | BL15: 125 - 250 | BM15: F Sand | BN15: ='raw files'!AT17 -> 36.042 | BO15: ='raw files'!AU17 -> 38.893 | BP15: ='raw files'!AV17 -> 37.432 | BQ15: 37.45566667 | BR15: 0.8230978746 | BT15: 125 - 250 | BU15: F Sand | BV15: ='raw files'!AZ17 -> 56.501 | BW15: ='raw files'!BA17 -> 51.409 | BX15: ='raw files'!BB17 -> 52.239 | BY15: 53.383 | BZ15: 1.577304452 | CC15: 125 - 250 | CD15: F Sand | CE15: ='raw files'!BF17 -> 37.734 | CF15: ='raw files'!BG17 -> 37.982 | CG15: ='raw files'!BH17 -> 36.555 | CH15: 37.42366667 | CI15: 0.4401940229
A16: 250 - 500 | B16: M Sand | C16: ='raw files'!C18 -> 27.114 | D16: ='raw files'!D18 -> 30.155 | E16: ='raw files'!E18 -> 31.25 | F16: 29.50633333 | G16: 1.23722813 | J16: 250 - 500 | K16: M Sand | L16: ='raw files'!I18 -> 38.821 | M16: ='raw files'!J18 -> 41.287 | N16: ='raw files'!K18 -> 38.228 | O16: 38.5245 | P16: 0.9366099034 | S16: 250 - 500 | T16: M Sand | U16: ='raw files'!O18 -> 22.906 | V16: ='raw files'!P18 -> 24.909 | W16: ='raw files'!Q18 -> 22.889 | X16: 23.568 | Y16: 0.670517959 | AB16: 250 - 500 | AC16: M Sand | AD16: ='raw files'!U18 -> 48.962 | AE16: ='raw files'!V18 -> 47.985 | AF16: ='raw files'!W18 -> 45.905 | AG16: 47.61733333 | AH16: 0.9014241202 | AK16: 250 - 500 | AL16: M Sand | AM16: ='raw files'!AB18 -> 59.697 | AN16: ='raw files'!AC18 -> 60.408 | AO16: ='raw files'!AD18 -> 57.225 | AP16: 59.11 | AQ16: 0.96458955 | AT16: 250 - 500 | AU16: M Sand | AV16: ='raw files'!AH18 -> 42.68 | AW16: ='raw files'!AI18 -> 41.647 | AX16: ='raw files'!AJ18 -> 40.254 | AY16: 41.527 | AZ16: 0.7028914093 | BC16: 250 - 500 | BD16: M Sand | BE16: ='raw files'!AN18 -> 29.079 | BF16: ='raw files'!AO18 -> 31.5 | BG16: ='raw files'!AP18 -> 32.372 | BH16: 30.98366667 | BI16: 0.9850401571 | BL16: 250 - 500 | BM16: M Sand | BN16: ='raw files'!AT18 -> 30.433 | BO16: ='raw files'!AU18 -> 34.022 | BP16: ='raw files'!AV18 -> 26.564 | BQ16: 30.33966667 | BR16: 2.153444863 | BT16: 250 - 500 | BU16: M Sand | BV16: ='raw files'!AZ18 -> 25.663 | BW16: ='raw files'!BA18 -> 25.03 | BX16: ='raw files'!BB18 -> 24.034 | BY16: 24.909 | BZ16: 0.47412762 | CC16: 250 - 500 | CD16: M Sand | CE16: ='raw files'!BF18 -> 18.564 | CF16: ='raw files'!BG18 -> 16.452 | CG16: ='raw files'!BH18 -> 16.96 | CH16: 17.32533333 | CI16: 0.6364582556
A17: 500 - 1000 | B17: C Sand | C17: ='raw files'!C19 -> 22.753 | D17: ='raw files'!D19 -> 21.735 | E17: ='raw files'!E19 -> 24.391 | F17: 22.95966667 | G17: 0.7736530948 | J17: 500 - 1000 | K17: C Sand | L17: ='raw files'!I19 -> 10.551 | M17: ='raw files'!J19 -> 7.063 | N17: ='raw files'!K19 -> 9.5 | O17: 10.0255 | P17: 1.033056791 | S17: 500 - 1000 | T17: C Sand | U17: ='raw files'!O19 -> 38.076 | V17: ='raw files'!P19 -> 33.069 | X17: 35.5725 | Y17: 2.04409919 | AB17: 500 - 1000 | AC17: C Sand | AD17: ='raw files'!U19 -> 14.707 | AE17: ='raw files'!V19 -> 10.657 | AF17: ='raw files'!W19 -> 9.503 | AG17: 11.62233333 | AH17: 1.577900011 | AK17: 500 - 1000 | AL17: C Sand | AM17: ='raw files'!AB19 -> 12.891 | AN17: ='raw files'!AC19 -> 8.441 | AO17: ='raw files'!AD19 -> 8.386 | AP17: 9.906 | AQ17: 1.492584448 | AT17: 500 - 1000 | AU17: C Sand | AV17: ='raw files'!AH19 -> 0.045 | AW17: ='raw files'!AI19 -> 0.09 | AX17: ='raw files'!AJ19 -> 0.037 | AY17: 0.05733333333 | AZ17: 0.01649579071 | BC17: 500 - 1000 | BD17: C Sand | BE17: ='raw files'!AN19 -> 4.32 | BF17: ='raw files'!AO19 -> 1.5 | BG17: ='raw files'!AP19 -> 1.602 | BH17: 2.474 | BI17: 0.9234695447 | BL17: 500 - 1000 | BM17: C Sand | BN17: ='raw files'!AT19 -> 10.627 | BO17: ='raw files'!AU19 -> 8.247 | BP17: ='raw files'!AV19 -> 6.262 | BQ17: 8.378666667 | BR17: 1.261785551 | BT17: 500 - 1000 | BU17: C Sand | BV17: ='raw files'!AZ19 -> 0 | BW17: ='raw files'!BA19 -> 3.917 | BX17: ='raw files'!BB19 -> 0 | BY17: 1.305666667 | BZ17: 1.305666667 | CC17: 500 - 1000 | CD17: C Sand | CE17: ='raw files'!BF19 -> 0.022 | CF17: ='raw files'!BG19 -> 0.012 | CG17: ='raw files'!BH19 -> 1.647 | CH17: 0.5603333333 | CI17: 0.543341002
A18: 1000 - 2000 | B18: VC Sand | C18: ='raw files'!C20 -> 17.674 | D18: ='raw files'!D20 -> 11.562 | E18: ='raw files'!E20 -> 8.907 | F18: 12.71433333 | G18: 2.595571635 | J18: 1000 - 2000 | K18: VC Sand | L18: ='raw files'!I20 -> 1.799 | M18: ='raw files'!J20 -> 2.064 | N18: ='raw files'!K20 -> 5.262 | O18: 3.5305 | P18: 1.112799223 | S18: 1000 - 2000 | T18: VC Sand | U18: ='raw files'!O20 -> 23.516 | V18: ='raw files'!P20 -> 19.407 | W18: ='raw files'!Q20 -> 24.037 | X18: 22.32 | Y18: 1.464244629 | AB18: 1000 - 2000 | AC18: VC Sand | AD18: ='raw files'!U20 -> 0.084 | AE18: ='raw files'!V20 -> 0 | AF18: ='raw files'!W20 -> 0 | AG18: 0.028 | AH18: 0.028 | AK18: 1000 - 2000 | AL18: VC Sand | AM18: ='raw files'!AB20 -> 0.261 | AN18: ='raw files'!AC20 -> 0 | AO18: ='raw files'!AD20 -> 0 | AP18: 0.087 | AQ18: 0.087 | AT18: 1000 - 2000 | AU18: VC Sand | AV18: ='raw files'!AH20 -> 0 | AW18: ='raw files'!AI20 -> 0 | AX18: ='raw files'!AJ20 -> 0 | AY18: 0 | AZ18: 0 | BC18: 1000 - 2000 | BD18: VC Sand | BE18: ='raw files'!AN20 -> 4.127 | BF18: ='raw files'!AO20 -> 2.761 | BG18: ='raw files'!AP20 -> 2.193 | BH18: 3.027 | BI18: 0.5739210166 | BL18: 1000 - 2000 | BM18: VC Sand | BN18: ='raw files'!AT20 -> 8.564 | BO18: ='raw files'!AU20 -> 3.942 | BP18: ='raw files'!AV20 -> 6.067 | BQ18: 6.191 | BR18: 1.335696198 | BT18: 1000 - 2000 | BU18: VC Sand | BV18: ='raw files'!AZ20 -> 0 | BW18: ='raw files'!BA20 -> 2.952 | BX18: ='raw files'!BB20 -> 0 | BY18: 0.984 | BZ18: 0.984 | CC18: 1000 - 2000 | CD18: VC Sand | CE18: ='raw files'!BF20 -> 0 | CF18: ='raw files'!BG20 -> 0 | CG18: ='raw files'!BH20 -> 1.174 | CH18: 0.3913333333 | CI18: 0.3913333333
D19: Textural Class: | F19: ='Texture Calculator'!N4 -> SAND | M19: Textural Class: | O19: ='Texture Calculator'!N5 -> SAND | V19: Textural Class: | W19: ='Texture Calculator'!N6 -> SAND | AE19: Textural Class: | AF19: ='Texture Calculator'!N7 -> SAND | AM19: Textural Class: | AO19: ='Texture Calculator'!N8 -> SAND | AV19: Textural Class: | AX19: ='Texture Calculator'!N9 -> SAND | BE19: Textural Class: | BG19: ='Texture Calculator'!N10 -> SAND | BM19: Textural Class: | BO19: ='Texture Calculator'!N11 -> SAND | BV19: Textural Class: | BX19: ='Texture Calculator'!N12 -> SAND | CD19: Textural Class: | CF19: ='Texture Calculator'!N13 -> SAND
D20: avg mode: | F20: =AVERAGE('raw files'!C6:E6) -> 291.4656667 | M20: avg mode: | O20: =AVERAGE('raw files'!I6:K6) -> 254.3653333 | V20: avg mode: | X20: =AVERAGE('raw files'!O6:Q6) -> 838.147 | AE20: avg mode: | AG20: =AVERAGE('raw files'!V6:W6) -> 294.7925 | AM20: avg mode: | AO20: =AVERAGE('raw files'!AF6:AH6) -> 236.471 | AV20: avg mode: | AX20: =AVERAGE('raw files'!AH6:AJ6) -> 233.8223333 | BE20: avg mode: | BG20: =AVERAGE('raw files'!AN6:AP6) -> 216.9866667 | BM20: avg mode: | BO20: =AVERAGE('raw files'!AU6:AV6) -> 226.12 | BV20: avg mode: | BX20: =AVERAGE('raw files'!AZ6:BB6) -> 198.6003333 | CE20: avg mode: | CG20: =AVERAGE('raw files'!BF6:BH6) -> 187.9563333
A24: Particle | C24: ='raw files'!BL1 -> [4437] C10_T1_43 bulk - a new Averaged Result | J24: Particle | L24: ='raw files'!BR1 -> [4438] C10_dark bulk - a - Average | S24: Particle | U24: ='raw files'!BX1 -> [4438a] C10_dune bulk - a - Average | AB24: Particle | AD24: ='raw files'!CD1 -> [4438b] C10_interdune bulk - a - Average | AK24: Particle | AM24: ='raw files'!CJ1 -> [4439] C10_T2_44 bulk - a - Average | AT24: Particle | AV24: ='raw files'!CP1 -> [4440] C10_T2_51 bulk - a - Average | BC24: Particle | BE24: ='raw files'!CV1 -> [4441] C10_T2_55 bulk - b - Average | BL24: Particle | BN24: ='raw files'!DB1 -> [4442] C10_T2_63 bulk - a - Average | BU24: Particle | BW24: ='raw files'!DH1 -> [4443] C10_T2_67 bulk - b - Average | CD24: Particle | CF24: ='raw files'!DN1 -> [4444] C10_T2_76 bulk - c - Average
A25: Diameter | C25: Differential Volume (%) | J25: Diameter | L25: Differential Volume (%) | S25: Diameter | U25: Differential Volume (%) | AB25: Diameter | AD25: Differential Volume (%) | AK25: Diameter | AM25: Differential Volume (%) | AT25: Diameter | AV25: Differential Volume (%) | BC25: Diameter | BE25: Differential Volume (%) | BL25: Diameter | BN25: Differential Volume (%) | BU25: Diameter | BW25: Differential Volume (%) | CD25: Diameter | CF25: Differential Volume (%)
A26: Range (mm) | B26: Size Class | C26: Rep. 1 | D26: Rep. 2 | E26: Rep. 3 | F26: Average | G26: SE | J26: Range (mm) | K26: Size Class | L26: Rep. 1 | M26: Rep. 2 | N26: Rep. 3 | O26: Average | P26: SE | S26: Range (mm) | T26: Size Class | U26: Rep. 1 | V26: Rep. 2 | W26: Rep. 3 | X26: Average | Y26: SE | AB26: Range (mm) | AC26: Size Class | AD26: Rep. 1 | AE26: Rep. 2 | AF26: Rep. 3 | AG26: Average | AH26: SE | AK26: Range (mm) | AL26: Size Class | AM26: Rep. 1 | AN26: Rep. 2 | AO26: Rep. 3 | AP26: Average | AQ26: SE | AT26: Range (mm) | AU26: Size Class | AV26: Rep. 1 | AW26: Rep. 2 | AX26: Rep. 3 | AY26: Average | AZ26: SE | BC26: Range (mm) | BD26: Size Class | BE26: Rep. 1 | BF26: Rep. 2 | BG26: Rep. 3 | BH26: Average | BI26: SE | BL26: Range (mm) | BM26: Size Class | BN26: Rep. 1 | BO26: Rep. 2 | BP26: Rep. 3 | BQ26: Average | BR26: SE | BU26: Range (mm) | BV26: Size Class | BW26: Rep. 1 | BX26: Rep. 2 | BY26: Rep. 3 | BZ26: Average | CA26: SE | CD26: Range (mm) | CE26: Size Class | CF26: Rep. 1 | CG26: Rep. 2 | CH26: Rep. 3 | CI26: Average | CJ26: SE
A27: < 6 | B27: Clay | C27: ='raw files'!BL13 -> 16.643 | D27: ='raw files'!BM13 -> 18.284 | E27: ='raw files'!BN13 -> 18.038 | F27: =AVERAGE(D27:E27) -> 18.161 | G27: =(STDEV(D27:E27))/SQRT(2) -> 0.123 | J27: < 6 | K27: Clay | L27: ='raw files'!BR13 -> 0 | M27: ='raw files'!BS13 -> 0 | N27: ='raw files'!BT13 -> 0 | O27: =AVERAGE(L27:N27) -> 0 | P27: =(STDEV(L27:N27))/SQRT(3) -> 0 | S27: < 6 | T27: Clay | U27: ='raw files'!BX13 -> 0 | V27: ='raw files'!BY13 -> 0 | W27: ='raw files'!BZ13 -> 0 | X27: =AVERAGE(U27:W27) -> 0 | Y27: =(STDEV(U27:W27))/SQRT(3) -> 0 | AB27: < 6 | AC27: Clay | AD27: ='raw files'!CD13 -> 0.657 | AE27: ='raw files'!CE13 -> 0.668 | AF27: ='raw files'!CF13 -> 0.963 | AG27: =AVERAGE(AD27:AF27) -> 0.7626666667 | AH27: =(STDEV(AD27:AF27))/SQRT(3) -> 0.1002169868 | AK27: < 6 | AL27: Clay | AM27: ='raw files'!CJ13 -> 15.071 | AN27: ='raw files'!CK13 -> 13.739 | AO27: ='raw files'!CL13 -> 13.257 | AP27: =AVERAGE(AM27:AO27) -> 14.02233333 | AQ27: =(STDEV(AM27:AO27))/SQRT(3) -> 0.5424811313 | AT27: < 6 | AU27: Clay | AV27: ='raw files'!CP13 -> 1.207 | AW27: ='raw files'!CQ13 -> 1.152 | AX27: ='raw files'!CR13 -> 1.653 | AY27: =AVERAGE(AV27:AX27) -> 1.337333333 | AZ27: =(STDEV(AV27:AX27))/SQRT(3) -> 0.1586298977 | BC27: < 6 | BD27: Clay | BE27: ='raw files'!CV13 -> 0 | BF27: ='raw files'!CW13 -> 0.835 | BG27: ='raw files'!CX13 -> 0.766 | BH27: =AVERAGE(BE27:BG27) -> 0.5336666667 | BI27: =(STDEV(BE27:BG27))/SQRT(3) -> 0.2675757421 | BL27: < 6 | BM27: Clay | BN27: ='raw files'!DB13 -> 0 | BO27: ='raw files'!DC13 -> 0.42 | BP27: ='raw files'!DD13 -> 0.413 | BQ27: =AVERAGE(BN27:BO27) -> 0.21 | BR27: =(STDEV(BN27:BO27))/SQRT(2) -> 0.21 | BU27: < 6 | BV27: Clay | BW27: ='raw files'!DH13 -> 0 | BX27: ='raw files'!DI13 -> 0.31 | BY27: ='raw files'!DJ13 -> 0.168 | BZ27: =AVERAGE(BW27:BY27) -> 0.1593333333 | CA27: =(STDEV(BW27:BY27))/SQRT(3) -> 0.08959414663 | CD27: < 6 | CE27: Clay | CF27: ='raw files'!DN13 -> 1.307 | CG27: ='raw files'!DO13 -> 1.402 | CH27: ='raw files'!DP13 -> 0.58 | CI27: =AVERAGE(CF27:CG27) -> 1.3545 | CJ27: =(STDEV(CF27:CG27))/SQRT(2) -> 0.0475
A28: 6 - 63 | B28: Silt | C28: ='raw files'!BL14 -> 39.617 | D28: ='raw files'!BM14 -> 43.63 | E28: ='raw files'!BN14 -> 42.887 | F28: =AVERAGE(D28:E28) -> 43.2585 | G28: 0.3715 | J28: 6 - 63 | K28: Silt | L28: ='raw files'!BR14 -> 0 | M28: ='raw files'!BS14 -> 0 | N28: ='raw files'!BT14 -> 1.902 | O28: =AVERAGE(L28:N28) -> 0.634 | P28: =(STDEV(L28:N28))/SQRT(3) -> 0.634 | S28: 6 - 63 | T28: Silt | U28: ='raw files'!BX14 -> 0 | V28: ='raw files'!BY14 -> 0 | W28: ='raw files'!BZ14 -> 2.226 | X28: =AVERAGE(U28:W28) -> 0.742 | Y28: =(STDEV(U28:W28))/SQRT(3) -> 0.742 | AB28: 6 - 63 | AC28: Silt | AD28: ='raw files'!CD14 -> 3.166 | AE28: ='raw files'!CE14 -> 3.128 | AF28: ='raw files'!CF14 -> 3.792 | AG28: =AVERAGE(AD28:AF28) -> 3.362 | AH28: =(STDEV(AD28:AF28))/SQRT(3) -> 0.2152796631 | AK28: 6 - 63 | AL28: Silt | AM28: ='raw files'!CJ14 -> 41.741 | AN28: ='raw files'!CK14 -> 37.94 | AO28: ='raw files'!CL14 -> 38.481 | AP28: =AVERAGE(AM28:AO28) -> 39.38733333 | AQ28: =(STDEV(AM28:AO28))/SQRT(3) -> 1.187150697 | AT28: 6 - 63 | AU28: Silt | AV28: ='raw files'!CP14 -> 3.879 | AW28: ='raw files'!CQ14 -> 4.018 | AX28: ='raw files'!CR14 -> 4.622 | AY28: =AVERAGE(AV28:AX28) -> 4.173 | AZ28: =(STDEV(AV28:AX28))/SQRT(3) -> 0.2280577412 | BC28: 6 - 63 | BD28: Silt | BE28: ='raw files'!CV14 -> 2.217 | BF28: ='raw files'!CW14 -> 4.546 | BG28: ='raw files'!CX14 -> 4.085 | BH28: =AVERAGE(BE28:BG28) -> 3.616 | BI28: =(STDEV(BE28:BG28))/SQRT(3) -> 0.7120465809 | BL28: 6 - 63 | BM28: Silt | BN28: ='raw files'!DB14 -> 3.119 | BO28: ='raw files'!DC14 -> 4.113 | BP28: ='raw files'!DD14 -> 4.295 | BQ28: =AVERAGE(BN28:BO28) -> 3.616 | BR28: =(STDEV(BN28:BO28))/SQRT(2) -> 0.497 | BU28: 6 - 63 | BV28: Silt | BW28: ='raw files'!DH14 -> 3.747 | BX28: ='raw files'!DI14 -> 3.309 | BY28: ='raw files'!DJ14 -> 4.025 | BZ28: =AVERAGE(BW28:BY28) -> 3.693666667 | CA28: =(STDEV(BW28:BY28))/SQRT(3) -> 0.2084045212 | CD28: 6 - 63 | CE28: Silt | CF28: ='raw files'!DN14 -> 6.085 | CG28: ='raw files'!DO14 -> 6.219 | CH28: ='raw files'!DP14 -> 3.687 | CI28: =AVERAGE(CF28:CG28) -> 6.152 | CJ28: =(STDEV(CF28:CG28))/SQRT(2) -> 0.067
A29: 63 - 2000 | B29: Sand | C29: ='raw files'!BL15 -> 43.74 | D29: ='raw files'!BM15 -> 38.086 | E29: ='raw files'!BN15 -> 39.075 | F29: 38.5805 | G29: =(STDEV(D29:E29))/SQRT(2) -> 0.4945 | J29: 63 - 2000 | K29: Sand | L29: ='raw files'!BR15 -> 100 | M29: ='raw files'!BS15 -> 100 | N29: ='raw files'!BT15 -> 98.098 | O29: 99.366 | P29: =(STDEV(L29:N29))/SQRT(3) -> 0.634 | S29: 63 - 2000 | T29: Sand | U29: ='raw files'!BX15 -> 100 | V29: ='raw files'!BY15 -> 100 | W29: ='raw files'!BZ15 -> 97.774 | X29: 99.258 | Y29: 0.742 | AB29: 63 - 2000 | AC29: Sand | AD29: ='raw files'!CD15 -> 96.178 | AE29: ='raw files'!CE15 -> 96.204 | AF29: ='raw files'!CF15 -> 95.244 | AG29: 95.87533333 | AH29: 0.3157558832 | AK29: 63 - 2000 | AL29: Sand | AM29: ='raw files'!CJ15 -> 43.188 | AN29: ='raw files'!CK15 -> 48.321 | AO29: ='raw files'!CL15 -> 48.262 | AP29: 46.59033333 | AQ29: 1.701251925 | AT29: 63 - 2000 | AU29: Sand | AV29: ='raw files'!CP15 -> 94.914 | AW29: ='raw files'!CQ15 -> 94.83 | AX29: ='raw files'!CR15 -> 93.725 | AY29: 94.48966667 | AZ29: 0.3831015241 | BC29: 63 - 2000 | BD29: Sand | BE29: ='raw files'!CV15 -> 97.783 | BF29: ='raw files'!CW15 -> 94.618 | BG29: ='raw files'!CX15 -> 95.149 | BH29: 95.85 | BI29: 0.9785800938 | BL29: 63 - 2000 | BM29: Sand | BN29: ='raw files'!DB15 -> 96.881 | BO29: ='raw files'!DC15 -> 95.466 | BP29: ='raw files'!DD15 -> 95.292 | BQ29: 96.1735 | BR29: 0.7075 | BU29: 63 - 2000 | BV29: Sand | BW29: ='raw files'!DH15 -> 96.253 | BX29: ='raw files'!DI15 -> 96.381 | BY29: ='raw files'!DJ15 -> 95.807 | BZ29: 96.147 | CA29: =(STDEV(BW29:BY29))/SQRT(3) -> 0.173969346 | CD29: 63 - 2000 | CE29: Sand | CF29: ='raw files'!DN15 -> 92.609 | CG29: ='raw files'!DO15 -> 92.379 | CH29: ='raw files'!DP15 -> 95.734 | CI29: 92.494 | CJ29: 0.115
A30: 63 - 125 | B30: VF Sand | C30: ='raw files'!BL16 -> 20.294 | D30: ='raw files'!BM16 -> 20.852 | E30: ='raw files'!BN16 -> 20.169 | F30: 20.5105 | G30: 0.3415 | J30: 63 - 125 | K30: VF Sand | L30: ='raw files'!BR16 -> 1.328 | M30: ='raw files'!BS16 -> 3.543 | N30: ='raw files'!BT16 -> 2.484 | O30: =AVERAGE(L30:N30) -> 2.451666667 | P30: =(STDEV(L30:N30))/SQRT(3) -> 0.6396197655 | S30: 63 - 125 | T30: VF Sand | U30: ='raw files'!BX16 -> 1.652 | V30: ='raw files'!BY16 -> 2.341 | W30: ='raw files'!BZ16 -> 3.553 | X30: 2.515333333 | Y30: 0.5556510696 | AB30: 63 - 125 | AC30: VF Sand | AD30: ='raw files'!CD16 -> 2.016 | AE30: ='raw files'!CE16 -> 2.436 | AF30: ='raw files'!CF16 -> 2.538 | AG30: 2.33 | AH30: 0.1597372843 | AK30: 63 - 125 | AL30: VF Sand | AM30: ='raw files'!CJ16 -> 17.898 | AN30: ='raw files'!CK16 -> 15.947 | AO30: ='raw files'!CL16 -> 17.521 | AP30: =AVERAGE(AM30:AO30) -> 17.122 | AQ30: 0.5974950488 | AT30: 63 - 125 | AU30: VF Sand | AV30: ='raw files'!CP16 -> 11.874 | AW30: ='raw files'!CQ16 -> 12.477 | AX30: ='raw files'!CR16 -> 12.532 | AY30: =AVERAGE(AV30:AX30) -> 12.29433333 | AZ30: =(STDEV(AV30:AX30))/SQRT(3) -> 0.2107655359 | BC30: 63 - 125 | BD30: VF Sand | BE30: ='raw files'!CV16 -> 15.768 | BF30: ='raw files'!CW16 -> 20.201 | BG30: ='raw files'!CX16 -> 19.949 | BH30: 18.63933333 | BI30: 1.437508531 | BL30: 63 - 125 | BM30: VF Sand | BN30: ='raw files'!DB16 -> 8.958 | BO30: ='raw files'!DC16 -> 7.207 | BP30: ='raw files'!DD16 -> 7.919 | BQ30: 8.0825 | BR30: 0.8755 | BU30: 63 - 125 | BV30: VF Sand | BW30: ='raw files'!DH16 -> 3.389 | BX30: ='raw files'!DI16 -> 1.922 | BY30: ='raw files'!DJ16 -> 3.287 | BZ30: =AVERAGE(BW30:BY30) -> 2.866 | CA30: =(STDEV(BW30:BY30))/SQRT(3) -> 0.4729175404 | CD30: 63 - 125 | CE30: VF Sand | CF30: ='raw files'!DN16 -> 4.424 | CG30: ='raw files'!DO16 -> 4.858 | CH30: ='raw files'!DP16 -> 2.21 | CI30: 4.641 | CJ30: 0.217
A31: 125 - 250 | B31: F Sand | C31: ='raw files'!BL17 -> 12.776 | D31: ='raw files'!BM17 -> 12.042 | E31: ='raw files'!BN17 -> 12.968 | F31: 12.505 | G31: 0.463 | J31: 125 - 250 | K31: F Sand | L31: ='raw files'!BR17 -> 56.453 | M31: ='raw files'!BS17 -> 57.801 | N31: ='raw files'!BT17 -> 58.635 | O31: =AVERAGE(L31:N31) -> 57.62966667 | P31: 0.6356879039 | S31: 125 - 250 | T31: F Sand | U31: ='raw files'!BX17 -> 54.716 | V31: ='raw files'!BY17 -> 57.418 | W31: ='raw files'!BZ17 -> 54.658 | X31: 55.59733333 | Y31: 0.9104872932 | AB31: 125 - 250 | AC31: F Sand | AD31: ='raw files'!CD17 -> 47.025 | AE31: ='raw files'!CE17 -> 48.764 | AF31: ='raw files'!CF17 -> 47.624 | AG31: 47.80433333 | AH31: 0.5100393231 | AK31: 125 - 250 | AL31: F Sand | AM31: ='raw files'!CJ17 -> 18.308 | AN31: ='raw files'!CK17 -> 17.009 | AO31: ='raw files'!CL17 -> 18.162 | AP31: =AVERAGE(AM31:AO31) -> 17.82633333 | AQ31: 0.4108342461 | AT31: 125 - 250 | AU31: F Sand | AV31: ='raw files'!CP17 -> 63.23 | AW31: ='raw files'!CQ17 -> 63.462 | AX31: ='raw files'!CR17 -> 62.194 | AY31: =AVERAGE(AV31:AX31) -> 62.962 | AZ31: =(STDEV(AV31:AX31))/SQRT(3) -> 0.3897965281 | BC31: 125 - 250 | BD31: F Sand | BE31: ='raw files'!CV17 -> 54.642 | BF31: ='raw files'!CW17 -> 55.09 | BG31: ='raw files'!CX17 -> 55.365 | BH31: 55.03233333 | BI31: 0.2106943547 | BL31: 125 - 250 | BM31: F Sand | BN31: ='raw files'!DB17 -> 48.617 | BO31: ='raw files'!DC17 -> 46.719 | BP31: ='raw files'!DD17 -> 47.25 | BQ31: 47.668 | BR31: 0.949 | BU31: 125 - 250 | BV31: F Sand | BW31: ='raw files'!DH17 -> 38.541 | BX31: ='raw files'!DI17 -> 36.176 | BY31: ='raw files'!DJ17 -> 37.616 | BZ31: =AVERAGE(BW31:BY31) -> 37.44433333 | CA31: 0.68809116 | CD31: 125 - 250 | CE31: F Sand | CF31: ='raw files'!DN17 -> 13.412 | CG31: ='raw files'!DO17 -> 13.465 | CH31: ='raw files'!DP17 -> 11.053 | CI31: 13.4385 | CJ31: 0.0265
A32: 250 - 500 | B32: M Sand | C32: ='raw files'!BL18 -> 6.554 | D32: ='raw files'!BM18 -> 4.564 | E32: ='raw files'!BN18 -> 3.342 | F32: 3.953 | G32: 0.611 | J32: 250 - 500 | K32: M Sand | L32: ='raw files'!BR18 -> 42.191 | M32: ='raw files'!BS18 -> 38.602 | N32: ='raw files'!BT18 -> 36.947 | O32: 39.24666667 | P32: 1.547748939 | S32: 250 - 500 | T32: M Sand | U32: ='raw files'!BX18 -> 43.567 | V32: ='raw files'!BY18 -> 40.192 | W32: ='raw files'!BZ18 -> 39.505 | X32: 41.088 | Y32: 1.255265311 | AB32: 250 - 500 | AC32: M Sand | AD32: ='raw files'!CD18 -> 45.974 | AE32: ='raw files'!CE18 -> 44.105 | AF32: ='raw files'!CF18 -> 43.971 | AG32: 44.68333333 | AH32: 0.646491643 | AK32: 250 - 500 | AL32: M Sand | AM32: ='raw files'!CJ18 -> 6.897 | AN32: ='raw files'!CK18 -> 8.374 | AO32: ='raw files'!CL18 -> 9.87 | AP32: 8.380333333 | AQ32: 0.8582370172 | AT32: 250 - 500 | AU32: M Sand | AV32: ='raw files'!CP18 -> 19.81 | AW32: ='raw files'!CQ18 -> 18.891 | AX32: ='raw files'!CR18 -> 18.999 | AY32: 19.23333333 | AZ32: 0.2900139843 | BC32: 250 - 500 | BD32: M Sand | BE32: ='raw files'!CV18 -> 19.058 | BF32: ='raw files'!CW18 -> 19.327 | BG32: ='raw files'!CX18 -> 19.835 | BH32: 19.40666667 | BI32: 0.2278101061 | BL32: 250 - 500 | BM32: M Sand | BN32: ='raw files'!DB18 -> 38.327 | BO32: ='raw files'!DC18 -> 39.946 | BP32: ='raw files'!DD18 -> 38.858 | BQ32: 39.1365 | BR32: 0.8095 | BU32: 250 - 500 | BV32: M Sand | BW32: ='raw files'!DH18 -> 49.801 | BX32: ='raw files'!DI18 -> 53.529 | BY32: ='raw files'!DJ18 -> 50.016 | BZ32: 51.11533333 | CA32: 1.208428226 | CD32: 250 - 500 | CE32: M Sand | CF32: ='raw files'!DN18 -> 44.873 | CG32: ='raw files'!DO18 -> 42.465 | CH32: ='raw files'!DP18 -> 45.383 | CI32: 43.669 | CJ32: 1.204
A33: 500 - 1000 | B33: C Sand | C33: ='raw files'!BL19 -> 3.604 | D33: ='raw files'!BM19 -> 0.628 | E33: ='raw files'!BN19 -> 1.322 | F33: 0.975 | G33: 0.347 | J33: 500 - 1000 | K33: C Sand | L33: ='raw files'!BR19 -> 0.028 | M33: ='raw files'!BS19 -> 0.054 | N33: ='raw files'!BT19 -> 0.031 | O33: 0.03766666667 | P33: 0.008212456663 | S33: 500 - 1000 | T33: C Sand | U33: ='raw files'!BX19 -> 0.066 | V33: ='raw files'!BY19 -> 0.049 | W33: ='raw files'!BZ19 -> 0.058 | X33: 0.05766666667 | Y33: 0.004910306621 | AB33: 500 - 1000 | AC33: C Sand | AD33: ='raw files'!CD19 -> 1.163 | AE33: ='raw files'!CE19 -> 0.899 | AF33: ='raw files'!CF19 -> 1.111 | AG33: 1.057666667 | AH33: 0.08074101257 | AK33: 500 - 1000 | AL33: C Sand | AM33: ='raw files'!CJ19 -> 0.085 | AN33: ='raw files'!CK19 -> 3.507 | AO33: ='raw files'!CL19 -> 2.691 | AP33: 2.094333333 | AQ33: 1.031912356 | AT33: 500 - 1000 | AU33: C Sand | AV33: ='raw files'!CP19 -> 0 | AW33: ='raw files'!CQ19 -> 0 | AX33: ='raw files'!CR19 -> 0 | AY33: 0 | AZ33: 0 | BC33: 500 - 1000 | BD33: C Sand | BE33: ='raw files'!CV19 -> 3.481 | BF33: ='raw files'!CW19 -> 0 | BG33: ='raw files'!CX19 -> 0 | BH33: 1.160333333 | BI33: 1.160333333 | BL33: 500 - 1000 | BM33: C Sand | BN33: ='raw files'!DB19 -> 0.979 | BO33: ='raw files'!DC19 -> 1.594 | BP33: ='raw files'!DD19 -> 1.264 | BQ33: 1.2865 | BR33: 0.3075 | BU33: 500 - 1000 | BV33: C Sand | BW33: ='raw files'!DH19 -> 4.521 | BX33: ='raw files'!DI19 -> 4.754 | BY33: ='raw files'!DJ19 -> 4.888 | BZ33: 4.721 | CA33: 0.1072209557 | CD33: 500 - 1000 | CE33: C Sand | CF33: ='raw files'!DN19 -> 29.489 | CG33: ='raw files'!DO19 -> 30.497 | CH33: ='raw files'!DP19 -> 35.304 | CI33: 29.993 | CJ33: 0.504
A34: 1000 - 2000 | B34: VC Sand | C34: ='raw files'!BL20 -> 0.511 | D34: ='raw files'!BM20 -> 0 | E34: ='raw files'!BN20 -> 1.273 | F34: 0.6365 | G34: 0.6365 | J34: 1000 - 2000 | K34: VC Sand | L34: ='raw files'!BR20 -> 0 | M34: ='raw files'!BS20 -> 0 | N34: ='raw files'!BT20 -> 0 | O34: 0 | P34: 0 | S34: 1000 - 2000 | T34: VC Sand | U34: ='raw files'!BX20 -> 0 | V34: ='raw files'!BY20 -> 0 | W34: ='raw files'!BZ20 -> 0 | X34: 0 | Y34: 0 | AB34: 1000 - 2000 | AC34: VC Sand | AD34: ='raw files'!CD20 -> 0 | AE34: ='raw files'!CE20 -> 0 | AF34: ='raw files'!CF20 -> 0 | AG34: 0 | AH34: 0 | AK34: 1000 - 2000 | AL34: VC Sand | AM34: ='raw files'!CJ20 -> 0 | AN34: ='raw files'!CK20 -> 3.484 | AO34: ='raw files'!CL20 -> 0.019 | AP34: 1.167666667 | AQ34: 1.158179654 | AT34: 1000 - 2000 | AU34: VC Sand | AV34: ='raw files'!CP20 -> 0 | AW34: ='raw files'!CQ20 -> 0 | AX34: ='raw files'!CR20 -> 0 | AY34: 0 | AZ34: =(STDEV(AV34:AX34))/SQRT(3) -> 0 | BC34: 1000 - 2000 | BD34: VC Sand | BE34: ='raw files'!CV20 -> 4.835 | BF34: ='raw files'!CW20 -> 0 | BG34: ='raw files'!CX20 -> 0 | BH34: 1.611666667 | BI34: 1.611666667 | BL34: 1000 - 2000 | BM34: VC Sand | BN34: ='raw files'!DB20 -> 0 | BO34: ='raw files'!DC20 -> 0 | BP34: ='raw files'!DD20 -> 0 | BQ34: 0 | BR34: 0 | BU34: 1000 - 2000 | BV34: VC Sand | BW34: ='raw files'!DH20 -> 0 | BX34: ='raw files'!DI20 -> 0 | BY34: ='raw files'!DJ20 -> 0 | BZ34: 0 | CA34: 0 | CD34: 1000 - 2000 | CE34: VC Sand | CF34: ='raw files'!DN20 -> 0.411 | CG34: ='raw files'!DO20 -> 1.093 | CH34: ='raw files'!DP20 -> 1.783 | CI34: 0.752 | CJ34: 0.341
D35: Textural Class: | F35: ='Texture Calculator'!N13 -> SAND | M35: Textural Class: | N35: ='Texture Calculator'!N14 -> SAND | V35: Textural Class: | W35: ='Texture Calculator'!N15 -> SAND | AE35: Textural Class: | AF35: ='Texture Calculator'!N16 -> SAND | AN35: Textural Class: | AO35: ='Texture Calculator'!N17 -> SAND | AW35: Textural Class: | AX35: ='Texture Calculator'!N18 -> SAND | BF35: Textural Class: | BG35: ='Texture Calculator'!N19 -> SAND | BO35: Textural Class: | BP35: ='Texture Calculator'!N20 -> SAND | BX35: Textural Class: | BY35: ='Texture Calculator'!N21 -> SAND | CG35: Textural Class: | CH35: ='Texture Calculator'!$N$22 -> SAND
D36: avg mode: | F36: =AVERAGE('raw files'!BL6:BN6) -> 72.97466667 | M36: avg mode: | N36: =AVERAGE('raw files'!BR6:BT6) -> 229.2976667 | V36: avg mode: | W36: =AVERAGE('raw files'!BX6:BY6) -> 234.245 | AE36: avg mode: | AF36: =AVERAGE('raw files'!CE6:CF6) -> 244.647 | AN36: avg mode: | AO36: =AVERAGE('raw files'!CJ6:CL6) -> 143.9266667 | AW36: avg mode: | AX36: =AVERAGE('raw files'!CP6:CR6) -> 187.4616667 | BF36: avg mode: | BG36: =AVERAGE('raw files'!CV6:CW6) -> 183.033 | BO36: avg mode: | BP36: =AVERAGE('raw files'!DB6:DC6) -> 233.6905 | BX36: avg mode: | BY36: =AVERAGE('raw files'!DH6:DJ6) -> 278.8873333 | CG36: avg mode: | CH36: =AVERAGE('raw files'!DO6:DP6) -> 449.4735
A40: Particle | C40: ='raw files'!DT1 -> [4445] C10_T2_83 bulk - a - Average
A41: Diameter | C41: Differential Volume (%)
A42: Range (mm) | B42: Size Class | C42: Rep. 1 | D42: Rep. 2 | E42: Rep. 3 | F42: Average | G42: SE
A43: < 6 | B43: Clay | C43: ='raw files'!DT13 -> 4.167 | D43: ='raw files'!DU13 -> 4.853 | E43: ='raw files'!DV13 -> 4.653 | F43: =AVERAGE(C43:E43) -> 4.557666667 | G43: =(STDEV(C43:E43))/SQRT(3) -> 0.2036871239
A44: 6 - 63 | B44: Silt | C44: ='raw files'!DT14 -> 20.648 | D44: ='raw files'!DU14 -> 23.634 | E44: ='raw files'!DV14 -> 22.609 | F44: =AVERAGE(C44:E44) -> 22.297 | G44: =(STDEV(C44:E44))/SQRT(3) -> 0.8759864915
A45: 63 - 2000 | B45: Sand | C45: ='raw files'!DT15 -> 75.184 | D45: ='raw files'!DU15 -> 71.513 | E45: ='raw files'!DV15 -> 72.738 | F45: 73.145 | G45: 1.079088659
A46: 63 - 125 | B46: VF Sand | C46: ='raw files'!DT16 -> 20.61 | D46: ='raw files'!DU16 -> 23.346 | E46: ='raw files'!DV16 -> 22.298 | F46: 22.08466667 | G46: 0.7969854313
A47: 125 - 250 | B47: F Sand | C47: ='raw files'!DT17 -> 31.859 | D47: ='raw files'!DU17 -> 31.903 | E47: ='raw files'!DV17 -> 31.927 | F47: 31.89633333 | G47: 0.0199109127
A48: 250 - 500 | B48: M Sand | C48: ='raw files'!DT18 -> 21.297 | D48: ='raw files'!DU18 -> 16.223 | E48: ='raw files'!DV18 -> 18.057 | F48: 18.52566667 | G48: 1.483363895
A49: 500 - 1000 | B49: C Sand | C49: ='raw files'!DT19 -> 1.419 | D49: ='raw files'!DU19 -> 0.041 | E49: ='raw files'!DV19 -> 0.455 | F49: 0.6383333333 | G49: 0.4082194399
A50: 1000 - 2000 | B50: VC Sand | C50: ='raw files'!DT20 -> 0 | D50: ='raw files'!DU20 -> 0 | E50: ='raw files'!DV20 -> 0 | F50: 0 | G50: 0
D51: Textural Class: | F51: ='Texture Calculator'!$N$23 -> SAND
D52: avg mode: | F52: =AVERAGE('raw files'!DT6:DV6) -> 190.47
R67: Clay | S67: Silt
Q68: 0 | R68: 6 | S68: 63
Q69: 18 | R69: 6 | S69: 63

Sheet Texture Calculator
B1: Enter your data into the yellow highlighted cells | I1: Password = Texture
B3: Sand | D3: Clay | F3: Silt | H3: USDA Texture
A4: 4428 | B4: % Sand 1 | C4: =Results!$F$13/100 -> 0.91713 | D4: %Clay 1 | E4: =Results!$F$11/100 -> 0.02135666667 | F4: % Silt 1 | G4: =1-C4-E4 -> 0.06151333333 | H4: =GRAIN(C4,E4,G4) -> SAND | N4: =H4 -> SAND
A5: 4429 | B5: % Sand 2 | C5: =Results!$O$13/100 -> 0.92888 | D5: %Clay 2 | E5: =Results!$O$11/100 -> 0.018635 | F5: % Silt 2 | G5: =1-C5-E5 -> 0.052485 | H5: =GRAIN(C5,E5,G5) -> SAND | N5: =H5 -> SAND
A6: 4430 | B6: % Sand 3 | C6: =Results!$X$13/100 -> 0.9609366667 | D6: %Clay 3 | E6: =Results!X11/100 -> 0.01138 | F6: % Silt 3 | G6: =1-C6-E6 -> 0.02768333333 | H6: SAND | N6: =H6 -> SAND
A7: 4431 | B7: % Sand 4 | C7: =Results!$AG$13/100 -> 0.9417566667 | D7: %Clay 4 | E7: =Results!$AG$11/100 -> 0.01393333333 | F7: % Silt 4 | G7: =1-C7-E7 -> 0.04431 | H7: =GRAIN(C7,E7,G7) -> SAND | N7: =H7 -> SAND
A8: 4432 | B8: % Sand 5 | C8: =Results!$AP$13/100 -> 0.9865033333 | D8: %Clay 5 | E8: =Results!$AP$11/100 -> 0.00341 | F8: % Silt 5 | G8: =1-C8-E8 -> 0.01008666667 | H8: =GRAIN(C8,E8,G8) -> SAND | N8: =H8 -> SAND
A9: 4433 | B9: % Sand 6 | C9: =Results!$AY$13/100 -> 1 | D9: %Clay 6 | E9: =Results!$AY$11/100 -> 0 | F9: % Silt 6 | G9: =1-C9-E9 -> 0 | H9: =GRAIN(C9,E9,G9) -> SAND | N9: SAND
A10: 4433a | B10: % Sand 7 | C10: =Results!$BH$13/100 -> 0.9380166667 | D10: %Clay 7 | E10: =Results!$BH$11/100 -> 0.01020333333 | F10: % Silt 7 | G10: 0.05178 | H10: SAND | N10: SAND
A11: 4434 | B11: % Sand 8 | C11: =Results!$BQ$13/100 -> 0.91645 | D11: %Clay 8 | E11: =Results!$BQ$11/100 -> 0.01957333333 | F11: % Silt 8 | G11: =1-C11-E11 -> 0.06397666667 | H11: =GRAIN(C11,E11,G11) -> SAND | N11: SAND
A12: 4435 | B12: % Sand 9 | C12: =Results!$BY$13/100 -> 0.93453 | D12: %Clay 9 | E12: =Results!$BY$11/100 -> 0.01688666667 | F12: % Silt 9 | G12: 0.04858333333 | H12: SAND | N12: SAND
A13: 4436 | B13: % Sand 11 | C13: =Results!$BH$13/100 -> 0.9380166667 | D13: %Clay 11 | E13: =Results!$BH$11/100 -> 0.01020333333 | F13: % Silt 11 | G13: =1-C13-E13 -> 0.05178 | H13: =GRAIN(C13,E13,G13) -> SAND | N13: SAND
A14: 4437 | B14: % Sand 12 | C14: =Results!$BQ$13/100 -> 0.91645 | D14: %Clay 12 | E14: =Results!$BQ$11/100 -> 0.01957333333 | F14: % Silt 12 | G14: 0.06397666667 | H14: SAND | N14: SAND
A15: 4438 | B15: % Sand 13 | C15: =Results!$O$29/100 -> 0.99366 | D15: %Clay 13 | E15: =Results!$O$27/100 -> 0 | F15: % Silt 13 | G15: 0.00634 | H15: SAND | N15: SAND
A16: 4438a | B16: % Sand 14 | C16: =Results!$X$29/100 -> 0.99258 | D16: %Clay 14 | E16: =Results!$X$27/100 -> 0 | F16: % Silt 14 | G16: 0.00742 | H16: SAND | N16: SAND
A17: 4438b | B17: % Sand 15 | C17: =Results!$AG$29/100 -> 0.9587533333 | D17: %Clay 15 | E17: =Results!$AG$27/100 -> 0.007626666667 | F17: % Silt 15 | G17: 0.03362 | H17: SAND | N17: =H17 -> SAND
A18: 4439 | B18: % Sand 16 | C18: =Results!$O$29/100 -> 0.99366 | D18: %Clay 16 | E18: =Results!$O$27/100 -> 0 | F18: % Silt 16 | G18: =1-C18-E18 -> 0.00634 | H18: =GRAIN(C18,E18,G18) -> SAND | N18: =H18 -> SAND
A19: 4440 | B19: % Sand 17 | C19: =Results!$AY$29/100 -> 0.9448966667 | D19: %Clay 17 | E19: =Results!$AY$27/100 -> 0.01337333333 | F19: % Silt 17 | G19: =1-C19-E19 -> 0.04173 | H19: =GRAIN(C19,E19,G19) -> SAND | N19: SAND
A20: 4441 | B20: % Sand 18 | C20: =Results!$BH$29/100 -> 0.9585 | D20: %Clay 18 | E20: =Results!$BH$27/100 -> 0.005336666667 | F20: % Silt 18 | G20: =1-C20-E20 -> 0.03616333333 | H20: =GRAIN(C20,E20,G20) -> SAND | N20: SAND
A21: 4442 | B21: % Sand 19 | C21: =Results!$BQ$29/100 -> 0.961735 | D21: %Clay 19 | E21: =Results!$BQ$27/100 -> 0.0021 | F21: % Silt 19 | G21: 0.036165 | H21: SAND | N21: SAND
A22: 4443 | B22: % Sand 20 | C22: =Results!$BZ$29/100 -> 0.96147 | D22: %Clay 20 | E22: =Results!$BZ$27/100 -> 0.001593333333 | F22: % Silt 20 | G22: 0.03693666667 | H22: =GRAIN(C22,E22,G22) -> SAND | N22: SAND
A23: 4444 | B23: % Sand 21 | C23: =Results!$CI$29/100 -> 0.92494 | D23: %Clay 21 | E23: =Results!$CI$27/100 -> 0.013545 | F23: % Silt 21 | G23: =1-C23-E23 -> 0.061515 | H23: =GRAIN(C23,E23,G23) -> SAND | N23: SAND
A24: 4445 | B24: % Sand 22 | C24: =Results!BQ29/100 -> 0.961735 | D24: %Clay 22 | E24: =Results!BQ27/100 -> 0.0021 | F24: % Silt 22 | G24: 0.036165 | H24: SAND | N24: SAND
B25: % Sand 23 | C25: =Results!$O$45/100 -> 0 | D25: %Clay 23 | E25: =Results!$O$43/100 -> 0 | F25: % Silt 23 | G25: 1 | H25: SILT | N25: SILT
B26: % Sand 24 | C26: =Results!$X$45/100 -> 0 | D26: %Clay 24 | E26: =Results!$X$43/100 -> 0 | F26: % Silt 24 | G26: =1-C26-E26 -> 1 | H26: =GRAIN(C26,E26,G26) -> SILT | N26: SILT
B27: % Sand 25 | C27: =Results!$AG$45/100 -> 0 | D27: %Clay 25 | E27: =Results!$AG$43/100 -> 0 | F27: % Silt 25 | G27: =1-C27-E27 -> 1 | H27: =GRAIN(C27,E27,G27) -> SILT | N27: =H27 -> SILT
B28: % Sand 26 | C28: =Results!$AY$45/100 -> 0 | D28: %Clay 26 | E28: =Results!$AY$43/100 -> 0 | F28: % Silt 26 | G28: 1 | H28: SILT
B29: % Sand 27 | C29: =Results!$BQ$45/100 -> 0 | D29: %Clay 27 | E29: =Results!$BQ$43/100 -> 0 | F29: % Silt 27 | G29: 1 | H29: SILT
B30: % Sand 28 | C30: =Results!$BZ$45/100 -> 0 | D30: %Clay 28 | E30: =Results!$BZ$43/100 -> 0 | F30: % Silt 28 | G30: =1-C30-E30 -> 1 | H30: =GRAIN(C30,E30,G30) -> SILT
B31: % Sand 29 | C31: =Results!$BQ$45/100 -> 0 | D31: %Clay 29 | E31: =Results!$BQ$43/100 -> 0 | F31: % Silt 29 | G31: 1 | H31: SILT
B32: % Sand 30 | C32: =Results!$BZ$45/100 -> 0 | D32: %Clay 30 | E32: =Results!$BZ$43/100 -> 0 | F32: % Silt 30 | G32: 1 | H32: SILT
B33: % Sand 31 | C33: =Results!$BZ$45/100 -> 0 | D33: %Clay 31 | E33: =Results!$BZ$43/100 -> 0 | F33: % Silt 31 | G33: 1 | H33: SILT
B34: % Sand 32 | C34: =Results!$CI$45/100 -> 0 | D34: %Clay 32 | E34: =Results!$CI$43/100 -> 0 | F34: % Silt 32 | G34: 1 | H34: =GRAIN(C34,E34,G34) -> SILT
B35: % Sand 33 | C35: =Results!$BQ$45/100 -> 0 | D35: %Clay 33 | E35: =Results!$BQ$43/100 -> 0 | F35: % Silt 33 | G35: 1 | H35: SILT
B36: % Sand 34 | C36: =Results!$BQ$45/100 -> 0 | D36: %Clay 34 | E36: =Results!$BQ$43/100 -> 0 | F36: % Silt 34 | G36: =1-C36-E36 -> 1 | H36: =GRAIN(C36,E36,G36) -> SILT
D39: =A4 -> 4428 | E39: =(1.095-(C7*0.0104*100))-((0.52)*(0.0099*E7*100)) -> 0.1084001867 | F39: =0.145+(0.0099*E7*100) -> 0.158794
D40: 4429 | E40: 0.06728106533 | F40: 0.1483759
D41: 4430 | E41: 0.055 | F41: 0.145
D42: 4431 | E42: 0.1142099907 | F42: 0.1551013
D43: 4432 | E43: 0.131815648 | F43: 0.1643776
D44: 4433 | E44: 0.114395544 | F44: 0.1617178
D45: 4433a | E45: =(1.095-(C13*0.0104*100))-((0.52)*(0.0099*E13*100)) -> 0.1142099907 | F45: =0.145+(0.0099*E13*100) -> 0.1551013
D46: 4434 | E46: 0.131815648 | F46: 0.1643776
D47: 4435 | E47: 0.0615936 | F47: 0.145
D48: 4436 | E48: 0.0627168 | F48: 0.145
D49: 4437 | E49: 0.09397032533 | F49: 0.1525504
D50: 4438 | E50: 0.0615936 | F50: 0.145
D51: 4438a | E51: 0.1054228747 | F51: 0.1582396
D52: 4438b | E52: 0.095412684 | F52: 0.1502833
D53: 4439 | E53: 0.09371452 | F53: 0.147079
D54: 4440 | E54: 0.094250952 | F54: 0.1465774
D55: 4441 | E55: 0.126089434 | F55: 0.15840955
D56: 4442 | E56: 0.09371452 | F56: 0.147079
D57: 4443 | E57: 1.095 | F57: 0.145
D58: 4444 | E58: 1.095 | F58: 0.145
D59: 4445 | E59: =(1.095-(C27*0.0104*100))-((0.52)*(0.0099*E27*100)) -> 1.095 | F59: =0.145+(0.0099*E27*100) -> 0.145
E64: 0.525
E65: 1.04

Sheet raw files
A1: Sample Name | C1: [4428] Chile_10_T1_0 bulk - c - Average | D1: [4428] Chile_10_T1_0 bulk - e - Average | E1: [4428] Chile_10_T1_0 bulk - f - Average | G1: Sample Name | I1: [4429] Chile_10_T1_2 bulk- a - Average | J1: [4429] Chile_10_T1_2 bulk- b - Average | K1: [4429] Chile_10_T1_2 bulk- c - Average | M1: Sample Name | O1: [4430] C10_T1_10 bulk - a - Average | P1: [4430] C10_T1_10 bulk - c - Average | Q1: [4430] C10_T1_10 bulk - d -newAverage | S1: Sample Name | U1: [4431] C10_T1_11 bulk - a - Average | V1: [4431] C10_T1_11 bulk - c - Average | W1: [4431] C10_T1_11 bulk - d - Average | Z1: Sample Name | AB1: [4432] C10_T1_21 bulk - a - Average | AC1: [4432] C10_T1_21 bulk - b - Average | AD1: [4432] C10_T1_21 bulk - c - Average | AF1: Sample Name | AH1: [4433] C10_T1_25 bulk - a - Average | AI1: [4433] C10_T1_25 bulk - b - Average | AJ1: [4433] C10_T1_25 bulk - f - Average | AL1: Sample Name | AN1: [4433a] C10_T1_25 bulk- a - Average | AO1: [4433a] C10_T1_25 bulk- b - Average | AP1: [4433a] C10_T1_25 bulk- c - Average | AR1: Sample Name | AT1: [4434] C10_T1_31 bulk - d - Average | AU1: [4434] C10_T1_31 bulk - e - Average | AV1: [4434] C10_T1_31 bulk - f - Average | AX1: Sample Name | AZ1: [4435] C10_T1_34 bulk - a - Average | BA1: [4435] C10_T1_34 bulk - b - Average | BB1: [4435] C10_T1_34 bulk - c - Average | BD1: Sample Name | BF1: [4436] C10_T1_39 bulk - a - Average | BG1: [4436] C10_T1_39 bulk - b - Average | BH1: [4436] C10_T1_39 bulk - c - Average | BJ1: Sample Name | BL1: [4437] C10_T1_43 bulk - a new Averaged Result | BM1: [4437] C10_T1_43 bulk - c - Average | BN1: [4437] C10_T1_43 bulk - d - Average | BP1: Sample Name | BR1: [4438] C10_dark bulk - a - Average | BS1: [4438] C10_dark bulk - b - Average | BT1: [4438] C10_dark bulk - c - Average | BV1: Sample Name | BX1: [4438a] C10_dune bulk - a - Average | BY1: [4438a] C10_dune bulk - b - Average | BZ1: [4438a] C10_dune bulk - c - Average | CB1: Sample Name | CD1: [4438b] C10_interdune bulk - a - Average | CE1: [4438b] C10_interdune bulk - b - Average | CF1: [4438b] C10_interdune bulk - c - Average | CH1: Sample Name | CJ1: [4439] C10_T2_44 bulk - a - Average | CK1: [4439] C10_T2_44 bulk - b - Average | CL1: [4439] C10_T2_44 bulk - e - Average | CN1: Sample Name | CP1: [4440] C10_T2_51 bulk - a - Average | CQ1: [4440] C10_T2_51 bulk - b - Average | CR1: [4440] C10_T2_51 bulk - c - Average | CT1: Sample Name | CV1: [4441] C10_T2_55 bulk - b - Average | CW1: [4441] C10_T2_55 bulk - d - Average | CX1: [4441] C10_T2_55 bulk - e - Average | CZ1: Sample Name | DB1: [4442] C10_T2_63 bulk - a - Average | DC1: [4442] C10_T2_63 bulk - b - Average | DD1: [4442] C10_T2_63 bulk - c - Average | DF1: Sample Name | DH1: [4443] C10_T2_67 bulk - b - Average | DI1: [4443] C10_T2_67 bulk - d - Average | DJ1: [4443] C10_T2_67 bulk - e - Average | DL1: Sample Name | DN1: [4444] C10_T2_76 bulk - c - Average | DO1: [4444] C10_T2_76 bulk - b - Average | DP1: [4444] C10_T2_76 bulk - d - Average | DR1: Sample Name | DT1: [4445] C10_T2_83 bulk - a - Average | DU1: [4445] C10_T2_83 bulk - c - Average | DV1: [4445] C10_T2_83 bulk - d - Average
A2: Analysis date and time | C2: éåí øáéòé 04 ñôèîáø 2019 14:29:00 | D2: éåí øáéòé 04 ñôèîáø 2019 14:41:43 | E2: éåí øáéòé 04 ñôèîáø 2019 14:44:22 | G2: Analysis date and time | I2: éåí ùðé 09 ñôèîáø 2019 11:25:50 | J2: éåí ùðé 09 ñôèîáø 2019 11:29:06 | K2: éåí ùðé 09 ñôèîáø 2019 11:35:50 | M2: Analysis date and time | O2: éåí øàùåï 01 ñôèîáø 2019 15:29:22 | P2: éåí øàùåï 01 ñôèîáø 2019 15:42:54 | Q2: éåí øàùåï 01 ñôèîáø 2019 15:58:11 | S2: Analysis date and time | U2: éåí øàùåï 01 ñôèîáø 2019 16:41:31 | V2: éåí øàùåï 01 ñôèîáø 2019 17:02:55 | W2: éåí øàùåï 01 ñôèîáø 2019 17:09:40 | Z2: Analysis date and time | AB2: éåí øàùåï 01 ñôèîáø 2019 18:23:59 | AC2: éåí øàùåï 01 ñôèîáø 2019 18:29:57 | AD2: éåí øàùåï 01 ñôèîáø 2019 18:35:20 | AF2: Analysis date and time | AH2: éåí ùìéùé 03 ñôèîáø 2019 10:49:33 | AI2: éåí ùìéùé 03 ñôèîáø 2019 10:56:22 | AJ2: éåí çîéùé 12 ñôèîáø 2019 09:13:43 | AL2: Analysis date and time | AN2: éåí ùðé 09 ñôèîáø 2019 12:21:04 | AO2: éåí ùðé 09 ñôèîáø 2019 12:23:44 | AP2: éåí ùðé 09 ñôèîáø 2019 12:33:07 | AR2: Analysis date and time | AT2: éåí ùðé 09 ñôèîáø 2019 13:08:06 | AU2: éåí ùðé 09 ñôèîáø 2019 13:11:05 | AV2: éåí ùðé 09 ñôèîáø 2019 13:22:33 | AX2: Analysis date and time | AZ2: éåí ùðé 09 ñôèîáø 2019 14:36:15 | BA2: éåí ùðé 09 ñôèîáø 2019 14:38:47 | BB2: éåí ùðé 09 ñôèîáø 2019 14:46:21 | BD2: Analysis date and time | BF2: éåí ùðé 09 ñôèîáø 2019 15:06:46 | BG2: éåí ùðé 09 ñôèîáø 2019 15:16:39 | BH2: éåí ùðé 09 ñôèîáø 2019 15:19:08 | BJ2: Analysis date and time | BL2: éåí ùìéùé 10 ñôèîáø 2019 12:17:09 | BM2: éåí ùìéùé 10 ñôèîáø 2019 12:27:06 | BN2: éåí ùìéùé 10 ñôèîáø 2019 12:29:22 | BP2: Analysis date and time | BR2: éåí ùìéùé 03 ñôèîáø 2019 11:52:05 | BS2: éåí ùìéùé 03 ñôèîáø 2019 12:05:19 | BT2: éåí ùìéùé 03 ñôèîáø 2019 12:17:20 | BV2: Analysis date and time | BX2: éåí ùìéùé 03 ñôèîáø 2019 12:32:46 | BY2: éåí ùìéùé 03 ñôèîáø 2019 12:51:52 | BZ2: éåí ùìéùé 03 ñôèîáø 2019 13:36:33 | CB2: Analysis date and time | CD2: éåí ùìéùé 03 ñôèîáø 2019 13:51:57 | CE2: éåí ùìéùé 03 ñôèîáø 2019 14:00:14 | CF2: éåí ùìéùé 03 ñôèîáø 2019 14:10:45 | CH2: Analysis date and time | CJ2: éåí ùìéùé 10 ñôèîáø 2019 12:48:10 | CK2: éåí ùìéùé 10 ñôèîáø 2019 12:50:56 | CL2: éåí ùìéùé 10 ñôèîáø 2019 13:39:43 | CN2: Analysis date and time | CP2: éåí ùìéùé 10 ñôèîáø 2019 13:53:52 | CQ2: éåí ùìéùé 10 ñôèîáø 2019 13:57:30 | CR2: éåí ùìéùé 10 ñôèîáø 2019 14:04:08 | CT2: Analysis date and time | CV2: éåí ùìéùé 10 ñôèîáø 2019 14:20:57 | CW2: éåí ùìéùé 10 ñôèîáø 2019 14:30:43 | CX2: éåí ùìéùé 10 ñôèîáø 2019 14:32:55 | CZ2: Analysis date and time | DB2: éåí ùìéùé 03 ñôèîáø 2019 14:29:30 | DC2: éåí ùìéùé 03 ñôèîáø 2019 14:40:45 | DD2: éåí ùìéùé 03 ñôèîáø 2019 14:47:55 | DF2: Analysis date and time | DH2: éåí ùìéùé 03 ñôèîáø 2019 15:06:04 | DI2: éåí ùìéùé 03 ñôèîáø 2019 15:20:12 | DJ2: éåí ùìéùé 03 ñôèîáø 2019 15:32:44 | DL2: Analysis date and time | DN2: éåí øáéòé 11 ñôèîáø 2019 09:09:49 | DO2: éåí øáéòé 11 ñôèîáø 2019 09:12:17 | DP2: éåí øáéòé 11 ñôèîáø 2019 09:19:28 | DR2: Analysis date and time | DT2: éåí øáéòé 11 ñôèîáø 2019 10:03:26 | DU2: éåí øáéòé 11 ñôèîáø 2019 10:13:15 | DV2: éåí øáéòé 11 ñôèîáø 2019 10:16:10
A3: Operator name | C3: Yael | D3: Yael | E3: Yael | G3: Operator name | I3: Yael | J3: Yael | K3: Yael | M3: Operator name | O3: Yael | P3: Yael | Q3: Yael | S3: Operator name | U3: Yael | V3: Yael | W3: Yael | Z3: Operator name | AB3: Yael | AC3: Yael | AD3: Yael | AF3: Operator name | AH3: dorina | AI3: dorina | AJ3: Yael | AL3: Operator name | AN3: Yael | AO3: Yael | AP3: Yael | AR3: Operator name | AT3: Yael | AU3: Yael | AV3: Yael | AX3: Operator name | AZ3: Yael | BA3: Yael | BB3: Yael | BD3: Operator name | BF3: Yael | BG3: Yael | BH3: Yael | BJ3: Operator name | BL3: Yael | BM3: Yael | BN3: Yael | BP3: Operator name | BR3: dorina | BS3: dorina | BT3: dorina | BV3: Operator name | BX3: dorina | BY3: dorina | BZ3: dorina | CB3: Operator name | CD3: dorina | CE3: dorina | CF3: dorina | CH3: Operator name | CJ3: Yael | CK3: Yael | CL3: Yael | CN3: Operator name | CP3: Yael | CQ3: Yael | CR3: Yael | CT3: Operator name | CV3: Yael | CW3: Yael | CX3: Yael | CZ3: Operator name | DB3: dorina | DC3: dorina | DD3: dorina | DF3: Operator name | DH3: dorina | DI3: dorina | DJ3: dorina | DL3: Operator name | DN3: Yael | DO3: Yael | DP3: Yael | DR3: Operator name | DT3: Yael | DU3: Yael | DV3: Yael
A4: Obscuration | C4: 8.13 | D4: 9.24 | E4: 9.06 | G4: Obscuration | I4: 8.07 | J4: 8.16 | K4: 9.15 | M4: Obscuration | O4: 9.44 | P4: 9.32 | Q4: 12.26 | S4: Obscuration | U4: 9.15 | V4: 9.33 | W4: 11.72 | Z4: Obscuration | AB4: 9.25 | AC4: 11.22 | AD4: 10.03 | AF4: Obscuration | AH4: 8.94 | AI4: 10.94 | AJ4: 7.48 | AL4: Obscuration | AN4: 7.86 | AO4: 7.84 | AP4: 8.92 | AR4: Obscuration | AT4: 12.22 | AU4: 11.05 | AV4: 10.58 | AX4: Obscuration | AZ4: 9.33 | BA4: 9.29 | BB4: 8.69 | BD4: Obscuration | BF4: 8.54 | BG4: 7.15 | BH4: 6.85 | BJ4: Obscuration | BL4: 7.23 | BM4: 7.56 | BN4: 7.44 | BP4: Obscuration | BR4: 12.51 | BS4: 11.99 | BT4: 9.06 | BV4: Obscuration | BX4: 9.28 | BY4: 11.81 | BZ4: 11.95 | CB4: Obscuration | CD4: 10.14 | CE4: 9.44 | CF4: 10.2 | CH4: Obscuration | CJ4: 8.91 | CK4: 8.72 | CL4: 11.51 | CN4: Obscuration | CP4: 7.43 | CQ4: 7.35 | CR4: 8.44 | CT4: Obscuration | CV4: 7.63 | CW4: 7.57 | CX4: 7.84 | CZ4: Obscuration | DB4: 12.12 | DC4: 12.31 | DD4: 12.08 | DF4: Obscuration | DH4: 7.89 | DI4: 6.7 | DJ4: 7.51 | DL4: Obscuration | DN4: 7.16 | DO4: 7.01 | DP4: 8.55 | DR4: Obscuration | DT4: 8.1 | DU4: 9.13 | DV4: 8.82
A5: Residual | C5: 1.293 | D5: 0.604 | E5: 0.747 | G5: Residual | I5: 0.738 | J5: 0.8 | K5: 0.833 | M5: Residual | O5: 0.74 | P5: 0.729 | Q5: 0.547 | S5: Residual | U5: 0.494 | V5: 0.564 | W5: 0.526 | Z5: Residual | AB5: 0.918 | AC5: 0.73 | AD5: 0.839 | AF5: Residual | AH5: 0.845 | AI5: 0.959 | AJ5: 0.928 | AL5: Residual | AN5: 0.751 | AO5: 0.67 | AP5: 0.697 | AR5: Residual | AT5: 0.656 | AU5: 0.639 | AV5: 0.63 | AX5: Residual | AZ5: 0.655 | BA5: 0.755 | BB5: 0.808 | BD5: Residual | BF5: 0.448 | BG5: 0.409 | BH5: 0.471 | BJ5: Residual | BL5: 0.259 | BM5: 0.804 | BN5: 1.084 | BP5: Residual | BR5: 7.167 | BS5: 1.036 | BT5: 0.797 | BV5: Residual | BX5: 0.668 | BY5: 0.785 | BZ5: 0.783 | CB5: Residual | CD5: 0.54 | CE5: 0.497 | CF5: 0.531 | CH5: Residual | CJ5: 0.315 | CK5: 0.327 | CL5: 0.274 | CN5: Residual | CP5: 0.639 | CQ5: 0.634 | CR5: 0.615 | CT5: Residual | CV5: 0.824 | CW5: 0.909 | CX5: 0.936 | CZ5: Residual | DB5: 0.775 | DC5: 0.716 | DD5: 0.715 | DF5: Residual | DH5: 1.23 | DI5: 1.059 | DJ5: 1.169 | DL5: Residual | DN5: 0.664 | DO5: 0.615 | DP5: 0.61 | DR5: Residual | DT5: 0.214 | DU5: 0.283 | DV5: 0.29
A6: Mode | C6: 270.046 | D6: 283.53 | E6: 320.821 | G6: Mode | I6: 255.181 | J6: 255.513 | K6: 252.402 | M6: Mode | O6: 810.182 | P6: 791.861 | Q6: 912.398 | S6: Mode | U6: 306.984 | V6: 300.441 | W6: 289.144 | Z6: Mode | AB6: 320.594 | AC6: 308.165 | AD6: 297.687 | AF6: Mode | AH6: 236.471 | AI6: 233.775 | AJ6: 231.221 | AL6: Mode | AN6: 214.16 | AO6: 217.825 | AP6: 218.975 | AR6: Mode | AT6: 231.31 | AU6: 235.081 | AV6: 217.159 | AX6: Mode | AZ6: 200.789 | BA6: 198.918 | BB6: 196.094 | BD6: Mode | BF6: 191.194 | BG6: 185.609 | BH6: 187.066 | BJ6: Mode | BL6: 74.64 | BM6: 72.176 | BN6: 72.108 | BP6: Mode | BR6: 235.77 | BS6: 226.586 | BT6: 225.537 | BV6: Mode | BX6: 238.183 | BY6: 230.307 | BZ6: 231.21 | CB6: Mode | CD6: 249.371 | CE6: 244.033 | CF6: 245.261 | CH6: Mode | CJ6: 140.989 | CK6: 150.51 | CL6: 140.281 | CN6: Mode | CP6: 188.605 | CQ6: 186.464 | CR6: 187.316 | CT6: Mode | CV6: 183.964 | CW6: 182.102 | CX6: 182.679 | CZ6: Mode | DB6: 230.348 | DC6: 237.033 | DD6: 233.807 | DF6: Mode | DH6: 275.173 | DI6: 283.466 | DJ6: 278.023 | DL6: Mode | DN6: 431.294 | DO6: 444.06 | DP6: 454.887 | DR6: Mode | DT6: 203.317 | DU6: 180.461 | DV6: 187.632
A7: Skewness | C7: 1.05 | D7: 1.346 | E7: 1.311 | G7: Skewness | I7: 2.008 | J7: 2.977 | K7: 2.496 | M7: Skewness | O7: 0.644 | P7: 0.791 | Q7: 0.649 | S7: Skewness | U7: 0.773 | V7: 0.431 | W7: 0.464 | Z7: Skewness | AB7: 1.339 | AC7: 0.422 | AD7: 0.638 | AE7: Mode | AF7: Skewness | AH7: 0.664 | AI7: 0.669 | AJ7: 0.691 | AL7: Skewness | AN7: 3.114 | AO7: 3.915 | AP7: 4.081 | AR7: Skewness | AT7: 2.054 | AU7: 2.713 | AV7: 2.552 | AX7: Skewness | AZ7: 0.18 | BA7: 3.511 | BB7: 0.229 | BD7: Skewness | BF7: 0.529 | BG7: 0.495 | BH7: 3.88 | BJ7: Skewness | BL7: 3.611 | BM7: 2.686 | BN7: 5.592 | BP7: Skewness | BR7: 0.656 | BS7: 0.704 | BT7: 0.367 | BU7: Mode | BV7: Skewness | BX7: 0.656 | BY7: 0.694 | BZ7: 0.36 | CB7: Skewness | CD7: 0.249 | CE7: 0.257 | CF7: 0.213 | CH7: Skewness | CJ7: 1.547 | CK7: 3.447 | CL7: 2.209 | CN7: Skewness | CP7: 0.167 | CQ7: 0.18 | CR7: 0.111 | CT7: Skewness | CV7: 3.304 | CW7: 0.365 | CX7: 0.386 | CZ7: Skewness | DB7: 0.518 | DC7: 0.432 | DD7: 0.425 | DF7: Skewness | DH7: 0.415 | DI7: 0.344 | DJ7: 0.387 | DL7: Skewness | DN7: 0.368 | DO7: 0.457 | DP7: 0.5 | DR7: Skewness | DT7: 0.869 | DU7: 0.847 | DV7: 0.881
A8: Kurtosis | C8: 0.261 | D8: 1.401 | E8: 1.64 | G8: Kurtosis | I8: 6.254 | J8: 13.845 | K8: 7.239 | M8: Kurtosis | O8: -0.228 | P8: -0.02 | Q8: -0.379 | S8: Kurtosis | U8: 0.724 | V8: 0.038 | W8: 0.061 | Z8: Kurtosis | AB8: 4.723 | AC8: 0.384 | AD8: 0.249 | AF8: Kurtosis | AH8: 0.127 | AI8: 0.046 | AJ8: 0.203 | AL8: Kurtosis | AN8: 11.174 | AO8: 19.121 | AP8: 22.03 | AR8: Kurtosis | AT8: 3.979 | AU8: 9.126 | AV8: 6.88 | AX8: Kurtosis | AZ8: 0.082 | BA8: 14.878 | BB8: -0.131 | BD8: Kurtosis | BF8: -0.328 | BG8: -0.422 | BH8: 23.404 | BJ8: Kurtosis | BL8: 17.904 | BM8: 9.865 | BN8: 37.968 | BP8: Kurtosis | BR8: 0.138 | BS8: 0.137 | BT8: 0.513 | BV8: Kurtosis | BX8: 0.077 | BY8: 0.161 | BZ8: 0.226 | CB8: Kurtosis | CD8: 0.409 | CE8: 0.413 | CF8: 0.383 | CH8: Kurtosis | CJ8: 2.265 | CK8: 13.056 | CL8: 6.011 | CN8: Kurtosis | CP8: 0.382 | CQ8: 0.407 | CR8: 0.324 | CT8: Kurtosis | CV8: 11.331 | CW8: -0.014 | CX8: 0.003 | CZ8: Kurtosis | DB8: 0.02 | DC8: 0.051 | DD8: 0.037 | DF8: Kurtosis | DH8: -0.025 | DI8: 0.123 | DJ8: -0.016 | DL8: Kurtosis | DN8: -0.19 | DO8: -0.063 | DP8: 0.107 | DR8: Kurtosis | DT8: 0.246 | DU8: 0.177 | DV8: 0.306
A9: d (0.1) | C9: 117.907 | D9: 86.555 | E9: 78.687 | G9: d (0.1) | I9: 107.077 | J9: 117.295 | K9: 122.789 | M9: d (0.1) | O9: 192.499 | P9: 141.932 | Q9: 162.256 | S9: d (0.1) | U9: 150.665 | V9: 125.271 | W9: 111.457 | Z9: d (0.1) | AB9: 192.257 | AC9: 182.128 | AD9: 176.428 | AF9: d (0.1) | AH9: 158.17 | AI9: 150.285 | AJ9: 155.242 | AL9: d (0.1) | AN9: 93.07 | AO9: 96.38 | AP9: 103.363 | AR9: d (0.1) | AT9: 103.16 | AU9: 101.192 | AV9: 48.082 | AX9: d (0.1) | AZ9: 100.933 | BA9: 104.498 | BB9: 80.576 | BD9: d (0.1) | BF9: 10.293 | BG9: 9.347 | BH9: 9.854 | BJ9: d (0.1) | BL9: 3.015 | BM9: 2.743 | BN9: 2.784 | BP9: d (0.1) | BR9: 159.313 | BS9: 146.119 | BT9: 146.114 | BV9: d (0.1) | BX9: 157.626 | BY9: 152.309 | BZ9: 140.742 | CB9: d (0.1) | CD9: 145.563 | CE9: 142.473 | CF9: 138.474 | CH9: d (0.1) | CJ9: 3.601 | CK9: 4.018 | CL9: 4.182 | CN9: d (0.1) | CP9: 107.012 | CQ9: 105.769 | CR9: 101.218 | CT9: d (0.1) | CV9: 106.144 | CW9: 88.117 | CX9: 90.421 | CZ9: d (0.1) | DB9: 117.719 | DC9: 118.118 | DD9: 114.788 | DF9: d (0.1) | DH9: 141.022 | DI9: 153.581 | DJ9: 139.884 | DL9: d (0.1) | DN9: 92.707 | DO9: 87.968 | DP9: 190.686 | DR9: d (0.1) | DT9: 22.557 | DU9: 18.309 | DV9: 19.468
A10: d (0.5) | C10: 378.964 | D10: 333.446 | E10: 343.614 | G10: d (0.5) | I10: 254.159 | J10: 251.306 | K10: 260.377 | M10: d (0.5) | O10: 630.614 | P10: 529.67 | Q10: 592.958 | S10: d (0.5) | U10: 299.607 | V10: 280.304 | W10: 268.787 | Z10: d (0.5) | AB10: 320.172 | AC10: 302.996 | AD10: 294.688 | AF10: d (0.5) | AH10: 235.781 | AI10: 232.442 | AJ10: 231.124 | AL10: d (0.5) | AN10: 210.357 | AO10: 208.104 | AP10: 210.617 | AR10: d (0.5) | AT10: 248.506 | AU10: 236.675 | AV10: 208.621 | AX10: d (0.5) | AZ10: 191.047 | BA10: 199.747 | BB10: 181.369 | BD10: d (0.5) | BF10: 142.99 | BG10: 137.248 | BH10: 143.253 | BJ10: d (0.5) | BL10: 50.925 | BM10: 42.234 | BN10: 43.148 | BP10: d (0.5) | BR10: 235.202 | BS10: 225.995 | BT10: 224.154 | BV10: d (0.5) | BX10: 237.246 | BY10: 230.298 | BZ10: 227.102 | CB10: d (0.5) | CD10: 243.302 | CE10: 238.379 | CF10: 238.313 | CH10: d (0.5) | CJ10: 47.036 | CK10: 58.227 | CL10: 58.401 | CN10: d (0.5) | CP10: 183.323 | CQ10: 181.025 | CR10: 180.337 | CT10: d (0.5) | CV10: 188.449 | CW10: 171.54 | CX10: 172.998 | CZ10: d (0.5) | DB10: 220.909 | DC10: 226.604 | DD10: 222.765 | DF10: d (0.5) | DH10: 262.407 | DI10: 272.729 | DJ10: 264.272 | DL10: d (0.5) | DN10: 380.525 | DO10: 384.943 | DP10: 423.547 | DR10: d (0.5) | DT10: 139.836 | DU10: 119.664 | DV10: 126.328
A11: d (0.9) | C11: 1241.406 | D11: 1060.982 | E11: 959.569 | G11: d (0.9) | I11: 541.977 | J11: 485.467 | K11: 632.846 | M11: d (0.9) | O11: 1321.551 | P11: 1250.934 | Q11: 1344.121 | S11: d (0.9) | U11: 555.296 | V11: 507.315 | W11: 494.281 | Z11: d (0.9) | AB11: 531.259 | AC11: 484.83 | AD11: 483.671 | AF11: d (0.9) | AH11: 349.491 | AI11: 356.108 | AJ11: 343.245 | AL11: d (0.9) | AN11: 453.072 | AO11: 390.003 | AP11: 385.262 | AR11: d (0.9) | AT11: 912.954 | AU11: 556.306 | AV11: 627.275 | AX11: d (0.9) | AZ11: 314.736 | BA11: 392.743 | BB11: 313.509 | BD11: d (0.9) | BF11: 302.045 | BG11: 288.917 | BH11: 319.081 | BJ11: d (0.9) | BL11: 264.383 | BM11: 175.359 | BN11: 188.974 | BP11: d (0.9) | BR11: 345.612 | BS11: 347.878 | BT11: 336.709 | BV11: d (0.9) | BX11: 354.68 | BY11: 347.489 | BZ11: 352.65 | CB11: d (0.9) | CD11: 384.146 | CE11: 377.156 | CF11: 380.471 | CH11: d (0.9) | CJ11: 218.172 | CK11: 348.299 | CL11: 284.352 | CN11: d (0.9) | CP11: 290.115 | CQ11: 285.985 | CR11: 286.674 | CT11: d (0.9) | CV11: 382.872 | CW11: 292.348 | CX11: 294.575 | CZ11: d (0.9) | DB11: 378.986 | DC11: 390.125 | DD11: 383.894 | DF11: d (0.9) | DH11: 439.459 | DI11: 443.644 | DJ11: 444.046 | DL11: d (0.9) | DN11: 697.769 | DO11: 724.372 | DP11: 767.137 | DR11: d (0.9) | DT11: 342.779 | DU11: 294.84 | DV11: 311.637
A12: Specific surface area | C12: 0.0738 | D12: 0.108 | E12: 0.114 | G12: Specific surface area | I12: 0.0953 | J12: 0.09 | K12: 0.0758 | M12: Specific surface area | O12: 0.0315 | P12: 0.0734 | Q12: 0.0592 | S12: Specific surface area | U12: 0.0408 | V12: 0.0816 | W12: 0.0873 | Z12: Specific surface area | AB12: 0.0268 | AC12: 0.0317 | AD12: 0.0295 | AF12: Specific surface area | AH12: 0.0267 | AI12: 0.0273 | AJ12: 0.0272 | AL12: Specific surface area | AN12: 0.0621 | AO12: 0.0603 | AP12: 0.0615 | AR12: Specific surface area | AT12: 0.0704 | AU12: 0.0731 | AV12: 0.142 | AX12: Specific surface area | AZ12: 0.0768 | BA12: 0.067 | BB12: 0.118 | BD12: Specific surface area | BF12: 0.309 | BG12: 0.329 | BH12: 0.318 | BJ12: Specific surface area | BL12: 0.734 | BM12: 0.796 | BN12: 0.786 | BP12: Specific surface area | BR12: 0.0267 | BS12: 0.0281 | BT12: 0.0314 | BV12: Specific surface area | BX12: 0.0266 | BY12: 0.0274 | BZ12: 0.0321 | CB12: Specific surface area | CD12: 0.0445 | CE12: 0.0453 | CF12: 0.053 | CH12: Specific surface area | CJ12: 0.68 | CK12: 0.62 | CL12: 0.608 | CN12: Specific surface area | CP12: 0.0669 | CQ12: 0.0665 | CR12: 0.0848 | CT12: Specific surface area | CV12: 0.0383 | CW12: 0.0621 | CX12: 0.0597 | CZ12: Specific surface area | DB12: 0.0347 | DC12: 0.044 | DD12: 0.0447 | DF12: Specific surface area | DH12: 0.0295 | DI12: 0.0343 | DJ12: 0.0332 | DL12: Specific surface area | DN12: 0.0638 | DO12: 0.0676 | DP12: 0.0354 | DR12: Specific surface area | DT12: 0.216 | DU12: 0.251 | DV12: 0.239
A13: Result Below 6.000 µm | C13: 1.657 | D13: 2.317 | E13: 2.433 | G13: Result Below 6.000 µm | I13: 2.067 | J13: 1.938 | K13: 1.66 | M13: Result Below 6.000 µm | O13: 0.613 | P13: 1.476 | Q13: 1.325 | S13: Result Below 6.000 µm | U13: 0.665 | V13: 1.718 | W13: 1.797 | Z13: Result Below 6.000 µm | AB13: 0.288 | AC13: 0.374 | AD13: 0.361 | AF13: Result Below 6.000 µm | AH13: 0 | AI13: 0 | AJ13: 0 | AL13: Result Below 6.000 µm | AN13: 1.037 | AO13: 0.966 | AP13: 1.058 | AR13: Result Below 6.000 µm | AT13: 1.48 | AU13: 1.521 | AV13: 2.871 | AX13: Result Below 6.000 µm | AZ13: 1.516 | BA13: 1.299 | BB13: 2.251 | BD13: Result Below 6.000 µm | BF13: 6.741 | BG13: 7.234 | BH13: 7.003 | BJ13: Result Below 6.000 µm | BL13: 16.643 | BM13: 18.284 | BN13: 18.038 | BP13: Result Below 6.000 µm | BR13: 0 | BS13: 0 | BT13: 0 | BV13: Result Below 6.000 µm | BX13: 0 | BY13: 0 | BZ13: 0 | CB13: Result Below 6.000 µm | CD13: 0.657 | CE13: 0.668 | CF13: 0.963 | CH13: Result Below 6.000 µm | CJ13: 15.071 | CK13: 13.739 | CL13: 13.257 | CN13: Result Below 6.000 µm | CP13: 1.207 | CQ13: 1.152 | CR13: 1.653 | CT13: Result Below 6.000 µm | CV13: 0 | CW13: 0.835 | CX13: 0.766 | CZ13: Result Below 6.000 µm | DB13: 0 | DC13: 0.42 | DD13: 0.413 | DF13: Result Below 6.000 µm | DH13: 0 | DI13: 0.31 | DJ13: 0.168 | DL13: Result Below 6.000 µm | DN13: 1.307 | DO13: 1.402 | DP13: 0.58 | DR13: Result Below 6.000 µm | DT13: 4.167 | DU13: 4.853 | DV13: 4.653
A14: Result 6.00µm-63.00µm | C14: 5.249 | D14: 6.491 | E14: 6.714 | G14: Result 6.00µm-63.00µm | I14: 5.783 | J14: 5.478 | K14: 4.713 | M14: Result 6.00µm-63.00µm | O14: 1.793 | P14: 3.557 | Q14: 2.954 | S14: Result 6.00µm-63.00µm | U14: 3.052 | V14: 4.789 | W14: 5.452 | Z14: Result 6.00µm-63.00µm | AB14: 0.408 | AC14: 2.243 | AD14: 0.376 | AF14: Result 6.00µm-63.00µm | AH14: 0 | AI14: 0 | AJ14: 0 | AL14: Result 6.00µm-63.00µm | AN14: 5.544 | AO14: 5.317 | AP14: 4.672 | AR14: Result 6.00µm-63.00µm | AT14: 5.115 | AU14: 5.283 | AV14: 8.795 | AX14: Result 6.00µm-63.00µm | AZ14: 4.655 | BA14: 3.877 | BB14: 6.043 | BD14: Result 6.00µm-63.00µm | BF14: 19.938 | BG14: 20.448 | BH14: 19.753 | BJ14: Result 6.00µm-63.00µm | BL14: 39.617 | BM14: 43.63 | BN14: 42.887 | BP14: Result 6.00µm-63.00µm | BR14: 0 | BS14: 0 | BT14: 1.902 | BV14: Result 6.00µm-63.00µm | BX14: 0 | BY14: 0 | BZ14: 2.226 | CB14: Result 6.00µm-63.00µm | CD14: 3.166 | CE14: 3.128 | CF14: 3.792 | CH14: Result 6.00µm-63.00µm | CJ14: 41.741 | CK14: 37.94 | CL14: 38.481 | CN14: Result 6.00µm-63.00µm | CP14: 3.879 | CQ14: 4.018 | CR14: 4.622 | CT14: Result 6.00µm-63.00µm | CV14: 2.217 | CW14: 4.546 | CX14: 4.085 | CZ14: Result 6.00µm-63.00µm | DB14: 3.119 | DC14: 4.113 | DD14: 4.295 | DF14: Result 6.00µm-63.00µm | DH14: 3.747 | DI14: 3.309 | DJ14: 4.025 | DL14: Result 6.00µm-63.00µm | DN14: 6.085 | DO14: 6.219 | DP14: 3.687 | DR14: Result 6.00µm-63.00µm | DT14: 20.648 | DU14: 23.634 | DV14: 22.609
A15: Result 63.00µm-2000.00µm | C15: 93.094 | D15: 91.192 | E15: 90.853 | G15: Result 63.00µm-2000.00µm | I15: 92.149 | J15: 92.584 | K15: 93.627 | M15: Result 63.00µm-2000.00µm | O15: 97.593 | P15: 94.967 | Q15: 95.721 | S15: Result 63.00µm-2000.00µm | U15: 96.283 | V15: 93.493 | W15: 92.751 | Z15: Result 63.00µm-2000.00µm | AB15: 99.305 | AC15: 97.383 | AD15: 99.263 | AF15: Result 63.00µm-2000.00µm | AH15: 100 | AI15: 100 | AJ15: 100 | AL15: Result 63.00µm-2000.00µm | AN15: 93.419 | AO15: 93.717 | AP15: 94.269 | AR15: Result 63.00µm-2000.00µm | AT15: 93.405 | AU15: 93.196 | AV15: 88.334 | AX15: Result 63.00µm-2000.00µm | AZ15: 93.829 | BA15: 94.824 | BB15: 91.706 | BD15: Result 63.00µm-2000.00µm | BF15: 73.321 | BG15: 72.319 | BH15: 73.244 | BJ15: Result 63.00µm-2000.00µm | BL15: 43.74 | BM15: 38.086 | BN15: 39.075 | BP15: Result 63.00µm-2000.00µm | BR15: 100 | BS15: 100 | BT15: 98.098 | BV15: Result 63.00µm-2000.00µm | BX15: 100 | BY15: 100 | BZ15: 97.774 | CB15: Result 63.00µm-2000.00µm | CD15: 96.178 | CE15: 96.204 | CF15: 95.244 | CH15: Result 63.00µm-2000.00µm | CJ15: 43.188 | CK15: 48.321 | CL15: 48.262 | CN15: Result 63.00µm-2000.00µm | CP15: 94.914 | CQ15: 94.83 | CR15: 93.725 | CT15: Result 63.00µm-2000.00µm | CV15: 97.783 | CW15: 94.618 | CX15: 95.149 | CZ15: Result 63.00µm-2000.00µm | DB15: 96.881 | DC15: 95.466 | DD15: 95.292 | DF15: Result 63.00µm-2000.00µm | DH15: 96.253 | DI15: 96.381 | DJ15: 95.807 | DL15: Result 63.00µm-2000.00µm | DN15: 92.609 | DO15: 92.379 | DP15: 95.734 | DR15: Result 63.00µm-2000.00µm | DT15: 75.184 | DU15: 71.513 | DV15: 72.738
A16: Result 63.00µm-125.00µm | C16: 3.886 | D16: 4.829 | E16: 4.907 | G16: Result 63.00µm-125.00µm | I16: 4.959 | J16: 3.795 | K16: 4.009 | M16: Result 63.00µm-125.00µm | O16: 2.078 | P16: 3.467 | Q16: 2.367 | S16: Result 63.00µm-125.00µm | U16: 2.366 | V16: 3.457 | W16: 4.486 | Z16: Result 63.00µm-125.00µm | AB16: 0.154 | AC16: 0.193 | AD16: 0.614 | AF16: Result 63.00µm-125.00µm | AH16: 1.491 | AI16: 2.812 | AJ16: 1.788 | AL16: Result 63.00µm-125.00µm | AN16: 11.761 | AO16: 11.407 | AP16: 10.258 | AR16: Result 63.00µm-125.00µm | AT16: 7.74 | AU16: 8.092 | AV16: 12.01 | AX16: Result 63.00µm-125.00µm | AZ16: 11.665 | BA16: 11.517 | BB16: 15.432 | BD16: Result 63.00µm-125.00µm | BF16: 17.001 | BG16: 17.872 | BH16: 16.908 | BJ16: Result 63.00µm-125.00µm | BL16: 20.294 | BM16: 20.852 | BN16: 20.169 | BP16: Result 63.00µm-125.00µm | BR16: 1.328 | BS16: 3.543 | BT16: 2.484 | BV16: Result 63.00µm-125.00µm | BX16: 1.652 | BY16: 2.341 | BZ16: 3.553 | CB16: Result 63.00µm-125.00µm | CD16: 2.016 | CE16: 2.436 | CF16: 2.538 | CH16: Result 63.00µm-125.00µm | CJ16: 17.898 | CK16: 15.947 | CL16: 17.521 | CN16: Result 63.00µm-125.00µm | CP16: 11.874 | CQ16: 12.477 | CR16: 12.532 | CT16: Result 63.00µm-125.00µm | CV16: 15.768 | CW16: 20.201 | CX16: 19.949 | CZ16: Result 63.00µm-125.00µm | DB16: 8.958 | DC16: 7.207 | DD16: 7.919 | DF16: Result 63.00µm-125.00µm | DH16: 3.389 | DI16: 1.922 | DJ16: 3.287 | DL16: Result 63.00µm-125.00µm | DN16: 4.424 | DO16: 4.858 | DP16: 2.21 | DR16: Result 63.00µm-125.00µm | DT16: 20.61 | DU16: 23.346 | DV16: 22.298
A17: Result 125.00µm-250.00µm | C17: 21.667 | D17: 22.912 | E17: 21.398 | G17: Result 125.00µm-250.00µm | I17: 36.019 | J17: 38.375 | K17: 36.628 | M17: Result 125.00µm-250.00µm | O17: 11.017 | P17: 14.114 | Q17: 13.526 | S17: Result 125.00µm-250.00µm | U17: 30.163 | V17: 31.395 | W17: 32.856 | Z17: Result 125.00µm-250.00µm | AB17: 26.303 | AC17: 28.341 | AD17: 33.038 | AF17: Result 125.00µm-250.00µm | AH17: 55.783 | AI17: 55.451 | AJ17: 57.92 | AL17: Result 125.00µm-250.00µm | AN17: 44.131 | AO17: 46.549 | AP17: 47.845 | AR17: Result 125.00µm-250.00µm | AT17: 36.042 | AU17: 38.893 | AV17: 37.432 | AX17: Result 125.00µm-250.00µm | AZ17: 56.501 | BA17: 51.409 | BB17: 52.239 | BD17: Result 125.00µm-250.00µm | BF17: 37.734 | BG17: 37.982 | BH17: 36.555 | BJ17: Result 125.00µm-250.00µm | BL17: 12.776 | BM17: 12.042 | BN17: 12.968 | BP17: Result 125.00µm-250.00µm | BR17: 56.453 | BS17: 57.801 | BT17: 58.635 | BV17: Result 125.00µm-250.00µm | BX17: 54.716 | BY17: 57.418 | BZ17: 54.658 | CB17: Result 125.00µm-250.00µm | CD17: 47.025 | CE17: 48.764 | CF17: 47.624 | CH17: Result 125.00µm-250.00µm | CJ17: 18.308 | CK17: 17.009 | CL17: 18.162 | CN17: Result 125.00µm-250.00µm | CP17: 63.23 | CQ17: 63.462 | CR17: 62.194 | CT17: Result 125.00µm-250.00µm | CV17: 54.642 | CW17: 55.09 | CX17: 55.365 | CZ17: Result 125.00µm-250.00µm | DB17: 48.617 | DC17: 46.719 | DD17: 47.25 | DF17: Result 125.00µm-250.00µm | DH17: 38.541 | DI17: 36.176 | DJ17: 37.616 | DL17: Result 125.00µm-250.00µm | DN17: 13.412 | DO17: 13.465 | DP17: 11.053 | DR17: Result 125.00µm-250.00µm | DT17: 31.859 | DU17: 31.903 | DV17: 31.927
A18: Result 250.00µm-500.00µm | C18: 27.114 | D18: 30.155 | E18: 31.25 | G18: Result 250.00µm-500.00µm | I18: 38.821 | J18: 41.287 | K18: 38.228 | M18: Result 250.00µm-500.00µm | O18: 22.906 | P18: 24.909 | Q18: 22.889 | S18: Result 250.00µm-500.00µm | U18: 48.962 | V18: 47.985 | W18: 45.905 | Z18: Result 250.00µm-500.00µm | AB18: 59.697 | AC18: 60.408 | AD18: 57.225 | AF18: Result 250.00µm-500.00µm | AH18: 42.68 | AI18: 41.647 | AJ18: 40.254 | AL18: Result 250.00µm-500.00µm | AN18: 29.079 | AO18: 31.5 | AP18: 32.372 | AR18: Result 250.00µm-500.00µm | AT18: 30.433 | AU18: 34.022 | AV18: 26.564 | AX18: Result 250.00µm-500.00µm | AZ18: 25.663 | BA18: 25.03 | BB18: 24.034 | BD18: Result 250.00µm-500.00µm | BF18: 18.564 | BG18: 16.452 | BH18: 16.96 | BJ18: Result 250.00µm-500.00µm | BL18: 6.554 | BM18: 4.564 | BN18: 3.342 | BP18: Result 250.00µm-500.00µm | BR18: 42.191 | BS18: 38.602 | BT18: 36.947 | BV18: Result 250.00µm-500.00µm | BX18: 43.567 | BY18: 40.192 | BZ18: 39.505 | CB18: Result 250.00µm-500.00µm | CD18: 45.974 | CE18: 44.105 | CF18: 43.971 | CH18: Result 250.00µm-500.00µm | CJ18: 6.897 | CK18: 8.374 | CL18: 9.87 | CN18: Result 250.00µm-500.00µm | CP18: 19.81 | CQ18: 18.891 | CR18: 18.999 | CT18: Result 250.00µm-500.00µm | CV18: 19.058 | CW18: 19.327 | CX18: 19.835 | CZ18: Result 250.00µm-500.00µm | DB18: 38.327 | DC18: 39.946 | DD18: 38.858 | DF18: Result 250.00µm-500.00µm | DH18: 49.801 | DI18: 53.529 | DJ18: 50.016 | DL18: Result 250.00µm-500.00µm | DN18: 44.873 | DO18: 42.465 | DP18: 45.383 | DR18: Result 250.00µm-500.00µm | DT18: 21.297 | DU18: 16.223 | DV18: 18.057
A19: Result 500.00µm-1000.00µm | C19: 22.753 | D19: 21.735 | E19: 24.391 | G19: Result 500.00µm-1000.00µm | I19: 10.551 | J19: 7.063 | K19: 9.5 | M19: Result 500.00µm-1000.00µm | O19: 38.076 | P19: 33.069 | Q19: 32.902 | S19: Result 500.00µm-1000.00µm | U19: 14.707 | V19: 10.657 | W19: 9.503 | Z19: Result 500.00µm-1000.00µm | AB19: 12.891 | AC19: 8.441 | AD19: 8.386 | AF19: Result 500.00µm-1000.00µm | AH19: 0.045 | AI19: 0.09 | AJ19: 0.037 | AL19: Result 500.00µm-1000.00µm | AN19: 4.32 | AO19: 1.5 | AP19: 1.602 | AR19: Result 500.00µm-1000.00µm | AT19: 10.627 | AU19: 8.247 | AV19: 6.262 | AX19: Result 500.00µm-1000.00µm | AZ19: 0 | BA19: 3.917 | BB19: 0 | BD19: Result 500.00µm-1000.00µm | BF19: 0.022 | BG19: 0.012 | BH19: 1.647 | BJ19: Result 500.00µm-1000.00µm | BL19: 3.604 | BM19: 0.628 | BN19: 1.322 | BP19: Result 500.00µm-1000.00µm | BR19: 0.028 | BS19: 0.054 | BT19: 0.031 | BV19: Result 500.00µm-1000.00µm | BX19: 0.066 | BY19: 0.049 | BZ19: 0.058 | CB19: Result 500.00µm-1000.00µm | CD19: 1.163 | CE19: 0.899 | CF19: 1.111 | CH19: Result 500.00µm-1000.00µm | CJ19: 0.085 | CK19: 3.507 | CL19: 2.691 | CN19: Result 500.00µm-1000.00µm | CP19: 0 | CQ19: 0 | CR19: 0 | CT19: Result 500.00µm-1000.00µm | CV19: 3.481 | CW19: 0 | CX19: 0 | CZ19: Result 500.00µm-1000.00µm | DB19: 0.979 | DC19: 1.594 | DD19: 1.264 | DF19: Result 500.00µm-1000.00µm | DH19: 4.521 | DI19: 4.754 | DJ19: 4.888 | DL19: Result 500.00µm-1000.00µm | DN19: 29.489 | DO19: 30.497 | DP19: 35.304 | DR19: Result 500.00µm-1000.00µm | DT19: 1.419 | DU19: 0.041 | DV19: 0.455
A20: Result 1000.00µm-2000.00µm | C20: 17.674 | D20: 11.562 | E20: 8.907 | G20: Result 1000.00µm-2000.00µm | I20: 1.799 | J20: 2.064 | K20: 5.262 | M20: Result 1000.00µm-2000.00µm | O20: 23.516 | P20: 19.407 | Q20: 24.037 | S20: Result 1000.00µm-2000.00µm | U20: 0.084 | V20: 0 | W20: 0 | Z20: Result 1000.00µm-2000.00µm | AB20: 0.261 | AC20: 0 | AD20: 0 | AF20: Result 1000.00µm-2000.00µm | AH20: 0 | AI20: 0 | AJ20: 0 | AL20: Result 1000.00µm-2000.00µm | AN20: 4.127 | AO20: 2.761 | AP20: 2.193 | AR20: Result 1000.00µm-2000.00µm | AT20: 8.564 | AU20: 3.942 | AV20: 6.067 | AX20: Result 1000.00µm-2000.00µm | AZ20: 0 | BA20: 2.952 | BB20: 0 | BD20: Result 1000.00µm-2000.00µm | BF20: 0 | BG20: 0 | BH20: 1.174 | BJ20: Result 1000.00µm-2000.00µm | BL20: 0.511 | BM20: 0 | BN20: 1.273 | BP20: Result 1000.00µm-2000.00µm | BR20: 0 | BS20: 0 | BT20: 0 | BV20: Result 1000.00µm-2000.00µm | BX20: 0 | BY20: 0 | BZ20: 0 | CB20: Result 1000.00µm-2000.00µm | CD20: 0 | CE20: 0 | CF20: 0 | CH20: Result 1000.00µm-2000.00µm | CJ20: 0 | CK20: 3.484 | CL20: 0.019 | CN20: Result 1000.00µm-2000.00µm | CP20: 0 | CQ20: 0 | CR20: 0 | CT20: Result 1000.00µm-2000.00µm | CV20: 4.835 | CW20: 0 | CX20: 0 | CZ20: Result 1000.00µm-2000.00µm | DB20: 0 | DC20: 0 | DD20: 0 | DF20: Result 1000.00µm-2000.00µm | DH20: 0 | DI20: 0 | DJ20: 0 | DL20: Result 1000.00µm-2000.00µm | DN20: 0.411 | DO20: 1.093 | DP20: 1.783 | DR20: Result 1000.00µm-2000.00µm | DT20: 0 | DU20: 0 | DV20: 0
A21: Result Between User Sizes (Sizes in um) | B21: 0.01 | G21: Result Between User Sizes (Sizes in um) | H21: 0.01 | M21: Result Between User Sizes (Sizes in um) | N21: 0.01 | S21: Result Between User Sizes (Sizes in um) | T21: 0.01 | Z21: Result Between User Sizes (Sizes in um) | AA21: 0.01 | AF21: Result Between User Sizes (Sizes in um) | AG21: 0.01 | AL21: Result Between User Sizes (Sizes in um) | AM21: 0.01 | AR21: Result Between User Sizes (Sizes in um) | AS21: 0.01 | AX21: Result Between User Sizes (Sizes in um) | AY21: 0.01 | BD21: Result Between User Sizes (Sizes in um) | BE21: 0.01 | BJ21: Result Between User Sizes (Sizes in um) | BK21: 0.01 | BP21: Result Between User Sizes (Sizes in um) | BQ21: 0.01 | BV21: Result Between User Sizes (Sizes in um) | BW21: 0.01 | CB21: Result Between User Sizes (Sizes in um) | CC21: 0.01 | CH21: Result Between User Sizes (Sizes in um) | CI21: 0.01 | CN21: Result Between User Sizes (Sizes in um) | CO21: 0.01 | CT21: Result Between User Sizes (Sizes in um) | CU21: 0.01 | CZ21: Result Between User Sizes (Sizes in um) | DA21: 0.01 | DF21: Result Between User Sizes (Sizes in um) | DG21: 0.01 | DL21: Result Between User Sizes (Sizes in um) | DM21: 0.01 | DR21: Result Between User Sizes (Sizes in um) | DS21: 0.01 | EA21: Result Between User Sizes (Sizes in um) | EB21: 4428 | EC21: 4429 | ED21: 4430 | EE21: 4431 | EF21: 4432 | EG21: 4433 | EH21: 4433a | EI21: 4434 | EJ21: 4435 | EK21: 4436 | EL21: 4437 | EM21: 4438 | EN21: 4438a | EO21: 4438b | EP21: 4439 | EQ21: 4440 | ER21: 4441 | ES21: 4442 | ET21: 4443 | EU21: 4444 | EV21: 4445
B22: 0.011482 | C22: 0 | D22: 0 | E22: 0 | H22: 0.011482 | I22: 0 | J22: 0 | K22: 0 | N22: 0.011482 | O22: 0 | P22: 0 | Q22: 0 | T22: 0.011482 | U22: 0 | V22: 0 | W22: 0 | AA22: 0.011482 | AB22: 0 | AC22: 0 | AD22: 0 | AG22: 0.011482 | AH22: 0 | AI22: 0 | AJ22: 0 | AM22: 0.011482 | AN22: 0 | AO22: 0 | AP22: 0 | AS22: 0.011482 | AT22: 0 | AU22: 0 | AV22: 0 | AY22: 0.011482 | AZ22: 0 | BA22: 0 | BB22: 0 | BE22: 0.011482 | BF22: 0 | BG22: 0 | BH22: 0 | BK22: 0.011482 | BL22: 0 | BM22: 0 | BN22: 0 | BQ22: 0.011482 | BR22: 0 | BS22: 0 | BT22: 0 | BW22: 0.011482 | BX22: 0 | BY22: 0 | BZ22: 0 | CC22: 0.011482 | CD22: 0 | CE22: 0 | CF22: 0 | CI22: 0.011482 | CJ22: 0 | CK22: 0 | CL22: 0 | CO22: 0.011482 | CP22: 0 | CQ22: 0 | CR22: 0 | CU22: 0.011482 | CV22: 0 | CW22: 0 | CX22: 0 | DA22: 0.011482 | DB22: 0 | DC22: 0 | DD22: 0 | DG22: 0.011482 | DH22: 0 | DI22: 0 | DJ22: 0 | DM22: 0.011482 | DN22: 0 | DO22: 0 | DP22: 0 | DS22: 0.011482 | DT22: 0 | DU22: 0 | DV22: 0 | EA22: 0.011482 | EB22: =AVERAGE(C22:E22) -> 0 | EC22: =AVERAGE(I22:K22) -> 0 | ED22: =AVERAGE(O22:Q22) -> 0 | EE22: =AVERAGE(V22:X22) -> 0 | EF22: =AVERAGE(AB22:AD22) -> 0 | EG22: =AVERAGE(AH22:AJ22) -> 0 | EH22: =AVERAGE(AN22:AP22) -> 0 | EI22: =AVERAGE(AT22:AV22) -> 0 | EJ22: =AVERAGE(AZ22:BB22) -> 0 | EK22: =AVERAGE(BF22:BH22) -> 0 | EL22: =AVERAGE(BL22:BN22) -> 0 | EM22: =AVERAGE(BR22:BT22) -> 0 | EN22: =AVERAGE(BX22:BZ22) -> 0 | EO22: =AVERAGE(CD22:CF22) -> 0 | EP22: =AVERAGE(CJ22:CL22) -> 0 | EQ22: =AVERAGE(CP22:CR22) -> 0 | ER22: =AVERAGE(CV22:CX22) -> 0 | ES22: =AVERAGE(DB22:DD22) -> 0 | ET22: =AVERAGE(DH22:DJ22) -> 0 | EU22: =AVERAGE(DN22:DP22) -> 0 | EV22: =AVERAGE(DT22:DV22) -> 0
B23: 0.013183 | C23: 0 | D23: 0 | E23: 0 | H23: 0.013183 | I23: 0 | J23: 0 | K23: 0 | N23: 0.013183 | O23: 0 | P23: 0 | Q23: 0 | T23: 0.013183 | U23: 0 | V23: 0 | W23: 0 | AA23: 0.013183 | AB23: 0 | AC23: 0 | AD23: 0 | AG23: 0.013183 | AH23: 0 | AI23: 0 | AJ23: 0 | AM23: 0.013183 | AN23: 0 | AO23: 0 | AP23: 0 | AS23: 0.013183 | AT23: 0 | AU23: 0 | AV23: 0 | AY23: 0.013183 | AZ23: 0 | BA23: 0 | BB23: 0 | BE23: 0.013183 | BF23: 0 | BG23: 0 | BH23: 0 | BK23: 0.013183 | BL23: 0 | BM23: 0 | BN23: 0 | BQ23: 0.013183 | BR23: 0 | BS23: 0 | BT23: 0 | BW23: 0.013183 | BX23: 0 | BY23: 0 | BZ23: 0 | CC23: 0.013183 | CD23: 0 | CE23: 0 | CF23: 0 | CI23: 0.013183 | CJ23: 0 | CK23: 0 | CL23: 0 | CO23: 0.013183 | CP23: 0 | CQ23: 0 | CR23: 0 | CU23: 0.013183 | CV23: 0 | CW23: 0 | CX23: 0 | DA23: 0.013183 | DB23: 0 | DC23: 0 | DD23: 0 | DG23: 0.013183 | DH23: 0 | DI23: 0 | DJ23: 0 | DM23: 0.013183 | DN23: 0 | DO23: 0 | DP23: 0 | DS23: 0.013183 | DT23: 0 | DU23: 0 | DV23: 0 | EA23: 0.013183 | EB23: 0 | EC23: 0 | ED23: 0 | EE23: 0 | EF23: 0 | EG23: 0 | EH23: 0 | EI23: 0 | EJ23: 0 | EK23: 0 | EL23: 0 | EM23: 0 | EN23: 0 | EO23: 0 | EP23: 0 | EQ23: 0 | ER23: 0 | ES23: 0 | ET23: 0 | EU23: 0 | EV23: 0
B24: 0.015136 | C24: 0 | D24: 0 | E24: 0 | H24: 0.015136 | I24: 0 | J24: 0 | K24: 0 | N24: 0.015136 | O24: 0 | P24: 0 | Q24: 0 | T24: 0.015136 | U24: 0 | V24: 0 | W24: 0 | AA24: 0.015136 | AB24: 0 | AC24: 0 | AD24: 0 | AG24: 0.015136 | AH24: 0 | AI24: 0 | AJ24: 0 | AM24: 0.015136 | AN24: 0 | AO24: 0 | AP24: 0 | AS24: 0.015136 | AT24: 0 | AU24: 0 | AV24: 0 | AY24: 0.015136 | AZ24: 0 | BA24: 0 | BB24: 0 | BE24: 0.015136 | BF24: 0 | BG24: 0 | BH24: 0 | BK24: 0.015136 | BL24: 0 | BM24: 0 | BN24: 0 | BQ24: 0.015136 | BR24: 0 | BS24: 0 | BT24: 0 | BW24: 0.015136 | BX24: 0 | BY24: 0 | BZ24: 0 | CC24: 0.015136 | CD24: 0 | CE24: 0 | CF24: 0 | CI24: 0.015136 | CJ24: 0 | CK24: 0 | CL24: 0 | CO24: 0.015136 | CP24: 0 | CQ24: 0 | CR24: 0 | CU24: 0.015136 | CV24: 0 | CW24: 0 | CX24: 0 | DA24: 0.015136 | DB24: 0 | DC24: 0 | DD24: 0 | DG24: 0.015136 | DH24: 0 | DI24: 0 | DJ24: 0 | DM24: 0.015136 | DN24: 0 | DO24: 0 | DP24: 0 | DS24: 0.015136 | DT24: 0 | DU24: 0 | DV24: 0 | EA24: 0.015136 | EB24: 0 | EC24: 0 | ED24: 0 | EE24: 0 | EF24: 0 | EG24: 0 | EH24: 0 | EI24: 0 | EJ24: 0 | EK24: 0 | EL24: 0 | EM24: 0 | EN24: 0 | EO24: 0 | EP24: 0 | EQ24: 0 | ER24: 0 | ES24: 0 | ET24: 0 | EU24: 0 | EV24: 0
B25: 0.017378 | C25: 0 | D25: 0 | E25: 0 | H25: 0.017378 | I25: 0 | J25: 0 | K25: 0 | N25: 0.017378 | O25: 0 | P25: 0 | Q25: 0 | T25: 0.017378 | U25: 0 | V25: 0 | W25: 0 | AA25: 0.017378 | AB25: 0 | AC25: 0 | AD25: 0 | AG25: 0.017378 | AH25: 0 | AI25: 0 | AJ25: 0 | AM25: 0.017378 | AN25: 0 | AO25: 0 | AP25: 0 | AS25: 0.017378 | AT25: 0 | AU25: 0 | AV25: 0 | AY25: 0.017378 | AZ25: 0 | BA25: 0 | BB25: 0 | BE25: 0.017378 | BF25: 0 | BG25: 0 | BH25: 0 | BK25: 0.017378 | BL25: 0 | BM25: 0 | BN25: 0 | BQ25: 0.017378 | BR25: 0 | BS25: 0 | BT25: 0 | BW25: 0.017378 | BX25: 0 | BY25: 0 | BZ25: 0 | CC25: 0.017378 | CD25: 0 | CE25: 0 | CF25: 0 | CI25: 0.017378 | CJ25: 0 | CK25: 0 | CL25: 0 | CO25: 0.017378 | CP25: 0 | CQ25: 0 | CR25: 0 | CU25: 0.017378 | CV25: 0 | CW25: 0 | CX25: 0 | DA25: 0.017378 | DB25: 0 | DC25: 0 | DD25: 0 | DG25: 0.017378 | DH25: 0 | DI25: 0 | DJ25: 0 | DM25: 0.017378 | DN25: 0 | DO25: 0 | DP25: 0 | DS25: 0.017378 | DT25: 0 | DU25: 0 | DV25: 0 | EA25: 0.017378 | EB25: 0 | EC25: 0 | ED25: 0 | EE25: 0 | EF25: 0 | EG25: 0 | EH25: 0 | EI25: 0 | EJ25: 0 | EK25: 0 | EL25: 0 | EM25: 0 | EN25: 0 | EO25: 0 | EP25: 0 | EQ25: 0 | ER25: 0 | ES25: 0 | ET25: 0 | EU25: 0 | EV25: 0
B26: 0.019953 | C26: 0 | D26: 0 | E26: 0 | H26: 0.019953 | I26: 0 | J26: 0 | K26: 0 | N26: 0.019953 | O26: 0 | P26: 0 | Q26: 0 | T26: 0.019953 | U26: 0 | V26: 0 | W26: 0 | AA26: 0.019953 | AB26: 0 | AC26: 0 | AD26: 0 | AG26: 0.019953 | AH26: 0 | AI26: 0 | AJ26: 0 | AM26: 0.019953 | AN26: 0 | AO26: 0 | AP26: 0 | AS26: 0.019953 | AT26: 0 | AU26: 0 | AV26: 0 | AY26: 0.019953 | AZ26: 0 | BA26: 0 | BB26: 0 | BE26: 0.019953 | BF26: 0 | BG26: 0 | BH26: 0 | BK26: 0.019953 | BL26: 0 | BM26: 0 | BN26: 0 | BQ26: 0.019953 | BR26: 0 | BS26: 0 | BT26: 0 | BW26: 0.019953 | BX26: 0 | BY26: 0 | BZ26: 0 | CC26: 0.019953 | CD26: 0 | CE26: 0 | CF26: 0 | CI26: 0.019953 | CJ26: 0 | CK26: 0 | CL26: 0 | CO26: 0.019953 | CP26: 0 | CQ26: 0 | CR26: 0 | CU26: 0.019953 | CV26: 0 | CW26: 0 | CX26: 0 | DA26: 0.019953 | DB26: 0 | DC26: 0 | DD26: 0 | DG26: 0.019953 | DH26: 0 | DI26: 0 | DJ26: 0 | DM26: 0.019953 | DN26: 0 | DO26: 0 | DP26: 0 | DS26: 0.019953 | DT26: 0 | DU26: 0 | DV26: 0 | EA26: 0.019953 | EB26: 0 | EC26: 0 | ED26: 0 | EE26: 0 | EF26: 0 | EG26: 0 | EH26: 0 | EI26: 0 | EJ26: 0 | EK26: 0 | EL26: 0 | EM26: 0 | EN26: 0 | EO26: 0 | EP26: 0 | EQ26: 0 | ER26: 0 | ES26: 0 | ET26: 0 | EU26: 0 | EV26: 0
B27: 0.022909 | C27: 0 | D27: 0 | E27: 0 | H27: 0.022909 | I27: 0 | J27: 0 | K27: 0 | N27: 0.022909 | O27: 0 | P27: 0 | Q27: 0 | T27: 0.022909 | U27: 0 | V27: 0 | W27: 0 | AA27: 0.022909 | AB27: 0 | AC27: 0 | AD27: 0 | AG27: 0.022909 | AH27: 0 | AI27: 0 | AJ27: 0 | AM27: 0.022909 | AN27: 0 | AO27: 0 | AP27: 0 | AS27: 0.022909 | AT27: 0 | AU27: 0 | AV27: 0 | AY27: 0.022909 | AZ27: 0 | BA27: 0 | BB27: 0 | BE27: 0.022909 | BF27: 0 | BG27: 0 | BH27: 0 | BK27: 0.022909 | BL27: 0 | BM27: 0 | BN27: 0 | BQ27: 0.022909 | BR27: 0 | BS27: 0 | BT27: 0 | BW27: 0.022909 | BX27: 0 | BY27: 0 | BZ27: 0 | CC27: 0.022909 | CD27: 0 | CE27: 0 | CF27: 0 | CI27: 0.022909 | CJ27: 0 | CK27: 0 | CL27: 0 | CO27: 0.022909 | CP27: 0 | CQ27: 0 | CR27: 0 | CU27: 0.022909 | CV27: 0 | CW27: 0 | CX27: 0 | DA27: 0.022909 | DB27: 0 | DC27: 0 | DD27: 0 | DG27: 0.022909 | DH27: 0 | DI27: 0 | DJ27: 0 | DM27: 0.022909 | DN27: 0 | DO27: 0 | DP27: 0 | DS27: 0.022909 | DT27: 0 | DU27: 0 | DV27: 0 | EA27: 0.022909 | EB27: 0 | EC27: 0 | ED27: 0 | EE27: 0 | EF27: 0 | EG27: 0 | EH27: 0 | EI27: 0 | EJ27: 0 | EK27: 0 | EL27: 0 | EM27: 0 | EN27: 0 | EO27: 0 | EP27: 0 | EQ27: 0 | ER27: 0 | ES27: 0 | ET27: 0 | EU27: 0 | EV27: 0
B28: 0.026303 | C28: 0 | D28: 0 | E28: 0 | H28: 0.026303 | I28: 0 | J28: 0 | K28: 0 | N28: 0.026303 | O28: 0 | P28: 0 | Q28: 0 | T28: 0.026303 | U28: 0 | V28: 0 | W28: 0 | AA28: 0.026303 | AB28: 0 | AC28: 0 | AD28: 0 | AG28: 0.026303 | AH28: 0 | AI28: 0 | AJ28: 0 | AM28: 0.026303 | AN28: 0 | AO28: 0 | AP28: 0 | AS28: 0.026303 | AT28: 0 | AU28: 0 | AV28: 0 | AY28: 0.026303 | AZ28: 0 | BA28: 0 | BB28: 0 | BE28: 0.026303 | BF28: 0 | BG28: 0 | BH28: 0 | BK28: 0.026303 | BL28: 0 | BM28: 0 | BN28: 0 | BQ28: 0.026303 | BR28: 0 | BS28: 0 | BT28: 0 | BW28: 0.026303 | BX28: 0 | BY28: 0 | BZ28: 0 | CC28: 0.026303 | CD28: 0 | CE28: 0 | CF28: 0 | CI28: 0.026303 | CJ28: 0 | CK28: 0 | CL28: 0 | CO28: 0.026303 | CP28: 0 | CQ28: 0 | CR28: 0 | CU28: 0.026303 | CV28: 0 | CW28: 0 | CX28: 0 | DA28: 0.026303 | DB28: 0 | DC28: 0 | DD28: 0 | DG28: 0.026303 | DH28: 0 | DI28: 0 | DJ28: 0 | DM28: 0.026303 | DN28: 0 | DO28: 0 | DP28: 0 | DS28: 0.026303 | DT28: 0 | DU28: 0 | DV28: 0 | EA28: 0.026303 | EB28: 0 | EC28: 0 | ED28: 0 | EE28: 0 | EF28: 0 | EG28: 0 | EH28: 0 | EI28: 0 | EJ28: 0 | EK28: 0 | EL28: 0 | EM28: 0 | EN28: 0 | EO28: 0 | EP28: 0 | EQ28: 0 | ER28: 0 | ES28: 0 | ET28: 0 | EU28: 0 | EV28: 0
B29: 0.0302 | C29: 0 | D29: 0 | E29: 0 | H29: 0.0302 | I29: 0 | J29: 0 | K29: 0 | N29: 0.0302 | O29: 0 | P29: 0 | Q29: 0 | T29: 0.0302 | U29: 0 | V29: 0 | W29: 0 | AA29: 0.0302 | AB29: 0 | AC29: 0 | AD29: 0 | AG29: 0.0302 | AH29: 0 | AI29: 0 | AJ29: 0 | AM29: 0.0302 | AN29: 0 | AO29: 0 | AP29: 0 | AS29: 0.0302 | AT29: 0 | AU29: 0 | AV29: 0 | AY29: 0.0302 | AZ29: 0 | BA29: 0 | BB29: 0 | BE29: 0.0302 | BF29: 0 | BG29: 0 | BH29: 0 | BK29: 0.0302 | BL29: 0 | BM29: 0 | BN29: 0 | BQ29: 0.0302 | BR29: 0 | BS29: 0 | BT29: 0 | BW29: 0.0302 | BX29: 0 | BY29: 0 | BZ29: 0 | CC29: 0.0302 | CD29: 0 | CE29: 0 | CF29: 0 | CI29: 0.0302 | CJ29: 0 | CK29: 0 | CL29: 0 | CO29: 0.0302 | CP29: 0 | CQ29: 0 | CR29: 0 | CU29: 0.0302 | CV29: 0 | CW29: 0 | CX29: 0 | DA29: 0.0302 | DB29: 0 | DC29: 0 | DD29: 0 | DG29: 0.0302 | DH29: 0 | DI29: 0 | DJ29: 0 | DM29: 0.0302 | DN29: 0 | DO29: 0 | DP29: 0 | DS29: 0.0302 | DT29: 0 | DU29: 0 | DV29: 0 | EA29: 0.0302 | EB29: 0 | EC29: 0 | ED29: 0 | EE29: 0 | EF29: 0 | EG29: 0 | EH29: 0 | EI29: 0 | EJ29: 0 | EK29: 0 | EL29: 0 | EM29: 0 | EN29: 0 | EO29: 0 | EP29: 0 | EQ29: 0 | ER29: 0 | ES29: 0 | ET29: 0 | EU29: 0 | EV29: 0
B30: 0.034674 | C30: 0 | D30: 0 | E30: 0 | H30: 0.034674 | I30: 0 | J30: 0 | K30: 0 | N30: 0.034674 | O30: 0 | P30: 0 | Q30: 0 | T30: 0.034674 | U30: 0 | V30: 0 | W30: 0 | AA30: 0.034674 | AB30: 0 | AC30: 0 | AD30: 0 | AG30: 0.034674 | AH30: 0 | AI30: 0 | AJ30: 0 | AM30: 0.034674 | AN30: 0 | AO30: 0 | AP30: 0 | AS30: 0.034674 | AT30: 0 | AU30: 0 | AV30: 0 | AY30: 0.034674 | AZ30: 0 | BA30: 0 | BB30: 0 | BE30: 0.034674 | BF30: 0 | BG30: 0 | BH30: 0 | BK30: 0.034674 | BL30: 0 | BM30: 0 | BN30: 0 | BQ30: 0.034674 | BR30: 0 | BS30: 0 | BT30: 0 | BW30: 0.034674 | BX30: 0 | BY30: 0 | BZ30: 0 | CC30: 0.034674 | CD30: 0 | CE30: 0 | CF30: 0 | CI30: 0.034674 | CJ30: 0 | CK30: 0 | CL30: 0 | CO30: 0.034674 | CP30: 0 | CQ30: 0 | CR30: 0 | CU30: 0.034674 | CV30: 0 | CW30: 0 | CX30: 0 | DA30: 0.034674 | DB30: 0 | DC30: 0 | DD30: 0 | DG30: 0.034674 | DH30: 0 | DI30: 0 | DJ30: 0 | DM30: 0.034674 | DN30: 0 | DO30: 0 | DP30: 0 | DS30: 0.034674 | DT30: 0 | DU30: 0 | DV30: 0 | EA30: 0.034674 | EB30: 0 | EC30: 0 | ED30: 0 | EE30: 0 | EF30: 0 | EG30: 0 | EH30: 0 | EI30: 0 | EJ30: 0 | EK30: 0 | EL30: 0 | EM30: 0 | EN30: 0 | EO30: 0 | EP30: 0 | EQ30: 0 | ER30: 0 | ES30: 0 | ET30: 0 | EU30: 0 | EV30: 0
B31: 0.039811 | C31: 0 | D31: 0 | E31: 0 | H31: 0.039811 | I31: 0 | J31: 0 | K31: 0 | N31: 0.039811 | O31: 0 | P31: 0 | Q31: 0 | T31: 0.039811 | U31: 0 | V31: 0 | W31: 0 | AA31: 0.039811 | AB31: 0 | AC31: 0 | AD31: 0 | AG31: 0.039811 | AH31: 0 | AI31: 0 | AJ31: 0 | AM31: 0.039811 | AN31: 0 | AO31: 0 | AP31: 0 | AS31: 0.039811 | AT31: 0 | AU31: 0 | AV31: 0 | AY31: 0.039811 | AZ31: 0 | BA31: 0 | BB31: 0 | BE31: 0.039811 | BF31: 0 | BG31: 0 | BH31: 0 | BK31: 0.039811 | BL31: 0 | BM31: 0 | BN31: 0 | BQ31: 0.039811 | BR31: 0 | BS31: 0 | BT31: 0 | BW31: 0.039811 | BX31: 0 | BY31: 0 | BZ31: 0 | CC31: 0.039811 | CD31: 0 | CE31: 0 | CF31: 0 | CI31: 0.039811 | CJ31: 0 | CK31: 0 | CL31: 0 | CO31: 0.039811 | CP31: 0 | CQ31: 0 | CR31: 0 | CU31: 0.039811 | CV31: 0 | CW31: 0 | CX31: 0 | DA31: 0.039811 | DB31: 0 | DC31: 0 | DD31: 0 | DG31: 0.039811 | DH31: 0 | DI31: 0 | DJ31: 0 | DM31: 0.039811 | DN31: 0 | DO31: 0 | DP31: 0 | DS31: 0.039811 | DT31: 0 | DU31: 0 | DV31: 0 | EA31: 0.039811 | EB31: 0 | EC31: 0 | ED31: 0 | EE31: 0 | EF31: 0 | EG31: 0 | EH31: 0 | EI31: 0 | EJ31: 0 | EK31: 0 | EL31: 0 | EM31: 0 | EN31: 0 | EO31: 0 | EP31: 0 | EQ31: 0 | ER31: 0 | ES31: 0 | ET31: 0 | EU31: 0 | EV31: 0
B32: 0.045709 | C32: 0 | D32: 0 | E32: 0 | H32: 0.045709 | I32: 0 | J32: 0 | K32: 0 | N32: 0.045709 | O32: 0 | P32: 0 | Q32: 0 | T32: 0.045709 | U32: 0 | V32: 0 | W32: 0 | AA32: 0.045709 | AB32: 0 | AC32: 0 | AD32: 0 | AG32: 0.045709 | AH32: 0 | AI32: 0 | AJ32: 0 | AM32: 0.045709 | AN32: 0 | AO32: 0 | AP32: 0 | AS32: 0.045709 | AT32: 0 | AU32: 0 | AV32: 0 | AY32: 0.045709 | AZ32: 0 | BA32: 0 | BB32: 0 | BE32: 0.045709 | BF32: 0 | BG32: 0 | BH32: 0 | BK32: 0.045709 | BL32: 0 | BM32: 0 | BN32: 0 | BQ32: 0.045709 | BR32: 0 | BS32: 0 | BT32: 0 | BW32: 0.045709 | BX32: 0 | BY32: 0 | BZ32: 0 | CC32: 0.045709 | CD32: 0 | CE32: 0 | CF32: 0 | CI32: 0.045709 | CJ32: 0 | CK32: 0 | CL32: 0 | CO32: 0.045709 | CP32: 0 | CQ32: 0 | CR32: 0 | CU32: 0.045709 | CV32: 0 | CW32: 0 | CX32: 0 | DA32: 0.045709 | DB32: 0 | DC32: 0 | DD32: 0 | DG32: 0.045709 | DH32: 0 | DI32: 0 | DJ32: 0 | DM32: 0.045709 | DN32: 0 | DO32: 0 | DP32: 0 | DS32: 0.045709 | DT32: 0 | DU32: 0 | DV32: 0 | EA32: 0.045709 | EB32: 0 | EC32: 0 | ED32: 0 | EE32: 0 | EF32: 0 | EG32: 0 | EH32: 0 | EI32: 0 | EJ32: 0 | EK32: 0 | EL32: 0 | EM32: 0 | EN32: 0 | EO32: 0 | EP32: 0 | EQ32: 0 | ER32: 0 | ES32: 0 | ET32: 0 | EU32: 0 | EV32: 0
B33: 0.052481 | C33: 0 | D33: 0 | E33: 0 | H33: 0.052481 | I33: 0 | J33: 0 | K33: 0 | N33: 0.052481 | O33: 0 | P33: 0 | Q33: 0 | T33: 0.052481 | U33: 0 | V33: 0 | W33: 0 | AA33: 0.052481 | AB33: 0 | AC33: 0 | AD33: 0 | AG33: 0.052481 | AH33: 0 | AI33: 0 | AJ33: 0 | AM33: 0.052481 | AN33: 0 | AO33: 0 | AP33: 0 | AS33: 0.052481 | AT33: 0 | AU33: 0 | AV33: 0 | AY33: 0.052481 | AZ33: 0 | BA33: 0 | BB33: 0 | BE33: 0.052481 | BF33: 0 | BG33: 0 | BH33: 0 | BK33: 0.052481 | BL33: 0 | BM33: 0 | BN33: 0 | BQ33: 0.052481 | BR33: 0 | BS33: 0 | BT33: 0 | BW33: 0.052481 | BX33: 0 | BY33: 0 | BZ33: 0 | CC33: 0.052481 | CD33: 0 | CE33: 0 | CF33: 0 | CI33: 0.052481 | CJ33: 0 | CK33: 0 | CL33: 0 | CO33: 0.052481 | CP33: 0 | CQ33: 0 | CR33: 0 | CU33: 0.052481 | CV33: 0 | CW33: 0 | CX33: 0 | DA33: 0.052481 | DB33: 0 | DC33: 0 | DD33: 0 | DG33: 0.052481 | DH33: 0 | DI33: 0 | DJ33: 0 | DM33: 0.052481 | DN33: 0 | DO33: 0 | DP33: 0 | DS33: 0.052481 | DT33: 0 | DU33: 0 | DV33: 0 | EA33: 0.052481 | EB33: 0 | EC33: 0 | ED33: 0 | EE33: 0 | EF33: 0 | EG33: 0 | EH33: 0 | EI33: 0 | EJ33: 0 | EK33: 0 | EL33: 0 | EM33: 0 | EN33: 0 | EO33: 0 | EP33: 0 | EQ33: 0 | ER33: 0 | ES33: 0 | ET33: 0 | EU33: 0 | EV33: 0
B34: 0.060256 | C34: 0 | D34: 0 | E34: 0 | H34: 0.060256 | I34: 0 | J34: 0 | K34: 0 | N34: 0.060256 | O34: 0 | P34: 0 | Q34: 0 | T34: 0.060256 | U34: 0 | V34: 0 | W34: 0 | AA34: 0.060256 | AB34: 0 | AC34: 0 | AD34: 0 | AG34: 0.060256 | AH34: 0 | AI34: 0 | AJ34: 0 | AM34: 0.060256 | AN34: 0 | AO34: 0 | AP34: 0 | AS34: 0.060256 | AT34: 0 | AU34: 0 | AV34: 0 | AY34: 0.060256 | AZ34: 0 | BA34: 0 | BB34: 0 | BE34: 0.060256 | BF34: 0 | BG34: 0 | BH34: 0 | BK34: 0.060256 | BL34: 0 | BM34: 0 | BN34: 0 | BQ34: 0.060256 | BR34: 0 | BS34: 0 | BT34: 0 | BW34: 0.060256 | BX34: 0 | BY34: 0 | BZ34: 0 | CC34: 0.060256 | CD34: 0 | CE34: 0 | CF34: 0 | CI34: 0.060256 | CJ34: 0 | CK34: 0 | CL34: 0 | CO34: 0.060256 | CP34: 0 | CQ34: 0 | CR34: 0 | CU34: 0.060256 | CV34: 0 | CW34: 0 | CX34: 0 | DA34: 0.060256 | DB34: 0 | DC34: 0 | DD34: 0 | DG34: 0.060256 | DH34: 0 | DI34: 0 | DJ34: 0 | DM34: 0.060256 | DN34: 0 | DO34: 0 | DP34: 0 | DS34: 0.060256 | DT34: 0 | DU34: 0 | DV34: 0 | EA34: 0.060256 | EB34: 0 | EC34: 0 | ED34: 0 | EE34: 0 | EF34: 0 | EG34: 0 | EH34: 0 | EI34: 0 | EJ34: 0 | EK34: 0 | EL34: 0 | EM34: 0 | EN34: 0 | EO34: 0 | EP34: 0 | EQ34: 0 | ER34: 0 | ES34: 0 | ET34: 0 | EU34: 0 | EV34: 0
B35: 0.069183 | C35: 0 | D35: 0 | E35: 0 | H35: 0.069183 | I35: 0 | J35: 0 | K35: 0 | N35: 0.069183 | O35: 0 | P35: 0 | Q35: 0 | T35: 0.069183 | U35: 0 | V35: 0 | W35: 0 | AA35: 0.069183 | AB35: 0 | AC35: 0 | AD35: 0 | AG35: 0.069183 | AH35: 0 | AI35: 0 | AJ35: 0 | AM35: 0.069183 | AN35: 0 | AO35: 0 | AP35: 0 | AS35: 0.069183 | AT35: 0 | AU35: 0 | AV35: 0 | AY35: 0.069183 | AZ35: 0 | BA35: 0 | BB35: 0 | BE35: 0.069183 | BF35: 0 | BG35: 0 | BH35: 0 | BK35: 0.069183 | BL35: 0 | BM35: 0 | BN35: 0 | BQ35: 0.069183 | BR35: 0 | BS35: 0 | BT35: 0 | BW35: 0.069183 | BX35: 0 | BY35: 0 | BZ35: 0 | CC35: 0.069183 | CD35: 0 | CE35: 0 | CF35: 0 | CI35: 0.069183 | CJ35: 0 | CK35: 0 | CL35: 0 | CO35: 0.069183 | CP35: 0 | CQ35: 0 | CR35: 0 | CU35: 0.069183 | CV35: 0 | CW35: 0 | CX35: 0 | DA35: 0.069183 | DB35: 0 | DC35: 0 | DD35: 0 | DG35: 0.069183 | DH35: 0 | DI35: 0 | DJ35: 0 | DM35: 0.069183 | DN35: 0 | DO35: 0 | DP35: 0 | DS35: 0.069183 | DT35: 0 | DU35: 0 | DV35: 0 | EA35: 0.069183 | EB35: 0 | EC35: 0 | ED35: 0 | EE35: 0 | EF35: 0 | EG35: 0 | EH35: 0 | EI35: 0 | EJ35: 0 | EK35: 0 | EL35: 0 | EM35: 0 | EN35: 0 | EO35: 0 | EP35: 0 | EQ35: 0 | ER35: 0 | ES35: 0 | ET35: 0 | EU35: 0 | EV35: 0
B36: 0.079433 | C36: 0 | D36: 0 | E36: 0 | H36: 0.079433 | I36: 0 | J36: 0 | K36: 0 | N36: 0.079433 | O36: 0 | P36: 0 | Q36: 0 | T36: 0.079433 | U36: 0 | V36: 0 | W36: 0 | AA36: 0.079433 | AB36: 0 | AC36: 0 | AD36: 0 | AG36: 0.079433 | AH36: 0 | AI36: 0 | AJ36: 0 | AM36: 0.079433 | AN36: 0 | AO36: 0 | AP36: 0 | AS36: 0.079433 | AT36: 0 | AU36: 0 | AV36: 0 | AY36: 0.079433 | AZ36: 0 | BA36: 0 | BB36: 0 | BE36: 0.079433 | BF36: 0 | BG36: 0 | BH36: 0 | BK36: 0.079433 | BL36: 0 | BM36: 0 | BN36: 0 | BQ36: 0.079433 | BR36: 0 | BS36: 0 | BT36: 0 | BW36: 0.079433 | BX36: 0 | BY36: 0 | BZ36: 0 | CC36: 0.079433 | CD36: 0 | CE36: 0 | CF36: 0 | CI36: 0.079433 | CJ36: 0 | CK36: 0 | CL36: 0 | CO36: 0.079433 | CP36: 0 | CQ36: 0 | CR36: 0 | CU36: 0.079433 | CV36: 0 | CW36: 0 | CX36: 0 | DA36: 0.079433 | DB36: 0 | DC36: 0 | DD36: 0 | DG36: 0.079433 | DH36: 0 | DI36: 0 | DJ36: 0 | DM36: 0.079433 | DN36: 0 | DO36: 0 | DP36: 0 | DS36: 0.079433 | DT36: 0 | DU36: 0 | DV36: 0 | EA36: 0.079433 | EB36: 0 | EC36: 0 | ED36: 0 | EE36: 0 | EF36: 0 | EG36: 0 | EH36: 0 | EI36: 0 | EJ36: 0 | EK36: 0 | EL36: 0 | EM36: 0 | EN36: 0 | EO36: 0 | EP36: 0 | EQ36: 0 | ER36: 0 | ES36: 0 | ET36: 0 | EU36: 0 | EV36: 0
B37: 0.091201 | C37: 0 | D37: 0 | E37: 0 | H37: 0.091201 | I37: 0 | J37: 0 | K37: 0 | N37: 0.091201 | O37: 0 | P37: 0 | Q37: 0 | T37: 0.091201 | U37: 0 | V37: 0 | W37: 0 | AA37: 0.091201 | AB37: 0 | AC37: 0 | AD37: 0 | AG37: 0.091201 | AH37: 0 | AI37: 0 | AJ37: 0 | AM37: 0.091201 | AN37: 0 | AO37: 0 | AP37: 0 | AS37: 0.091201 | AT37: 0 | AU37: 0 | AV37: 0 | AY37: 0.091201 | AZ37: 0 | BA37: 0 | BB37: 0 | BE37: 0.091201 | BF37: 0 | BG37: 0 | BH37: 0 | BK37: 0.091201 | BL37: 0 | BM37: 0 | BN37: 0 | BQ37: 0.091201 | BR37: 0 | BS37: 0 | BT37: 0 | BW37: 0.091201 | BX37: 0 | BY37: 0 | BZ37: 0 | CC37: 0.091201 | CD37: 0 | CE37: 0 | CF37: 0 | CI37: 0.091201 | CJ37: 0 | CK37: 0 | CL37: 0 | CO37: 0.091201 | CP37: 0 | CQ37: 0 | CR37: 0 | CU37: 0.091201 | CV37: 0 | CW37: 0 | CX37: 0 | DA37: 0.091201 | DB37: 0 | DC37: 0 | DD37: 0 | DG37: 0.091201 | DH37: 0 | DI37: 0 | DJ37: 0 | DM37: 0.091201 | DN37: 0 | DO37: 0 | DP37: 0 | DS37: 0.091201 | DT37: 0 | DU37: 0 | DV37: 0 | EA37: 0.091201 | EB37: 0 | EC37: 0 | ED37: 0 | EE37: 0 | EF37: 0 | EG37: 0 | EH37: 0 | EI37: 0 | EJ37: 0 | EK37: 0 | EL37: 0 | EM37: 0 | EN37: 0 | EO37: 0 | EP37: 0 | EQ37: 0 | ER37: 0 | ES37: 0 | ET37: 0 | EU37: 0 | EV37: 0
B38: 0.104713 | C38: 0 | D38: 0 | E38: 0 | H38: 0.104713 | I38: 0 | J38: 0 | K38: 0 | N38: 0.104713 | O38: 0 | P38: 0 | Q38: 0 | T38: 0.104713 | U38: 0 | V38: 0 | W38: 0 | AA38: 0.104713 | AB38: 0 | AC38: 0 | AD38: 0 | AG38: 0.104713 | AH38: 0 | AI38: 0 | AJ38: 0 | AM38: 0.104713 | AN38: 0 | AO38: 0 | AP38: 0 | AS38: 0.104713 | AT38: 0 | AU38: 0 | AV38: 0 | AY38: 0.104713 | AZ38: 0 | BA38: 0 | BB38: 0 | BE38: 0.104713 | BF38: 0 | BG38: 0 | BH38: 0 | BK38: 0.104713 | BL38: 0 | BM38: 0 | BN38: 0 | BQ38: 0.104713 | BR38: 0 | BS38: 0 | BT38: 0 | BW38: 0.104713 | BX38: 0 | BY38: 0 | BZ38: 0 | CC38: 0.104713 | CD38: 0 | CE38: 0 | CF38: 0 | CI38: 0.104713 | CJ38: 0 | CK38: 0 | CL38: 0 | CO38: 0.104713 | CP38: 0 | CQ38: 0 | CR38: 0 | CU38: 0.104713 | CV38: 0 | CW38: 0 | CX38: 0 | DA38: 0.104713 | DB38: 0 | DC38: 0 | DD38: 0 | DG38: 0.104713 | DH38: 0 | DI38: 0 | DJ38: 0 | DM38: 0.104713 | DN38: 0 | DO38: 0 | DP38: 0 | DS38: 0.104713 | DT38: 0 | DU38: 0 | DV38: 0 | EA38: 0.104713 | EB38: 0 | EC38: 0 | ED38: 0 | EE38: 0 | EF38: 0 | EG38: 0 | EH38: 0 | EI38: 0 | EJ38: 0 | EK38: 0 | EL38: 0 | EM38: 0 | EN38: 0 | EO38: 0 | EP38: 0 | EQ38: 0 | ER38: 0 | ES38: 0 | ET38: 0 | EU38: 0 | EV38: 0
B39: 0.120226 | C39: 0 | D39: 0 | E39: 0 | H39: 0.120226 | I39: 0 | J39: 0 | K39: 0 | N39: 0.120226 | O39: 0 | P39: 0 | Q39: 0 | T39: 0.120226 | U39: 0 | V39: 0 | W39: 0 | AA39: 0.120226 | AB39: 0 | AC39: 0 | AD39: 0 | AG39: 0.120226 | AH39: 0 | AI39: 0 | AJ39: 0 | AM39: 0.120226 | AN39: 0 | AO39: 0 | AP39: 0 | AS39: 0.120226 | AT39: 0 | AU39: 0 | AV39: 0 | AY39: 0.120226 | AZ39: 0 | BA39: 0 | BB39: 0 | BE39: 0.120226 | BF39: 0 | BG39: 0 | BH39: 0 | BK39: 0.120226 | BL39: 0 | BM39: 0 | BN39: 0 | BQ39: 0.120226 | BR39: 0 | BS39: 0 | BT39: 0 | BW39: 0.120226 | BX39: 0 | BY39: 0 | BZ39: 0 | CC39: 0.120226 | CD39: 0 | CE39: 0 | CF39: 0 | CI39: 0.120226 | CJ39: 0 | CK39: 0 | CL39: 0 | CO39: 0.120226 | CP39: 0 | CQ39: 0 | CR39: 0 | CU39: 0.120226 | CV39: 0 | CW39: 0 | CX39: 0 | DA39: 0.120226 | DB39: 0 | DC39: 0 | DD39: 0 | DG39: 0.120226 | DH39: 0 | DI39: 0 | DJ39: 0 | DM39: 0.120226 | DN39: 0 | DO39: 0 | DP39: 0 | DS39: 0.120226 | DT39: 0 | DU39: 0 | DV39: 0 | EA39: 0.120226 | EB39: 0 | EC39: 0 | ED39: 0 | EE39: 0 | EF39: 0 | EG39: 0 | EH39: 0 | EI39: 0 | EJ39: 0 | EK39: 0 | EL39: 0 | EM39: 0 | EN39: 0 | EO39: 0 | EP39: 0 | EQ39: 0 | ER39: 0 | ES39: 0 | ET39: 0 | EU39: 0 | EV39: 0
B40: 0.138038 | C40: 0 | D40: 0 | E40: 0 | H40: 0.138038 | I40: 0 | J40: 0 | K40: 0 | N40: 0.138038 | O40: 0 | P40: 0 | Q40: 0 | T40: 0.138038 | U40: 0 | V40: 0 | W40: 0 | AA40: 0.138038 | AB40: 0 | AC40: 0 | AD40: 0 | AG40: 0.138038 | AH40: 0 | AI40: 0 | AJ40: 0 | AM40: 0.138038 | AN40: 0 | AO40: 0 | AP40: 0 | AS40: 0.138038 | AT40: 0 | AU40: 0 | AV40: 0 | AY40: 0.138038 | AZ40: 0 | BA40: 0 | BB40: 0 | BE40: 0.138038 | BF40: 0 | BG40: 0 | BH40: 0 | BK40: 0.138038 | BL40: 0 | BM40: 0 | BN40: 0 | BQ40: 0.138038 | BR40: 0 | BS40: 0 | BT40: 0 | BW40: 0.138038 | BX40: 0 | BY40: 0 | BZ40: 0 | CC40: 0.138038 | CD40: 0 | CE40: 0 | CF40: 0 | CI40: 0.138038 | CJ40: 0 | CK40: 0 | CL40: 0 | CO40: 0.138038 | CP40: 0 | CQ40: 0 | CR40: 0 | CU40: 0.138038 | CV40: 0 | CW40: 0 | CX40: 0 | DA40: 0.138038 | DB40: 0 | DC40: 0 | DD40: 0 | DG40: 0.138038 | DH40: 0 | DI40: 0 | DJ40: 0 | DM40: 0.138038 | DN40: 0 | DO40: 0 | DP40: 0 | DS40: 0.138038 | DT40: 0 | DU40: 0 | DV40: 0 | EA40: 0.138038 | EB40: 0 | EC40: 0 | ED40: 0 | EE40: 0 | EF40: 0 | EG40: 0 | EH40: 0 | EI40: 0 | EJ40: 0 | EK40: 0 | EL40: 0 | EM40: 0 | EN40: 0 | EO40: 0 | EP40: 0 | EQ40: 0 | ER40: 0 | ES40: 0 | ET40: 0 | EU40: 0 | EV40: 0
B41: 0.158489 | C41: 0 | D41: 0 | E41: 0 | H41: 0.158489 | I41: 0 | J41: 0 | K41: 0 | N41: 0.158489 | O41: 0 | P41: 0 | Q41: 0 | T41: 0.158489 | U41: 0 | V41: 0 | W41: 0 | AA41: 0.158489 | AB41: 0 | AC41: 0 | AD41: 0 | AG41: 0.158489 | AH41: 0 | AI41: 0 | AJ41: 0 | AM41: 0.158489 | AN41: 0 | AO41: 0 | AP41: 0 | AS41: 0.158489 | AT41: 0 | AU41: 0 | AV41: 0 | AY41: 0.158489 | AZ41: 0 | BA41: 0 | BB41: 0 | BE41: 0.158489 | BF41: 0 | BG41: 0 | BH41: 0 | BK41: 0.158489 | BL41: 0 | BM41: 0 | BN41: 0 | BQ41: 0.158489 | BR41: 0 | BS41: 0 | BT41: 0 | BW41: 0.158489 | BX41: 0 | BY41: 0 | BZ41: 0 | CC41: 0.158489 | CD41: 0 | CE41: 0 | CF41: 0 | CI41: 0.158489 | CJ41: 0 | CK41: 0 | CL41: 0 | CO41: 0.158489 | CP41: 0 | CQ41: 0 | CR41: 0 | CU41: 0.158489 | CV41: 0 | CW41: 0 | CX41: 0 | DA41: 0.158489 | DB41: 0 | DC41: 0 | DD41: 0 | DG41: 0.158489 | DH41: 0 | DI41: 0 | DJ41: 0 | DM41: 0.158489 | DN41: 0 | DO41: 0 | DP41: 0 | DS41: 0.158489 | DT41: 0 | DU41: 0 | DV41: 0 | EA41: 0.158489 | EB41: 0 | EC41: 0 | ED41: 0 | EE41: 0 | EF41: 0 | EG41: 0 | EH41: 0 | EI41: 0 | EJ41: 0 | EK41: 0 | EL41: 0 | EM41: 0 | EN41: 0 | EO41: 0 | EP41: 0 | EQ41: 0 | ER41: 0 | ES41: 0 | ET41: 0 | EU41: 0 | EV41: 0
B42: 0.18197 | C42: 0 | D42: 0 | E42: 0 | H42: 0.18197 | I42: 0 | J42: 0 | K42: 0 | N42: 0.18197 | O42: 0 | P42: 0 | Q42: 0 | T42: 0.18197 | U42: 0 | V42: 0 | W42: 0 | AA42: 0.18197 | AB42: 0 | AC42: 0 | AD42: 0 | AG42: 0.18197 | AH42: 0 | AI42: 0 | AJ42: 0 | AM42: 0.18197 | AN42: 0 | AO42: 0 | AP42: 0 | AS42: 0.18197 | AT42: 0 | AU42: 0 | AV42: 0 | AY42: 0.18197 | AZ42: 0 | BA42: 0 | BB42: 0 | BE42: 0.18197 | BF42: 0 | BG42: 0 | BH42: 0 | BK42: 0.18197 | BL42: 0 | BM42: 0 | BN42: 0 | BQ42: 0.18197 | BR42: 0 | BS42: 0 | BT42: 0 | BW42: 0.18197 | BX42: 0 | BY42: 0 | BZ42: 0 | CC42: 0.18197 | CD42: 0 | CE42: 0 | CF42: 0 | CI42: 0.18197 | CJ42: 0 | CK42: 0 | CL42: 0 | CO42: 0.18197 | CP42: 0 | CQ42: 0 | CR42: 0 | CU42: 0.18197 | CV42: 0 | CW42: 0 | CX42: 0 | DA42: 0.18197 | DB42: 0 | DC42: 0 | DD42: 0 | DG42: 0.18197 | DH42: 0 | DI42: 0 | DJ42: 0 | DM42: 0.18197 | DN42: 0 | DO42: 0 | DP42: 0 | DS42: 0.18197 | DT42: 0 | DU42: 0 | DV42: 0 | EA42: 0.18197 | EB42: 0 | EC42: 0 | ED42: 0 | EE42: 0 | EF42: 0 | EG42: 0 | EH42: 0 | EI42: 0 | EJ42: 0 | EK42: 0 | EL42: 0 | EM42: 0 | EN42: 0 | EO42: 0 | EP42: 0 | EQ42: 0 | ER42: 0 | ES42: 0 | ET42: 0 | EU42: 0 | EV42: 0
B43: 0.20893 | C43: 0 | D43: 0 | E43: 0 | H43: 0.20893 | I43: 0 | J43: 0 | K43: 0 | N43: 0.20893 | O43: 0 | P43: 0 | Q43: 0 | T43: 0.20893 | U43: 0 | V43: 0 | W43: 0 | AA43: 0.20893 | AB43: 0 | AC43: 0 | AD43: 0 | AG43: 0.20893 | AH43: 0 | AI43: 0 | AJ43: 0 | AM43: 0.20893 | AN43: 0 | AO43: 0 | AP43: 0 | AS43: 0.20893 | AT43: 0 | AU43: 0 | AV43: 0 | AY43: 0.20893 | AZ43: 0 | BA43: 0 | BB43: 0 | BE43: 0.20893 | BF43: 0 | BG43: 0 | BH43: 0 | BK43: 0.20893 | BL43: 0 | BM43: 0 | BN43: 0 | BQ43: 0.20893 | BR43: 0 | BS43: 0 | BT43: 0 | BW43: 0.20893 | BX43: 0 | BY43: 0 | BZ43: 0 | CC43: 0.20893 | CD43: 0 | CE43: 0 | CF43: 0 | CI43: 0.20893 | CJ43: 0 | CK43: 0 | CL43: 0 | CO43: 0.20893 | CP43: 0 | CQ43: 0 | CR43: 0 | CU43: 0.20893 | CV43: 0 | CW43: 0 | CX43: 0 | DA43: 0.20893 | DB43: 0 | DC43: 0 | DD43: 0 | DG43: 0.20893 | DH43: 0 | DI43: 0 | DJ43: 0 | DM43: 0.20893 | DN43: 0 | DO43: 0 | DP43: 0 | DS43: 0.20893 | DT43: 0 | DU43: 0 | DV43: 0 | EA43: 0.20893 | EB43: 0 | EC43: 0 | ED43: 0 | EE43: 0 | EF43: 0 | EG43: 0 | EH43: 0 | EI43: 0 | EJ43: 0 | EK43: 0 | EL43: 0 | EM43: 0 | EN43: 0 | EO43: 0 | EP43: 0 | EQ43: 0 | ER43: 0 | ES43: 0 | ET43: 0 | EU43: 0 | EV43: 0
B44: 0.239883 | C44: 0 | D44: 0 | E44: 0 | H44: 0.239883 | I44: 0 | J44: 0 | K44: 0 | N44: 0.239883 | O44: 0 | P44: 0 | Q44: 0 | T44: 0.239883 | U44: 0 | V44: 0 | W44: 0 | AA44: 0.239883 | AB44: 0 | AC44: 0 | AD44: 0 | AG44: 0.239883 | AH44: 0 | AI44: 0 | AJ44: 0 | AM44: 0.239883 | AN44: 0 | AO44: 0 | AP44: 0 | AS44: 0.239883 | AT44: 0 | AU44: 0 | AV44: 0 | AY44: 0.239883 | AZ44: 0 | BA44: 0 | BB44: 0 | BE44: 0.239883 | BF44: 0 | BG44: 0 | BH44: 0 | BK44: 0.239883 | BL44: 0 | BM44: 0 | BN44: 0 | BQ44: 0.239883 | BR44: 0 | BS44: 0 | BT44: 0 | BW44: 0.239883 | BX44: 0 | BY44: 0 | BZ44: 0 | CC44: 0.239883 | CD44: 0 | CE44: 0 | CF44: 0 | CI44: 0.239883 | CJ44: 0 | CK44: 0 | CL44: 0 | CO44: 0.239883 | CP44: 0 | CQ44: 0 | CR44: 0 | CU44: 0.239883 | CV44: 0 | CW44: 0 | CX44: 0 | DA44: 0.239883 | DB44: 0 | DC44: 0 | DD44: 0 | DG44: 0.239883 | DH44: 0 | DI44: 0 | DJ44: 0 | DM44: 0.239883 | DN44: 0 | DO44: 0 | DP44: 0 | DS44: 0.239883 | DT44: 0 | DU44: 0 | DV44: 0 | EA44: 0.239883 | EB44: 0 | EC44: 0 | ED44: 0 | EE44: 0 | EF44: 0 | EG44: 0 | EH44: 0 | EI44: 0 | EJ44: 0 | EK44: 0 | EL44: 0 | EM44: 0 | EN44: 0 | EO44: 0 | EP44: 0 | EQ44: 0 | ER44: 0 | ES44: 0 | ET44: 0 | EU44: 0 | EV44: 0
B45: 0.275423 | C45: 0 | D45: 0 | E45: 0 | H45: 0.275423 | I45: 0 | J45: 0 | K45: 0 | N45: 0.275423 | O45: 0 | P45: 0 | Q45: 0 | T45: 0.275423 | U45: 0 | V45: 0 | W45: 0 | AA45: 0.275423 | AB45: 0 | AC45: 0 | AD45: 0 | AG45: 0.275423 | AH45: 0 | AI45: 0 | AJ45: 0 | AM45: 0.275423 | AN45: 0 | AO45: 0 | AP45: 0 | AS45: 0.275423 | AT45: 0 | AU45: 0 | AV45: 0 | AY45: 0.275423 | AZ45: 0 | BA45: 0 | BB45: 0 | BE45: 0.275423 | BF45: 0 | BG45: 0 | BH45: 0 | BK45: 0.275423 | BL45: 0 | BM45: 0 | BN45: 0 | BQ45: 0.275423 | BR45: 0 | BS45: 0 | BT45: 0 | BW45: 0.275423 | BX45: 0 | BY45: 0 | BZ45: 0 | CC45: 0.275423 | CD45: 0 | CE45: 0 | CF45: 0 | CI45: 0.275423 | CJ45: 0 | CK45: 0 | CL45: 0 | CO45: 0.275423 | CP45: 0 | CQ45: 0 | CR45: 0 | CU45: 0.275423 | CV45: 0 | CW45: 0 | CX45: 0 | DA45: 0.275423 | DB45: 0 | DC45: 0 | DD45: 0 | DG45: 0.275423 | DH45: 0 | DI45: 0 | DJ45: 0 | DM45: 0.275423 | DN45: 0 | DO45: 0 | DP45: 0 | DS45: 0.275423 | DT45: 0 | DU45: 0 | DV45: 0 | EA45: 0.275423 | EB45: 0 | EC45: 0 | ED45: 0 | EE45: 0 | EF45: 0 | EG45: 0 | EH45: 0 | EI45: 0 | EJ45: 0 | EK45: 0 | EL45: 0 | EM45: 0 | EN45: 0 | EO45: 0 | EP45: 0 | EQ45: 0 | ER45: 0 | ES45: 0 | ET45: 0 | EU45: 0 | EV45: 0
B46: 0.316228 | C46: 0 | D46: 0 | E46: 0 | H46: 0.316228 | I46: 0 | J46: 0 | K46: 0 | N46: 0.316228 | O46: 0 | P46: 0 | Q46: 0 | T46: 0.316228 | U46: 0 | V46: 0 | W46: 0 | AA46: 0.316228 | AB46: 0 | AC46: 0 | AD46: 0 | AG46: 0.316228 | AH46: 0 | AI46: 0 | AJ46: 0 | AM46: 0.316228 | AN46: 0 | AO46: 0 | AP46: 0 | AS46: 0.316228 | AT46: 0 | AU46: 0 | AV46: 0 | AY46: 0.316228 | AZ46: 0 | BA46: 0 | BB46: 0 | BE46: 0.316228 | BF46: 0 | BG46: 0 | BH46: 0 | BK46: 0.316228 | BL46: 0 | BM46: 0 | BN46: 0 | BQ46: 0.316228 | BR46: 0 | BS46: 0 | BT46: 0 | BW46: 0.316228 | BX46: 0 | BY46: 0 | BZ46: 0 | CC46: 0.316228 | CD46: 0 | CE46: 0 | CF46: 0 | CI46: 0.316228 | CJ46: 0 | CK46: 0 | CL46: 0 | CO46: 0.316228 | CP46: 0 | CQ46: 0 | CR46: 0 | CU46: 0.316228 | CV46: 0 | CW46: 0 | CX46: 0 | DA46: 0.316228 | DB46: 0 | DC46: 0 | DD46: 0 | DG46: 0.316228 | DH46: 0 | DI46: 0 | DJ46: 0 | DM46: 0.316228 | DN46: 0 | DO46: 0 | DP46: 0 | DS46: 0.316228 | DT46: 0 | DU46: 0 | DV46: 0 | EA46: 0.316228 | EB46: 0 | EC46: 0 | ED46: 0 | EE46: 0 | EF46: 0 | EG46: 0 | EH46: 0 | EI46: 0 | EJ46: 0 | EK46: 0 | EL46: 0 | EM46: 0 | EN46: 0 | EO46: 0 | EP46: 0 | EQ46: 0 | ER46: 0 | ES46: 0 | ET46: 0 | EU46: 0 | EV46: 0
B47: 0.363078 | C47: 0 | D47: 0 | E47: 0 | H47: 0.363078 | I47: 0 | J47: 0 | K47: 0 | N47: 0.363078 | O47: 0 | P47: 0 | Q47: 0 | T47: 0.363078 | U47: 0 | V47: 0 | W47: 0 | AA47: 0.363078 | AB47: 0 | AC47: 0 | AD47: 0 | AG47: 0.363078 | AH47: 0 | AI47: 0 | AJ47: 0 | AM47: 0.363078 | AN47: 0 | AO47: 0 | AP47: 0 | AS47: 0.363078 | AT47: 0 | AU47: 0 | AV47: 0 | AY47: 0.363078 | AZ47: 0 | BA47: 0 | BB47: 0 | BE47: 0.363078 | BF47: 0 | BG47: 0 | BH47: 0 | BK47: 0.363078 | BL47: 0 | BM47: 0 | BN47: 0 | BQ47: 0.363078 | BR47: 0 | BS47: 0 | BT47: 0 | BW47: 0.363078 | BX47: 0 | BY47: 0 | BZ47: 0 | CC47: 0.363078 | CD47: 0 | CE47: 0 | CF47: 0 | CI47: 0.363078 | CJ47: 0 | CK47: 0 | CL47: 0 | CO47: 0.363078 | CP47: 0 | CQ47: 0 | CR47: 0 | CU47: 0.363078 | CV47: 0 | CW47: 0 | CX47: 0 | DA47: 0.363078 | DB47: 0 | DC47: 0 | DD47: 0 | DG47: 0.363078 | DH47: 0 | DI47: 0 | DJ47: 0 | DM47: 0.363078 | DN47: 0 | DO47: 0 | DP47: 0 | DS47: 0.363078 | DT47: 0 | DU47: 0 | DV47: 0 | EA47: 0.363078 | EB47: 0 | EC47: 0 | ED47: 0 | EE47: 0 | EF47: 0 | EG47: 0 | EH47: 0 | EI47: 0 | EJ47: 0 | EK47: 0 | EL47: 0 | EM47: 0 | EN47: 0 | EO47: 0 | EP47: 0 | EQ47: 0 | ER47: 0 | ES47: 0 | ET47: 0 | EU47: 0 | EV47: 0
B48: 0.416869 | C48: 0 | D48: 0 | E48: 0 | H48: 0.416869 | I48: 0 | J48: 0 | K48: 0 | N48: 0.416869 | O48: 0 | P48: 0 | Q48: 0 | T48: 0.416869 | U48: 0 | V48: 0 | W48: 0 | AA48: 0.416869 | AB48: 0 | AC48: 0 | AD48: 0 | AG48: 0.416869 | AH48: 0 | AI48: 0 | AJ48: 0 | AM48: 0.416869 | AN48: 0 | AO48: 0 | AP48: 0 | AS48: 0.416869 | AT48: 0 | AU48: 0 | AV48: 0 | AY48: 0.416869 | AZ48: 0 | BA48: 0 | BB48: 0 | BE48: 0.416869 | BF48: 0 | BG48: 0 | BH48: 0 | BK48: 0.416869 | BL48: 0.032586 | BM48: 0 | BN48: 0 | BQ48: 0.416869 | BR48: 0 | BS48: 0 | BT48: 0 | BW48: 0.416869 | BX48: 0 | BY48: 0 | BZ48: 0 | CC48: 0.416869 | CD48: 0 | CE48: 0 | CF48: 0 | CI48: 0.416869 | CJ48: 0 | CK48: 0 | CL48: 0 | CO48: 0.416869 | CP48: 0 | CQ48: 0 | CR48: 0 | CU48: 0.416869 | CV48: 0 | CW48: 0 | CX48: 0 | DA48: 0.416869 | DB48: 0 | DC48: 0 | DD48: 0 | DG48: 0.416869 | DH48: 0 | DI48: 0 | DJ48: 0 | DM48: 0.416869 | DN48: 0 | DO48: 0 | DP48: 0 | DS48: 0.416869 | DT48: 0 | DU48: 0 | DV48: 0 | EA48: 0.416869 | EB48: 0 | EC48: 0 | ED48: 0 | EE48: 0 | EF48: 0 | EG48: 0 | EH48: 0 | EI48: 0 | EJ48: 0 | EK48: 0 | EL48: 0.010862 | EM48: 0 | EN48: 0 | EO48: 0 | EP48: 0 | EQ48: 0 | ER48: 0 | ES48: 0 | ET48: 0 | EU48: 0 | EV48: 0
B49: 0.47863 | C49: 0 | D49: 0 | E49: 0 | H49: 0.47863 | I49: 0 | J49: 0 | K49: 0 | N49: 0.47863 | O49: 0 | P49: 0.018321 | Q49: 0 | T49: 0.47863 | U49: 0 | V49: 0 | W49: 0 | AA49: 0.47863 | AB49: 0 | AC49: 0 | AD49: 0 | AG49: 0.47863 | AH49: 0 | AI49: 0 | AJ49: 0 | AM49: 0.47863 | AN49: 0 | AO49: 0 | AP49: 0 | AS49: 0.47863 | AT49: 0 | AU49: 0 | AV49: 0 | AY49: 0.47863 | AZ49: 0 | BA49: 0 | BB49: 0 | BE49: 0.47863 | BF49: 0.065025 | BG49: 0.071936 | BH49: 0.070459 | BK49: 0.47863 | BL49: 0.196253 | BM49: 0.203583 | BN49: 0.200137 | BQ49: 0.47863 | BR49: 0 | BS49: 0 | BT49: 0 | BW49: 0.47863 | BX49: 0 | BY49: 0 | BZ49: 0 | CC49: 0.47863 | CD49: 0 | CE49: 0 | CF49: 0 | CI49: 0.47863 | CJ49: 0.185706 | CK49: 0.172413 | CL49: 0.175935 | CO49: 0.47863 | CP49: 0 | CQ49: 0 | CR49: 0 | CU49: 0.47863 | CV49: 0 | CW49: 0 | CX49: 0 | DA49: 0.47863 | DB49: 0 | DC49: 0 | DD49: 0 | DG49: 0.47863 | DH49: 0 | DI49: 0 | DJ49: 0 | DM49: 0.47863 | DN49: 0 | DO49: 0 | DP49: 0 | DS49: 0.47863 | DT49: 0 | DU49: 0.016065 | DV49: 0 | EA49: 0.47863 | EB49: 0 | EC49: 0 | ED49: 0.006107 | EE49: 0 | EF49: 0 | EG49: 0 | EH49: 0 | EI49: 0 | EJ49: 0 | EK49: 0.06914 | EL49: 0.199991 | EM49: 0 | EN49: 0 | EO49: 0 | EP49: 0.178018 | EQ49: 0 | ER49: 0 | ES49: 0 | ET49: 0 | EU49: 0 | EV49: 0.005355
B50: 0.549541 | C50: 0 | D50: 0.017546 | E50: 0.034836 | H50: 0.549541 | I50: 0 | J50: 0 | K50: 0 | N50: 0.549541 | O50: 0 | P50: 0.024659 | Q50: 0 | T50: 0.549541 | U50: 0 | V50: 0 | W50: 0 | AA50: 0.549541 | AB50: 0 | AC50: 0 | AD50: 0 | AG50: 0.549541 | AH50: 0 | AI50: 0 | AJ50: 0 | AM50: 0.549541 | AN50: 0 | AO50: 0 | AP50: 0 | AS50: 0.549541 | AT50: 0 | AU50: 0 | AV50: 0.033569 | AY50: 0.549541 | AZ50: 0 | BA50: 0 | BB50: 0 | BE50: 0.549541 | BF50: 0.111115 | BG50: 0.117528 | BH50: 0.114714 | BK50: 0.549541 | BL50: 0.319026 | BM50: 0.34212 | BN50: 0.336604 | BQ50: 0.549541 | BR50: 0 | BS50: 0 | BT50: 0 | BW50: 0.549541 | BX50: 0 | BY50: 0 | BZ50: 0 | CC50: 0.549541 | CD50: 0 | CE50: 0 | CF50: 0 | CI50: 0.549541 | CJ50: 0.301548 | CK50: 0.265726 | CL50: 0.267217 | CO50: 0.549541 | CP50: 0 | CQ50: 0 | CR50: 0 | CU50: 0.549541 | CV50: 0 | CW50: 0 | CX50: 0 | DA50: 0.549541 | DB50: 0 | DC50: 0 | DD50: 0 | DG50: 0.549541 | DH50: 0 | DI50: 0 | DJ50: 0 | DM50: 0.549541 | DN50: 0 | DO50: 0 | DP50: 0 | DS50: 0.549541 | DT50: 0.069634 | DU50: 0.088372 | DV50: 0.079434 | EA50: 0.549541 | EB50: 0.01746066667 | EC50: 0 | ED50: 0.008219666667 | EE50: 0 | EF50: 0 | EG50: 0 | EH50: 0 | EI50: 0.01118966667 | EJ50: 0 | EK50: 0.1144523333 | EL50: 0.3325833333 | EM50: 0 | EN50: 0 | EO50: 0 | EP50: 0.2781636667 | EQ50: 0 | ER50: 0 | ES50: 0 | ET50: 0 | EU50: 0 | EV50: 0.07914666667
B51: 0.630957 | C51: 0 | D51: 0.045769 | E51: 0.050525 | H51: 0.630957 | I51: 0 | J51: 0 | K51: 0 | N51: 0.630957 | O51: 0 | P51: 0.029019 | Q51: 0 | T51: 0.630957 | U51: 0 | V51: 0.014269 | W51: 0.014607 | AA51: 0.630957 | AB51: 0 | AC51: 0 | AD51: 0 | AG51: 0.630957 | AH51: 0 | AI51: 0 | AJ51: 0 | AM51: 0.630957 | AN51: 0 | AO51: 0 | AP51: 0 | AS51: 0.630957 | AT51: 0 | AU51: 0 | AV51: 0.06874 | AY51: 0.630957 | AZ51: 0 | BA51: 0 | BB51: 0.046445 | BE51: 0.630957 | BF51: 0.145924 | BG51: 0.160317 | BH51: 0.156264 | BK51: 0.630957 | BL51: 0.415667 | BM51: 0.447506 | BN51: 0.440562 | BQ51: 0.630957 | BR51: 0 | BS51: 0 | BT51: 0 | BW51: 0.630957 | BX51: 0 | BY51: 0 | BZ51: 0 | CC51: 0.630957 | CD51: 0 | CE51: 0 | CF51: 0 | CI51: 0.630957 | CJ51: 0.38477 | CK51: 0.352939 | CL51: 0.35139 | CO51: 0.630957 | CP51: 0 | CQ51: 0 | CR51: 0 | CU51: 0.630957 | CV51: 0 | CW51: 0 | CX51: 0 | DA51: 0.630957 | DB51: 0 | DC51: 0 | DD51: 0 | DG51: 0.630957 | DH51: 0 | DI51: 0 | DJ51: 0 | DM51: 0.630957 | DN51: 0 | DO51: 0 | DP51: 0 | DS51: 0.630957 | DT51: 0.100705 | DU51: 0.120636 | DV51: 0.114492 | EA51: 0.630957 | EB51: 0.032098 | EC51: 0 | ED51: 0.009673 | EE51: 0.014438 | EF51: 0 | EG51: 0 | EH51: 0 | EI51: 0.02291333333 | EJ51: 0.01548166667 | EK51: 0.1541683333 | EL51: 0.4345783333 | EM51: 0 | EN51: 0 | EO51: 0 | EP51: 0.363033 | EQ51: 0 | ER51: 0 | ES51: 0 | ET51: 0 | EU51: 0 | EV51: 0.1119443333
B52: 0.724436 | C52: 0 | D52: 0.055021 | E52: 0.055263 | H52: 0.724436 | I52: 0.027014 | J52: 0.010749 | K52: 0 | N52: 0.724436 | O52: 0 | P52: 0.03307 | Q52: 0 | T52: 0.724436 | U52: 0 | V52: 0.022214 | W52: 0.019899 | AA52: 0.724436 | AB52: 0 | AC52: 0 | AD52: 0 | AG52: 0.724436 | AH52: 0 | AI52: 0 | AJ52: 0 | AM52: 0.724436 | AN52: 0 | AO52: 0 | AP52: 0 | AS52: 0.724436 | AT52: 0 | AU52: 0 | AV52: 0.082529 | AY52: 0.724436 | AZ52: 0 | BA52: 0 | BB52: 0.066494 | BE52: 0.724436 | BF52: 0.173811 | BG52: 0.187966 | BH52: 0.183181 | BK52: 0.724436 | BL52: 0.496891 | BM52: 0.53933 | BN52: 0.53123 | BQ52: 0.724436 | BR52: 0 | BS52: 0 | BT52: 0 | BW52: 0.724436 | BX52: 0 | BY52: 0 | BZ52: 0 | CC52: 0.724436 | CD52: 0 | CE52: 0 | CF52: 0 | CI52: 0.724436 | CJ52: 0.454574 | CK52: 0.410551 | CL52: 0.405853 | CO52: 0.724436 | CP52: 0 | CQ52: 0 | CR52: 0 | CU52: 0.724436 | CV52: 0 | CW52: 0 | CX52: 0 | DA52: 0.724436 | DB52: 0 | DC52: 0 | DD52: 0 | DG52: 0.724436 | DH52: 0 | DI52: 0 | DJ52: 0 | DM52: 0.724436 | DN52: 0 | DO52: 0 | DP52: 0 | DS52: 0.724436 | DT52: 0.121821 | DU52: 0.145008 | DV52: 0.1381 | EA52: 0.724436 | EB52: 0.03676133333 | EC52: 0.01258766667 | ED52: 0.01102333333 | EE52: 0.0210565 | EF52: 0 | EG52: 0 | EH52: 0 | EI52: 0.02750966667 | EJ52: 0.02216466667 | EK52: 0.1816526667 | EL52: 0.5224836667 | EM52: 0 | EN52: 0 | EO52: 0 | EP52: 0.4236593333 | EQ52: 0 | ER52: 0 | ES52: 0 | ET52: 0 | EU52: 0 | EV52: 0.1349763333
B53: 0.831764 | C53: 0.008749 | D53: 0.06181 | E53: 0.063934 | H53: 0.831764 | I53: 0.047639 | J53: 0.03178 | K53: 0 | N53: 0.831764 | O53: 0 | P53: 0.033491 | Q53: 0.013562 | T53: 0.831764 | U53: 0 | V53: 0.020473 | W53: 0.031936 | AA53: 0.831764 | AB53: 0 | AC53: 0 | AD53: 0 | AG53: 0.831764 | AH53: 0 | AI53: 0 | AJ53: 0 | AM53: 0.831764 | AN53: 0 | AO53: 0 | AP53: 0 | AS53: 0.831764 | AT53: 0 | AU53: 0 | AV53: 0.0876 | AY53: 0.831764 | AZ53: 0 | BA53: 0 | BB53: 0.070553 | BE53: 0.831764 | BF53: 0.191098 | BG53: 0.208563 | BH53: 0.203267 | BK53: 0.831764 | BL53: 0.556959 | BM53: 0.605976 | BN53: 0.597206 | BQ53: 0.831764 | BR53: 0 | BS53: 0 | BT53: 0 | BW53: 0.831764 | BX53: 0 | BY53: 0 | BZ53: 0 | CC53: 0.831764 | CD53: 0 | CE53: 0 | CF53: 0 | CI53: 0.831764 | CJ53: 0.499104 | CK53: 0.45354 | CL53: 0.445026 | CO53: 0.831764 | CP53: 0 | CQ53: 0 | CR53: 0.010089 | CU53: 0.831764 | CV53: 0 | CW53: 0 | CX53: 0 | DA53: 0.831764 | DB53: 0 | DC53: 0 | DD53: 0 | DG53: 0.831764 | DH53: 0 | DI53: 0 | DJ53: 0 | DM53: 0.831764 | DN53: 0 | DO53: 0 | DP53: 0 | DS53: 0.831764 | DT53: 0.134812 | DU53: 0.160018 | DV53: 0.15264 | EA53: 0.831764 | EB53: 0.044831 | EC53: 0.026473 | ED53: 0.01568433333 | EE53: 0.0262045 | EF53: 0 | EG53: 0 | EH53: 0 | EI53: 0.0292 | EJ53: 0.02351766667 | EK53: 0.200976 | EL53: 0.5867136667 | EM53: 0 | EN53: 0 | EO53: 0 | EP53: 0.46589 | EQ53: 0.003363 | ER53: 0 | ES53: 0 | ET53: 0 | EU53: 0 | EV53: 0.1491566667
B54: 0.954993 | C54: 0.029657 | D54: 0.063806 | E54: 0.062763 | H54: 0.954993 | I54: 0.044568 | J54: 0.051868 | K54: 0.017508 | N54: 0.954993 | O54: 0 | P54: 0.044491 | Q54: 0.049287 | T54: 0.954993 | U54: 0 | V54: 0.031909 | W54: 0.05307 | AA54: 0.954993 | AB54: 0 | AC54: 0 | AD54: 0 | AG54: 0.954993 | AH54: 0 | AI54: 0 | AJ54: 0 | AM54: 0.954993 | AN54: 0 | AO54: 0 | AP54: 0 | AS54: 0.954993 | AT54: 0 | AU54: 0 | AV54: 0.091793 | AY54: 0.954993 | AZ54: 0 | BA54: 0 | BB54: 0.068936 | BE54: 0.954993 | BF54: 0.202541 | BG54: 0.221183 | BH54: 0.215603 | BK54: 0.954993 | BL54: 0.603322 | BM54: 0.657871 | BN54: 0.648701 | BQ54: 0.954993 | BR54: 0 | BS54: 0 | BT54: 0 | BW54: 0.954993 | BX54: 0 | BY54: 0 | BZ54: 0 | CC54: 0.954993 | CD54: 0 | CE54: 0 | CF54: 0 | CI54: 0.954993 | CJ54: 0.528618 | CK54: 0.479899 | CL54: 0.467381 | CO54: 0.954993 | CP54: 0 | CQ54: 0 | CR54: 0.021962 | CU54: 0.954993 | CV54: 0 | CW54: 0 | CX54: 0 | DA54: 0.954993 | DB54: 0 | DC54: 0 | DD54: 0 | DG54: 0.954993 | DH54: 0 | DI54: 0 | DJ54: 0 | DM54: 0.954993 | DN54: 0.009618 | DO54: 0.017704 | DP54: 0 | DS54: 0.954993 | DT54: 0.143553 | DU54: 0.169898 | DV54: 0.162387 | EA54: 0.954993 | EB54: =AVERAGE(C54:E54) -> 0.05207533333 | EC54: =AVERAGE(I54:K54) -> 0.03798133333 | ED54: =AVERAGE(O54:Q54) -> 0.03125933333 | EE54: =AVERAGE(V54:X54) -> 0.0424895 | EF54: =AVERAGE(AB54:AD54) -> 0 | EG54: =AVERAGE(AH54:AJ54) -> 0 | EH54: =AVERAGE(AN54:AP54) -> 0 | EI54: =AVERAGE(AT54:AV54) -> 0.03059766667 | EJ54: =AVERAGE(AZ54:BB54) -> 0.02297866667 | EK54: =AVERAGE(BF54:BH54) -> 0.213109 | EL54: =AVERAGE(BL54:BN54) -> 0.6366313333 | EM54: =AVERAGE(BR54:BT54) -> 0 | EN54: =AVERAGE(BX54:BZ54) -> 0 | EO54: =AVERAGE(CD54:CF54) -> 0 | EP54: =AVERAGE(CJ54:CL54) -> 0.491966 | EQ54: =AVERAGE(CP54:CR54) -> 0.007320666667 | ER54: =AVERAGE(CV54:CX54) -> 0 | ES54: =AVERAGE(DB54:DD54) -> 0 | ET54: =AVERAGE(DH54:DJ54) -> 0 | EU54: =AVERAGE(DN54:DP54) -> 0.009107333333 | EV54: =AVERAGE(DT54:DV54) -> 0.1586126667
B55: 1.096478 | C55: 0.050189 | D55: 0.065045 | E55: 0.077015 | H55: 1.096478 | I55: 0.05702 | J55: 0.065554 | K55: 0.042264 | N55: 1.096478 | O55: 0 | P55: 0.057491 | Q55: 0.062631 | T55: 1.096478 | U55: 0 | V55: 0.052726 | W55: 0.065253 | AA55: 1.096478 | AB55: 0 | AC55: 0 | AD55: 0 | AG55: 1.096478 | AH55: 0 | AI55: 0 | AJ55: 0 | AM55: 1.096478 | AN55: 0 | AO55: 0 | AP55: 0 | AS55: 1.096478 | AT55: 0 | AU55: 0 | AV55: 0.094306 | AY55: 1.096478 | AZ55: 0 | BA55: 0 | BB55: 0.070486 | BE55: 1.096478 | BF55: 0.211486 | BG55: 0.231459 | BH55: 0.225607 | BK55: 1.096478 | BL55: 0.643905 | BM55: 0.702934 | BN55: 0.693498 | BQ55: 1.096478 | BR55: 0 | BS55: 0 | BT55: 0 | BW55: 1.096478 | BX55: 0 | BY55: 0 | BZ55: 0 | CC55: 1.096478 | CD55: 0 | CE55: 0 | CF55: 0 | CI55: 1.096478 | CJ55: 0.550027 | CK55: 0.500054 | CL55: 0.483392 | CO55: 1.096478 | CP55: 0 | CQ55: 0 | CR55: 0.015233 | CU55: 1.096478 | CV55: 0 | CW55: 0 | CX55: 0 | DA55: 1.096478 | DB55: 0 | DC55: 0 | DD55: 0 | DG55: 1.096478 | DH55: 0 | DI55: 0 | DJ55: 0 | DM55: 1.096478 | DN55: 0.019156 | DO55: 0.046407 | DP55: 0 | DS55: 1.096478 | DT55: 0.14968 | DU55: 0.176755 | DV55: 0.169226 | EA55: 1.096478 | EB55: 0.064083 | EC55: 0.054946 | ED55: 0.04004066667 | EE55: 0.0589895 | EF55: 0 | EG55: 0 | EH55: 0 | EI55: 0.03143533333 | EJ55: 0.02349533333 | EK55: 0.2228506667 | EL55: 0.6801123333 | EM55: 0 | EN55: 0 | EO55: 0 | EP55: 0.5111576667 | EQ55: 0.005077666667 | ER55: 0 | ES55: 0 | ET55: 0 | EU55: 0.02185433333 | EV55: 0.1652203333
B56: 1.258925 | C56: 0.066172 | D56: 0.076223 | E56: 0.09463 | H56: 1.258925 | I56: 0.075405 | J56: 0.066132 | K56: 0.04767 | N56: 1.258925 | O56: 0.027118 | P56: 0.056295 | Q56: 0.066124 | T56: 1.258925 | U56: 0 | V56: 0.067144 | W56: 0.063622 | AA56: 1.258925 | AB56: 0 | AC56: 0 | AD56: 0 | AG56: 1.258925 | AH56: 0 | AI56: 0 | AJ56: 0 | AM56: 1.258925 | AN56: 0 | AO56: 0 | AP56: 0 | AS56: 1.258925 | AT56: 0.031827 | AU56: 0.031238 | AV56: 0.098396 | AY56: 1.258925 | AZ56: 0 | BA56: 0 | BB56: 0.071499 | BE56: 1.258925 | BF56: 0.222969 | BG56: 0.24391 | BH56: 0.237608 | BK56: 1.258925 | BL56: 0.687837 | BM56: 0.751536 | BN56: 0.741767 | BQ56: 1.258925 | BR56: 0 | BS56: 0 | BT56: 0 | BW56: 1.258925 | BX56: 0 | BY56: 0 | BZ56: 0 | CC56: 1.258925 | CD56: 0 | CE56: 0 | CF56: 0 | CI56: 1.258925 | CJ56: 0.573851 | CK56: 0.522156 | CL56: 0.501608 | CO56: 1.258925 | CP56: 0 | CQ56: 0 | CR56: 0.03246 | CU56: 1.258925 | CV56: 0 | CW56: 0 | CX56: 0 | DA56: 1.258925 | DB56: 0 | DC56: 0 | DD56: 0 | DG56: 1.258925 | DH56: 0 | DI56: 0 | DJ56: 0 | DM56: 1.258925 | DN56: 0.033979 | DO56: 0.042812 | DP56: 0 | DS56: 1.258925 | DT56: 0.156598 | DU56: 0.184523 | DV56: 0.176972 | EA56: 1.258925 | EB56: 0.07900833333 | EC56: 0.063069 | ED56: 0.04984566667 | EE56: 0.065383 | EF56: 0 | EG56: 0 | EH56: 0 | EI56: 0.05382033333 | EJ56: 0.023833 | EK56: 0.234829 | EL56: 0.7270466667 | EM56: 0 | EN56: 0 | EO56: 0 | EP56: 0.5325383333 | EQ56: 0.01082 | ER56: 0 | ES56: 0 | ET56: 0 | EU56: 0.025597 | EV56: 0.1726976667
B57: 1.44544 | C57: 0.069319 | D57: 0.097687 | E57: 0.099285 | H57: 1.44544 | I57: 0.078899 | J57: 0.073798 | K57: 0.069786 | N57: 1.44544 | O57: 0.019419 | P57: 0.057424 | Q57: 0.065997 | T57: 1.44544 | U57: 0 | V57: 0.068099 | W57: 0.069531 | AA57: 1.44544 | AB57: 0 | AC57: 0 | AD57: 0 | AG57: 1.44544 | AH57: 0 | AI57: 0 | AJ57: 0 | AM57: 1.44544 | AN57: 0 | AO57: 0 | AP57: 0 | AS57: 1.44544 | AT57: 0.047408 | AU57: 0.047305 | AV57: 0.106019 | AY57: 1.44544 | AZ57: 0.032692 | BA57: 0 | BB57: 0.076198 | BE57: 1.44544 | BF57: 0.241678 | BG57: 0.263727 | BH57: 0.25659 | BK57: 1.44544 | BL57: 0.74397 | BM57: 0.813463 | BN57: 0.803132 | BQ57: 1.44544 | BR57: 0 | BS57: 0 | BT57: 0 | BW57: 1.44544 | BX57: 0 | BY57: 0 | BZ57: 0 | CC57: 1.44544 | CD57: 0 | CE57: 0 | CF57: 0 | CI57: 1.44544 | CJ57: 0.609796 | CK57: 0.555408 | CL57: 0.531441 | CO57: 1.44544 | CP57: 0 | CQ57: 0 | CR57: 0.063917 | CU57: 1.44544 | CV57: 0 | CW57: 0 | CX57: 0 | DA57: 1.44544 | DB57: 0 | DC57: 0 | DD57: 0 | DG57: 1.44544 | DH57: 0 | DI57: 0 | DJ57: 0 | DM57: 1.44544 | DN57: 0.066013 | DO57: 0.051978 | DP57: 0 | DS57: 1.44544 | DT57: 0.167288 | DU57: 0.196656 | DV57: 0.188937 | EA57: 1.44544 | EB57: 0.08876366667 | EC57: 0.074161 | ED57: 0.04761333333 | EE57: 0.068815 | EF57: 0 | EG57: 0 | EH57: 0 | EI57: 0.06691066667 | EJ57: 0.03629666667 | EK57: 0.2539983333 | EL57: 0.786855 | EM57: 0 | EN57: 0 | EO57: 0 | EP57: 0.5655483333 | EQ57: 0.02130566667 | ER57: 0 | ES57: 0 | ET57: 0 | EU57: 0.03933033333 | EV57: 0.1842936667
B58: 1.659587 | C58: 0.079047 | D58: 0.105187 | E58: 0.110242 | H58: 1.659587 | I58: 0.089568 | J58: 0.082813 | K58: 0.075117 | N58: 1.659587 | O58: 0.02172 | P58: 0.06352 | Q58: 0.070871 | T58: 1.659587 | U58: 0 | V58: 0.07647 | W58: 0.076581 | AA58: 1.659587 | AB58: 0 | AC58: 0 | AD58: 0 | AG58: 1.659587 | AH58: 0 | AI58: 0 | AJ58: 0 | AM58: 1.659587 | AN58: 0 | AO58: 0 | AP58: 0 | AS58: 1.659587 | AT58: 0.069355 | AU58: 0.070363 | AV58: 0.118453 | AY58: 1.659587 | AZ58: 0.06654 | BA58: 0.02614 | BB58: 0.085223 | BE58: 1.659587 | BF58: 0.270127 | BG58: 0.293614 | BH58: 0.285152 | BK58: 1.659587 | BL58: 0.814997 | BM58: 0.891895 | BN58: 0.880713 | BQ58: 1.659587 | BR58: 0 | BS58: 0 | BT58: 0 | BW58: 1.659587 | BX58: 0 | BY58: 0 | BZ58: 0 | CC58: 1.659587 | CD58: 0 | CE58: 0 | CF58: 0 | CI58: 1.659587 | CJ58: 0.66288 | CK58: 0.6042 | CL58: 0.577541 | CO58: 1.659587 | CP58: 0 | CQ58: 0 | CR58: 0.068108 | CU58: 1.659587 | CV58: 0 | CW58: 0 | CX58: 0 | DA58: 1.659587 | DB58: 0 | DC58: 0 | DD58: 0 | DG58: 1.659587 | DH58: 0 | DI58: 0 | DJ58: 0 | DM58: 1.659587 | DN58: 0.069427 | DO58: 0.075205 | DP58: 0 | DS58: 1.659587 | DT58: 0.183371 | DU58: 0.214969 | DV58: 0.206867 | EA58: 1.659587 | EB58: 0.09815866667 | EC58: 0.08249933333 | ED58: 0.052037 | EE58: 0.0765255 | EF58: 0 | EG58: 0 | EH58: 0 | EI58: 0.086057 | EJ58: 0.059301 | EK58: 0.2829643333 | EL58: 0.862535 | EM58: 0 | EN58: 0 | EO58: 0 | EP58: 0.6148736667 | EQ58: 0.02270266667 | ER58: 0 | ES58: 0 | ET58: 0 | EU58: 0.04821066667 | EV58: 0.2017356667
B59: 1.905461 | C59: 0.089961 | D59: 0.118931 | E59: 0.123681 | H59: 1.905461 | I59: 0.102606 | J59: 0.095439 | K59: 0.087172 | N59: 1.905461 | O59: 0.023017 | P59: 0.08544 | Q59: 0.075498 | T59: 1.905461 | U59: 0 | V59: 0.086249 | W59: 0.087375 | AA59: 1.905461 | AB59: 0 | AC59: 0 | AD59: 0 | AG59: 1.905461 | AH59: 0 | AI59: 0 | AJ59: 0 | AM59: 1.905461 | AN59: 0.047043 | AO59: 0 | AP59: 0.023452 | AS59: 1.905461 | AT59: 0.079639 | AU59: 0.081144 | AV59: 0.135793 | AY59: 1.905461 | AZ59: 0.076345 | BA59: 0.05339 | BB59: 0.099161 | BE59: 1.905461 | BF59: 0.30873 | BG59: 0.334202 | BH59: 0.323922 | BK59: 1.905461 | BL59: 0.898769 | BM59: 0.984727 | BN59: 0.972444 | BQ59: 1.905461 | BR59: 0 | BS59: 0 | BT59: 0 | BW59: 1.905461 | BX59: 0 | BY59: 0 | BZ59: 0 | CC59: 1.905461 | CD59: 0 | CE59: 0 | CF59: 0 | CI59: 1.905461 | CJ59: 0.733394 | CK59: 0.6688 | CL59: 0.640187 | CO59: 1.905461 | CP59: 0.051085 | CQ59: 0.046168 | CR59: 0.081212 | CU59: 1.905461 | CV59: 0 | CW59: 0 | CX59: 0 | DA59: 1.905461 | DB59: 0 | DC59: 0 | DD59: 0 | DG59: 1.905461 | DH59: 0 | DI59: 0 | DJ59: 0 | DM59: 1.905461 | DN59: 0.076562 | DO59: 0.080976 | DP59: 0 | DS59: 1.905461 | DT59: 0.204957 | DU59: 0.239474 | DV59: 0.230777 | EA59: 1.905461 | EB59: 0.1108576667 | EC59: 0.09507233333 | ED59: 0.06131833333 | EE59: 0.086812 | EF59: 0 | EG59: 0 | EH59: 0.02349833333 | EI59: 0.09885866667 | EJ59: 0.07629866667 | EK59: 0.3222846667 | EL59: 0.95198 | EM59: 0 | EN59: 0 | EO59: 0 | EP59: 0.6807936667 | EQ59: 0.05948833333 | ER59: 0 | ES59: 0 | ET59: 0 | EU59: 0.05251266667 | EV59: 0.2250693333
B60: 2.187762 | C60: 0.102978 | D60: 0.134471 | E60: 0.139707 | H60: 2.187762 | I60: 0.118528 | J60: 0.110606 | K60: 0.100607 | N60: 2.187762 | O60: 0.025481 | P60: 0.090674 | Q60: 0.082052 | T60: 2.187762 | U60: 0 | V60: 0.098894 | W60: 0.100775 | AA60: 2.187762 | AB60: 0 | AC60: 0 | AD60: 0 | AG60: 2.187762 | AH60: 0 | AI60: 0 | AJ60: 0 | AM60: 2.187762 | AN60: 0.049969 | AO60: 0.065128 | AP60: 0.068225 | AS60: 2.187762 | AT60: 0.094274 | AU60: 0.096465 | AV60: 0.1567 | AY60: 2.187762 | AZ60: 0.092537 | BA60: 0.084811 | BB60: 0.117224 | BE60: 2.187762 | BF60: 0.355054 | BG60: 0.383063 | BH60: 0.370632 | BK60: 2.187762 | BL60: 0.986754 | BM60: 1.082863 | BN60: 1.069344 | BQ60: 2.187762 | BR60: 0 | BS60: 0 | BT60: 0 | BW60: 2.187762 | BX60: 0 | BY60: 0 | BZ60: 0 | CC60: 2.187762 | CD60: 0 | CE60: 0 | CF60: 0 | CI60: 2.187762 | CJ60: 0.81583 | CK60: 0.744191 | CL60: 0.71418 | CO60: 2.187762 | CP60: 0.077912 | CQ60: 0.07306 | CR60: 0.097256 | CU60: 2.187762 | CV60: 0 | CW60: 0 | CX60: 0 | DA60: 2.187762 | DB60: 0 | DC60: 0 | DD60: 0 | DG60: 2.187762 | DH60: 0 | DI60: 0 | DJ60: 0 | DM60: 2.187762 | DN60: 0.086556 | DO60: 0.09137 | DP60: 0.020356 | DS60: 2.187762 | DT60: 0.230276 | DU60: 0.268024 | DV60: 0.258586 | EA60: 2.187762 | EB60: 0.1257186667 | EC60: 0.1099136667 | ED60: 0.066069 | EE60: 0.0998345 | EF60: 0 | EG60: 0 | EH60: 0.06110733333 | EI60: 0.115813 | EJ60: 0.09819066667 | EK60: 0.369583 | EL60: 1.046320333 | EM60: 0 | EN60: 0 | EO60: 0 | EP60: 0.758067 | EQ60: 0.08274266667 | ER60: 0 | ES60: 0 | ET60: 0 | EU60: 0.066094 | EV60: 0.2522953333
B61: 2.511886 | C61: 0.117025 | D61: 0.15148 | E61: 0.157086 | H61: 2.511886 | I61: 0.136307 | J61: 0.127677 | K61: 0.115824 | N61: 2.511886 | O61: 0.045606 | P61: 0.098113 | Q61: 0.089909 | T61: 2.511886 | U61: 0.056284 | V61: 0.113358 | W61: 0.116031 | AA61: 2.511886 | AB61: 0 | AC61: 0 | AD61: 0 | AG61: 2.511886 | AH61: 0 | AI61: 0 | AJ61: 0 | AM61: 2.511886 | AN61: 0.080898 | AO61: 0.076249 | AP61: 0.082681 | AS61: 2.511886 | AT61: 0.110149 | AU61: 0.113149 | AV61: 0.179634 | AY61: 2.511886 | AZ61: 0.111509 | BA61: 0.10257 | BB61: 0.138385 | BE61: 2.511886 | BF61: 0.406647 | BG61: 0.437585 | BH61: 0.422866 | BK61: 2.511886 | BL61: 1.071209 | BM61: 1.178042 | BN61: 1.16322 | BQ61: 2.511886 | BR61: 0 | BS61: 0 | BT61: 0 | BW61: 2.511886 | BX61: 0 | BY61: 0 | BZ61: 0 | CC61: 2.511886 | CD61: 0 | CE61: 0 | CF61: 0.071061 | CI61: 2.511886 | CJ61: 0.904863 | CK61: 0.825569 | CL61: 0.794285 | CO61: 2.511886 | CP61: 0.095592 | CQ61: 0.089926 | CR61: 0.116411 | CU61: 2.511886 | CV61: 0 | CW61: 0.067044 | CX61: 0.059784 | DA61: 2.511886 | DB61: 0 | DC61: 0 | DD61: 0 | DG61: 2.511886 | DH61: 0 | DI61: 0 | DJ61: 0 | DM61: 2.511886 | DN61: 0.097038 | DO61: 0.102558 | DP61: 0.040577 | DS61: 2.511886 | DT61: 0.257464 | DU61: 0.298446 | DV61: 0.288176 | EA61: 2.511886 | EB61: 0.1418636667 | EC61: 0.1266026667 | ED61: 0.077876 | EE61: 0.1146945 | EF61: 0 | EG61: 0 | EH61: 0.07994266667 | EI61: 0.1343106667 | EJ61: 0.117488 | EK61: 0.422366 | EL61: 1.137490333 | EM61: 0 | EN61: 0 | EO61: 0.023687 | EP61: 0.8415723333 | EQ61: 0.100643 | ER61: 0.042276 | ES61: 0 | ET61: 0 | EU61: 0.08005766667 | EV61: 0.281362
B62: 2.884031 | C62: 0.131377 | D62: 0.168901 | E62: 0.174822 | H62: 2.884031 | I62: 0.155224 | J62: 0.145937 | K62: 0.132149 | N62: 2.884031 | O62: 0.051805 | P62: 0.106181 | Q62: 0.098548 | T62: 2.884031 | U62: 0.069685 | V62: 0.128864 | W62: 0.132259 | AA62: 2.884031 | AB62: 0 | AC62: 0.039631 | AD62: 0 | AG62: 2.884031 | AH62: 0 | AI62: 0 | AJ62: 0 | AM62: 2.884031 | AN62: 0.097862 | AO62: 0.091802 | AP62: 0.09964 | AS62: 2.884031 | AT62: 0.126752 | AU62: 0.130596 | AV62: 0.203209 | AY62: 2.884031 | AZ62: 0.132517 | BA62: 0.12175 | BB62: 0.161426 | BE62: 2.884031 | BF62: 0.461536 | BG62: 0.495475 | BH62: 0.478506 | BK62: 2.884031 | BL62: 1.14738 | BM62: 1.265111 | BN62: 1.248924 | BQ62: 2.884031 | BR62: 0 | BS62: 0 | BT62: 0 | BW62: 2.884031 | BX62: 0 | BY62: 0 | BZ62: 0 | CC62: 2.884031 | CD62: 0.016146 | CE62: 0.015531 | CF62: 0.093286 | CI62: 2.884031 | CJ62: 0.996984 | CK62: 0.909799 | CL62: 0.876811 | CO62: 2.884031 | CP62: 0.115057 | CQ62: 0.108734 | CR62: 0.137524 | CU62: 2.884031 | CV62: 0 | CW62: 0.089159 | CX62: 0.080926 | DA62: 2.884031 | DB62: 0 | DC62: 0 | DD62: 0 | DG62: 2.884031 | DH62: 0 | DI62: 0.014281 | DJ62: 0.015607 | DM62: 2.884031 | DN62: 0.107725 | DO62: 0.11406 | DP62: 0.063451 | DS62: 2.884031 | DT62: 0.285167 | DU62: 0.329249 | DV62: 0.318072 | EA62: 2.884031 | EB62: 0.1583666667 | EC62: 0.1444366667 | ED62: 0.08551133333 | EE62: 0.1305615 | EF62: 0.01321033333 | EG62: 0 | EH62: 0.09643466667 | EI62: 0.153519 | EJ62: 0.1385643333 | EK62: 0.4785056667 | EL62: 1.220471667 | EM62: 0 | EN62: 0 | EO62: 0.04165433333 | EP62: 0.9278646667 | EQ62: 0.1204383333 | ER62: 0.056695 | ES62: 0 | ET62: 0.009962666667 | EU62: 0.09507866667 | EV62: 0.3108293333
B63: 3.311311 | C63: 0.145529 | D63: 0.186033 | E63: 0.192196 | H63: 3.311311 | I63: 0.174771 | J63: 0.164874 | K63: 0.149153 | N63: 3.311311 | O63: 0.056415 | P63: 0.114079 | Q63: 0.107367 | T63: 3.311311 | U63: 0.080148 | V63: 0.144804 | W63: 0.148841 | AA63: 3.311311 | AB63: 0.012779 | AC63: 0.0551 | AD63: 0.027413 | AG63: 3.311311 | AH63: 0 | AI63: 0 | AJ63: 0 | AM63: 3.311311 | AN63: 0.113248 | AO63: 0.107349 | AP63: 0.116151 | AS63: 3.311311 | AT63: 0.143526 | AU63: 0.148166 | AV63: 0.226375 | AY63: 3.311311 | AZ63: 0.154152 | BA63: 0.141835 | BB63: 0.184949 | BE63: 3.311311 | BF63: 0.518272 | BG63: 0.554931 | BH63: 0.535819 | BK63: 3.311311 | BL63: 1.213999 | BM63: 1.342478 | BN63: 1.324869 | BQ63: 3.311311 | BR63: 0 | BS63: 0 | BT63: 0 | BW63: 3.311311 | BX63: 0 | BY63: 0 | BZ63: 0 | CC63: 3.311311 | CD63: 0.077104 | CE63: 0.07765 | CF63: 0.111866 | CI63: 3.311311 | CJ63: 1.090579 | CK63: 0.99545 | CL63: 0.959804 | CO63: 3.311311 | CP63: 0.135493 | CQ63: 0.128678 | CR63: 0.159143 | CU63: 3.311311 | CV63: 0 | CW63: 0.106462 | CX63: 0.09756 | DA63: 3.311311 | DB63: 0 | DC63: 0.039314 | DD63: 0.02588 | DG63: 3.311311 | DH63: 0 | DI63: 0.038807 | DJ63: 0.02222 | DM63: 3.311311 | DN63: 0.118215 | DO63: 0.12528 | DP63: 0.07351 | DS63: 3.311311 | DT63: 0.312719 | DU63: 0.359768 | DV63: 0.347618 | EA63: 3.311311 | EB63: 0.174586 | EC63: 0.1629326667 | ED63: 0.09262033333 | EE63: 0.1468225 | EF63: 0.031764 | EG63: 0 | EH63: 0.1122493333 | EI63: 0.172689 | EJ63: 0.160312 | EK63: 0.5363406667 | EL63: 1.293782 | EM63: 0 | EN63: 0 | EO63: 0.08887333333 | EP63: 1.015277667 | EQ63: 0.1411046667 | ER63: 0.06800733333 | ES63: 0.02173133333 | ET63: 0.02034233333 | EU63: 0.1056683333 | EV63: 0.340035
B64: 3.801894 | C64: 0.159165 | D64: 0.202448 | E64: 0.208739 | H64: 3.801894 | I64: 0.194504 | J64: 0.184032 | K64: 0.166462 | N64: 3.801894 | O64: 0.058831 | P64: 0.121657 | Q64: 0.115832 | T64: 3.801894 | U64: 0.089415 | V64: 0.160759 | W64: 0.165389 | AA64: 3.801894 | AB64: 0.034293 | AC64: 0.055352 | AD64: 0.06044 | AG64: 3.801894 | AH64: 0 | AI64: 0 | AJ64: 0 | AM64: 3.801894 | AN64: 0.129674 | AO64: 0.123998 | AP64: 0.133615 | AS64: 3.801894 | AT64: 0.159794 | AU64: 0.165111 | AV64: 0.248253 | AY64: 3.801894 | AZ64: 0.175095 | BA64: 0.160516 | BB64: 0.207269 | BE64: 3.801894 | BF64: 0.57554 | BG64: 0.614368 | BH64: 0.593193 | BK64: 3.801894 | BL64: 1.271899 | BM64: 1.410672 | BN64: 1.391635 | BQ64: 3.801894 | BR64: 0 | BS64: 0 | BT64: 0 | BW64: 3.801894 | BX64: 0 | BY64: 0 | BZ64: 0 | CC64: 3.801894 | CD64: 0.10502 | CE64: 0.106595 | CF64: 0.130973 | CI64: 3.801894 | CJ64: 1.185082 | CK64: 1.082021 | CL64: 1.042378 | CO64: 3.801894 | CP64: 0.154466 | CQ64: 0.147497 | CR64: 0.17939 | CU64: 3.801894 | CV64: 0 | CW64: 0.121488 | CX64: 0.112252 | DA64: 3.801894 | DB64: 0 | DC64: 0.068877 | DD64: 0.065204 | DG64: 3.801894 | DH64: 0 | DI64: 0.04917 | DJ64: 0.023948 | DM64: 3.801894 | DN64: 0.128284 | DO64: 0.135846 | DP64: 0.077874 | DS64: 3.801894 | DT64: 0.339901 | DU64: 0.389835 | DV64: 0.376666 | EA64: 3.801894 | EB64: 0.1901173333 | EC64: 0.181666 | ED64: 0.09877333333 | EE64: 0.163074 | EF64: 0.05002833333 | EG64: 0 | EH64: 0.1290956667 | EI64: 0.1910526667 | EJ64: 0.18096 | EK64: 0.594367 | EL64: 1.358068667 | EM64: 0 | EN64: 0 | EO64: 0.114196 | EP64: 1.103160333 | EQ64: 0.160451 | ER64: 0.07791333333 | ES64: 0.04469366667 | ET64: 0.02437266667 | EU64: 0.1140013333 | EV64: 0.3688006667
B65: 4.365158 | C65: 0.17184 | D65: 0.217596 | E65: 0.223928 | H65: 4.365158 | I65: 0.213528 | J65: 0.20249 | K65: 0.183172 | N65: 4.365158 | O65: 0.075979 | P65: 0.128358 | Q65: 0.123353 | T65: 4.365158 | U65: 0.100762 | V65: 0.176126 | W65: 0.181325 | AA65: 4.365158 | AB65: 0.057881 | AC65: 0.06392 | AD65: 0.073969 | AG65: 4.365158 | AH65: 0 | AI65: 0 | AJ65: 0 | AM65: 4.365158 | AN65: 0.144438 | AO65: 0.139121 | AP65: 0.149216 | AS65: 4.365158 | AT65: 0.174623 | AU65: 0.180443 | AV65: 0.267756 | AY65: 4.365158 | AZ65: 0.193075 | BA65: 0.175993 | BB65: 0.226204 | BE65: 4.365158 | BF65: 0.631374 | BG65: 0.671636 | BH65: 0.648435 | BK65: 4.365158 | BL65: 1.322748 | BM65: 1.471064 | BN65: 1.450711 | BQ65: 4.365158 | BR65: 0 | BS65: 0 | BT65: 0 | BW65: 4.365158 | BX65: 0 | BY65: 0 | BZ65: 0 | CC65: 4.365158 | CD65: 0.121631 | CE65: 0.124308 | CF65: 0.151119 | CI65: 4.365158 | CJ65: 1.27977 | CK65: 1.168842 | CL65: 1.123803 | CO65: 4.365158 | CP65: 0.169539 | CQ65: 0.162794 | CR65: 0.195702 | CU65: 4.365158 | CV65: 0 | CW65: 0.133796 | CX65: 0.123771 | DA65: 4.365158 | DB65: 0 | DC65: 0.080983 | DD65: 0.08442 | DG65: 4.365158 | DH65: 0 | DI65: 0.053411 | DJ65: 0.027764 | DM65: 4.365158 | DN65: 0.138052 | DO65: 0.145733 | DP65: 0.08477 | DS65: 4.365158 | DT65: 0.366494 | DU65: 0.419294 | DV65: 0.405089 | EA65: 4.365158 | EB65: 0.2044546667 | EC65: 0.19973 | ED65: 0.10923 | EE65: 0.1787255 | EF65: 0.06525666667 | EG65: 0 | EH65: 0.1442583333 | EI65: 0.2076073333 | EJ65: 0.198424 | EK65: 0.6504816667 | EL65: 1.414841 | EM65: 0 | EN65: 0 | EO65: 0.1323526667 | EP65: 1.190805 | EQ65: 0.1760116667 | ER65: 0.08585566667 | ES65: 0.05513433333 | ET65: 0.02705833333 | EU65: 0.1228516667 | EV65: 0.396959
B66: 5.011872 | C66: 0.183236 | D66: 0.231188 | E66: 0.237553 | H66: 5.011872 | I66: 0.230884 | J66: 0.219267 | K66: 0.198255 | N66: 5.011872 | O66: 0.089827 | P66: 0.133898 | Q66: 0.12948 | T66: 5.011872 | U66: 0.110938 | V66: 0.1904 | W66: 0.196193 | AA66: 5.011872 | AB66: 0.075091 | AC66: 0.066344 | AD66: 0.080859 | AG66: 5.011872 | AH66: 0 | AI66: 0 | AJ66: 0 | AM66: 5.011872 | AN66: 0.156968 | AO66: 0.152014 | AP66: 0.162211 | AS66: 5.011872 | AT66: 0.18707 | AU66: 0.193205 | AV66: 0.284116 | AY66: 5.011872 | AZ66: 0.206078 | BA66: 0.186166 | BB66: 0.239854 | BE66: 5.011872 | BF66: 0.68471 | BG66: 0.725623 | BH66: 0.700363 | BK66: 5.011872 | BL66: 1.369457 | BM66: 1.526647 | BN66: 1.505274 | BQ66: 5.011872 | BR66: 0 | BS66: 0 | BT66: 0 | BW66: 5.011872 | BX66: 0 | BY66: 0 | BZ66: 0 | CC66: 5.011872 | CD66: 0.138822 | CE66: 0.141867 | CF66: 0.168319 | CI66: 5.011872 | CJ66: 1.37594 | CK66: 1.257109 | CL66: 1.205513 | CO66: 5.011872 | CP66: 0.178016 | CQ66: 0.171922 | CR66: 0.205708 | CU66: 5.011872 | CV66: 0 | CW66: 0.139417 | CX66: 0.128703 | DA66: 5.011872 | DB66: 0 | DC66: 0.093658 | DD66: 0.096541 | DG66: 5.011872 | DH66: 0 | DI66: 0.063262 | DJ66: 0.031721 | DM66: 5.011872 | DN66: 0.147921 | DO66: 0.155293 | DP66: 0.090788 | DS66: 5.011872 | DT66: 0.392824 | DU66: 0.448595 | DV66: 0.433335 | EA66: 5.011872 | EB66: 0.2173256667 | EC66: 0.2161353333 | ED66: 0.117735 | EE66: 0.1932965 | EF66: 0.074098 | EG66: 0 | EH66: 0.1570643333 | EI66: 0.2214636667 | EJ66: 0.2106993333 | EK66: 0.7035653333 | EL66: 1.467126 | EM66: 0 | EN66: 0 | EO66: 0.1496693333 | EP66: 1.279520667 | EQ66: 0.1852153333 | ER66: 0.08937333333 | ES66: 0.06339966667 | ET66: 0.031661 | EU66: 0.131334 | EV66: 0.424918
B67: 5.754399 | C67: 0.192614 | D67: 0.242521 | E67: 0.249047 | H67: 5.754399 | I67: 0.244805 | J67: 0.232589 | K67: 0.209889 | N67: 5.754399 | O67: 0.090333 | P67: 0.137703 | Q67: 0.133614 | T67: 5.754399 | U67: 0.120085 | V67: 0.202439 | W67: 0.208884 | AA67: 5.754399 | AB67: 0.081105 | AC67: 0.07163 | AD67: 0.0898 | AG67: 5.754399 | AH67: 0 | AI67: 0 | AJ67: 0 | AM67: 5.754399 | AN67: 0.165507 | AO67: 0.16073 | AP67: 0.170587 | AS67: 5.754399 | AT67: 0.195765 | AU67: 0.202038 | AV67: 0.296175 | AY67: 5.754399 | AZ67: 0.211918 | BA67: 0.189185 | BB67: 0.246328 | BE67: 5.754399 | BF67: 0.733185 | BG67: 0.773973 | BH67: 0.746638 | BK67: 5.754399 | BL67: 1.413171 | BM67: 1.578654 | BN67: 1.556856 | BQ67: 5.754399 | BR67: 0 | BS67: 0 | BT67: 0 | BW67: 5.754399 | BX67: 0 | BY67: 0 | BZ67: 0 | CC67: 5.754399 | CD67: 0.151006 | CE67: 0.153894 | CF67: 0.180693 | CI67: 5.754399 | CJ67: 1.472437 | CK67: 1.345773 | CL67: 1.287319 | CO67: 5.754399 | CP67: 0.177542 | CQ67: 0.172481 | CR67: 0.207237 | CU67: 5.754399 | CV67: 0 | CW67: 0.137769 | CX67: 0.126281 | DA67: 5.754399 | DB67: 0 | DC67: 0.104548 | DD67: 0.10745 | DG67: 5.754399 | DH67: 0 | DI67: 0.069016 | DJ67: 0.034967 | DM67: 5.754399 | DN67: 0.158062 | DO67: 0.164749 | DP67: 0.097376 | DS67: 5.754399 | DT67: 0.418474 | DU67: 0.477362 | DV67: 0.461017 | EA67: 5.754399 | EB67: 0.2280606667 | EC67: 0.2290943333 | ED67: 0.12055 | EE67: 0.2056615 | EF67: 0.080845 | EG67: 0 | EH67: 0.165608 | EI67: 0.231326 | EJ67: 0.2158103333 | EK67: 0.7512653333 | EL67: 1.516227 | EM67: 0 | EN67: 0 | EO67: 0.1618643333 | EP67: 1.368509667 | EQ67: 0.1857533333 | ER67: 0.08801666667 | ES67: 0.070666 | ET67: 0.034661 | EU67: 0.1400623333 | EV67: 0.4522843333
B68: 6.606934 | C68: 0.199486 | D68: 0.251259 | E68: 0.258248 | H68: 6.606934 | I68: 0.253804 | J68: 0.240939 | K68: 0.216448 | N68: 6.606934 | O68: 0.091597 | P68: 0.139273 | Q68: 0.135341 | T68: 6.606934 | U68: 0.126722 | V68: 0.211176 | W68: 0.218404 | AA68: 6.606934 | AB68: 0.08955 | AC68: 0.07411 | AD68: 0.095292 | AG68: 6.606934 | AH68: 0 | AI68: 0 | AJ68: 0 | AM68: 6.606934 | AN68: 0.169122 | AO68: 0.164139 | AP68: 0.173202 | AS68: 6.606934 | AT68: 0.199758 | AU68: 0.206042 | AV68: 0.303427 | AY68: 6.606934 | AZ68: 0.209537 | BA68: 0.184256 | BB68: 0.244972 | BE68: 6.606934 | BF68: 0.776326 | BG68: 0.816315 | BH68: 0.786869 | BK68: 6.606934 | BL68: 1.455574 | BM68: 1.629273 | BN68: 1.608 | BQ68: 6.606934 | BR68: 0 | BS68: 0 | BT68: 0 | BW68: 6.606934 | BX68: 0 | BY68: 0 | BZ68: 0 | CC68: 6.606934 | CD68: 0.156057 | CE68: 0.158114 | CF68: 0.18555 | CI68: 6.606934 | CJ68: 1.570965 | CK68: 1.436393 | CL68: 1.37188 | CO68: 6.606934 | CP68: 0.167093 | CQ68: 0.163386 | CR68: 0.199542 | CU68: 6.606934 | CV68: 0 | CW68: 0.128673 | CX68: 0.116426 | DA68: 6.606934 | DB68: 0 | DC68: 0.110017 | DD68: 0.112947 | DG68: 6.606934 | DH68: 0 | DI68: 0.076282 | DJ68: 0.03977 | DM68: 6.606934 | DN68: 0.168724 | DO68: 0.174493 | DP68: 0.104267 | DS68: 6.606934 | DT68: 0.443729 | DU68: 0.505998 | DV68: 0.488462 | EA68: 6.606934 | EB68: 0.236331 | EC68: 0.2370636667 | ED68: 0.1220703333 | EE68: 0.21479 | EF68: 0.08631733333 | EG68: 0 | EH68: 0.168821 | EI68: 0.236409 | EJ68: 0.2129216667 | EK68: 0.79317 | EL68: 1.564282333 | EM68: 0 | EN68: 0 | EO68: 0.1665736667 | EP68: 1.459746 | EQ68: 0.1766736667 | ER68: 0.08169966667 | ES68: 0.07432133333 | ET68: 0.038684 | EU68: 0.1491613333 | EV68: 0.4793963333
B69: 7.585776 | C69: 0.20323 | D69: 0.256874 | E69: 0.264772 | H69: 7.585776 | I69: 0.256298 | J69: 0.242724 | K69: 0.21632 | N69: 7.585776 | O69: 0.091514 | P69: 0.138011 | Q69: 0.134292 | T69: 7.585776 | U69: 0.129329 | V69: 0.215041 | W69: 0.223245 | AA69: 7.585776 | AB69: 0.093874 | AC69: 0.074268 | AD69: 0.096205 | AG69: 7.585776 | AH69: 0 | AI69: 0 | AJ69: 0 | AM69: 7.585776 | AN69: 0.167409 | AO69: 0.161672 | AP69: 0.169559 | AS69: 7.585776 | AT69: 0.19846 | AU69: 0.204684 | AV69: 0.305579 | AY69: 7.585776 | AZ69: 0.199515 | BA69: 0.17236 | BB69: 0.236731 | BE69: 7.585776 | BF69: 0.812672 | BG69: 0.851419 | BH69: 0.819881 | BK69: 7.585776 | BL69: 1.495801 | BM69: 1.677775 | BN69: 1.658305 | BQ69: 7.585776 | BR69: 0 | BS69: 0 | BT69: 0 | BW69: 7.585776 | BX69: 0 | BY69: 0 | BZ69: 0 | CC69: 7.585776 | CD69: 0.151486 | CE69: 0.152328 | CF69: 0.181076 | CI69: 7.585776 | CJ69: 1.669252 | CK69: 1.526804 | CL69: 1.458589 | CO69: 7.585776 | CP69: 0.148204 | CQ69: 0.146014 | CR69: 0.184231 | CU69: 7.585776 | CV69: 0 | CW69: 0.114678 | CX69: 0.101736 | DA69: 7.585776 | DB69: 0 | DC69: 0.1092 | DD69: 0.112192 | DG69: 7.585776 | DH69: 0 | DI69: 0.079867 | DJ69: 0.040481 | DM69: 7.585776 | DN69: 0.179348 | DO69: 0.184213 | DP69: 0.111167 | DS69: 7.585776 | DT69: 0.467885 | DU69: 0.53374 | DV69: 0.51488 | EA69: 7.585776 | EB69: 0.2416253333 | EC69: 0.2384473333 | ED69: 0.1212723333 | EE69: 0.219143 | EF69: 0.08811566667 | EG69: 0 | EH69: 0.1662133333 | EI69: 0.236241 | EJ69: 0.2028686667 | EK69: 0.8279906667 | EL69: 1.610627 | EM69: 0 | EN69: 0 | EO69: 0.16163 | EP69: 1.551548333 | EQ69: 0.159483 | ER69: 0.072138 | ES69: 0.07379733333 | ET69: 0.040116 | EU69: 0.1582426667 | EV69: 0.5055016667
B70: 8.709636 | C70: 0.203907 | D70: 0.259605 | E70: 0.268952 | H70: 8.709636 | I70: 0.251864 | J70: 0.237473 | K70: 0.208999 | N70: 8.709636 | O70: 0.085921 | P70: 0.133482 | Q70: 0.130389 | T70: 8.709636 | U70: 0.126518 | V70: 0.212904 | W70: 0.222417 | AA70: 8.709636 | AB70: 0.092361 | AC70: 0.070729 | AD70: 0.091126 | AG70: 8.709636 | AH70: 0 | AI70: 0 | AJ70: 0 | AM70: 8.709636 | AN70: 0.161427 | AO70: 0.154283 | AP70: 0.160728 | AS70: 8.709636 | AT70: 0.1924 | AU70: 0.198556 | AV70: 0.303501 | AY70: 8.709636 | AZ70: 0.184549 | BA70: 0.156378 | BB70: 0.224593 | BE70: 8.709636 | BF70: 0.843684 | BG70: 0.881027 | BH70: 0.847334 | BK70: 8.709636 | BL70: 1.534619 | BM70: 1.725243 | BN70: 1.709074 | BQ70: 8.709636 | BR70: 0 | BS70: 0 | BT70: 0 | BW70: 8.709636 | BX70: 0 | BY70: 0 | BZ70: 0 | CC70: 8.709636 | CD70: 0.136649 | CE70: 0.136346 | CF70: 0.167034 | CI70: 8.709636 | CJ70: 1.769353 | CK70: 1.618718 | CL70: 1.550462 | CO70: 8.709636 | CP70: 0.124838 | CQ70: 0.124249 | CR70: 0.165343 | CU70: 8.709636 | CV70: 0 | CW70: 0.100349 | CX70: 0.086824 | DA70: 8.709636 | DB70: 0 | DC70: 0.10158 | DD70: 0.104831 | DG70: 8.709636 | DH70: 0 | DI70: 0.078326 | DJ70: 0.040328 | DM70: 8.709636 | DN70: 0.189331 | DO70: 0.193553 | DP70: 0.117531 | DS70: 8.709636 | DT70: 0.491606 | DU70: 0.561332 | DV70: 0.540951 | EA70: 8.709636 | EB70: 0.2441546667 | EC70: 0.2327786667 | ED70: 0.1165973333 | EE70: 0.2176605 | EF70: 0.08473866667 | EG70: 0 | EH70: 0.1588126667 | EI70: 0.2314856667 | EJ70: 0.1885066667 | EK70: 0.8573483333 | EL70: 1.656312 | EM70: 0 | EN70: 0 | EO70: 0.1466763333 | EP70: 1.646177667 | EQ70: 0.1381433333 | ER70: 0.062391 | ES70: 0.06880366667 | ET70: 0.03955133333 | EU70: 0.166805 | EV70: 0.5312963333
B71: 10 | C71: 0.202325 | D71: 0.260304 | E71: 0.271517 | H71: 10 | I71: 0.241876 | J71: 0.226571 | K71: 0.196005 | N71: 10 | O71: 0.064039 | P71: 0.125906 | Q71: 0.124215 | T71: 10 | U71: 0.117718 | V71: 0.204443 | W71: 0.215716 | AA71: 10 | AB71: 0.084551 | AC71: 0.062946 | AD71: 0.077808 | AG71: 10 | AH71: 0 | AI71: 0 | AJ71: 0 | AM71: 10 | AN71: 0.154333 | AO71: 0.145234 | AP71: 0.150248 | AS71: 10 | AT71: 0.183875 | AU71: 0.190032 | AV71: 0.299446 | AY71: 10 | AZ71: 0.170655 | BA71: 0.142301 | BB71: 0.214463 | BE71: 10 | BF71: 0.870726 | BG71: 0.906882 | BH71: 0.870945 | BK71: 10 | BL71: 1.571551 | BM71: 1.77087 | BN71: 1.759247 | BQ71: 10 | BR71: 0 | BS71: 0 | BT71: 0 | BW71: 10 | BX71: 0 | BY71: 0 | BZ71: 0 | CC71: 10 | CD71: 0.114126 | CE71: 0.113442 | CF71: 0.146397 | CI71: 10 | CJ71: 1.868561 | CK71: 1.709382 | CL71: 1.64566 | CO71: 10 | CP71: 0.105205 | CQ71: 0.106205 | CR71: 0.150758 | CU71: 10 | CV71: 0 | CW71: 0.093227 | CX71: 0.079295 | DA71: 10 | DB71: 0 | DC71: 0.089318 | DD71: 0.093147 | DG71: 10 | DH71: 0 | DI71: 0.071283 | DJ71: 0.036613 | DM71: 10 | DN71: 0.197202 | DO71: 0.201309 | DP71: 0.122221 | DS71: 10 | DT71: 0.515126 | DU71: 0.588933 | DV71: 0.566887 | EA71: 10 | EB71: 0.2447153333 | EC71: 0.221484 | ED71: 0.10472 | EE71: 0.2100795 | EF71: 0.07510166667 | EG71: 0 | EH71: 0.1499383333 | EI71: 0.224451 | EJ71: 0.1758063333 | EK71: 0.882851 | EL71: 1.700556 | EM71: 0 | EN71: 0 | EO71: 0.124655 | EP71: 1.741201 | EQ71: 0.1207226667 | ER71: 0.05750733333 | ES71: 0.06082166667 | ET71: 0.03596533333 | EU71: 0.1735773333 | EV71: 0.556982
B72: 11.481536 | C72: 0.200445 | D72: 0.261043 | E72: 0.274308 | H72: 11.481536 | I72: 0.229619 | J72: 0.213323 | K72: 0.180676 | N72: 11.481536 | O72: 0.060573 | P72: 0.115993 | Q72: 0.116832 | T72: 11.481536 | U72: 0.103409 | V72: 0.190487 | W72: 0.204224 | AA72: 11.481536 | AB72: 0.069798 | AC72: 0.051096 | AD72: 0.042014 | AG72: 11.481536 | AH72: 0 | AI72: 0 | AJ72: 0 | AM72: 11.481536 | AN72: 0.151042 | AO72: 0.139674 | AP72: 0.143546 | AS72: 11.481536 | AT72: 0.17664 | AU72: 0.182972 | AV72: 0.297184 | AY72: 11.481536 | AZ72: 0.165577 | BA72: 0.137391 | BB72: 0.213788 | BE72: 11.481536 | BF72: 0.898625 | BG72: 0.93408 | BH72: 0.895635 | BK72: 11.481536 | BL72: 1.609869 | BM72: 1.818043 | BN72: 1.81176 | BQ72: 11.481536 | BR72: 0 | BS72: 0 | BT72: 0 | BW72: 11.481536 | BX72: 0 | BY72: 0 | BZ72: 0 | CC72: 11.481536 | CD72: 0.088867 | CE72: 0.089256 | CF72: 0.124392 | CI72: 11.481536 | CJ72: 1.970361 | CK72: 1.801686 | CL72: 1.747513 | CO72: 11.481536 | CP72: 0.09902 | CQ72: 0.101717 | CR72: 0.149935 | CU72: 11.481536 | CV72: 0 | CW72: 0.101756 | CX72: 0.087607 | DA72: 11.481536 | DB72: 0 | DC72: 0.076763 | DD72: 0.08161 | DG72: 11.481536 | DH72: 0 | DI72: 0.058396 | DJ72: 0.029927 | DM72: 11.481536 | DN72: 0.201969 | DO72: 0.206693 | DP72: 0.124321 | DS72: 11.481536 | DT72: 0.541531 | DU72: 0.619911 | DV72: 0.596046 | EA72: 11.481536 | EB72: 0.2452653333 | EC72: 0.2078726667 | ED72: 0.09779933333 | EE72: 0.1973555 | EF72: 0.05430266667 | EG72: 0 | EH72: 0.144754 | EI72: 0.218932 | EJ72: 0.172252 | EK72: 0.9094466667 | EL72: 1.746557333 | EM72: 0 | EN72: 0 | EO72: 0.1008383333 | EP72: 1.839853333 | EQ72: 0.1168906667 | ER72: 0.063121 | ES72: 0.052791 | ET72: 0.029441 | EU72: 0.177661 | EV72: 0.5858293333
B73: 13.182567 | C73: 0.201531 | D73: 0.264947 | E73: 0.27993 | H73: 13.182567 | I73: 0.221394 | J73: 0.204218 | K73: 0.169595 | N73: 13.182567 | O73: 0.057285 | P73: 0.10613 | Q73: 0.110591 | T73: 13.182567 | U73: 0.086832 | V73: 0.17462 | W73: 0.191649 | AA73: 13.182567 | AB73: 0.00384 | AC73: 0.039975 | AD73: 0.001882 | AG73: 13.182567 | AH73: 0 | AI73: 0 | AJ73: 0 | AM73: 13.182567 | AN73: 0.158178 | AO73: 0.144855 | AP73: 0.148207 | AS73: 13.182567 | AT73: 0.176417 | AU73: 0.183236 | AV73: 0.302077 | AY73: 13.182567 | AZ73: 0.178469 | BA73: 0.149861 | BB73: 0.23082 | BE73: 13.182567 | BF73: 0.931882 | BG73: 0.967298 | BH73: 0.926118 | BK73: 13.182567 | BL73: 1.652525 | BM73: 1.869523 | BN73: 1.868233 | BQ73: 13.182567 | BR73: 0 | BS73: 0 | BT73: 0 | BW73: 13.182567 | BX73: 0 | BY73: 0 | BZ73: 0 | CC73: 13.182567 | CD73: 0.070367 | CE73: 0.073711 | CF73: 0.110309 | CI73: 13.182567 | CJ73: 2.072611 | CK73: 1.893496 | CL73: 1.85321 | CO73: 13.182567 | CP73: 0.117036 | CQ73: 0.121702 | CR73: 0.172917 | CU73: 13.182567 | CV73: 0.046647 | CW73: 0.133374 | CX73: 0.119181 | DA73: 13.182567 | DB73: 0 | DC73: 0.071676 | DD73: 0.077963 | DG73: 13.182567 | DH73: 0 | DI73: 0.003213 | DJ73: 0.00166 | DM73: 13.182567 | DN73: 0.202907 | DO73: 0.209085 | DP73: 0.123146 | DS73: 13.182567 | DT73: 0.574431 | DU73: 0.658098 | DV73: 0.632344 | EA73: 13.182567 | EB73: 0.2488026667 | EC73: 0.1984023333 | ED73: 0.09133533333 | EE73: 0.1831345 | EF73: 0.01523233333 | EG73: 0 | EH73: 0.1504133333 | EI73: 0.2205766667 | EJ73: 0.1863833333 | EK73: 0.941766 | EL73: 1.796760333 | EM73: 0 | EN73: 0 | EO73: 0.08479566667 | EP73: 1.939772333 | EQ73: 0.1372183333 | ER73: 0.099734 | ES73: 0.04987966667 | ET73: 0.001624333333 | EU73: 0.1783793333 | EV73: 0.6216243333
B74: 15.135612 | C74: 0.209798 | D74: 0.276129 | E74: 0.291993 | H74: 15.135612 | I74: 0.224644 | J74: 0.206962 | K74: 0.170301 | N74: 15.135612 | O74: 0.056464 | P74: 0.099367 | Q74: 0.108243 | T74: 15.135612 | U74: 0.072628 | V74: 0.161836 | W74: 0.183243 | AA74: 15.135612 | AB74: 0 | AC74: 0.003938 | AD74: 0 | AG74: 15.135612 | AH74: 0 | AI74: 0 | AJ74: 0 | AM74: 15.135612 | AN74: 0.182679 | AO74: 0.168439 | AP74: 0.171981 | AS74: 15.135612 | AT74: 0.189374 | AU74: 0.197166 | AV74: 0.320345 | AY74: 15.135612 | AZ74: 0.217301 | BA74: 0.186331 | BB74: 0.27267 | BE74: 15.135612 | BF74: 0.977374 | BG74: 1.013324 | BH74: 0.969248 | BK74: 15.135612 | BL74: 1.707431 | BM74: 1.933909 | BN74: 1.93617 | BQ74: 15.135612 | BR74: 0 | BS74: 0 | BT74: 0 | BW74: 15.135612 | BX74: 0 | BY74: 0 | BZ74: 0 | CC74: 15.135612 | CD74: 0.068675 | CE74: 0.076893 | CF74: 0.113811 | CI74: 15.135612 | CJ74: 2.179943 | CK74: 1.989012 | CL74: 1.966401 | CO74: 15.135612 | CP74: 0.16761 | CQ74: 0.174904 | CR74: 0.227608 | CU74: 15.135612 | CV74: 0.110764 | CW74: 0.193118 | CX74: 0.178935 | DA74: 15.135612 | DB74: 0.029464 | DC74: 0.083069 | DD74: 0.091148 | DG74: 15.135612 | DH74: 0 | DI74: 0 | DJ74: 0 | DM74: 15.135612 | DN74: 0.200884 | DO74: 0.209382 | DP74: 0.119064 | DS74: 15.135612 | DT74: 0.62179 | DU74: 0.712253 | DV74: 0.684422 | EA74: 15.135612 | EB74: 0.2593066667 | EC74: 0.2006356667 | ED74: 0.08802466667 | EE74: 0.1725395 | EF74: 0.001312666667 | EG74: 0 | EH74: 0.1743663333 | EI74: 0.2356283333 | EJ74: 0.225434 | EK74: 0.9866486667 | EL74: 1.85917 | EM74: 0 | EN74: 0 | EO74: 0.08645966667 | EP74: 2.045118667 | EQ74: 0.1900406667 | ER74: 0.160939 | ES74: 0.06789366667 | ET74: 0 | EU74: 0.1764433333 | EV74: 0.6728216667
B75: 17.378008 | C75: 0.229192 | D75: 0.298166 | E75: 0.313556 | H75: 17.378008 | I75: 0.246783 | J75: 0.229356 | K75: 0.190399 | N75: 17.378008 | O75: 0.056147 | P75: 0.100021 | Q75: 0.113003 | T75: 17.378008 | U75: 0.067954 | V75: 0.159469 | W75: 0.186255 | AA75: 17.378008 | AB75: 0 | AC75: 0 | AD75: 0 | AG75: 17.378008 | AH75: 0 | AI75: 0 | AJ75: 0 | AM75: 17.378008 | AN75: 0.228518 | AO75: 0.215211 | AP75: 0.219339 | AS75: 17.378008 | AT75: 0.220132 | AU75: 0.229491 | AV75: 0.356699 | AY75: 17.378008 | AZ75: 0.283741 | BA75: 0.247155 | BB75: 0.34004 | BE75: 17.378008 | BF75: 1.038258 | BG75: 1.074875 | BH75: 1.028236 | BK75: 17.378008 | BL75: 1.782021 | BM75: 2.018938 | BN75: 2.021927 | BQ75: 17.378008 | BR75: 0 | BS75: 0 | BT75: 0.01309 | BW75: 17.378008 | BX75: 0 | BY75: 0 | BZ75: 0.07318 | CC75: 17.378008 | CD75: 0.093276 | CE75: 0.107404 | CF75: 0.143327 | CI75: 17.378008 | CJ75: 2.290991 | CK75: 2.087348 | CL75: 2.084302 | CO75: 17.378008 | CP75: 0.250355 | CQ75: 0.261157 | CR75: 0.312975 | CU75: 17.378008 | CV75: 0.200042 | CW75: 0.276818 | CX75: 0.262463 | DA75: 17.378008 | DB75: 0.088338 | DC75: 0.11911 | DD75: 0.129014 | DG75: 17.378008 | DH75: 0 | DI75: 0 | DJ75: 0 | DM75: 17.378008 | DN75: 0.198807 | DO75: 0.210206 | DP75: 0.114122 | DS75: 17.378008 | DT75: 0.691188 | DU75: 0.790677 | DV75: 0.760408 | EA75: 17.378008 | EB75: 0.2803046667 | EC75: 0.2221793333 | ED75: 0.08972366667 | EE75: 0.172862 | EF75: 0 | EG75: 0 | EH75: 0.2210226667 | EI75: 0.268774 | EJ75: 0.290312 | EK75: 1.047123 | EL75: 1.940962 | EM75: 0.004363333333 | EN75: 0.02439333333 | EO75: 0.114669 | EP75: 2.154213667 | EQ75: 0.274829 | ER75: 0.246441 | ES75: 0.112154 | ET75: 0 | EU75: 0.1743783333 | EV75: 0.7474243333
B76: 19.952623 | C76: 0.263016 | D76: 0.334078 | E76: 0.347374 | H76: 19.952623 | I76: 0.293142 | J76: 0.277068 | K76: 0.235169 | N76: 19.952623 | O76: 0.078224 | P76: 0.112308 | Q76: 0.127531 | T76: 19.952623 | U76: 0.079857 | V76: 0.17465 | W76: 0.20776 | AA76: 19.952623 | AB76: 0 | AC76: 0 | AD76: 0 | AG76: 19.952623 | AH76: 0 | AI76: 0 | AJ76: 0 | AM76: 19.952623 | AN76: 0.296745 | AO76: 0.286737 | AP76: 0.290933 | AS76: 19.952623 | AT76: 0.270967 | AU76: 0.282566 | AV76: 0.414412 | AY76: 19.952623 | AZ76: 0.37361 | BA76: 0.32713 | BB76: 0.428425 | BE76: 19.952623 | BF76: 1.116739 | BG76: 1.153388 | BH76: 1.105137 | BK76: 19.952623 | BL76: 1.888826 | BM76: 2.137672 | BN76: 2.137484 | BQ76: 19.952623 | BR76: 0 | BS76: 0 | BT76: 0.090397 | BW76: 19.952623 | BX76: 0 | BY76: 0 | BZ76: 0.165774 | CC76: 19.952623 | CD76: 0.149403 | CE76: 0.169022 | CF76: 0.202993 | CI76: 19.952623 | CJ76: 2.40917 | CK76: 2.192118 | CL76: 2.209239 | CO76: 19.952623 | CP76: 0.357434 | CQ76: 0.372744 | CR76: 0.420826 | CU76: 19.952623 | CV76: 0.286414 | CW76: 0.374581 | CX76: 0.359497 | DA76: 19.952623 | DB76: 0.143659 | DC76: 0.185294 | DD76: 0.196688 | DG76: 19.952623 | DH76: 0 | DI76: 0 | DJ76: 0 | DM76: 19.952623 | DN76: 0.201928 | DO76: 0.216376 | DP76: 0.112077 | DS76: 19.952623 | DT76: 0.793897 | DU76: 0.906017 | DV76: 0.872403 | EA76: 19.952623 | EB76: 0.3148226667 | EC76: 0.2684596667 | ED76: 0.106021 | EE76: 0.191205 | EF76: 0 | EG76: 0 | EH76: 0.2914716667 | EI76: 0.3226483333 | EJ76: 0.3763883333 | EK76: 1.125088 | EL76: 2.054660667 | EM76: 0.03013233333 | EN76: 0.055258 | EO76: 0.173806 | EP76: 2.270175667 | EQ76: 0.383668 | ER76: 0.340164 | ES76: 0.1752136667 | ET76: 0 | EU76: 0.1767936667 | EV76: 0.857439
B77: 22.908677 | C77: 0.310487 | D77: 0.382788 | E77: 0.392584 | H77: 22.908677 | I77: 0.36191 | J77: 0.34836 | K77: 0.302658 | N77: 22.908677 | O77: 0.102415 | P77: 0.138951 | Q77: 0.152364 | T77: 22.908677 | U77: 0.1132 | V77: 0.212002 | W77: 0.251851 | AA77: 22.908677 | AB77: 0 | AC77: 0.043362 | AD77: 0 | AG77: 22.908677 | AH77: 0 | AI77: 0 | AJ77: 0 | AM77: 22.908677 | AN77: 0.379392 | AO77: 0.374807 | AP77: 0.37699 | AS77: 22.908677 | AT77: 0.33701 | AU77: 0.351325 | AV77: 0.490185 | AY77: 22.908677 | AZ77: 0.46938 | BA77: 0.409034 | BB77: 0.520899 | BE77: 22.908677 | BF77: 1.206825 | BG77: 1.241924 | BH77: 1.193797 | BK77: 22.908677 | BL77: 2.036566 | BM77: 2.298132 | BN77: 2.29023 | BQ77: 22.908677 | BR77: 0 | BS77: 0 | BT77: 0.237523 | BW77: 22.908677 | BX77: 0 | BY77: 0 | BZ77: 0.278251 | CC77: 22.908677 | CD77: 0.232165 | CE77: 0.254684 | CF77: 0.286644 | CI77: 22.908677 | CJ77: 2.531386 | CK77: 2.3012 | CL77: 2.337119 | CO77: 22.908677 | CP77: 0.464878 | CQ77: 0.485085 | CR77: 0.527017 | CU77: 22.908677 | CV77: 0.36478 | CW77: 0.463839 | CX77: 0.447018 | DA77: 22.908677 | DB77: 0.235372 | DC77: 0.277671 | DD77: 0.289753 | DG77: 22.908677 | DH77: 0.049915 | DI77: 0.021975 | DJ77: 0.043824 | DM77: 22.908677 | DN77: 0.217402 | DO77: 0.234237 | DP77: 0.118435 | DS77: 22.908677 | DT77: 0.936167 | DU77: 1.065605 | DV77: 1.027029 | EA77: 22.908677 | EB77: 0.361953 | EC77: 0.3376426667 | ED77: 0.1312433333 | EE77: 0.2319265 | EF77: 0.014454 | EG77: 0 | EH77: 0.377063 | EI77: 0.39284 | EJ77: 0.4664376667 | EK77: 1.214182 | EL77: 2.208309333 | EM77: 0.07917433333 | EN77: 0.09275033333 | EO77: 0.257831 | EP77: 2.389901667 | EQ77: 0.4923266667 | ER77: 0.4252123333 | ES77: 0.2675986667 | ET77: 0.03857133333 | EU77: 0.1900246667 | EV77: 1.009600333
B78: 26.30268 | C78: 0.367867 | D78: 0.440604 | E78: 0.446188 | H78: 26.30268 | I78: 0.445088 | J78: 0.434917 | K78: 0.384449 | N78: 26.30268 | O78: 0.120601 | P78: 0.180777 | Q78: 0.185969 | T78: 26.30268 | U78: 0.168879 | V78: 0.272115 | W78: 0.318669 | AA78: 26.30268 | AB78: 0 | AC78: 0.153394 | AD78: 0 | AG78: 26.30268 | AH78: 0 | AI78: 0 | AJ78: 0 | AM78: 26.30268 | AN78: 0.463811 | AO78: 0.465701 | AP78: 0.461613 | AS78: 26.30268 | AT78: 0.408812 | AU78: 0.425924 | AV78: 0.577422 | AY78: 26.30268 | AZ78: 0.546808 | BA78: 0.470511 | BB78: 0.595482 | BE78: 26.30268 | BF78: 1.299893 | BG78: 1.331058 | BH78: 1.285297 | BK78: 26.30268 | BL78: 2.236379 | BM78: 2.510088 | BN78: 2.489606 | BQ78: 26.30268 | BR78: 0 | BS78: 0 | BT78: 0.32571 | BW78: 26.30268 | BX78: 0 | BY78: 0 | BZ78: 0.372097 | CC78: 26.30268 | CD78: 0.327774 | CE78: 0.348256 | CF78: 0.379803 | CI78: 26.30268 | CJ78: 2.656962 | CK78: 2.414334 | CL78: 2.467123 | CO78: 26.30268 | CP78: 0.542833 | CQ78: 0.567212 | CR78: 0.601543 | CU78: 26.30268 | CV78: 0.402557 | CW78: 0.51963 | CX78: 0.499538 | DA78: 26.30268 | DB78: 0.330221 | DC78: 0.385091 | DD78: 0.39677 | DG78: 26.30268 | DH78: 0.162851 | DI78: 0.1314 | DJ78: 0.181108 | DM78: 26.30268 | DN78: 0.25356 | DO78: 0.27128 | DP78: 0.13955 | DS78: 26.30268 | DT78: 1.125193 | DU78: 1.278298 | DV78: 1.232048 | EA78: 26.30268 | EB78: 0.4182196667 | EC78: 0.4214846667 | ED78: 0.162449 | EE78: 0.295392 | EF78: 0.05113133333 | EG78: 0 | EH78: 0.4637083333 | EI78: 0.4707193333 | EJ78: 0.5376003333 | EK78: 1.305416 | EL78: 2.412024333 | EM78: 0.10857 | EN78: 0.1240323333 | EO78: 0.3519443333 | EP78: 2.512806333 | EQ78: 0.5705293333 | ER78: 0.4739083333 | ES78: 0.370694 | ET78: 0.158453 | EU78: 0.2214633333 | EV78: 1.211846333
B79: 30.199517 | C79: 0.425059 | D79: 0.497911 | E79: 0.499954 | H79: 30.199517 | I79: 0.523844 | J79: 0.516917 | K79: 0.461115 | N79: 30.199517 | O79: 0.142619 | P79: 0.234034 | Q79: 0.222748 | T79: 30.199517 | U79: 0.239477 | V79: 0.347095 | W79: 0.399665 | AA79: 30.199517 | AB79: 0 | AC79: 0.227744 | AD79: 0 | AG79: 30.199517 | AH79: 0 | AI79: 0 | AJ79: 0 | AM79: 30.199517 | AN79: 0.529726 | AO79: 0.536837 | AP79: 0.519922 | AS79: 30.199517 | AT79: 0.469273 | AU79: 0.488478 | AV79: 0.662309 | AY79: 30.199517 | AZ79: 0.575467 | BA79: 0.484119 | BB79: 0.624689 | BE79: 30.199517 | BF79: 1.380931 | BG79: 1.405717 | BH79: 1.364396 | BK79: 30.199517 | BL79: 2.488817 | BM79: 2.771355 | BN79: 2.733806 | BQ79: 30.199517 | BR79: 0 | BS79: 0 | BT79: 0.397894 | BW79: 30.199517 | BX79: 0 | BY79: 0 | BZ79: 0.433638 | CC79: 30.199517 | CD79: 0.409939 | CE79: 0.422638 | CF79: 0.456165 | CI79: 30.199517 | CJ79: 2.779455 | CK79: 2.525482 | CL79: 2.593272 | CO79: 30.199517 | CP79: 0.553537 | CQ79: 0.579164 | CR79: 0.607565 | CU79: 30.199517 | CV79: 0.378148 | CW79: 0.51688 | CX79: 0.491622 | DA79: 30.199517 | DB79: 0.419354 | DC79: 0.483553 | DD79: 0.493815 | DG79: 30.199517 | DH79: 0.323914 | DI79: 0.272716 | DJ79: 0.320646 | DM79: 30.199517 | DN79: 0.316657 | DO79: 0.333003 | DP79: 0.180409 | DS79: 30.199517 | DT79: 1.357808 | DU79: 1.541785 | DV79: 1.484217 | EA79: 30.199517 | EB79: 0.474308 | EC79: 0.5006253333 | ED79: 0.1998003333 | EE79: 0.37338 | EF79: 0.07591466667 | EG79: 0 | EH79: 0.5288283333 | EI79: 0.54002 | EJ79: 0.561425 | EK79: 1.383681333 | EL79: 2.664659333 | EM79: 0.1326313333 | EN79: 0.144546 | EO79: 0.4295806667 | EP79: 2.632736333 | EQ79: 0.5800886667 | ER79: 0.4622166667 | ES79: 0.465574 | ET79: 0.3057586667 | EU79: 0.2766896667 | EV79: 1.46127
B80: 34.673685 | C80: 0.469529 | D80: 0.543243 | E80: 0.544125 | H80: 34.673685 | I80: 0.574924 | J80: 0.56947 | K80: 0.508598 | N80: 34.673685 | O80: 0.159637 | P80: 0.292299 | Q80: 0.255134 | T80: 34.673685 | U80: 0.311089 | V80: 0.422801 | W80: 0.480446 | AA80: 34.673685 | AB80: 0 | AC80: 0.312282 | AD80: 0 | AG80: 34.673685 | AH80: 0 | AI80: 0 | AJ80: 0 | AM80: 34.673685 | AN80: 0.558609 | AO80: 0.566706 | AP80: 0.528112 | AS80: 34.673685 | AT80: 0.500639 | AU80: 0.520299 | AV80: 0.731354 | AY80: 34.673685 | AZ80: 0.528136 | BA80: 0.429667 | BB80: 0.588217 | BE80: 34.673685 | BF80: 1.437951 | BG80: 1.454847 | BH80: 1.418995 | BK80: 34.673685 | BL80: 2.791441 | BM80: 3.076746 | BN80: 3.017949 | BQ80: 34.673685 | BR80: 0 | BS80: 0 | BT80: 0.396648 | BW80: 34.673685 | BX80: 0 | BY80: 0 | BZ80: 0.42439 | CC80: 34.673685 | CD80: 0.446294 | CE80: 0.443704 | CF80: 0.485141 | CI80: 34.673685 | CJ80: 2.894537 | CK80: 2.629784 | CL80: 2.712567 | CO80: 34.673685 | CP80: 0.475107 | CQ80: 0.497475 | CR80: 0.522399 | CU80: 34.673685 | CV80: 0.285749 | CW80: 0.444385 | CX80: 0.411861 | DA80: 34.673685 | DB80: 0.472829 | DC80: 0.544996 | DD80: 0.553486 | DG80: 34.673685 | DH80: 0.480042 | DI80: 0.407213 | DJ80: 0.488503 | DM80: 34.673685 | DN80: 0.410204 | DO80: 0.422652 | DP80: 0.243591 | DS80: 34.673685 | DT80: 1.629771 | DU80: 1.852872 | DV80: 1.779437 | EA80: 34.673685 | EB80: 0.5189656667 | EC80: 0.5509973333 | ED80: 0.23569 | EE80: 0.4516235 | EF80: 0.104094 | EG80: 0 | EH80: 0.5511423333 | EI80: 0.5840973333 | EJ80: 0.51534 | EK80: 1.437264333 | EL80: 2.962045333 | EM80: 0.132216 | EN80: 0.1414633333 | EO80: 0.4583796667 | EP80: 2.745629333 | EQ80: 0.498327 | ER80: 0.380665 | ES80: 0.5237703333 | ET80: 0.458586 | EU80: 0.3588156667 | EV80: 1.754026667
B81: 39.810717 | C81: 0.487294 | D81: 0.564173 | E81: 0.568036 | H81: 39.810717 | I81: 0.573926 | J81: 0.566209 | K81: 0.501592 | N81: 39.810717 | O81: 0.167498 | P81: 0.345713 | Q81: 0.274029 | T81: 39.810717 | U81: 0.362524 | V81: 0.478224 | W81: 0.540213 | AA81: 39.810717 | AB81: 0 | AC81: 0.363644 | AD81: 0 | AG81: 39.810717 | AH81: 0 | AI81: 0 | AJ81: 0 | AM81: 39.810717 | AN81: 0.539367 | AO81: 0.54109 | AP81: 0.470809 | AS81: 39.810717 | AT81: 0.488538 | AU81: 0.50612 | AV81: 0.773758 | AY81: 39.810717 | AZ81: 0.402649 | BA81: 0.303165 | BB81: 0.483591 | BE81: 39.810717 | BF81: 1.465552 | BG81: 1.475457 | BH81: 1.443942 | BK81: 39.810717 | BL81: 3.126993 | BM81: 3.406978 | BN81: 3.323582 | BQ81: 39.810717 | BR81: 0 | BS81: 0 | BT81: 0.306102 | BW81: 39.810717 | BX81: 0 | BY81: 0 | BZ81: 0.3276 | CC81: 39.810717 | CD81: 0.410532 | CE81: 0.392288 | CF81: 0.44189 | CI81: 39.810717 | CJ81: 2.996667 | CK81: 2.720769 | CL81: 2.821244 | CO81: 39.810717 | CP81: 0.29283 | CQ81: 0.304611 | CR81: 0.337067 | CU81: 39.810717 | CV81: 0.126926 | CW81: 0.317006 | CX81: 0.27543 | DA81: 39.810717 | DB81: 0.469126 | DC81: 0.541744 | DD81: 0.549509 | DG81: 39.810717 | DH81: 0.626247 | DI81: 0.521845 | DJ81: 0.635959 | DM81: 39.810717 | DN81: 0.530018 | DO81: 0.536692 | DP81: 0.325552 | DS81: 39.810717 | DT81: 1.927714 | DU81: 2.197889 | DV81: 2.103917 | EA81: 39.810717 | EB81: 0.5398343333 | EC81: 0.5472423333 | ED81: 0.2624133333 | EE81: 0.5092185 | EF81: 0.1212146667 | EG81: 0 | EH81: 0.5170886667 | EI81: 0.589472 | EJ81: 0.3964683333 | EK81: 1.461650333 | EL81: 3.285851 | EM81: 0.102034 | EN81: 0.1092 | EO81: 0.4149033333 | EP81: 2.846226667 | EQ81: 0.3115026667 | ER81: 0.2397873333 | ES81: 0.5201263333 | ET81: 0.5946836667 | EU81: 0.4640873333 | EV81: 2.076506667
B82: 45.708819 | C82: 0.469336 | D82: 0.553476 | E82: 0.565592 | H82: 45.708819 | I82: 0.50646 | J82: 0.490442 | K82: 0.425062 | N82: 45.708819 | O82: 0.163099 | P82: 0.385325 | Q82: 0.272805 | T82: 45.708819 | U82: 0.372662 | V82: 0.492918 | W82: 0.559636 | AA82: 45.708819 | AB82: 0 | AC82: 0.359482 | AD82: 0 | AG82: 45.708819 | AH82: 0 | AI82: 0 | AJ82: 0 | AM82: 45.708819 | AN82: 0.479532 | AO82: 0.465391 | AP82: 0.353561 | AS82: 45.708819 | AT82: 0.431515 | AU82: 0.444119 | AV82: 0.791038 | AY82: 45.708819 | AZ82: 0.208318 | BA82: 0.129631 | BB82: 0.338132 | BE82: 45.708819 | BF82: 1.474561 | BG82: 1.482005 | BH82: 1.450684 | BK82: 45.708819 | BL82: 3.471917 | BM82: 3.738219 | BN82: 3.627764 | BQ82: 45.708819 | BR82: 0 | BS82: 0 | BT82: 0.134982 | BW82: 45.708819 | BX82: 0 | BY82: 0 | BZ82: 0.151452 | CC82: 45.708819 | CD82: 0.28049 | CE82: 0.237627 | CF82: 0.310408 | CI82: 45.708819 | CJ82: 3.084811 | CK82: 2.795983 | CL82: 2.920119 | CO82: 45.708819 | CP82: 0.065444 | CQ82: 0.063436 | CR82: 0.104091 | CU82: 45.708819 | CV82: 0 | CW82: 0.184994 | CX82: 0.133369 | DA82: 45.708819 | DB82: 0.400512 | DC82: 0.460559 | DD82: 0.470741 | DG82: 45.708819 | DH82: 0.706557 | DI82: 0.574052 | DJ82: 0.72225 | DM82: 45.708819 | DN82: 0.665053 | DO82: 0.665831 | DP82: 0.416818 | DS82: 45.708819 | DT82: 2.239821 | DU82: 2.564236 | DV82: 2.445535 | EA82: 45.708819 | EB82: 0.529468 | EC82: 0.473988 | ED82: 0.273743 | EE82: 0.526277 | EF82: 0.1198273333 | EG82: 0 | EH82: 0.432828 | EI82: 0.5555573333 | EJ82: 0.2253603333 | EK82: 1.469083333 | EL82: 3.612633333 | EM82: 0.044994 | EN82: 0.050484 | EO82: 0.276175 | EP82: 2.933637667 | EQ82: 0.077657 | ER82: 0.106121 | ES82: 0.4439373333 | ET82: 0.6676196667 | EU82: 0.5825673333 | EV82: 2.416530667
B83: 52.480746 | C83: 0.417235 | D83: 0.514191 | E83: 0.539558 | H83: 52.480746 | I83: 0.37883 | J83: 0.347484 | K83: 0.285009 | N83: 52.480746 | O83: 0.148547 | P83: 0.406182 | Q83: 0.250786 | T83: 52.480746 | U83: 0.327623 | V83: 0.454537 | W83: 0.528428 | AA83: 52.480746 | AB83: 0 | AC83: 0.282626 | AD83: 0 | AG83: 52.480746 | AH83: 0 | AI83: 0 | AJ83: 0 | AM83: 52.480746 | AN83: 0.413924 | AO83: 0.37455 | AP83: 0.213879 | AS83: 52.480746 | AT83: 0.349271 | AU83: 0.35476 | AV83: 0.803307 | AY83: 52.480746 | AZ83: 0 | BA83: 0 | BB83: 0.218126 | BE83: 52.480746 | BF83: 1.497096 | BG83: 1.511024 | BH83: 1.472267 | BK83: 52.480746 | BL83: 3.793915 | BM83: 4.039676 | BN83: 3.901399 | BQ83: 52.480746 | BR83: 0 | BS83: 0 | BT83: 0 | BW83: 52.480746 | BX83: 0 | BY83: 0 | BZ83: 0 | CC83: 52.480746 | CD83: 0.075612 | CE83: 0 | CF83: 0.111244 | CI83: 52.480746 | CJ83: 3.162327 | CK83: 2.857492 | CL83: 3.013604 | CO83: 52.480746 | CP83: 0 | CQ83: 0 | CR83: 0 | CU83: 52.480746 | CV83: 0 | CW83: 0.138907 | CX83: 0.077654 | DA83: 52.480746 | DB83: 0.287431 | DC83: 0.315768 | DD83: 0.334023 | DG83: 52.480746 | DH83: 0.68872 | DI83: 0.536715 | DJ83: 0.710623 | DM83: 52.480746 | DN83: 0.796196 | DO83: 0.793885 | DP83: 0.501181 | DS83: 52.480746 | DT83: 2.555744 | DU83: 2.939423 | DV83: 2.793296 | EA83: 52.480746 | EB83: 0.490328 | EC83: 0.3371076667 | ED83: 0.268505 | EE83: 0.4914825 | EF83: 0.09420866667 | EG83: 0 | EH83: 0.3341176667 | EI83: 0.502446 | EJ83: 0.07270866667 | EK83: 1.493462333 | EL83: 3.911663333 | EM83: 0 | EN83: 0 | EO83: 0.06228533333 | EP83: 3.011141 | EQ83: 0 | ER83: 0.072187 | ES83: 0.3124073333 | ET83: 0.6453526667 | EU83: 0.6970873333 | EV83: 2.762821
B84: 60.255959 | C84: 0.349214 | D84: 0.464986 | E84: 0.506211 | H84: 60.255959 | I84: 0.228254 | J84: 0.176122 | K84: 0.119169 | N84: 60.255959 | O84: 0.133132 | P84: 0.411997 | Q84: 0.217237 | T84: 60.255959 | U84: 0.23186 | V84: 0.369802 | W84: 0.456196 | AA84: 60.255959 | AB84: 0 | AC84: 0.137017 | AD84: 0 | AG84: 60.255959 | AH84: 0 | AI84: 0 | AJ84: 0 | AM84: 60.255959 | AN84: 0.408841 | AO84: 0.338291 | AP84: 0.127026 | AS84: 60.255959 | AT84: 0.288641 | AU84: 0.287363 | AV84: 0.853913 | AY84: 60.255959 | AZ84: 0 | BA84: 0 | BB84: 0.227929 | BE84: 60.255959 | BF84: 1.587712 | BG84: 1.621034 | BH84: 1.564141 | BK84: 60.255959 | BL84: 4.058192 | BM84: 4.279035 | BN84: 4.115172 | BQ84: 60.255959 | BR84: 0 | BS84: 0 | BT84: 0 | BW84: 60.255959 | BX84: 0 | BY84: 0 | BZ84: 0 | CC84: 60.255959 | CD84: 0.000943 | CE84: 0 | CF84: 0.002162 | CI84: 60.255959 | CJ84: 3.237809 | CK84: 2.913235 | CL84: 3.10975 | CO84: 60.255959 | CP84: 0 | CQ84: 0 | CR84: 0 | CU84: 60.255959 | CV84: 0 | CW84: 0.301014 | CX84: 0.232388 | DA84: 60.255959 | DB84: 0.18835 | DC84: 0.161243 | DD84: 0.195575 | DG84: 60.255959 | DH84: 0.565534 | DI84: 0.407779 | DJ84: 0.592358 | DM84: 60.255959 | DN84: 0.900006 | DO84: 0.901043 | DP84: 0.55884 | DS84: 60.255959 | DT84: 2.872516 | DU84: 3.316974 | DV84: 3.143163 | EA84: 60.255959 | EB84: 0.440137 | EC84: 0.174515 | ED84: 0.254122 | EE84: 0.412999 | EF84: 0.04567233333 | EG84: 0 | EH84: 0.291386 | EI84: 0.476639 | EJ84: 0.07597633333 | EK84: 1.590962333 | EL84: 4.150799667 | EM84: 0 | EN84: 0 | EO84: 0.001035 | EP84: 3.086931333 | EQ84: 0 | ER84: 0.1778006667 | ES84: 0.1817226667 | ET84: 0.5218903333 | EU84: 0.7866296667 | EV84: 3.110884333
B85: 69.183097 | C85: 0.302405 | D85: 0.442064 | E85: 0.497058 | H85: 69.183097 | I85: 0.125671 | J85: 0.031919 | K85: 0.006163 | N85: 69.183097 | O85: 0.134131 | P85: 0.41827 | Q85: 0.193195 | T85: 69.183097 | U85: 0.122254 | V85: 0.272964 | W85: 0.380538 | AA85: 69.183097 | AB85: 0 | AC85: 0.008179 | AD85: 0 | AG85: 69.183097 | AH85: 0 | AI85: 0 | AJ85: 0 | AM85: 69.183097 | AN85: 0.557616 | AO85: 0.456838 | AP85: 0.201481 | AS85: 69.183097 | AT85: 0.32276 | AU85: 0.319521 | AV85: 1.008325 | AY85: 69.183097 | AZ85: 0.074586 | BA85: 0.077224 | BB85: 0.496965 | BE85: 69.183097 | BF85: 1.817538 | BG85: 1.885235 | BH85: 1.79774 | BK85: 69.183097 | BL85: 4.235056 | BM85: 4.428468 | BN85: 4.245902 | BQ85: 69.183097 | BR85: 0 | BS85: 0 | BT85: 0 | BW85: 69.183097 | BX85: 0 | BY85: 0 | BZ85: 0 | CC85: 69.183097 | CD85: 0 | CE85: 0 | CF85: 0 | CI85: 69.183097 | CJ85: 3.323519 | CK85: 2.975744 | CL85: 3.218452 | CO85: 69.183097 | CP85: 0 | CQ85: 0 | CR85: 0.019277 | CU85: 69.183097 | CV85: 0.193523 | CW85: 0.805438 | CX85: 0.733557 | DA85: 69.183097 | DB85: 0.201223 | DC85: 0.093005 | DD85: 0.15294 | DG85: 69.183097 | DH85: 0.375854 | DI85: 0.213862 | DJ85: 0.403042 | DM85: 69.183097 | DN85: 0.955869 | DO85: 0.970137 | DP85: 0.572423 | DS85: 69.183097 | DT85: 3.200225 | DU85: 3.702412 | DV85: 3.503662 | EA85: 69.183097 | EB85: 0.4138423333 | EC85: 0.05458433333 | ED85: 0.248532 | EE85: 0.326751 | EF85: 0.002726333333 | EG85: 0 | EH85: 0.4053116667 | EI85: 0.550202 | EJ85: 0.2162583333 | EK85: 1.833504333 | EL85: 4.303142 | EM85: 0 | EN85: 0 | EO85: 0 | EP85: 3.172571667 | EQ85: 0.006425666667 | ER85: 0.577506 | ES85: 0.149056 | ET85: 0.3309193333 | EU85: 0.8328096667 | EV85: 3.468766333
B86: 79.432823 | C86: 0.331369 | D86: 0.497077 | E86: 0.556797 | H86: 79.432823 | I86: 0.172052 | J86: 0.04209 | K86: 0.031946 | N86: 79.432823 | O86: 0.175172 | P86: 0.45214 | Q86: 0.210859 | T86: 79.432823 | U86: 0.033849 | V86: 0.231578 | W86: 0.371507 | AA86: 79.432823 | AB86: 0 | AC86: 0 | AD86: 0 | AG86: 79.432823 | AH86: 0 | AI86: 0 | AJ86: 0 | AM86: 79.432823 | AN86: 0.961776 | AO86: 0.842207 | AP86: 0.560557 | AS86: 79.432823 | AT86: 0.540708 | AU86: 0.546558 | AV86: 1.340819 | AY86: 79.432823 | AZ86: 0.461726 | BA86: 0.502746 | BB86: 1.146977 | BE86: 79.432823 | BF86: 2.253805 | BG86: 2.368764 | BH86: 2.239299 | BK86: 79.432823 | BL86: 4.300689 | BM86: 4.464641 | BN86: 4.276795 | BQ86: 79.432823 | BR86: 0 | BS86: 0 | BT86: 0 | BW86: 79.432823 | BX86: 0 | BY86: 0 | BZ86: 0 | CC86: 79.432823 | CD86: 0 | CE86: 0 | CF86: 0 | CI86: 79.432823 | CJ86: 3.429174 | CK86: 3.056684 | CL86: 3.345063 | CO86: 79.432823 | CP86: 0.247087 | CQ86: 0.26308 | CR86: 0.33635 | CU86: 79.432823 | CV86: 0.893221 | CW86: 1.754014 | CX86: 1.684525 | DA86: 79.432823 | DB86: 0.452385 | DC86: 0.241418 | DD86: 0.335763 | DG86: 79.432823 | DH86: 0.216886 | DI86: 0.09658 | DJ86: 0.236166 | DM86: 79.432823 | DN86: 0.953186 | DO86: 0.992231 | DP86: 0.534305 | DS86: 79.432823 | DT86: 3.554003 | DU86: 4.103765 | DV86: 3.886635 | EA86: 79.432823 | EB86: =AVERAGE(C86:E86) -> 0.4617476667 | EC86: =AVERAGE(I86:K86) -> 0.08202933333 | ED86: =AVERAGE(O86:Q86) -> 0.2793903333 | EE86: =AVERAGE(V86:X86) -> 0.3015425 | EF86: =AVERAGE(AB86:AD86) -> 0 | EG86: =AVERAGE(AH86:AJ86) -> 0 | EH86: =AVERAGE(AN86:AP86) -> 0.78818 | EI86: =AVERAGE(AT86:AV86) -> 0.8093616667 | EJ86: =AVERAGE(AZ86:BB86) -> 0.7038163333 | EK86: =AVERAGE(BF86:BH86) -> 2.287289333 | EL86: =AVERAGE(BL86:BN86) -> 4.347375 | EM86: =AVERAGE(BR86:BT86) -> 0 | EN86: =AVERAGE(BX86:BZ86) -> 0 | EO86: =AVERAGE(CD86:CF86) -> 0 | EP86: =AVERAGE(CJ86:CL86) -> 3.276973667 | EQ86: =AVERAGE(CP86:CR86) -> 0.2821723333 | ER86: =AVERAGE(CV86:CX86) -> 1.44392 | ES86: =AVERAGE(DB86:DD86) -> 0.3431886667 | ET86: =AVERAGE(DH86:DJ86) -> 0.1832106667 | EU86: =AVERAGE(DN86:DP86) -> 0.826574 | EV86: =AVERAGE(DT86:DV86) -> 3.848134333
B87: 91.201084 | C87: 0.499659 | D87: 0.689883 | E87: 0.73745 | H87: 91.201084 | I87: 0.481302 | J87: 0.265767 | K87: 0.292262 | N87: 91.201084 | O87: 0.282864 | P87: 0.549569 | Q87: 0.308861 | T87: 91.201084 | U87: 0.126734 | V87: 0.340647 | W87: 0.525401 | AA87: 91.201084 | AB87: 0 | AC87: 0 | AD87: 0 | AG87: 91.201084 | AH87: 0 | AI87: 0 | AJ87: 0 | AM87: 91.201084 | AN87: 1.714493 | AO87: 1.599492 | AP87: 1.320821 | AS87: 91.201084 | AT87: 1.033 | AU87: 1.066296 | AV87: 1.924473 | AY87: 91.201084 | AZ87: 1.363318 | BA87: 1.422559 | BB87: 2.269367 | BE87: 91.201084 | BF87: 2.948309 | BG87: 3.11734 | BH87: 2.937776 | BK87: 91.201084 | BL87: 4.244513 | BM87: 4.374961 | BN87: 4.20223 | BQ87: 91.201084 | BR87: 0 | BS87: 0.042254 | BT87: 0 | BW87: 91.201084 | BX87: 0 | BY87: 0 | BZ87: 0.051619 | CC87: 91.201084 | CD87: 0 | CE87: 0.002506 | CF87: 0.024246 | CI87: 91.201084 | CJ87: 3.559386 | CK87: 3.163709 | CL87: 3.489793 | CO87: 91.201084 | CP87: 1.13139 | CQ87: 1.208348 | CR87: 1.277825 | CU87: 91.201084 | CV87: 2.174473 | CW87: 3.199389 | CX87: 3.138769 | DA87: 91.201084 | DB87: 1.076669 | DC87: 0.749496 | DD87: 0.884259 | DG87: 91.201084 | DH87: 0.234288 | DI87: 0.099107 | DJ87: 0.234052 | DM87: 91.201084 | DN87: 0.901639 | DO87: 0.976 | DP87: 0.45501 | DS87: 91.201084 | DT87: 3.960063 | DU87: 4.539248 | DV87: 4.313816 | EA87: 91.201084 | EB87: 0.6423306667 | EC87: 0.3464436667 | ED87: 0.3804313333 | EE87: 0.433024 | EF87: 0 | EG87: 0 | EH87: 1.544935333 | EI87: 1.341256333 | EJ87: 1.685081333 | EK87: 3.001141667 | EL87: 4.273901333 | EM87: 0.01408466667 | EN87: 0.01720633333 | EO87: 0.008917333333 | EP87: 3.404296 | EQ87: 1.205854333 | ER87: 2.837543667 | ES87: 0.9034746667 | ET87: 0.189149 | EU87: 0.7775496667 | EV87: 4.271042333
B88: 104.712855 | C88: 0.859967 | D88: 1.068651 | E88: 1.080687 | H88: 104.712855 | I88: 1.143522 | J88: 0.828171 | K88: 0.908711 | N88: 104.712855 | O88: 0.47667 | P88: 0.743918 | Q88: 0.520486 | T88: 104.712855 | U88: 0.472722 | V88: 0.704362 | W88: 0.943418 | AA88: 104.712855 | AB88: 0 | AC88: 0 | AD88: 0 | AG88: 104.712855 | AH88: 0.074924 | AI88: 0.310917 | AJ88: 0.104194 | AM88: 104.712855 | AN88: 2.841968 | AO88: 2.766007 | AP88: 2.528932 | AS88: 104.712855 | AT88: 1.848422 | AU88: 1.933423 | AV88: 2.785719 | AY88: 104.712855 | AZ88: 2.88321 | BA88: 2.884578 | BB88: 3.845371 | BE88: 104.712855 | BF88: 3.887663 | BG88: 4.105408 | BH88: 3.874631 | BK88: 104.712855 | BL88: 4.06961 | BM88: 4.160464 | BN88: 4.028495 | BQ88: 104.712855 | BR88: 0.058037 | BS88: 0.458018 | BT88: 0.283258 | BW88: 104.712855 | BX88: 0.100075 | BY88: 0.216907 | BZ88: 0.589262 | CC88: 104.712855 | CD88: 0.234259 | CE88: 0.33653 | CF88: 0.387031 | CI88: 104.712855 | CJ88: 3.703478 | CK88: 3.291314 | CL88: 3.638671 | CO88: 104.712855 | CP88: 2.866758 | CQ88: 3.03304 | CR88: 3.051882 | CU88: 104.712855 | CV88: 4.017612 | CW88: 5.056098 | CX88: 5.010558 | DA88: 104.712855 | DB88: 2.158686 | DC88: 1.719081 | DD88: 1.893401 | DG88: 104.712855 | DH88: 0.597425 | DI88: 0.292013 | DJ88: 0.564929 | DM88: 104.712855 | DN88: 0.838753 | DO88: 0.952872 | DP88: 0.372178 | DS88: 104.712855 | DT88: 4.427683 | DU88: 5.007785 | DV88: 4.787557 | EA88: 104.712855 | EB88: 1.003101667 | EC88: 0.9601346667 | ED88: 0.580358 | EE88: 0.82389 | EF88: 0 | EG88: 0.163345 | EH88: 2.712302333 | EI88: 2.189188 | EJ88: 3.204386333 | EK88: 3.955900667 | EL88: 4.086189667 | EM88: 0.2664376667 | EN88: 0.3020813333 | EO88: 0.3192733333 | EP88: 3.544487667 | EQ88: 2.983893333 | ER88: 4.694756 | ES88: 1.923722667 | ET88: 0.484789 | EU88: 0.7212676667 | EV88: 4.741008333
B89: 120.226443 | C89: 1.450066 | D89: 1.668702 | E89: 1.618093 | H89: 120.226443 | I89: 2.217612 | J89: 1.870221 | K89: 1.972502 | N89: 120.226443 | O89: 0.769996 | P89: 1.063595 | Q89: 0.871169 | T89: 120.226443 | U89: 1.159176 | V89: 1.42354 | W89: 1.720702 | AA89: 120.226443 | AB89: 0.062244 | AC89: 0.084462 | AD89: 0.343325 | AG89: 120.226443 | AH89: 0.875252 | AI89: 1.668974 | AJ89: 1.057834 | AM89: 120.226443 | AN89: 4.325025 | AO89: 4.330752 | AP89: 4.178644 | AS89: 120.226443 | AT89: 3.001738 | AU89: 3.167405 | AV89: 3.920057 | AY89: 120.226443 | AZ89: 5.030873 | BA89: 4.867414 | BB89: 5.78974 | BE89: 120.226443 | BF89: 5.020349 | BG89: 5.267752 | BH89: 4.991464 | BK89: 120.226443 | BL89: 3.787967 | BM89: 3.830465 | BN89: 3.767378 | BQ89: 120.226443 | BR89: 0.772565 | BS89: 2.063039 | BT89: 1.433657 | BW89: 120.226443 | BX89: 0.979074 | BY89: 1.382566 | BZ89: 1.980991 | CC89: 120.226443 | CD89: 1.173383 | CE89: 1.399053 | CF89: 1.42951 | CI89: 120.226443 | CJ89: 3.841372 | CK89: 3.425019 | CL89: 3.771961 | CO89: 120.226443 | CP89: 5.51748 | CQ89: 5.776305 | CR89: 5.695287 | CU89: 120.226443 | CV89: 6.302727 | CW89: 7.173157 | CX89: 7.148195 | DA89: 120.226443 | DB89: 3.736055 | DC89: 3.206156 | DD89: 3.410898 | DG89: 120.226443 | DH89: 1.465219 | DI89: 0.881801 | DJ89: 1.388722 | DM89: 120.226443 | DN89: 0.830132 | DO89: 0.978943 | DP89: 0.349684 | DS89: 120.226443 | DT89: 4.963073 | DU89: 5.504821 | DV89: 5.30606 | EA89: 120.226443 | EB89: 1.578953667 | EC89: 2.020111667 | ED89: 0.9015866667 | EE89: 1.572121 | EF89: 0.1633436667 | EG89: 1.200686667 | EH89: 4.278140333 | EI89: 3.363066667 | EJ89: 5.229342333 | EK89: 5.093188333 | EL89: 3.79527 | EM89: 1.423087 | EN89: 1.447543667 | EO89: 1.333982 | EP89: 3.679450667 | EQ89: 5.663024 | ER89: 6.874693 | ES89: 3.451036333 | ET89: 1.245247333 | EU89: 0.7195863333 | EV89: 5.257984667
B90: 138.038426 | C90: 2.245255 | D90: 2.465559 | E90: 2.329912 | H90: 138.038426 | I90: 3.645854 | J90: 3.392159 | K90: 3.452303 | N90: 138.038426 | O90: 1.149056 | P90: 1.505096 | Q90: 1.350328 | T90: 138.038426 | U90: 2.245483 | V90: 2.529117 | W90: 2.875747 | AA90: 138.038426 | AB90: 0.673787 | AC90: 0.728236 | AD90: 1.472717 | AG90: 138.038426 | AH90: 2.875612 | AI90: 3.972419 | AJ90: 3.258888 | AM90: 138.038426 | AN90: 5.998587 | AO90: 6.126963 | AP90: 6.096519 | AS90: 138.038426 | AT90: 4.390347 | AU90: 4.663002 | AV90: 5.211868 | AY90: 138.038426 | AZ90: 7.534889 | BA90: 7.103837 | BB90: 7.831629 | BE90: 138.038426 | BF90: 6.186377 | BG90: 6.429966 | BH90: 6.122186 | BK90: 138.038426 | BL90: 3.432661 | BM90: 3.419349 | BN90: 3.446976 | BQ90: 138.038426 | BR90: 2.70443 | BS90: 4.573676 | BT90: 3.805733 | BW90: 138.038426 | BX90: 2.968975 | BY90: 3.682857 | BZ90: 4.302515 | CC90: 138.038426 | CD90: 2.957865 | CE90: 3.32844 | CF90: 3.294973 | CI90: 138.038426 | CJ90: 3.936486 | CK90: 3.53393 | CL90: 3.857871 | CO90: 138.038426 | CP90: 8.695603 | CQ90: 9.001788 | CR90: 8.800985 | CU90: 138.038426 | CV90: 8.648619 | CW90: 9.216964 | CX90: 9.216017 | DA90: 138.038426 | DB90: 5.679196 | DC90: 5.10426 | DD90: 5.31978 | DG90: 138.038426 | DH90: 2.892124 | DI90: 2.055026 | DJ90: 2.766178 | DM90: 138.038426 | DN90: 0.964504 | DO90: 1.128699 | DP90: 0.475081 | DS90: 138.038426 | DT90: 5.52514 | DU90: 5.980657 | DV90: 5.820654 | EA90: 138.038426 | EB90: 2.346908667 | EC90: 3.496772 | ED90: 1.334826667 | EE90: 2.702432 | EF90: 0.9582466667 | EG90: 3.368973 | EH90: 6.074023 | EI90: 4.755072333 | EJ90: 7.490118333 | EK90: 6.246176333 | EL90: 3.432995333 | EM90: 3.694613 | EN90: 3.651449 | EO90: 3.193759333 | EP90: 3.776095667 | EQ90: 8.832792 | ER90: 9.0272 | ES90: 5.367745333 | ET90: 2.571109333 | EU90: 0.8560946667 | EV90: 5.775483667
B91: 158.489319 | C91: 3.201828 | D91: 3.420425 | E91: 3.186818 | H91: 158.489319 | I91: 5.334106 | J91: 5.328868 | K91: 5.261736 | N91: 158.489319 | O91: 1.598361 | P91: 2.056618 | Q91: 1.938015 | T91: 158.489319 | U91: 3.733239 | V91: 4.023379 | W91: 4.396697 | AA91: 158.489319 | AB91: 2.07787 | AC91: 2.155227 | AD91: 3.280191 | AG91: 158.489319 | AH91: 6.296284 | AI91: 7.268068 | AJ91: 6.88453 | AM91: 158.489319 | AN91: 7.682648 | AO91: 7.968429 | AP91: 8.084239 | AS91: 158.489319 | AT91: 5.890101 | AU91: 6.292361 | AV91: 6.531451 | AY91: 158.489319 | AZ91: 10.036449 | BA91: 9.273471 | BB91: 9.700865 | BE91: 158.489319 | BF91: 7.226046 | BG91: 7.423036 | BH91: 7.102633 | BK91: 158.489319 | BL91: 3.030239 | BM91: 2.955342 | BN91: 3.084465 | BQ91: 158.489319 | BR91: 6.15415 | BS91: 8.01845 | BT91: 7.448989 | BW91: 158.489319 | BX91: 6.277773 | BY91: 7.21839 | BZ91: 7.456579 | CC91: 158.489319 | CD91: 5.647271 | CE91: 6.127549 | CF91: 5.99485 | CI91: 158.489319 | CJ91: 3.951097 | CK91: 3.585165 | CL91: 3.867702 | CO91: 158.489319 | CP91: 11.786306 | CQ91: 12.059194 | CR91: 11.761558 | CU91: 158.489319 | CV91: 10.661023 | CW91: 10.88618 | CX91: 10.911296 | DA91: 158.489319 | DB91: 7.816126 | DC91: 7.258166 | DD91: 7.456493 | DG91: 158.489319 | DH91: 4.865279 | DI91: 3.924425 | DJ91: 4.692251 | DM91: 158.489319 | DN91: 1.345215 | DO91: 1.49107 | DP91: 0.851312 | DS91: 158.489319 | DT91: 6.066792 | DU91: 6.379412 | DV91: 6.276644 | EA91: 158.489319 | EB91: 3.269690333 | EC91: 5.308236667 | ED91: 1.864331333 | EE91: 4.210038 | EF91: 2.504429333 | EG91: 6.816294 | EH91: 7.911772 | EI91: 6.237971 | EJ91: 9.670261667 | EK91: 7.250571667 | EL91: 3.023348667 | EM91: 7.207196333 | EN91: 6.984247333 | EO91: 5.923223333 | EP91: 3.801321333 | EQ91: 11.86901933 | ER91: 10.81949967 | ES91: 7.510261667 | ET91: 4.493985 | EU91: 1.229199 | EV91: 6.240949333
B92: 181.970086 | C92: 4.182892 | D92: 4.405655 | E92: 4.083389 | H92: 181.970086 | I92: 7.02297 | J92: 7.381043 | K92: 7.115325 | N92: 181.970086 | O92: 2.069271 | P92: 2.655688 | Q92: 2.56047 | T92: 181.970086 | U92: 5.47295 | V92: 5.749652 | W92: 6.109819 | AA92: 181.970086 | AB92: 4.131797 | AC92: 4.378115 | AD92: 5.659287 | AG92: 181.970086 | AH92: 10.546869 | AI92: 10.855413 | AJ92: 11.20468 | AM92: 181.970086 | AN92: 9.065359 | AO92: 9.520073 | AP92: 9.778732 | AS92: 181.970086 | AT92: 7.246226 | AU92: 7.785568 | AV92: 7.640212 | AY92: 181.970086 | AZ92: 11.953384 | BA92: 10.882681 | BB92: 11.011214 | BE92: 181.970086 | BF92: 7.916082 | BG92: 8.024901 | BH92: 7.713579 | BK92: 181.970086 | BL92: 2.62855 | BM92: 2.492996 | BN92: 2.709474 | BQ92: 181.970086 | BR92: 10.585558 | BS92: 11.574976 | BT92: 11.587377 | BW92: 181.970086 | BX92: 10.337728 | BY92: 11.239446 | BZ92: 10.803865 | CC92: 181.970086 | CD92: 8.82205 | CE92: 9.312925 | CF92: 9.075429 | CI92: 181.970086 | CJ92: 3.848733 | CK92: 3.543478 | CL92: 3.777358 | CO92: 181.970086 | CP92: 13.891678 | CQ92: 14.03313 | CR92: 13.704371 | CU92: 181.970086 | CV92: 11.845777 | CW92: 11.815019 | CX92: 11.865499 | DA92: 181.970086 | DB92: 9.774788 | DC92: 9.302798 | DD92: 9.452817 | DG92: 181.970086 | DH92: 7.131964 | DI92: 6.342378 | DJ92: 6.926457 | DM92: 181.970086 | DN92: 2.043754 | DO92: 2.126909 | DP92: 1.552624 | DS92: 181.970086 | DT92: 6.489041 | DU92: 6.605827 | DV92: 6.575628 | EA92: 181.970086 | EB92: 4.223978667 | EC92: 7.173112667 | ED92: 2.428476333 | EE92: 5.9297355 | EF92: 4.723066333 | EG92: 10.86898733 | EH92: 9.454721333 | EI92: 7.557335333 | EJ92: 11.28242633 | EK92: 7.884854 | EL92: 2.61034 | EM92: 11.24930367 | EN92: 10.79367967 | EO92: 9.070134667 | EP92: 3.723189667 | EQ92: 13.876393 | ER92: 11.84209833 | ES92: 9.510134333 | ET92: 6.800266333 | EU92: 1.907762333 | EV92: 6.556832
B93: 208.929613 | C93: 5.07546 | D93: 5.320672 | E93: 4.942357 | H93: 208.929613 | I93: 8.496579 | J93: 9.253593 | K93: 8.752606 | N93: 208.929613 | O93: 2.53912 | P93: 3.257993 | Q93: 3.16366 | T93: 208.929613 | U93: 7.316269 | V93: 7.556387 | W93: 7.848939 | AA93: 208.929613 | AB93: 6.745287 | AC93: 7.282439 | AD93: 8.369687 | AG93: 208.929613 | AH93: 14.584229 | AI93: 13.953647 | AJ93: 15.085755 | AM93: 208.929613 | AN93: 9.925479 | AO93: 10.538704 | AP93: 10.911625 | AS93: 208.929613 | AT93: 8.265423 | AU93: 8.937679 | AV93: 8.363065 | AY93: 208.929613 | AZ93: 12.867108 | BA93: 11.596291 | BB93: 11.522156 | BE93: 208.929613 | BF93: 8.11685 | BG93: 8.103792 | BH93: 7.822711 | BK93: 208.929613 | BL93: 2.248327 | BM93: 2.056632 | BN93: 2.319671 | BQ93: 208.929613 | BR93: 14.887303 | BS93: 14.419854 | BT93: 15.103577 | BW93: 208.929613 | BX93: 14.203355 | BY93: 14.729515 | BZ93: 13.604539 | CC93: 208.929613 | CD93: 11.892648 | CE93: 12.26113 | CF93: 11.946745 | CI93: 208.929613 | CJ93: 3.600925 | CK93: 3.382069 | CL93: 3.572385 | CO93: 208.929613 | CP93: 14.383836 | CQ93: 14.349965 | CR93: 14.069124 | CU93: 208.929613 | CV93: 11.931725 | CW93: 11.812139 | CX93: 11.886079 | DA93: 208.929613 | DB93: 11.25731 | DC93: 10.936167 | DD93: 11.008785 | DG93: 208.929613 | DH93: 9.420948 | DI93: 9.05038 | DJ93: 9.207362 | DM93: 208.929613 | DN93: 3.122394 | DO93: 3.093288 | DP93: 2.648377 | DS93: 208.929613 | DT93: 6.709442 | DU93: 6.580154 | DV93: 6.63648 | EA93: 208.929613 | EB93: 5.112829667 | EC93: 8.834259333 | ED93: 2.986924333 | EE93: 7.702663 | EF93: 7.465804333 | EG93: 14.54121033 | EH93: 10.45860267 | EI93: 8.522055667 | EJ93: 11.995185 | EK93: 8.014451 | EL93: 2.20821 | EM93: 14.803578 | EN93: 14.17913633 | EO93: 12.03350767 | EP93: 3.518459667 | EQ93: 14.26764167 | ER93: 11.87664767 | ES93: 11.06742067 | ET93: 9.22623 | EU93: 2.954686333 | EV93: 6.642025333
B94: 239.883292 | C94: 5.716646 | D94: 6.013013 | E94: 5.639133 | H94: 239.883292 | I94: 9.462066 | J94: 10.523707 | K94: 9.816567 | N94: 239.883292 | O94: 2.972055 | P94: 3.787994 | Q94: 3.664088 | T94: 239.883292 | U94: 8.954339 | V94: 9.134759 | W94: 9.301193 | AA94: 239.883292 | AB94: 9.446659 | AC94: 10.290781 | AD94: 10.87043 | AG94: 239.883292 | AH94: 16.899405 | AI94: 15.562237 | AJ94: 17.037645 | AM94: 239.883292 | AN94: 10.057527 | AO94: 10.784731 | AP94: 11.213392 | AS94: 239.883292 | AT94: 8.730032 | AU94: 9.509851 | AV94: 8.527212 | AY94: 239.883292 | AZ94: 12.497353 | BA94: 11.208425 | BB94: 11.086398 | BE94: 239.883292 | BF94: 7.752149 | BG94: 7.605445 | BH94: 7.37197 | BK94: 239.883292 | BL94: 1.923641 | BM94: 1.685812 | BN94: 1.922915 | BQ94: 239.883292 | BR94: 17.364341 | BS94: 15.60503 | BT94: 16.612191 | BW94: 239.883292 | BX94: 16.481718 | BY94: 16.413457 | BZ94: 14.961717 | CC94: 239.883292 | CD94: 13.961019 | CE94: 14.095374 | CF94: 13.764349 | CI94: 239.883292 | CJ94: 3.211147 | CK94: 3.098704 | CL94: 3.266005 | CO94: 239.883292 | CP94: 13.101851 | CQ94: 12.882305 | CR94: 12.706266 | CU94: 239.883292 | CV94: 10.869648 | CW94: 10.840927 | CX94: 10.933813 | DA94: 239.883292 | DB94: 11.923705 | DC94: 11.791836 | DD94: 11.771479 | DG94: 239.883292 | DH94: 11.256381 | DI94: 11.447573 | DJ94: 11.066143 | DM94: 239.883292 | DN94: 4.517388 | DO94: 4.339276 | DP94: 4.08553 | DS94: 239.883292 | DT94: 6.643606 | DU94: 6.245166 | DV94: 6.393407 | EA94: 239.883292 | EB94: 5.789597333 | EC94: 9.934113333 | ED94: 3.474712333 | EE94: 9.217976 | EF94: 10.20262333 | EG94: 16.49976233 | EH94: 10.68521667 | EI94: 8.922365 | EJ94: 11.597392 | EK94: 7.576521333 | EL94: 1.844122667 | EM94: 16.52718733 | EN94: 15.95229733 | EO94: 13.94024733 | EP94: 3.191952 | EQ94: 12.89680733 | ER94: 10.88146267 | ES94: 11.82900667 | ET94: 11.256699 | EU94: 4.314064667 | EV94: 6.427393
B95: 275.42287 | C95: 6.030603 | D95: 6.413483 | E95: 6.124617 | H95: 275.42287 | I95: 9.77867 | J95: 10.954724 | K95: 10.121737 | N95: 275.42287 | O95: 3.385877 | P95: 4.227309 | Q95: 4.039315 | T95: 275.42287 | U95: 10.174354 | V95: 10.271078 | W95: 10.256184 | AA95: 275.42287 | AB95: 11.783129 | AC95: 12.794049 | AD95: 12.710555 | AG95: 275.42287 | AH95: 16.624568 | AI95: 15.183292 | AJ95: 16.324949 | AM95: 275.42287 | AN95: 9.419355 | AO95: 10.193302 | AP95: 10.605307 | AS95: 275.42287 | AT95: 8.56311 | AU95: 9.411752 | AV95: 8.086471 | AY95: 275.42287 | AZ95: 10.900409 | BA95: 9.793401 | BB95: 9.751284 | BE95: 275.42287 | BF95: 6.855187 | BG95: 6.581216 | BH95: 6.410144 | BK95: 275.42287 | BL95: 1.65574 | BM95: 1.380572 | BN95: 1.497506 | BQ95: 275.42287 | BR95: 17.002724 | BS95: 14.761084 | BT95: 15.51835 | BW95: 275.42287 | BX95: 16.352535 | BY95: 15.707009 | BZ95: 14.458897 | CC95: 275.42287 | CD95: 14.452437 | CE95: 14.306041 | CF95: 14.028232 | CI95: 275.42287 | CJ95: 2.690386 | CK95: 2.701233 | CL95: 2.876567 | CO95: 275.42287 | CP95: 10.418602 | CQ95: 10.048608 | CR95: 9.992784 | CU95: 275.42287 | CV95: 8.868374 | CW95: 9.036051 | CX95: 9.142006 | DA95: 275.42287 | DB95: 11.639582 | DC95: 11.707601 | DD95: 11.592837 | DG95: 275.42287 | DH95: 12.306126 | DI95: 13.020879 | DJ95: 12.171393 | DM95: 275.42287 | DN95: 6.148835 | DO95: 5.80502 | DP95: 5.799608 | DS95: 275.42287 | DT95: 6.251892 | DU95: 5.584103 | DV95: 5.823769 | EA95: 275.42287 | EB95: 6.189567667 | EC95: 10.28504367 | ED95: 3.884167 | EE95: 10.263631 | EF95: 12.42924433 | EG95: 16.04426967 | EH95: 10.07265467 | EI95: 8.687111 | EJ95: 10.14836467 | EK95: 6.615515667 | EL95: 1.511272667 | EM95: 15.76071933 | EN95: 15.506147 | EO95: 14.26223667 | EP95: 2.756062 | EQ95: 10.15333133 | ER95: 9.015477 | ES95: 11.64667333 | ET95: 12.499466 | EU95: 5.917821 | EV95: 5.886588
B96: 316.227766 | C96: 5.987988 | D96: 6.484266 | E96: 6.364554 | H96: 316.227766 | I96: 9.399751 | J96: 10.449737 | K96: 9.607567 | N96: 316.227766 | O96: 3.803878 | P96: 4.568 | Q96: 4.287287 | T96: 316.227766 | U96: 10.74487 | V96: 10.737287 | W96: 10.513237 | AA96: 316.227766 | AB96: 13.175319 | AC96: 14.068451 | AD96: 13.42422 | AG96: 316.227766 | AH96: 13.839665 | AI96: 12.909004 | AJ96: 13.228105 | AM96: 316.227766 | AN96: 8.130901 | AO96: 8.866872 | AP96: 9.193543 | AS96: 316.227766 | AT96: 7.804239 | AU96: 8.667462 | AV96: 7.11934 | AY96: 316.227766 | AZ96: 8.480794 | BA96: 7.712627 | BB96: 7.793822 | BE96: 316.227766 | BF96: 5.592608 | BG96: 5.22372 | BH96: 5.122466 | BK96: 316.227766 | BL96: 1.453486 | BM96: 1.145084 | BN96: 1.057109 | BQ96: 316.227766 | BR96: 13.92333 | BS96: 12.162236 | BT96: 12.429594 | BW96: 316.227766 | BX96: 13.835882 | BY96: 12.884653 | BZ96: 12.232759 | CC96: 316.227766 | CD96: 13.180752 | CE96: 12.808107 | CF96: 12.637262 | CI96: 316.227766 | CJ96: 2.098845 | CK96: 2.238681 | CL96: 2.456152 | CO96: 316.227766 | CP96: 6.959065 | CQ96: 6.735963 | CR96: 6.768759 | CU96: 316.227766 | CV96: 6.411696 | CW96: 6.745825 | CX96: 6.85706 | DA96: 316.227766 | DB96: 10.44896 | DC96: 10.687741 | DD96: 10.496604 | DG96: 316.227766 | DH96: 12.296899 | DI96: 13.301067 | DJ96: 12.240575 | DM96: 316.227766 | DN96: 7.77425 | DO96: 7.288081 | DP96: 7.559139 | DS96: 316.227766 | DT96: 5.562564 | DU96: 4.666835 | DV96: 4.985262 | EA96: 316.227766 | EB96: 6.278936 | EC96: 9.819018333 | ED96: 4.219721667 | EE96: 10.625262 | EF96: 13.55599667 | EG96: 13.32559133 | EH96: 8.730438667 | EI96: 7.863680333 | EJ96: 7.995747667 | EK96: 5.312931333 | EL96: 1.218559667 | EM96: 12.83838667 | EN96: 12.98443133 | EO96: 12.87537367 | EP96: 2.264559333 | EQ96: 6.821262333 | ER96: 6.671527 | ES96: 10.544435 | ET96: 12.612847 | EU96: 7.54049 | EV96: 5.071553667
B97: 363.078055 | C97: 5.652701 | D97: 6.270086 | E97: 6.392105 | H97: 363.078055 | I97: 8.423921 | J97: 9.13302 | K97: 8.397145 | N97: 363.078055 | O97: 4.288302 | P97: 4.858456 | Q97: 4.468745 | T97: 363.078055 | U97: 10.587823 | V97: 10.454067 | W97: 10.026549 | AA97: 363.078055 | AB97: 13.312232 | AC97: 13.768571 | AD97: 12.850441 | AG97: 363.078055 | AH97: 9.568799 | AI97: 9.408396 | AJ97: 8.883089 | AM97: 363.078055 | AN97: 6.401713 | AO97: 7.013168 | AP97: 7.211829 | AS97: 363.078055 | AT97: 6.59871 | AU97: 7.412662 | AV97: 5.783733 | AY97: 363.078055 | AZ97: 5.728666 | BA97: 5.391612 | BB97: 5.458814 | BE97: 363.078055 | BF97: 4.144755 | BG97: 3.724275 | BH97: 3.700948 | BK97: 363.078055 | BL97: 1.306447 | BM97: 0.955762 | BN97: 0.566105 | BQ97: 363.078055 | BR97: 9.351344 | BS97: 8.581389 | BT97: 7.78989 | BW97: 363.078055 | BX97: 9.828265 | BY97: 8.915734 | BZ97: 8.912832 | CC97: 363.078055 | CD97: 10.507602 | CE97: 10.027983 | CF97: 9.986073 | CI97: 363.078055 | CJ97: 1.487972 | CK97: 1.755685 | CL97: 2.041062 | CO97: 363.078055 | CP97: 4.000485 | CQ97: 3.676665 | CR97: 3.764733 | CU97: 363.078055 | CV97: 4.001911 | CW97: 4.362158 | CX97: 4.478404 | DA97: 363.078055 | DB97: 8.55559 | DC97: 8.911645 | DD97: 8.673591 | DG97: 363.078055 | DH97: 11.199772 | DI97: 12.188745 | DJ97: 11.231521 | DM97: 363.078055 | DN97: 9.170755 | DO97: 8.602743 | DP97: 9.15149 | DS97: 363.078055 | DT97: 4.628722 | DU97: 3.584817 | DV97: 3.957408 | EA97: 363.078055 | EB97: 6.104964 | EC97: 8.651362 | ED97: 4.538501 | EE97: 10.240308 | EF97: 13.31041467 | EG97: 9.286761333 | EH97: 6.87557 | EI97: 6.598368333 | EJ97: 5.526364 | EK97: 3.856659333 | EL97: 0.9427713333 | EM97: 8.574207667 | EN97: 9.218943667 | EO97: 10.173886 | EP97: 1.761573 | EQ97: 3.813961 | ER97: 4.280824333 | ES97: 8.713608667 | ET97: 11.54001267 | EU97: 8.974996 | EV97: 4.056982333
B98: 416.869383 | C98: 5.161602 | D98: 5.869639 | E98: 6.263934 | H98: 416.869383 | I98: 7.076507 | J98: 7.327622 | K98: 6.784383 | N98: 416.869383 | O98: 4.876841 | P98: 5.151973 | Q98: 4.663339 | T98: 416.869383 | U98: 9.742521 | V98: 9.464208 | W98: 8.888543 | AA98: 416.869383 | AB98: 12.15286 | AC98: 11.973199 | AD98: 11.119578 | AG98: 416.869383 | AH98: 5.306574 | AI98: 5.694208 | AJ98: 4.773873 | AM98: 416.869383 | AN98: 4.566902 | AO98: 4.977388 | AP98: 5.040717 | AS98: 416.869383 | AT98: 5.208491 | AU98: 5.904342 | AV98: 4.335462 | AY98: 416.869383 | AZ98: 3.220724 | BA98: 3.308733 | BB98: 3.415854 | BE98: 416.869383 | BF98: 2.731579 | BG98: 2.415429 | BH98: 2.385204 | BK98: 416.869383 | BL98: 1.202899 | BM98: 0.784263 | BN98: 0.333105 | BQ98: 416.869383 | BR98: 5.077523 | BS98: 5.036073 | BT98: 4.335667 | BW98: 416.869383 | BX98: 5.708315 | BY98: 5.06658 | BZ98: 5.45194 | CC98: 416.869383 | CD98: 7.211223 | CE98: 6.771677 | CF98: 6.841125 | CI98: 416.869383 | CJ98: 0.92763 | CK98: 1.316978 | CL98: 1.671896 | CO98: 416.869383 | CP98: 1.723166 | CQ98: 1.596793 | CR98: 1.616119 | CU98: 416.869383 | CV98: 2.002334 | CW98: 1.930381 | CX98: 2.102248 | DA98: 416.869383 | DB98: 6.32542 | DC98: 6.733906 | DD98: 6.481859 | DG98: 416.869383 | DH98: 9.245552 | DI98: 9.97666 | DJ98: 9.354283 | DM98: 416.869383 | DN98: 10.052757 | DO98: 9.496826 | DP98: 10.283809 | DS98: 416.869383 | DT98: 3.61076 | DU98: 2.474442 | DV98: 2.882217 | EA98: 416.869383 | EB98: 5.765058333 | EC98: 7.062837333 | ED98: 4.897384333 | EE98: 9.1763755 | EF98: 11.74854567 | EG98: 5.258218333 | EH98: 4.861669 | EI98: 5.149431667 | EJ98: 3.315103667 | EK98: 2.510737333 | EL98: 0.7734223333 | EM98: 4.816421 | EN98: 5.408945 | EO98: 6.941341667 | EP98: 1.305501333 | EQ98: 1.645359333 | ER98: 2.011654333 | ES98: 6.513728333 | ET98: 9.525498333 | EU98: 9.944464 | EV98: 2.989139667
B99: 478.630092 | C99: 4.671235 | D99: 5.396135 | E99: 6.04132 | H99: 478.630092 | I99: 5.592872 | J99: 5.37289 | K99: 5.069546 | N99: 478.630092 | O99: 5.59284 | P99: 5.503937 | Q99: 4.956697 | T99: 478.630092 | U99: 8.353936 | V99: 7.912336 | W99: 7.28223 | AA99: 478.630092 | AB99: 9.975883 | AC99: 9.16039 | AD99: 8.620698 | AG99: 478.630092 | AH99: 2.219937 | AI99: 2.76529 | AJ99: 1.916678 | AM99: 478.630092 | AN99: 2.877224 | AO99: 3.035186 | AP99: 3.032077 | AS99: 478.630092 | AT99: 3.872899 | AU99: 4.378761 | AV99: 3.010945 | AY99: 478.630092 | AZ99: 0.800342 | BA99: 1.632039 | BB99: 0.677611 | BE99: 478.630092 | BF99: 1.273026 | BG99: 0.560734 | BH99: 1.179008 | BK99: 478.630092 | BL99: 1.118729 | BM99: 0.59753 | BN99: 0.29129 | BQ99: 478.630092 | BR99: 1.922213 | BS99: 2.362084 | BT99: 1.548607 | BW99: 478.630092 | BX99: 2.559401 | BY99: 2.236393 | BZ99: 2.599477 | CC99: 478.630092 | CD99: 4.178988 | CE99: 3.829286 | CF99: 3.968343 | CI99: 478.630092 | CJ99: 0.480451 | CK99: 0.963188 | CL99: 1.354892 | CO99: 478.630092 | CP99: 0.190564 | CQ99: 0.164494 | CR99: 0.159514 | CU99: 478.630092 | CV99: 0.604932 | CW99: 0.167894 | CX99: 0.201853 | DA99: 478.630092 | DB99: 4.097617 | DC99: 4.498028 | DD99: 4.263126 | DG99: 478.630092 | DH99: 6.751129 | DI99: 7.1452 | DJ99: 6.913427 | DM99: 478.630092 | DN99: 10.240025 | DO99: 9.800422 | DP99: 10.761023 | DS99: 478.630092 | DT99: 2.553602 | DU99: 1.456873 | DV99: 1.853689 | EA99: 478.630092 | EB99: 5.369563333 | EC99: 5.345102667 | ED99: 5.351158 | EE99: 7.597283 | EF99: 9.252323667 | EG99: 2.300635 | EH99: 2.981495667 | EI99: 3.754201667 | EJ99: 1.036664 | EK99: 1.004256 | EL99: 0.669183 | EM99: 1.944301333 | EN99: 2.465090333 | EO99: 3.992205667 | EP99: 0.9328436667 | EQ99: 0.171524 | ER99: 0.324893 | ES99: 4.286257 | ET99: 6.936585333 | EU99: 10.26715667 | EV99: 1.954721333
B100: 549.540874 | C100: 4.333597 | D100: 4.959576 | E100: 5.769158 | H100: 549.540874 | I100: 4.181176 | J100: 3.623472 | K100: 3.581703 | N100: 549.540874 | O100: 6.386369 | P100: 5.921774 | Q100: 5.389536 | T100: 549.540874 | U100: 6.663605 | V100: 6.049738 | W100: 5.485674 | AA100: 549.540874 | AB100: 7.305955 | AC100: 6.078515 | AD100: 5.844021 | AG100: 549.540874 | AH100: 0.287881 | AI100: 0.448136 | AJ100: 0.239781 | AM100: 549.540874 | AN100: 1.418286 | AO100: 1.062841 | AP100: 1.094756 | AS100: 549.540874 | AT100: 2.820956 | AU100: 3.07191 | AV100: 1.923324 | AY100: 549.540874 | AZ100: 0 | BA100: 0.858544 | BB100: 0.021731 | BE100: 549.540874 | BF100: 0.150048 | BG100: 0.050254 | BH100: 0.507658 | BK100: 549.540874 | BL100: 1.031377 | BM100: 0.354445 | BN100: 0.273387 | BQ100: 549.540874 | BR100: 0.196482 | BS100: 0.341838 | BT100: 0.20132 | BW100: 549.540874 | BX100: 0.366903 | BY100: 0.306492 | BZ100: 0.366626 | CC100: 549.540874 | CD100: 1.745346 | CE100: 1.462403 | CF100: 1.661258 | CI100: 549.540874 | CJ100: 0.134288 | CK100: 0.727393 | CL100: 1.085939 | CO100: 549.540874 | CP100: 0 | CQ100: 0 | CR100: 0 | CU100: 549.540874 | CV100: 0.204036 | CW100: 0 | CX100: 0 | DA100: 549.540874 | DB100: 1.670448 | DC100: 2.223372 | DD100: 1.92249 | DG100: 549.540874 | DH100: 4.310108 | DI100: 4.430521 | DJ100: 4.483273 | DM100: 549.540874 | DN100: 9.656903 | DO100: 9.417896 | DP100: 10.46974 | DS100: 549.540874 | DT100: 1.647598 | DU100: 0.246693 | DV100: 0.76273 | EA100: 549.540874 | EB100: 5.020777 | EC100: 3.795450333 | ED100: 5.899226333 | EE100: 5.767706 | EF100: 6.409497 | EG100: 0.325266 | EH100: 1.191961 | EI100: 2.605396667 | EJ100: 0.293425 | EK100: 0.2359866667 | EL100: 0.5530696667 | EM100: 0.2465466667 | EN100: 0.3466736667 | EO100: 1.623002333 | EP100: 0.6492066667 | EQ100: 0 | ER100: 0.068012 | ES100: 1.93877 | ET100: 4.407967333 | EU100: 9.848179667 | EV100: 0.8856736667
B101: 630.957344 | C101: 4.230907 | D101: 4.616391 | E101: 5.454984 | H101: 630.957344 | I101: 2.822732 | J101: 2.231989 | K101: 2.419732 | N101: 630.957344 | O101: 7.164077 | P101: 6.364807 | Q101: 5.946257 | T101: 630.957344 | U101: 4.910179 | V101: 4.116914 | W101: 3.717183 | AA101: 630.957344 | AB101: 4.693495 | AC101: 3.349375 | AD101: 3.477943 | AG101: 630.957344 | AH101: 0 | AI101: 0 | AJ101: 0 | AM101: 630.957344 | AN101: 0.687266 | AO101: 0.051227 | AP101: 0.13206 | AS101: 630.957344 | AT101: 2.158838 | AU101: 2.101363 | AV101: 1.161622 | AY101: 630.957344 | AZ101: 0 | BA101: 0.72456 | BB101: 0 | BE101: 630.957344 | BF101: 0 | BG101: 0 | BH101: 0.323325 | BK101: 630.957344 | BL101: 0.921454 | BM101: 0.205818 | BN101: 0.256468 | BQ101: 630.957344 | BR101: 0 | BS101: 0 | BT101: 0 | BW101: 630.957344 | BX101: 0 | BY101: 0 | BZ101: 0 | CC101: 630.957344 | CD101: 0.212775 | CE101: 0.135438 | CF101: 0.204914 | CI101: 630.957344 | CJ101: 0.024198 | CK101: 0.624708 | CL101: 0.842114 | CO101: 630.957344 | CP101: 0 | CQ101: 0 | CR101: 0 | CU101: 630.957344 | CV101: 0.373797 | CW101: 0 | CX101: 0 | DA101: 630.957344 | DB101: 0.121584 | DC101: 0.331289 | DD101: 0.220172 | DG101: 630.957344 | DH101: 1.742767 | DI101: 1.841998 | DJ101: 1.92061 | DM101: 630.957344 | DN101: 8.381422 | DO101: 8.382033 | DP101: 9.444851 | DS101: 630.957344 | DT101: 0.384138 | DU101: 0 | DV101: 0.060546 | EA101: 630.957344 | EB101: 4.767427333 | EC101: 2.491484333 | ED101: 6.491713667 | EE101: 3.9170485 | EF101: 3.840271 | EG101: 0 | EH101: 0.2901843333 | EI101: 1.807274333 | EJ101: 0.24152 | EK101: 0.107775 | EL101: 0.4612466667 | EM101: 0 | EN101: 0 | EO101: 0.1843756667 | EP101: 0.4970066667 | EQ101: 0 | ER101: 0.124599 | ES101: 0.2243483333 | ET101: 1.835125 | EU101: 8.736102 | EV101: 0.148228
B102: 724.43596 | C102: 4.362259 | D102: 4.371915 | E102: 5.084114 | H102: 724.43596 | I102: 1.911608 | J102: 1.189253 | K102: 1.622796 | N102: 724.43596 | O102: 7.780315 | P102: 6.733733 | Q102: 6.534928 | T102: 724.43596 | U102: 3.27726 | V102: 2.168958 | W102: 1.899784 | AA102: 724.43596 | AB102: 2.348868 | AC102: 1.208567 | AD102: 1.140497 | AG102: 724.43596 | AH102: 0 | AI102: 0 | AJ102: 0 | AM102: 724.43596 | AN102: 0.688099 | AO102: 0.149185 | AP102: 0.214363 | AS102: 724.43596 | AT102: 1.892322 | AU102: 1.500476 | AV102: 0.93586 | AY102: 724.43596 | AZ102: 0 | BA102: 0.699683 | BB102: 0 | BE102: 724.43596 | BF102: 0 | BG102: 0 | BH102: 0.264284 | BK102: 724.43596 | BL102: 0.783741 | BM102: 0.144117 | BN102: 0.250311 | BQ102: 724.43596 | BR102: 0 | BS102: 0 | BT102: 0 | BW102: 724.43596 | BX102: 0 | BY102: 0 | BZ102: 0 | CC102: 724.43596 | CD102: 0 | CE102: 0 | CF102: 0 | CI102: 724.43596 | CJ102: 0 | CK102: 0.633894 | CL102: 0.605868 | CO102: 724.43596 | CP102: 0 | CQ102: 0 | CR102: 0 | CU102: 724.43596 | CV102: 0.579148 | CW102: 0 | CX102: 0 | DA102: 724.43596 | DB102: 0 | DC102: 0 | DD102: 0 | DG102: 724.43596 | DH102: 0.087499 | DI102: 0.162779 | DJ102: 0.159341 | DM102: 724.43596 | DN102: 6.619775 | DO102: 6.847527 | DP102: 7.846696 | DS102: 724.43596 | DT102: 0 | DU102: 0 | DV102: 0 | EA102: 724.43596 | EB102: 4.606096 | EC102: 1.574552333 | ED102: 7.016325333 | EE102: 2.034371 | EF102: 1.565977333 | EG102: 0 | EH102: 0.350549 | EI102: 1.442886 | EJ102: 0.2332276667 | EK102: 0.08809466667 | EL102: 0.392723 | EM102: 0 | EN102: 0 | EO102: 0 | EP102: 0.413254 | EQ102: 0 | ER102: 0.1930493333 | ES102: 0 | ET102: 0.1365396667 | EU102: 7.104666 | EV102: 0
B103: 831.763771 | C103: 4.638587 | D103: 4.178254 | E103: 4.630322 | H103: 831.763771 | I103: 1.572917 | J103: 0.611221 | K103: 1.310237 | N103: 831.763771 | O103: 8.09495 | P103: 6.908906 | Q103: 7.019964 | T103: 831.763771 | U103: 1.676569 | V103: 0.449711 | W103: 0.33707 | AA103: 831.763771 | AB103: 0.737933 | AC103: 0.062853 | AD103: 0.08001 | AG103: 831.763771 | AH103: 0 | AI103: 0 | AJ103: 0 | AM103: 831.763771 | AN103: 0.794416 | AO103: 0.215748 | AP103: 0.224258 | AS103: 831.763771 | AT103: 1.921142 | AU103: 1.205635 | AV103: 1.125372 | AY103: 831.763771 | AZ103: 0 | BA103: 0.780711 | BB103: 0 | BE103: 831.763771 | BF103: 0 | BG103: 0 | BH103: 0.294499 | BK103: 831.763771 | BL103: 0.624281 | BM103: 0.065334 | BN103: 0.256772 | BQ103: 831.763771 | BR103: 0 | BS103: 0 | BT103: 0 | BW103: 831.763771 | BX103: 0 | BY103: 0 | BZ103: 0 | CC103: 831.763771 | CD103: 0 | CE103: 0 | CF103: 0 | CI103: 831.763771 | CJ103: 0 | CK103: 0.700703 | CL103: 0.369142 | CO103: 831.763771 | CP103: 0 | CQ103: 0 | CR103: 0 | CU103: 831.763771 | CV103: 0.863287 | CW103: 0 | CX103: 0 | DA103: 831.763771 | DB103: 0 | DC103: 0 | DD103: 0 | DG103: 831.763771 | DH103: 0 | DI103: 0 | DJ103: 0 | DM103: 831.763771 | DN103: 4.68195 | DO103: 5.067033 | DP103: 5.953921 | DS103: 831.763771 | DT103: 0 | DU103: 0 | DV103: 0 | EA103: 831.763771 | EB103: 4.482387667 | EC103: 1.164791667 | ED103: 7.341273333 | EE103: 0.3933905 | EF103: 0.2935986667 | EG103: 0 | EH103: 0.411474 | EI103: 1.417383 | EJ103: 0.260237 | EK103: 0.09816633333 | EL103: 0.3154623333 | EM103: 0 | EN103: 0 | EO103: 0 | EP103: 0.356615 | EQ103: 0 | ER103: 0.2877623333 | ES103: 0 | ET103: 0 | EU103: 5.234301333 | EV103: 0
B104: 954.992586 | C104: 4.911854 | D104: 3.962491 | E104: 4.083365 | H104: 954.992586 | I104: 1.203024 | J104: 0.549925 | K104: 1.375661 | N104: 954.992586 | O104: 8.006407 | P104: 6.787447 | Q104: 7.252838 | T104: 954.992586 | U104: 0.415693 | V104: 0 | W104: 0 | AA104: 954.992586 | AB104: 0.345908 | AC104: 0 | AD104: 0 | AG104: 954.992586 | AH104: 0 | AI104: 0 | AJ104: 0 | AM104: 954.992586 | AN104: 0.975412 | AO104: 0.403964 | AP104: 0.352419 | AS104: 954.992586 | AT104: 2.090069 | AU104: 1.10632 | AV104: 1.340443 | AY104: 954.992586 | AZ104: 0 | BA104: 0.85928 | BB104: 0 | BE104: 954.992586 | BF104: 0 | BG104: 0 | BH104: 0.335532 | BK104: 954.992586 | BL104: 0.460839 | BM104: 0 | BN104: 0.276209 | BQ104: 954.992586 | BR104: 0 | BS104: 0 | BT104: 0 | BW104: 954.992586 | BX104: 0 | BY104: 0 | BZ104: 0 | CC104: 954.992586 | CD104: 0 | CE104: 0 | CF104: 0 | CI104: 954.992586 | CJ104: 0 | CK104: 0.788666 | CL104: 0.143483 | CO104: 954.992586 | CP104: 0 | CQ104: 0 | CR104: 0 | CU104: 954.992586 | CV104: 1.107177 | CW104: 0 | CX104: 0 | DA104: 954.992586 | DB104: 0 | DC104: 0 | DD104: 0 | DG104: 954.992586 | DH104: 0 | DI104: 0 | DJ104: 0 | DM104: 954.992586 | DN104: 2.794716 | DO104: 3.200176 | DP104: 4.042321 | DS104: 954.992586 | DT104: 0 | DU104: 0 | DV104: 0 | EA104: 954.992586 | EB104: 4.319236667 | EC104: 1.04287 | ED104: 7.348897333 | EE104: 0 | EF104: 0.1153026667 | EG104: 0 | EH104: 0.577265 | EI104: 1.512277333 | EJ104: 0.2864266667 | EK104: 0.111844 | EL104: 0.2456826667 | EM104: 0 | EN104: 0 | EO104: 0 | EP104: 0.3107163333 | EQ104: 0 | ER104: 0.369059 | ES104: 0 | ET104: 0 | EU104: 3.345737667 | EV104: 0
B105: 1096.478196 | C105: 5.014568 | D105: 3.657139 | E105: 3.454959 | H105: 1096.478196 | I105: 0.893959 | J105: 0.541202 | K105: 1.418333 | N105: 1096.478196 | O105: 7.48721 | P105: 6.324372 | Q105: 7.117417 | T105: 1096.478196 | U105: 0.15058 | V105: 0 | W105: 0 | AA105: 1096.478196 | AB105: 0.176385 | AC105: 0 | AD105: 0 | AG105: 1096.478196 | AH105: 0 | AI105: 0 | AJ105: 0 | AM105: 1096.478196 | AN105: 1.085846 | AO105: 0.57569 | AP105: 0.46914 | AS105: 1096.478196 | AT105: 2.237276 | AU105: 1.083114 | AV105: 1.521757 | AY105: 1096.478196 | AZ105: 0 | BA105: 0.883196 | BB105: 0 | BE105: 1096.478196 | BF105: 0 | BG105: 0 | BH105: 0.350828 | BK105: 1096.478196 | BL105: 0.299533 | BM105: 0 | BN105: 0.30105 | BQ105: 1096.478196 | BR105: 0 | BS105: 0 | BT105: 0 | BW105: 1096.478196 | BX105: 0 | BY105: 0 | BZ105: 0 | CC105: 1096.478196 | CD105: 0 | CE105: 0 | CF105: 0 | CI105: 1096.478196 | CJ105: 0 | CK105: 0.863221 | CL105: 0.034508 | CO105: 1096.478196 | CP105: 0 | CQ105: 0 | CR105: 0 | CU105: 1096.478196 | CV105: 1.255192 | CW105: 0 | CX105: 0 | DA105: 1096.478196 | DB105: 0 | DC105: 0 | DD105: 0 | DG105: 1096.478196 | DH105: 0 | DI105: 0 | DJ105: 0 | DM105: 1096.478196 | DN105: 0.918975 | DO105: 1.400605 | DP105: 2.163991 | DS105: 1096.478196 | DT105: 0 | DU105: 0 | DV105: 0 | EA105: 1096.478196 | EB105: 4.042222 | EC105: 0.9511646667 | ED105: 6.976333 | EE105: 0 | EF105: 0.058795 | EG105: 0 | EH105: 0.7102253333 | EI105: 1.614049 | EJ105: 0.2943986667 | EK105: 0.1169426667 | EL105: 0.2001943333 | EM105: 0 | EN105: 0 | EO105: 0 | EP105: 0.299243 | EQ105: 0 | ER105: 0.4183973333 | ES105: 0 | ET105: 0 | EU105: 1.494523667 | EV105: 0
B106: 1258.925412 | C106: 4.796224 | D106: 3.217923 | E106: 2.714186 | H106: 1258.925412 | I106: 0.598282 | J106: 0.536894 | K106: 1.392211 | N106: 1258.925412 | O106: 6.572987 | P106: 5.48676 | Q106: 6.550373 | T106: 1258.925412 | U106: 0 | V106: 0 | W106: 0 | AA106: 1258.925412 | AB106: 0.088506 | AC106: 0 | AD106: 0 | AG106: 1258.925412 | AH106: 0 | AI106: 0 | AJ106: 0 | AM106: 1258.925412 | AN106: 1.09316 | AO106: 0.680923 | AP106: 0.540603 | AS106: 1258.925412 | AT106: 2.238694 | AU106: 1.04097 | AV106: 1.571606 | AY106: 1258.925412 | AZ106: 0 | BA106: 0.824189 | BB106: 0 | BE106: 1258.925412 | BF106: 0 | BG106: 0 | BH106: 0.327643 | BK106: 1258.925412 | BL106: 0.137923 | BM106: 0 | BN106: 0.316187 | BQ106: 1258.925412 | BR106: 0 | BS106: 0 | BT106: 0 | BW106: 1258.925412 | BX106: 0 | BY106: 0 | BZ106: 0 | CC106: 1258.925412 | CD106: 0 | CE106: 0 | CF106: 0 | CI106: 1258.925412 | CJ106: 0 | CK106: 0.886939 | CL106: 0 | CO106: 1258.925412 | CP106: 0 | CQ106: 0 | CR106: 0 | CU106: 1258.925412 | CV106: 1.270624 | CW106: 0 | CX106: 0 | DA106: 1258.925412 | DB106: 0 | DC106: 0 | DD106: 0 | DG106: 1258.925412 | DH106: 0 | DI106: 0 | DJ106: 0 | DM106: 1258.925412 | DN106: 0 | DO106: 0.328307 | DP106: 0.545895 | DS106: 1258.925412 | DT106: 0 | DU106: 0 | DV106: 0 | EA106: 1258.925412 | EB106: 3.576111 | EC106: 0.8424623333 | ED106: 6.203373333 | EE106: 0 | EF106: 0.029502 | EG106: 0 | EH106: 0.771562 | EI106: 1.61709 | EJ106: 0.2747296667 | EK106: 0.1092143333 | EL106: 0.15137 | EM106: 0 | EN106: 0 | EO106: 0 | EP106: 0.2956463333 | EQ106: 0 | ER106: 0.4235413333 | ES106: 0 | ET106: 0 | EU106: 0.2914006667 | EV106: 0
B107: 1445.439771 | C107: 4.164411 | D107: 2.639112 | E107: 1.869104 | H107: 1445.439771 | I107: 0.411247 | J107: 0.489362 | K107: 1.242336 | N107: 1445.439771 | O107: 5.350394 | P107: 4.289965 | Q107: 5.554344 | T107: 1445.439771 | U107: 0 | V107: 0 | W107: 0 | AA107: 1445.439771 | AB107: 0.043415 | AC107: 0 | AD107: 0 | AG107: 1445.439771 | AH107: 0 | AI107: 0 | AJ107: 0 | AM107: 1445.439771 | AN107: 0.980335 | AO107: 0.678894 | AP107: 0.535071 | AS107: 1445.439771 | AT107: 2.02774 | AU107: 0.925559 | AV107: 1.447848 | AY107: 1445.439771 | AZ107: 0 | BA107: 0.689854 | BB107: 0 | BE107: 1445.439771 | BF107: 0 | BG107: 0 | BH107: 0.272411 | BK107: 1445.439771 | BL107: 0.085836 | BM107: 0 | BN107: 0.303132 | BQ107: 1445.439771 | BR107: 0 | BS107: 0 | BT107: 0 | BW107: 1445.439771 | BX107: 0 | BY107: 0 | BZ107: 0 | CC107: 1445.439771 | CD107: 0 | CE107: 0 | CF107: 0 | CI107: 1445.439771 | CJ107: 0 | CK107: 0.828024 | CL107: 0 | CO107: 1445.439771 | CP107: 0 | CQ107: 0 | CR107: 0 | CU107: 1445.439771 | CV107: 1.146689 | CW107: 0 | CX107: 0 | DA107: 1445.439771 | DB107: 0 | DC107: 0 | DD107: 0 | DG107: 1445.439771 | DH107: 0 | DI107: 0 | DJ107: 0 | DM107: 1445.439771 | DN107: 0 | DO107: 0 | DP107: 0 | DS107: 1445.439771 | DT107: 0 | DU107: 0 | DV107: 0 | EA107: 1445.439771 | EB107: 2.890875667 | EC107: 0.714315 | ED107: 5.064901 | EE107: 0 | EF107: 0.01447166667 | EG107: 0 | EH107: 0.7314333333 | EI107: 1.467049 | EJ107: 0.2299513333 | EK107: 0.09080366667 | EL107: 0.129656 | EM107: 0 | EN107: 0 | EO107: 0 | EP107: 0.276008 | EQ107: 0 | ER107: 0.3822296667 | ES107: 0 | ET107: 0 | EU107: 0 | EV107: 0
B108: 1659.586907 | C108: 3.115935 | D108: 1.953975 | E108: 1.305553 | H108: 1659.586907 | I108: 0.197264 | J108: 0.39089 | K108: 0.974536 | N108: 1659.586907 | O108: 3.936323 | P108: 3.202573 | Q108: 4.218746 | T108: 1659.586907 | U108: 0 | V108: 0 | W108: 0 | AA108: 1659.586907 | AB108: 0.018944 | AC108: 0 | AD108: 0 | AG108: 1659.586907 | AH108: 0 | AI108: 0 | AJ108: 0 | AM108: 1659.586907 | AN108: 0.767958 | AO108: 0.570738 | AP108: 0.451017 | AS108: 1659.586907 | AT108: 1.613104 | AU108: 0.727536 | AV108: 1.162318 | AY108: 1659.586907 | AZ108: 0 | BA108: 0.507482 | BB108: 0 | BE108: 1659.586907 | BF108: 0 | BG108: 0 | BH108: 0.203543 | BK108: 1659.586907 | BL108: 0.062772 | BM108: 0 | BN108: 0.258339 | BQ108: 1659.586907 | BR108: 0 | BS108: 0 | BT108: 0 | BW108: 1659.586907 | BX108: 0 | BY108: 0 | BZ108: 0 | CC108: 1659.586907 | CD108: 0 | CE108: 0 | CF108: 0 | CI108: 1659.586907 | CJ108: 0 | CK108: 0.678569 | CL108: 0 | CO108: 1659.586907 | CP108: 0 | CQ108: 0 | CR108: 0 | CU108: 1659.586907 | CV108: 0.907467 | CW108: 0 | CX108: 0 | DA108: 1659.586907 | DB108: 0 | DC108: 0 | DD108: 0 | DG108: 1659.586907 | DH108: 0 | DI108: 0 | DJ108: 0 | DM108: 1659.586907 | DN108: 0 | DO108: 0 | DP108: 0 | DS108: 1659.586907 | DT108: 0 | DU108: 0 | DV108: 0 | EA108: 1659.586907 | EB108: 2.125154333 | EC108: 0.5208966667 | ED108: 3.785880667 | EE108: 0 | EF108: 0.006314666667 | EG108: 0 | EH108: 0.596571 | EI108: 1.167652667 | EJ108: 0.1691606667 | EK108: 0.06784766667 | EL108: 0.107037 | EM108: 0 | EN108: 0 | EO108: 0 | EP108: 0.2261896667 | EQ108: 0 | ER108: 0.302489 | ES108: 0 | ET108: 0 | EU108: 0 | EV108: 0
B109: 1905.460718 | C109: 1.809819 | D109: 1.095762 | E109: 0.65924 | H109: 1905.460718 | I109: 0.030403 | J109: 0.230473 | K109: 0.568693 | N109: 1905.460718 | O109: 2.217384 | P109: 1.843292 | Q109: 2.424274 | T109: 1905.460718 | U109: 0 | V109: 0 | W109: 0 | AA109: 1905.460718 | AB109: 0.008403 | AC109: 0 | AD109: 0 | AG109: 1905.460718 | AH109: 0 | AI109: 0 | AJ109: 0 | AM109: 1905.460718 | AN109: 0.447094 | AO109: 0.34597 | AP109: 0.274892 | AS109: 1905.460718 | AT109: 0.951534 | AU109: 0.425631 | AV109: 0.688467 | AY109: 1905.460718 | AZ109: 0 | BA109: 0.279021 | BB109: 0 | BE109: 1905.460718 | BF109: 0 | BG109: 0 | BH109: 0.107375 | BK109: 1905.460718 | BL109: 0.036334 | BM109: 0 | BN109: 0.150114 | BQ109: 1905.460718 | BR109: 0 | BS109: 0 | BT109: 0 | BW109: 1905.460718 | BX109: 0 | BY109: 0 | BZ109: 0 | CC109: 1905.460718 | CD109: 0 | CE109: 0 | CF109: 0 | CI109: 1905.460718 | CJ109: 0 | CK109: 0.408649 | CL109: 0 | CO109: 1905.460718 | CP109: 0 | CQ109: 0 | CR109: 0 | CU109: 1905.460718 | CV109: 0.533893 | CW109: 0 | CX109: 0 | DA109: 1905.460718 | DB109: 0 | DC109: 0 | DD109: 0 | DG109: 1905.460718 | DH109: 0 | DI109: 0 | DJ109: 0 | DM109: 1905.460718 | DN109: 0 | DO109: 0 | DP109: 0 | DS109: 1905.460718 | DT109: 0 | DU109: 0 | DV109: 0 | EA109: 1905.460718 | EB109: 1.188273667 | EC109: 0.276523 | ED109: 2.16165 | EE109: 0 | EF109: 0.002801 | EG109: 0 | EH109: 0.3559853333 | EI109: 0.688544 | EJ109: 0.093007 | EK109: 0.03579166667 | EL109: 0.06214933333 | EM109: 0 | EN109: 0 | EO109: 0 | EP109: 0.1362163333 | EQ109: 0 | ER109: 0.1779643333 | ES109: 0 | ET109: 0 | EU109: 0 | EV109: 0
B110: 2187.761624 | C110: 0.446358 | D110: 0.256712 | E110: 0.128641 | H110: 2187.761624 | I110: 0 | J110: 0.055627 | K110: 0.136675 | N110: 2187.761624 | O110: 0.524289 | P110: 0.436163 | Q110: 0.579175 | T110: 2187.761624 | U110: 0 | V110: 0 | W110: 0 | AA110: 2187.761624 | AB110: 0 | AC110: 0 | AD110: 0 | AG110: 2187.761624 | AH110: 0 | AI110: 0 | AJ110: 0 | AM110: 2187.761624 | AN110: 0.10729 | AO110: 0.0847 | AP110: 0.067572 | AS110: 2187.761624 | AT110: 0.230218 | AU110: 0.102485 | AV110: 0.166855 | AY110: 2187.761624 | AZ110: 0 | BA110: 0.064196 | BB110: 0 | BE110: 2187.761624 | BF110: 0 | BG110: 0 | BH110: 0.029399 | BK110: 2187.761624 | BL110: 0.008118 | BM110: 0 | BN110: 0.042084 | BQ110: 2187.761624 | BR110: 0 | BS110: 0 | BT110: 0 | BW110: 2187.761624 | BX110: 0 | BY110: 0 | BZ110: 0 | CC110: 2187.761624 | CD110: 0 | CE110: 0 | CF110: 0 | CI110: 2187.761624 | CJ110: 0 | CK110: 0.099976 | CL110: 0 | CO110: 2187.761624 | CP110: 0 | CQ110: 0 | CR110: 0 | CU110: 2187.761624 | CV110: 0.129066 | CW110: 0 | CX110: 0 | DA110: 2187.761624 | DB110: 0 | DC110: 0 | DD110: 0 | DG110: 2187.761624 | DH110: 0 | DI110: 0 | DJ110: 0 | DM110: 2187.761624 | DN110: 0 | DO110: 0 | DP110: 0 | DS110: 2187.761624 | DT110: 0 | DU110: 0 | DV110: 0 | EA110: 2187.761624 | EB110: 0.277237 | EC110: 0.06410066667 | ED110: 0.513209 | EE110: 0 | EF110: 0 | EG110: 0 | EH110: 0.08652066667 | EI110: 0.1665193333 | EJ110: 0.02139866667 | EK110: 0.009799666667 | EL110: 0.016734 | EM110: 0 | EN110: 0 | EO110: 0 | EP110: 0.03332533333 | EQ110: 0 | ER110: 0.043022 | ES110: 0 | ET110: 0 | EU110: 0 | EV110: 0
B111: 2511.886432 | C111: 0 | D111: 0 | E111: 0 | H111: 2511.886432 | I111: 0 | J111: 0 | K111: 0 | N111: 2511.886432 | O111: 0 | P111: 0 | Q111: 0 | T111: 2511.886432 | U111: 0 | V111: 0 | W111: 0 | AA111: 2511.886432 | AB111: 0 | AC111: 0 | AD111: 0 | AG111: 2511.886432 | AH111: 0 | AI111: 0 | AJ111: 0 | AM111: 2511.886432 | AN111: 0 | AO111: 0 | AP111: 0 | AS111: 2511.886432 | AT111: 0 | AU111: 0 | AV111: 0 | AY111: 2511.886432 | AZ111: 0 | BA111: 0 | BB111: 0 | BE111: 2511.886432 | BF111: 0 | BG111: 0 | BH111: 0 | BK111: 2511.886432 | BL111: 0 | BM111: 0 | BN111: 0 | BQ111: 2511.886432 | BR111: 0 | BS111: 0 | BT111: 0 | BW111: 2511.886432 | BX111: 0 | BY111: 0 | BZ111: 0 | CC111: 2511.886432 | CD111: 0 | CE111: 0 | CF111: 0 | CI111: 2511.886432 | CJ111: 0 | CK111: 0 | CL111: 0 | CO111: 2511.886432 | CP111: 0 | CQ111: 0 | CR111: 0 | CU111: 2511.886432 | CV111: 0 | CW111: 0 | CX111: 0 | DA111: 2511.886432 | DB111: 0 | DC111: 0 | DD111: 0 | DG111: 2511.886432 | DH111: 0 | DI111: 0 | DJ111: 0 | DM111: 2511.886432 | DN111: 0 | DO111: 0 | DP111: 0 | DS111: 2511.886432 | DT111: 0 | DU111: 0 | DV111: 0 | EA111: 2511.886432 | EB111: 0 | EC111: 0 | ED111: 0 | EE111: 0 | EF111: 0 | EG111: 0 | EH111: 0 | EI111: 0 | EJ111: 0 | EK111: 0 | EL111: 0 | EM111: 0 | EN111: 0 | EO111: 0 | EP111: 0 | EQ111: 0 | ER111: 0 | ES111: 0 | ET111: 0 | EU111: 0 | EV111: 0
B112: 2884.031503 | C112: 0 | D112: 0 | E112: 0 | H112: 2884.031503 | I112: 0 | J112: 0 | K112: 0 | N112: 2884.031503 | O112: 0 | P112: 0 | Q112: 0 | T112: 2884.031503 | U112: 0 | V112: 0 | W112: 0 | AA112: 2884.031503 | AB112: 0 | AC112: 0 | AD112: 0 | AG112: 2884.031503 | AH112: 0 | AI112: 0 | AJ112: 0 | AM112: 2884.031503 | AN112: 0 | AO112: 0 | AP112: 0 | AS112: 2884.031503 | AT112: 0 | AU112: 0 | AV112: 0 | AY112: 2884.031503 | AZ112: 0 | BA112: 0 | BB112: 0 | BE112: 2884.031503 | BF112: 0 | BG112: 0 | BH112: 0 | BK112: 2884.031503 | BL112: 0 | BM112: 0 | BN112: 0 | BQ112: 2884.031503 | BR112: 0 | BS112: 0 | BT112: 0 | BW112: 2884.031503 | BX112: 0 | BY112: 0 | BZ112: 0 | CC112: 2884.031503 | CD112: 0 | CE112: 0 | CF112: 0 | CI112: 2884.031503 | CJ112: 0 | CK112: 0 | CL112: 0 | CO112: 2884.031503 | CP112: 0 | CQ112: 0 | CR112: 0 | CU112: 2884.031503 | CV112: 0 | CW112: 0 | CX112: 0 | DA112: 2884.031503 | DB112: 0 | DC112: 0 | DD112: 0 | DG112: 2884.031503 | DH112: 0 | DI112: 0 | DJ112: 0 | DM112: 2884.031503 | DN112: 0 | DO112: 0 | DP112: 0 | DS112: 2884.031503 | DT112: 0 | DU112: 0 | DV112: 0 | EA112: 2884.031503 | EB112: 0 | EC112: 0 | ED112: 0 | EE112: 0 | EF112: 0 | EG112: 0 | EH112: 0 | EI112: 0 | EJ112: 0 | EK112: 0 | EL112: 0 | EM112: 0 | EN112: 0 | EO112: 0 | EP112: 0 | EQ112: 0 | ER112: 0 | ES112: 0 | ET112: 0 | EU112: 0 | EV112: 0
B113: 3311.311215 | C113: 0 | D113: 0 | E113: 0 | H113: 3311.311215 | I113: 0 | J113: 0 | K113: 0 | N113: 3311.311215 | O113: 0 | P113: 0 | Q113: 0 | T113: 3311.311215 | U113: 0 | V113: 0 | W113: 0 | AA113: 3311.311215 | AB113: 0 | AC113: 0 | AD113: 0 | AG113: 3311.311215 | AH113: 0 | AI113: 0 | AJ113: 0 | AM113: 3311.311215 | AN113: 0 | AO113: 0 | AP113: 0 | AS113: 3311.311215 | AT113: 0 | AU113: 0 | AV113: 0 | AY113: 3311.311215 | AZ113: 0 | BA113: 0 | BB113: 0 | BE113: 3311.311215 | BF113: 0 | BG113: 0 | BH113: 0 | BK113: 3311.311215 | BL113: 0 | BM113: 0 | BN113: 0 | BQ113: 3311.311215 | BR113: 0 | BS113: 0 | BT113: 0 | BW113: 3311.311215 | BX113: 0 | BY113: 0 | BZ113: 0 | CC113: 3311.311215 | CD113: 0 | CE113: 0 | CF113: 0 | CI113: 3311.311215 | CJ113: 0 | CK113: 0 | CL113: 0 | CO113: 3311.311215 | CP113: 0 | CQ113: 0 | CR113: 0 | CU113: 3311.311215 | CV113: 0 | CW113: 0 | CX113: 0 | DA113: 3311.311215 | DB113: 0 | DC113: 0 | DD113: 0 | DG113: 3311.311215 | DH113: 0 | DI113: 0 | DJ113: 0 | DM113: 3311.311215 | DN113: 0 | DO113: 0 | DP113: 0 | DS113: 3311.311215 | DT113: 0 | DU113: 0 | DV113: 0 | EA113: 3311.311215 | EB113: 0 | EC113: 0 | ED113: 0 | EE113: 0 | EF113: 0 | EG113: 0 | EH113: 0 | EI113: 0 | EJ113: 0 | EK113: 0 | EL113: 0 | EM113: 0 | EN113: 0 | EO113: 0 | EP113: 0 | EQ113: 0 | ER113: 0 | ES113: 0 | ET113: 0 | EU113: 0 | EV113: 0
B114: 3801.893963 | C114: 0 | D114: 0 | E114: 0 | H114: 3801.893963 | I114: 0 | J114: 0 | K114: 0 | N114: 3801.893963 | O114: 0 | P114: 0 | Q114: 0 | T114: 3801.893963 | U114: 0 | V114: 0 | W114: 0 | AA114: 3801.893963 | AB114: 0 | AC114: 0 | AD114: 0 | AG114: 3801.893963 | AH114: 0 | AI114: 0 | AJ114: 0 | AM114: 3801.893963 | AN114: 0 | AO114: 0 | AP114: 0 | AS114: 3801.893963 | AT114: 0 | AU114: 0 | AV114: 0 | AY114: 3801.893963 | AZ114: 0 | BA114: 0 | BB114: 0 | BE114: 3801.893963 | BF114: 0 | BG114: 0 | BH114: 0 | BK114: 3801.893963 | BL114: 0 | BM114: 0 | BN114: 0 | BQ114: 3801.893963 | BR114: 0 | BS114: 0 | BT114: 0 | BW114: 3801.893963 | BX114: 0 | BY114: 0 | BZ114: 0 | CC114: 3801.893963 | CD114: 0 | CE114: 0 | CF114: 0 | CI114: 3801.893963 | CJ114: 0 | CK114: 0 | CL114: 0 | CO114: 3801.893963 | CP114: 0 | CQ114: 0 | CR114: 0 | CU114: 3801.893963 | CV114: 0 | CW114: 0 | CX114: 0 | DA114: 3801.893963 | DB114: 0 | DC114: 0 | DD114: 0 | DG114: 3801.893963 | DH114: 0 | DI114: 0 | DJ114: 0 | DM114: 3801.893963 | DN114: 0 | DO114: 0 | DP114: 0 | DS114: 3801.893963 | DT114: 0 | DU114: 0 | DV114: 0 | EA114: 3801.893963 | EB114: 0 | EC114: 0 | ED114: 0 | EE114: 0 | EF114: 0 | EG114: 0 | EH114: 0 | EI114: 0 | EJ114: 0 | EK114: 0 | EL114: 0 | EM114: 0 | EN114: 0 | EO114: 0 | EP114: 0 | EQ114: 0 | ER114: 0 | ES114: 0 | ET114: 0 | EU114: 0 | EV114: 0
B115: 4365.158322 | C115: 0 | D115: 0 | E115: 0 | H115: 4365.158322 | I115: 0 | J115: 0 | K115: 0 | N115: 4365.158322 | O115: 0 | P115: 0 | Q115: 0 | T115: 4365.158322 | U115: 0 | V115: 0 | W115: 0 | AA115: 4365.158322 | AB115: 0 | AC115: 0 | AD115: 0 | AG115: 4365.158322 | AH115: 0 | AI115: 0 | AJ115: 0 | AM115: 4365.158322 | AN115: 0 | AO115: 0 | AP115: 0 | AS115: 4365.158322 | AT115: 0 | AU115: 0 | AV115: 0 | AY115: 4365.158322 | AZ115: 0 | BA115: 0 | BB115: 0 | BE115: 4365.158322 | BF115: 0 | BG115: 0 | BH115: 0 | BK115: 4365.158322 | BL115: 0 | BM115: 0 | BN115: 0 | BQ115: 4365.158322 | BR115: 0 | BS115: 0 | BT115: 0 | BW115: 4365.158322 | BX115: 0 | BY115: 0 | BZ115: 0 | CC115: 4365.158322 | CD115: 0 | CE115: 0 | CF115: 0 | CI115: 4365.158322 | CJ115: 0 | CK115: 0 | CL115: 0 | CO115: 4365.158322 | CP115: 0 | CQ115: 0 | CR115: 0 | CU115: 4365.158322 | CV115: 0 | CW115: 0 | CX115: 0 | DA115: 4365.158322 | DB115: 0 | DC115: 0 | DD115: 0 | DG115: 4365.158322 | DH115: 0 | DI115: 0 | DJ115: 0 | DM115: 4365.158322 | DN115: 0 | DO115: 0 | DP115: 0 | DS115: 4365.158322 | DT115: 0 | DU115: 0 | DV115: 0 | EA115: 4365.158322 | EB115: 0 | EC115: 0 | ED115: 0 | EE115: 0 | EF115: 0 | EG115: 0 | EH115: 0 | EI115: 0 | EJ115: 0 | EK115: 0 | EL115: 0 | EM115: 0 | EN115: 0 | EO115: 0 | EP115: 0 | EQ115: 0 | ER115: 0 | ES115: 0 | ET115: 0 | EU115: 0 | EV115: 0
B116: 5011.872336 | C116: 0 | D116: 0 | E116: 0 | H116: 5011.872336 | I116: 0 | J116: 0 | K116: 0 | N116: 5011.872336 | O116: 0 | P116: 0 | Q116: 0 | T116: 5011.872336 | U116: 0 | V116: 0 | W116: 0 | AA116: 5011.872336 | AB116: 0 | AC116: 0 | AD116: 0 | AG116: 5011.872336 | AH116: 0 | AI116: 0 | AJ116: 0 | AM116: 5011.872336 | AN116: 0 | AO116: 0 | AP116: 0 | AS116: 5011.872336 | AT116: 0 | AU116: 0 | AV116: 0 | AY116: 5011.872336 | AZ116: 0 | BA116: 0 | BB116: 0 | BE116: 5011.872336 | BF116: 0 | BG116: 0 | BH116: 0 | BK116: 5011.872336 | BL116: 0 | BM116: 0 | BN116: 0 | BQ116: 5011.872336 | BR116: 0 | BS116: 0 | BT116: 0 | BW116: 5011.872336 | BX116: 0 | BY116: 0 | BZ116: 0 | CC116: 5011.872336 | CD116: 0 | CE116: 0 | CF116: 0 | CI116: 5011.872336 | CJ116: 0 | CK116: 0 | CL116: 0 | CO116: 5011.872336 | CP116: 0 | CQ116: 0 | CR116: 0 | CU116: 5011.872336 | CV116: 0 | CW116: 0 | CX116: 0 | DA116: 5011.872336 | DB116: 0 | DC116: 0 | DD116: 0 | DG116: 5011.872336 | DH116: 0 | DI116: 0 | DJ116: 0 | DM116: 5011.872336 | DN116: 0 | DO116: 0 | DP116: 0 | DS116: 5011.872336 | DT116: 0 | DU116: 0 | DV116: 0 | EA116: 5011.872336 | EB116: 0 | EC116: 0 | ED116: 0 | EE116: 0 | EF116: 0 | EG116: 0 | EH116: 0 | EI116: 0 | EJ116: 0 | EK116: 0 | EL116: 0 | EM116: 0 | EN116: 0 | EO116: 0 | EP116: 0 | EQ116: 0 | ER116: 0 | ES116: 0 | ET116: 0 | EU116: 0 | EV116: 0
B117: 5754.399373 | C117: 0 | D117: 0 | E117: 0 | H117: 5754.399373 | I117: 0 | J117: 0 | K117: 0 | N117: 5754.399373 | O117: 0 | P117: 0 | Q117: 0 | T117: 5754.399373 | U117: 0 | V117: 0 | W117: 0 | AA117: 5754.399373 | AB117: 0 | AC117: 0 | AD117: 0 | AG117: 5754.399373 | AH117: 0 | AI117: 0 | AJ117: 0 | AM117: 5754.399373 | AN117: 0 | AO117: 0 | AP117: 0 | AS117: 5754.399373 | AT117: 0 | AU117: 0 | AV117: 0 | AY117: 5754.399373 | AZ117: 0 | BA117: 0 | BB117: 0 | BE117: 5754.399373 | BF117: 0 | BG117: 0 | BH117: 0 | BK117: 5754.399373 | BL117: 0 | BM117: 0 | BN117: 0 | BQ117: 5754.399373 | BR117: 0 | BS117: 0 | BT117: 0 | BW117: 5754.399373 | BX117: 0 | BY117: 0 | BZ117: 0 | CC117: 5754.399373 | CD117: 0 | CE117: 0 | CF117: 0 | CI117: 5754.399373 | CJ117: 0 | CK117: 0 | CL117: 0 | CO117: 5754.399373 | CP117: 0 | CQ117: 0 | CR117: 0 | CU117: 5754.399373 | CV117: 0 | CW117: 0 | CX117: 0 | DA117: 5754.399373 | DB117: 0 | DC117: 0 | DD117: 0 | DG117: 5754.399373 | DH117: 0 | DI117: 0 | DJ117: 0 | DM117: 5754.399373 | DN117: 0 | DO117: 0 | DP117: 0 | DS117: 5754.399373 | DT117: 0 | DU117: 0 | DV117: 0 | EA117: 5754.399373 | EB117: 0 | EC117: 0 | ED117: 0 | EE117: 0 | EF117: 0 | EG117: 0 | EH117: 0 | EI117: 0 | EJ117: 0 | EK117: 0 | EL117: 0 | EM117: 0 | EN117: 0 | EO117: 0 | EP117: 0 | EQ117: 0 | ER117: 0 | ES117: 0 | ET117: 0 | EU117: 0 | EV117: 0
B118: 6606.93448 | C118: 0 | D118: 0 | E118: 0 | H118: 6606.93448 | I118: 0 | J118: 0 | K118: 0 | N118: 6606.93448 | O118: 0 | P118: 0 | Q118: 0 | T118: 6606.93448 | U118: 0 | V118: 0 | W118: 0 | AA118: 6606.93448 | AB118: 0 | AC118: 0 | AD118: 0 | AG118: 6606.93448 | AH118: 0 | AI118: 0 | AJ118: 0 | AM118: 6606.93448 | AN118: 0 | AO118: 0 | AP118: 0 | AS118: 6606.93448 | AT118: 0 | AU118: 0 | AV118: 0 | AY118: 6606.93448 | AZ118: 0 | BA118: 0 | BB118: 0 | BE118: 6606.93448 | BF118: 0 | BG118: 0 | BH118: 0 | BK118: 6606.93448 | BL118: 0 | BM118: 0 | BN118: 0 | BQ118: 6606.93448 | BR118: 0 | BS118: 0 | BT118: 0 | BW118: 6606.93448 | BX118: 0 | BY118: 0 | BZ118: 0 | CC118: 6606.93448 | CD118: 0 | CE118: 0 | CF118: 0 | CI118: 6606.93448 | CJ118: 0 | CK118: 0 | CL118: 0 | CO118: 6606.93448 | CP118: 0 | CQ118: 0 | CR118: 0 | CU118: 6606.93448 | CV118: 0 | CW118: 0 | CX118: 0 | DA118: 6606.93448 | DB118: 0 | DC118: 0 | DD118: 0 | DG118: 6606.93448 | DH118: 0 | DI118: 0 | DJ118: 0 | DM118: 6606.93448 | DN118: 0 | DO118: 0 | DP118: 0 | DS118: 6606.93448 | DT118: 0 | DU118: 0 | DV118: 0 | EA118: 6606.93448 | EB118: 0 | EC118: 0 | ED118: 0 | EE118: 0 | EF118: 0 | EG118: 0 | EH118: 0 | EI118: 0 | EJ118: 0 | EK118: 0 | EL118: 0 | EM118: 0 | EN118: 0 | EO118: 0 | EP118: 0 | EQ118: 0 | ER118: 0 | ES118: 0 | ET118: 0 | EU118: 0 | EV118: 0
B119: 7585.77575 | C119: 0 | D119: 0 | E119: 0 | H119: 7585.77575 | I119: 0 | J119: 0 | K119: 0 | N119: 7585.77575 | O119: 0 | P119: 0 | Q119: 0 | T119: 7585.77575 | U119: 0 | V119: 0 | W119: 0 | AA119: 7585.77575 | AB119: 0 | AC119: 0 | AD119: 0 | AG119: 7585.77575 | AH119: 0 | AI119: 0 | AJ119: 0 | AM119: 7585.77575 | AN119: 0 | AO119: 0 | AP119: 0 | AS119: 7585.77575 | AT119: 0 | AU119: 0 | AV119: 0 | AY119: 7585.77575 | AZ119: 0 | BA119: 0 | BB119: 0 | BE119: 7585.77575 | BF119: 0 | BG119: 0 | BH119: 0 | BK119: 7585.77575 | BL119: 0 | BM119: 0 | BN119: 0 | BQ119: 7585.77575 | BR119: 0 | BS119: 0 | BT119: 0 | BW119: 7585.77575 | BX119: 0 | BY119: 0 | BZ119: 0 | CC119: 7585.77575 | CD119: 0 | CE119: 0 | CF119: 0 | CI119: 7585.77575 | CJ119: 0 | CK119: 0 | CL119: 0 | CO119: 7585.77575 | CP119: 0 | CQ119: 0 | CR119: 0 | CU119: 7585.77575 | CV119: 0 | CW119: 0 | CX119: 0 | DA119: 7585.77575 | DB119: 0 | DC119: 0 | DD119: 0 | DG119: 7585.77575 | DH119: 0 | DI119: 0 | DJ119: 0 | DM119: 7585.77575 | DN119: 0 | DO119: 0 | DP119: 0 | DS119: 7585.77575 | DT119: 0 | DU119: 0 | DV119: 0 | EA119: 7585.77575 | EB119: 0 | EC119: 0 | ED119: 0 | EE119: 0 | EF119: 0 | EG119: 0 | EH119: 0 | EI119: 0 | EJ119: 0 | EK119: 0 | EL119: 0 | EM119: 0 | EN119: 0 | EO119: 0 | EP119: 0 | EQ119: 0 | ER119: 0 | ES119: 0 | ET119: 0 | EU119: 0 | EV119: 0
B120: 8709.6359 | C120: 0 | D120: 0 | E120: 0 | H120: 8709.6359 | I120: 0 | J120: 0 | K120: 0 | N120: 8709.6359 | O120: 0 | P120: 0 | Q120: 0 | T120: 8709.6359 | U120: 0 | V120: 0 | W120: 0 | AA120: 8709.6359 | AB120: 0 | AC120: 0 | AD120: 0 | AG120: 8709.6359 | AH120: 0 | AI120: 0 | AJ120: 0 | AM120: 8709.6359 | AN120: 0 | AO120: 0 | AP120: 0 | AS120: 8709.6359 | AT120: 0 | AU120: 0 | AV120: 0 | AY120: 8709.6359 | AZ120: 0 | BA120: 0 | BB120: 0 | BE120: 8709.6359 | BF120: 0 | BG120: 0 | BH120: 0 | BK120: 8709.6359 | BL120: 0 | BM120: 0 | BN120: 0 | BQ120: 8709.6359 | BR120: 0 | BS120: 0 | BT120: 0 | BW120: 8709.6359 | BX120: 0 | BY120: 0 | BZ120: 0 | CC120: 8709.6359 | CD120: 0 | CE120: 0 | CF120: 0 | CI120: 8709.6359 | CJ120: 0 | CK120: 0 | CL120: 0 | CO120: 8709.6359 | CP120: 0 | CQ120: 0 | CR120: 0 | CU120: 8709.6359 | CV120: 0 | CW120: 0 | CX120: 0 | DA120: 8709.6359 | DB120: 0 | DC120: 0 | DD120: 0 | DG120: 8709.6359 | DH120: 0 | DI120: 0 | DJ120: 0 | DM120: 8709.6359 | DN120: 0 | DO120: 0 | DP120: 0 | DS120: 8709.6359 | DT120: 0 | DU120: 0 | DV120: 0 | EA120: 8709.6359 | EB120: 0 | EC120: 0 | ED120: 0 | EE120: 0 | EF120: 0 | EG120: 0 | EH120: 0 | EI120: 0 | EJ120: 0 | EK120: 0 | EL120: 0 | EM120: 0 | EN120: 0 | EO120: 0 | EP120: 0 | EQ120: 0 | ER120: 0 | ES120: 0 | ET120: 0 | EU120: 0 | EV120: 0
B121: 10000 | C121: 0 | D121: 0 | E121: 0 | H121: 10000 | I121: 0 | J121: 0 | K121: 0 | N121: 10000 | O121: 0 | P121: 0 | Q121: 0 | T121: 10000 | U121: 0 | V121: 0 | W121: 0 | AA121: 10000 | AB121: 0 | AC121: 0 | AD121: 0 | AG121: 10000 | AH121: 0 | AI121: 0 | AJ121: 0 | AM121: 10000 | AN121: 0 | AO121: 0 | AP121: 0 | AS121: 10000 | AT121: 0 | AU121: 0 | AV121: 0 | AY121: 10000 | AZ121: 0 | BA121: 0 | BB121: 0 | BE121: 10000 | BF121: 0 | BG121: 0 | BH121: 0 | BK121: 10000 | BL121: 0 | BM121: 0 | BN121: 0 | BQ121: 10000 | BR121: 0 | BS121: 0 | BT121: 0 | BW121: 10000 | BX121: 0 | BY121: 0 | BZ121: 0 | CC121: 10000 | CD121: 0 | CE121: 0 | CF121: 0 | CI121: 10000 | CJ121: 0 | CK121: 0 | CL121: 0 | CO121: 10000 | CP121: 0 | CQ121: 0 | CR121: 0 | CU121: 10000 | CV121: 0 | CW121: 0 | CX121: 0 | DA121: 10000 | DB121: 0 | DC121: 0 | DD121: 0 | DG121: 10000 | DH121: 0 | DI121: 0 | DJ121: 0 | DM121: 10000 | DN121: 0 | DO121: 0 | DP121: 0 | DS121: 10000 | DT121: 0 | DU121: 0 | DV121: 0 | EA121: 10000 | EB121: 0 | EC121: 0 | ED121: 0 | EE121: 0 | EF121: 0 | EG121: 0 | EH121: 0 | EI121: 0 | EJ121: 0 | EK121: 0 | EL121: 0 | EM121: 0 | EN121: 0 | EO121: 0 | EP121: 0 | EQ121: 0 | ER121: 0 | ES121: 0 | ET121: 0 | EU121: 0 | EV121: 0
Z124: Sample Name | AA124: Analysis date and time | AB124: Operator name | AC124: Obscuration | AD124: Residual | AE124: Mode | AF124: Sample Name | AG124: Analysis date and time | AH124: Operator name | AI124: Obscuration | AJ124: Residual | AK124: Mode | AL124: Skewness | AM124: Kurtosis | AN124: d (0.1) | AO124: d (0.5) | AP124: d (0.9) | AQ124: Specific surface area | AR124: Result Below 6.000 µm | AS124: Result 6.00µm-63.00µm | AT124: Result 63.00µm-2000.00µm | AU124: Result 63.00µm-125.00µm | AV124: Result 125.00µm-250.00µm | AW124: Result 250.00µm-500.00µm | AX124: Result 500.00µm-1000.00µm | AY124: Result 1000.00µm-2000.00µm | AZ124: Result Between User Sizes (Sizes in um)
AZ125: 0.01 | BA125: 0.011482 | BB125: 0.013183 | BC125: 0.015136 | BD125: 0.017378 | BE125: 0.019953 | BF125: 0.022909 | BG125: 0.026303 | BH125: 0.0302 | BI125: 0.034674 | BJ125: 0.039811 | BK125: 0.045709 | BL125: 0.052481 | BM125: 0.060256 | BN125: 0.069183 | BO125: 0.079433 | BP125: 0.091201 | BQ125: 0.104713 | BR125: 0.120226 | BS125: 0.138038 | BT125: 0.158489 | BU125: 0.18197 | BV125: 0.20893 | BW125: 0.239883 | BX125: 0.275423 | BY125: 0.316228 | BZ125: 0.363078 | CA125: 0.416869 | CB125: 0.47863 | CC125: 0.549541 | CD125: 0.630957 | CE125: 0.724436 | CF125: 0.831764 | CG125: 0.954993 | CH125: 1.096478 | CI125: 1.258925 | CJ125: 1.44544 | CK125: 1.659587 | CL125: 1.905461 | CM125: 2.187762 | CN125: 2.511886 | CO125: 2.884031 | CP125: 3.311311 | CQ125: 3.801894 | CR125: 4.365158 | CS125: 5.011872 | CT125: 5.754399 | CU125: 6.606934 | CV125: 7.585776 | CW125: 8.709636 | CX125: 10 | CY125: 11.481536 | CZ125: 13.182567 | DA125: 15.135612 | DB125: 17.378008 | DC125: 19.952623 | DD125: 22.908677 | DE125: 26.30268 | DF125: 30.199517 | DG125: 34.673685 | DH125: 39.810717 | DI125: 45.708819 | DJ125: 52.480746 | DK125: 60.255959 | DL125: 69.183097 | DM125: 79.432823 | DN125: 91.201084 | DO125: 104.712855 | DP125: 120.226443 | DQ125: 138.038426 | DR125: 158.489319 | DS125: 181.970086 | DT125: 208.929613 | DU125: 239.883292 | DV125: 275.42287 | DW125: 316.227766 | DX125: 363.078055 | DY125: 416.869383 | DZ125: 478.630092 | EA125: 549.540874 | EB125: 630.957344 | EC125: 724.43596 | ED125: 831.763771 | EE125: 954.992586 | EF125: 1096.478196 | EG125: 1258.925412 | EH125: 1445.439771 | EI125: 1659.586907 | EJ125: 1905.460718 | EK125: 2187.761624 | EL125: 2511.886432 | EM125: 2884.031503 | EN125: 3311.311215 | EO125: 3801.893963 | EP125: 4365.158322 | EQ125: 5011.872336 | ER125: 5754.399373 | ES125: 6606.93448 | ET125: 7585.77575 | EU125: 8709.6359 | EV125: 10000
Z126: [4433] C10_T1_25 bulk - a - Average | AA126: éåí ùìéùé 03 ñôèîáø 2019 10:49:33 | AB126: dorina | AC126: 8.94 | AD126: 0.845 | AE126: 236.471 | AF126: [4433] C10_T1_25 bulk - a - Average | AG126: éåí ùìéùé 03 ñôèîáø 2019 10:49:33 | AH126: dorina | AI126: 8.94 | AJ126: 0.845 | AK126: 236.471 | AL126: 0.664 | AM126: 0.127 | AN126: 158.17 | AO126: 235.781 | AP126: 349.491 | AQ126: 0.0267 | AR126: 0 | AS126: 0 | AT126: 100 | AU126: 1.491 | AV126: 55.783 | AW126: 42.68 | AX126: 0.045 | AY126: 0 | BA126: 0 | BB126: 0 | BC126: 0 | BD126: 0 | BE126: 0 | BF126: 0 | BG126: 0 | BH126: 0 | BI126: 0 | BJ126: 0 | BK126: 0 | BL126: 0 | BM126: 0 | BN126: 0 | BO126: 0 | BP126: 0 | BQ126: 0 | BR126: 0 | BS126: 0 | BT126: 0 | BU126: 0 | BV126: 0 | BW126: 0 | BX126: 0 | BY126: 0 | BZ126: 0 | CA126: 0 | CB126: 0 | CC126: 0 | CD126: 0 | CE126: 0 | CF126: 0 | CG126: 0 | CH126: 0 | CI126: 0 | CJ126: 0 | CK126: 0 | CL126: 0 | CM126: 0 | CN126: 0 | CO126: 0 | CP126: 0 | CQ126: 0 | CR126: 0 | CS126: 0 | CT126: 0 | CU126: 0 | CV126: 0 | CW126: 0 | CX126: 0 | CY126: 0 | CZ126: 0 | DA126: 0 | DB126: 0 | DC126: 0 | DD126: 0 | DE126: 0 | DF126: 0 | DG126: 0 | DH126: 0 | DI126: 0 | DJ126: 0 | DK126: 0 | DL126: 0 | DM126: 0 | DN126: 0 | DO126: 0.074924 | DP126: 0.875252 | DQ126: 2.875612 | DR126: 6.296284 | DS126: 10.546869 | DT126: 14.584229 | DU126: 16.899405 | DV126: 16.624568 | DW126: 13.839665 | DX126: 9.568799 | DY126: 5.306574 | DZ126: 2.219937 | EA126: 0.287881 | EB126: 0 | EC126: 0 | ED126: 0 | EE126: 0 | EF126: 0 | EG126: 0 | EH126: 0 | EI126: 0 | EJ126: 0 | EK126: 0 | EL126: 0 | EM126: 0 | EN126: 0 | EO126: 0 | EP126: 0 | EQ126: 0 | ER126: 0 | ES126: 0 | ET126: 0 | EU126: 0 | EV126: 0
Z127: [4433] C10_T1_25 bulk - b - Average | AA127: éåí ùìéùé 03 ñôèîáø 2019 10:56:22 | AB127: dorina | AC127: 10.94 | AD127: 0.959 | AE127: 233.775 | AF127: [4433] C10_T1_25 bulk - b - Average | AG127: éåí ùìéùé 03 ñôèîáø 2019 10:56:22 | AH127: dorina | AI127: 10.94 | AJ127: 0.959 | AK127: 233.775 | AL127: 0.669 | AM127: 0.046 | AN127: 150.285 | AO127: 232.442 | AP127: 356.108 | AQ127: 0.0273 | AR127: 0 | AS127: 0 | AT127: 100 | AU127: 2.812 | AV127: 55.451 | AW127: 41.647 | AX127: 0.09 | AY127: 0 | BA127: 0 | BB127: 0 | BC127: 0 | BD127: 0 | BE127: 0 | BF127: 0 | BG127: 0 | BH127: 0 | BI127: 0 | BJ127: 0 | BK127: 0 | BL127: 0 | BM127: 0 | BN127: 0 | BO127: 0 | BP127: 0 | BQ127: 0 | BR127: 0 | BS127: 0 | BT127: 0 | BU127: 0 | BV127: 0 | BW127: 0 | BX127: 0 | BY127: 0 | BZ127: 0 | CA127: 0 | CB127: 0 | CC127: 0 | CD127: 0 | CE127: 0 | CF127: 0 | CG127: 0 | CH127: 0 | CI127: 0 | CJ127: 0 | CK127: 0 | CL127: 0 | CM127: 0 | CN127: 0 | CO127: 0 | CP127: 0 | CQ127: 0 | CR127: 0 | CS127: 0 | CT127: 0 | CU127: 0 | CV127: 0 | CW127: 0 | CX127: 0 | CY127: 0 | CZ127: 0 | DA127: 0 | DB127: 0 | DC127: 0 | DD127: 0 | DE127: 0 | DF127: 0 | DG127: 0 | DH127: 0 | DI127: 0 | DJ127: 0 | DK127: 0 | DL127: 0 | DM127: 0 | DN127: 0 | DO127: 0.310917 | DP127: 1.668974 | DQ127: 3.972419 | DR127: 7.268068 | DS127: 10.855413 | DT127: 13.953647 | DU127: 15.562237 | DV127: 15.183292 | DW127: 12.909004 | DX127: 9.408396 | DY127: 5.694208 | DZ127: 2.76529 | EA127: 0.448136 | EB127: 0 | EC127: 0 | ED127: 0 | EE127: 0 | EF127: 0 | EG127: 0 | EH127: 0 | EI127: 0 | EJ127: 0 | EK127: 0 | EL127: 0 | EM127: 0 | EN127: 0 | EO127: 0 | EP127: 0 | EQ127: 0 | ER127: 0 | ES127: 0 | ET127: 0 | EU127: 0 | EV127: 0
Z128: [4433] C10_T1_25 bulk - d - Average | AA128: éåí ùìéùé 03 ñôèîáø 2019 11:10:14 | AB128: dorina | AC128: 11.87 | AD128: 6.649 | AE128: 1340.392 | AF128: [4433] C10_T1_25 bulk - f - Average | AG128: éåí çîéùé 12 ñôèîáø 2019 09:13:43 | AH128: Yael | AI128: 7.48 | AJ128: 0.928 | AK128: 231.221 | AL128: 0.691 | AM128: 0.203 | AN128: 155.242 | AO128: 231.124 | AP128: 343.245 | AQ128: 0.0272 | AR128: 0 | AS128: 0 | AT128: 100 | AU128: 1.788 | AV128: 57.92 | AW128: 40.254 | AX128: 0.037 | AY128: 0 | BA128: 0 | BB128: 0 | BC128: 0 | BD128: 0 | BE128: 0 | BF128: 0 | BG128: 0 | BH128: 0 | BI128: 0 | BJ128: 0 | BK128: 0 | BL128: 0 | BM128: 0 | BN128: 0 | BO128: 0 | BP128: 0 | BQ128: 0 | BR128: 0 | BS128: 0 | BT128: 0 | BU128: 0 | BV128: 0 | BW128: 0 | BX128: 0 | BY128: 0 | BZ128: 0 | CA128: 0 | CB128: 0 | CC128: 0 | CD128: 0 | CE128: 0 | CF128: 0 | CG128: 0 | CH128: 0 | CI128: 0 | CJ128: 0 | CK128: 0 | CL128: 0 | CM128: 0 | CN128: 0 | CO128: 0 | CP128: 0 | CQ128: 0 | CR128: 0 | CS128: 0 | CT128: 0 | CU128: 0 | CV128: 0 | CW128: 0 | CX128: 0 | CY128: 0 | CZ128: 0 | DA128: 0 | DB128: 0 | DC128: 0 | DD128: 0 | DE128: 0 | DF128: 0 | DG128: 0 | DH128: 0 | DI128: 0 | DJ128: 0 | DK128: 0 | DL128: 0 | DM128: 0 | DN128: 0 | DO128: 0.104194 | DP128: 1.057834 | DQ128: 3.258888 | DR128: 6.88453 | DS128: 11.20468 | DT128: 15.085755 | DU128: 17.037645 | DV128: 16.324949 | DW128: 13.228105 | DX128: 8.883089 | DY128: 4.773873 | DZ128: 1.916678 | EA128: 0.239781 | EB128: 0 | EC128: 0 | ED128: 0 | EE128: 0 | EF128: 0 | EG128: 0 | EH128: 0 | EI128: 0 | EJ128: 0 | EK128: 0 | EL128: 0 | EM128: 0 | EN128: 0 | EO128: 0 | EP128: 0 | EQ128: 0 | ER128: 0 | ES128: 0 | ET128: 0 | EU128: 0 | EV128: 0
EA140: Result Below 6.000 µm | EB140: Result 6.00µm-63.00µm | EC140: Result 63.00µm-2000.00µm | ED140: Result 63.00µm-125.00µm | EE140: Result 125.00µm-250.00µm | EF140: Result 250.00µm-500.00µm | EG140: Result 500.00µm-1000.00µm | EH140: Result 1000.00µm-2000.00µm | EI140: Result Between User Sizes (Sizes in um)
EI141: 0.01 | EJ141: 0.011482 | EK141: 0.013183 | EL141: 0.015136 | EM141: 0.017378 | EN141: 0.019953 | EO141: 0.022909 | EP141: 0.026303 | EQ141: 0.0302 | ER141: 0.034674 | ES141: 0.039811 | ET141: 0.045709 | EU141: 0.052481 | EV141: 0.060256 | FF141: 0.239883 | FG141: 0.275423 | FH141: 0.316228 | FI141: 0.363078 | FJ141: 0.416869 | FK141: 0.47863 | FL141: 0.549541 | FM141: 0.630957 | FN141: 0.724436 | FO141: 0.831764 | FP141: 0.954993 | FQ141: 1.096478 | FR141: 1.258925 | FS141: 1.44544 | FT141: 1.659587 | FU141: 1.905461 | FV141: 2.187762 | FW141: 2.511886 | FX141: 2.884031 | FY141: 3.311311 | FZ141: 3.801894 | GA141: 4.365158 | GB141: 5.011872 | GC141: 5.754399 | GD141: 6.606934 | GE141: 7.585776 | GF141: 8.709636 | GG141: 10 | GH141: 11.481536 | GI141: 13.182567 | GJ141: 15.135612 | GK141: 17.378008 | GL141: 19.952623 | GM141: 22.908677 | GN141: 26.30268 | GO141: 30.199517 | GP141: 34.673685 | GQ141: 39.810717 | GR141: 45.708819 | GS141: 52.480746 | GT141: 60.255959 | GU141: 69.183097 | GV141: 79.432823 | GW141: 91.201084 | GX141: 104.712855 | GY141: 120.226443 | GZ141: 138.038426 | HA141: 158.489319 | HB141: 181.970086 | HC141: 208.929613 | HD141: 239.883292 | HE141: 275.42287 | HF141: 316.227766 | HG141: 363.078055 | HH141: 416.869383 | HI141: 478.630092 | HJ141: 549.540874 | HK141: 630.957344 | HL141: 724.43596 | HM141: 831.763771 | HN141: 954.992586 | HO141: 1096.478196 | HP141: 1258.925412 | HQ141: 1445.439771 | HR141: 1659.586907 | HS141: 1905.460718 | HT141: 2187.761624 | HU141: 2511.886432 | HV141: 2884.031503 | HW141: 3311.311215 | HX141: 3801.893963 | HY141: 4365.158322 | HZ141: 5011.872336 | IA141: 5754.399373 | IB141: 6606.93448 | IC141: 7585.77575 | ID141: 8709.6359 | IE141: 10000
EA142: 43.402 | EB142: 56.598 | EC142: 0 | ED142: 0 | EE142: 0 | EF142: 0 | EG142: 0 | EH142: 0 | EJ142: 0 | EK142: 0 | EL142: 0 | EM142: 0 | EN142: 0 | EO142: 0 | EP142: 0 | EQ142: 0 | ER142: 0 | ES142: 0 | ET142: 0 | EU142: 0 | EV142: 0 | FF142: 0 | FG142: 0 | FH142: 0 | FI142: 0 | FJ142: 0 | FK142: 0.192711 | FL142: 0.369063 | FM142: 0.516902 | FN142: 0.640966 | FO142: 0.733677 | FP142: 0.808969 | FQ142: 0.88766 | FR142: 0.995216 | FS142: 1.161269 | FT142: 1.405459 | FU142: 1.740864 | FV142: 2.161089 | FW142: 2.654425 | FX142: 3.201191 | FY142: 3.776349 | FZ142: 4.351538 | GA142: 4.890262 | GB142: 5.367078 | GC142: 5.74873 | GD142: 6.0204 | GE142: 6.161828 | GF142: 6.166854 | GG142: 6.03282 | GH142: 5.759337 | GI142: 5.367123 | GJ142: 4.865665 | GK142: 4.295352 | GL142: 3.674111 | GM142: 3.046483 | GN142: 2.429478 | GO142: 1.861643 | GP142: 1.340111 | GQ142: 0.874576 | GR142: 0.423842 | GS142: 0.076958 | GT142: 0 | GU142: 0 | GV142: 0 | GW142: 0 | GX142: 0 | GY142: 0 | GZ142: 0 | HA142: 0 | HB142: 0 | HC142: 0 | HD142: 0 | HE142: 0 | HF142: 0 | HG142: 0 | HH142: 0 | HI142: 0 | HJ142: 0 | HK142: 0 | HL142: 0 | HM142: 0 | HN142: 0 | HO142: 0 | HP142: 0 | HQ142: 0 | HR142: 0 | HS142: 0 | HT142: 0 | HU142: 0 | HV142: 0 | HW142: 0 | HX142: 0 | HY142: 0 | HZ142: 0 | IA142: 0 | IB142: 0 | IC142: 0 | ID142: 0 | IE142: 0

Sheet Calculations (hidden)
A1: Basics | D1: Basics | G1: Basics | J1: Basics
A2: =IF('Texture Calculator'!$G$4+1.5*'Texture Calculator'!$E$4<0.15,1,0) -> 1 | B2: ((silt + 1.5*clay) < 15) | C2: SAND | D2: =IF('Texture Calculator'!$G$5+1.5*'Texture Calculator'!$E$5<0.15,1,0) -> 1 | E2: ((silt + 1.5*clay) < 15) | F2: SAND | G2: =IF('Texture Calculator'!$G$6+1.5*'Texture Calculator'!$E$6<0.15,1,0) -> 1 | H2: ((silt + 1.5*clay) < 15) | I2: SAND | J2: =IF('Texture Calculator'!$G$7+1.5*'Texture Calculator'!$E$7<0.15,1,0) -> 1 | K2: ((silt + 1.5*clay) < 15) | L2: SAND
A3: =IF(AND('Texture Calculator'!$G$4+1.5*'Texture Calculator'!$E$4>=0.15, 'Texture Calculator'!$G$4+2*'Texture Calculator'!$E$4<0.3), 2, 0) -> 0 | B3: ((silt + 1.5*clay >= 15) && (silt + 2*clay < 30)) | C3: LOAMY SAND | D3: =IF(AND('Texture Calculator'!$G$5+1.5*'Texture Calculator'!$E$5>=0.15, 'Texture Calculator'!$G$5+2*'Texture Calculator'!$E$5<0.3), 2, 0) -> 0 | E3: ((silt + 1.5*clay >= 15) && (silt + 2*clay < 30)) | F3: LOAMY SAND | G3: =IF(AND('Texture Calculator'!$G$6+1.5*'Texture Calculator'!$E$6>=0.15, 'Texture Calculator'!$G$6+2*'Texture Calculator'!$E$6<0.3), 2, 0) -> 0 | H3: ((silt + 1.5*clay >= 15) && (silt + 2*clay < 30)) | I3: LOAMY SAND | J3: =IF(AND('Texture Calculator'!$G$7+1.5*'Texture Calculator'!$E$7>=0.15, 'Texture Calculator'!$G$7+2*'Texture Calculator'!$E$7<0.3), 2, 0) -> 0 | K3: ((silt + 1.5*clay >= 15) && (silt + 2*clay < 30)) | L3: LOAMY SAND
A4: =IF(OR(AND('Texture Calculator'!$E$4>=0.07, 'Texture Calculator'!$E$4<0.2,'Texture Calculator'!$C$4>0.52,'Texture Calculator'!$G$4+2*'Texture Calculator'!$E$4>=0.3), AND('Texture Calculator'!$E$4<0.07, 'Texture Calculator'!$G$4<0.5, 'Texture Calculator'!$G$4+2*'Texture Calculator'!$E$4>=0.3)), 3,0) -> 0 | B4: ((clay >= 7 && clay < 20) && (sand > 52) && ((silt + 2*clay) >= 30) || (clay < 7 && silt < 50 && (silt+2*clay)>=30)) | C4: SANDY LOAM | D4: =IF(OR(AND('Texture Calculator'!$E$5>=0.07, 'Texture Calculator'!$E$5<0.2,'Texture Calculator'!$C$5>0.52,'Texture Calculator'!$G$5+2*'Texture Calculator'!$E$5>=0.3), AND('Texture Calculator'!$E$5<0.07, 'Texture Calculator'!$G$5<0.5, 'Texture Calculator'!$G$5+2*'Texture Calculator'!$E$5>=0.3)), 3,0) -> 0 | E4: ((clay >= 7 && clay < 20) && (sand > 52) && ((silt + 2*clay) >= 30) || (clay < 7 && silt < 50 && (silt+2*clay)>=30)) | F4: SANDY LOAM | G4: =IF(OR(AND('Texture Calculator'!$E$6>=0.07, 'Texture Calculator'!$E$6<0.2,'Texture Calculator'!$C$6>0.52,'Texture Calculator'!$G$6+2*'Texture Calculator'!$E$6>=0.3), AND('Texture Calculator'!$E$6<0.07, 'Texture Calculator'!$G$6<0.5, 'Texture Calculator'!$G$6+2*'Texture Calculator'!$E$6>=0.3)), 3,0) -> 0 | H4: ((clay >= 7 && clay < 20) && (sand > 52) && ((silt + 2*clay) >= 30) || (clay < 7 && silt < 50 && (silt+2*clay)>=30)) | I4: SANDY LOAM | J4: =IF(OR(AND('Texture Calculator'!$E$7>=0.07, 'Texture Calculator'!$E$7<0.2,'Texture Calculator'!$C$7>0.52,'Texture Calculator'!$G$7+2*'Texture Calculator'!$E$7>=0.3), AND('Texture Calculator'!$E$7<0.07, 'Texture Calculator'!$G$7<0.5, 'Texture Calculator'!$G$7+2*'Texture Calculator'!$E$7>=0.3)), 3,0) -> 0 | K4: ((clay >= 7 && clay < 20) && (sand > 52) && ((silt + 2*clay) >= 30) || (clay < 7 && silt < 50 && (silt+2*clay)>=30)) | L4: SANDY LOAM
A5: =IF(AND('Texture Calculator'!$E$4>=0.07, 'Texture Calculator'!$E$4<0.27, 'Texture Calculator'!$G$4>=0.28, 'Texture Calculator'!$G$4<0.5, 'Texture Calculator'!$C$4<=0.52), 4, 0) -> 0 | B5: ((clay >= 7 && clay < 27) && (silt >= 28 && silt < 50) && (sand <= 52)) | C5: LOAM | D5: =IF(AND('Texture Calculator'!$E$5>=0.07, 'Texture Calculator'!$E$5<0.27, 'Texture Calculator'!$G$5>=0.28, 'Texture Calculator'!$G$5<0.5, 'Texture Calculator'!$C$5<=0.52), 4, 0) -> 0 | E5: ((clay >= 7 && clay < 27) && (silt >= 28 && silt < 50) && (sand <= 52)) | F5: LOAM | G5: =IF(AND('Texture Calculator'!$E$6>=0.07, 'Texture Calculator'!$E$6<0.27, 'Texture Calculator'!$G$6>=0.28, 'Texture Calculator'!$G$6<0.5, 'Texture Calculator'!$C$6<=0.52), 4, 0) -> 0 | H5: ((clay >= 7 && clay < 27) && (silt >= 28 && silt < 50) && (sand <= 52)) | I5: LOAM | J5: =IF(AND('Texture Calculator'!$E$7>=0.07, 'Texture Calculator'!$E$7<0.27, 'Texture Calculator'!$G$7>=0.28, 'Texture Calculator'!$G$7<0.5, 'Texture Calculator'!$C$7<=0.52), 4, 0) -> 0 | K5: ((clay >= 7 && clay < 27) && (silt >= 28 && silt < 50) && (sand <= 52)) | L5: LOAM
A6: =IF(OR(AND('Texture Calculator'!$G$4>=0.5, 'Texture Calculator'!$E$4>=0.12,'Texture Calculator'!$E$4<0.27), AND('Texture Calculator'!$G$4>=0.5,'Texture Calculator'!$G$4<0.8,'Texture Calculator'!$E$4<0.12)), 5,0) -> 0 | B6: ((silt >= 50 && (clay >= 12 && clay < 27)) || ((silt >= 50 && silt < 80) && clay < 12)) | C6: SILT LOAM | D6: =IF(OR(AND('Texture Calculator'!$G$5>=0.5, 'Texture Calculator'!$E$5>=0.12,'Texture Calculator'!$E$5<0.27), AND('Texture Calculator'!$G$5>=0.5,'Texture Calculator'!$G$5<0.8,'Texture Calculator'!$E$5<0.12)), 5,0) -> 0 | E6: ((silt >= 50 && (clay >= 12 && clay < 27)) || ((silt >= 50 && silt < 80) && clay < 12)) | F6: SILT LOAM | G6: =IF(OR(AND('Texture Calculator'!$G$6>=0.5, 'Texture Calculator'!$E$6>=0.12,'Texture Calculator'!$E$6<0.27), AND('Texture Calculator'!$G$6>=0.5,'Texture Calculator'!$G$6<0.8,'Texture Calculator'!$E$6<0.12)), 5,0) -> 0 | H6: ((silt >= 50 && (clay >= 12 && clay < 27)) || ((silt >= 50 && silt < 80) && clay < 12)) | I6: SILT LOAM | J6: =IF(OR(AND('Texture Calculator'!$G$7>=0.5, 'Texture Calculator'!$E$7>=0.12,'Texture Calculator'!$E$7<0.27), AND('Texture Calculator'!$G$7>=0.5,'Texture Calculator'!$G$7<0.8,'Texture Calculator'!$E$7<0.12)), 5,0) -> 0 | K6: ((silt >= 50 && (clay >= 12 && clay < 27)) || ((silt >= 50 && silt < 80) && clay < 12)) | L6: SILT LOAM
A7: =IF(AND('Texture Calculator'!$G$4>=0.8, 'Texture Calculator'!$E$4<0.12), 6, 0) -> 0 | B7: (silt >= 80 && clay < 12) | C7: SILT | D7: =IF(AND('Texture Calculator'!$G$5>=0.8, 'Texture Calculator'!$E$5<0.12), 6, 0) -> 0 | E7: (silt >= 80 && clay < 12) | F7: SILT | G7: =IF(AND('Texture Calculator'!$G$6>=0.8, 'Texture Calculator'!$E$6<0.12), 6, 0) -> 0 | H7: (silt >= 80 && clay < 12) | I7: SILT | J7: =IF(AND('Texture Calculator'!$G$7>=0.8, 'Texture Calculator'!$E$7<0.12), 6, 0) -> 0 | K7: (silt >= 80 && clay < 12) | L7: SILT
A8: =IF(AND('Texture Calculator'!$E$4>=0.2, 'Texture Calculator'!$E$4<0.35, 'Texture Calculator'!$G$4<0.28, 'Texture Calculator'!$C$4>0.45), 7, 0) -> 0 | B8: ((clay >= 20 && clay < 35) && (silt < 28) && (sand > 45)) | C8: SANDY CLAY LOAM | D8: =IF(AND('Texture Calculator'!$E$5>=0.2, 'Texture Calculator'!$E$5<0.35, 'Texture Calculator'!$G$5<0.28, 'Texture Calculator'!$C$5>0.45), 7, 0) -> 0 | E8: ((clay >= 20 && clay < 35) && (silt < 28) && (sand > 45)) | F8: SANDY CLAY LOAM | G8: =IF(AND('Texture Calculator'!$E$6>=0.2, 'Texture Calculator'!$E$6<0.35, 'Texture Calculator'!$G$6<0.28, 'Texture Calculator'!$C$6>0.45), 7, 0) -> 0 | H8: ((clay >= 20 && clay < 35) && (silt < 28) && (sand > 45)) | I8: SANDY CLAY LOAM | J8: =IF(AND('Texture Calculator'!$E$7>=0.2, 'Texture Calculator'!$E$7<0.35, 'Texture Calculator'!$G$7<0.28, 'Texture Calculator'!$C$7>0.45), 7, 0) -> 0 | K8: ((clay >= 20 && clay < 35) && (silt < 28) && (sand > 45)) | L8: SANDY CLAY LOAM
A9: =IF(AND('Texture Calculator'!$E$4>=0.27, 'Texture Calculator'!$E$4<0.4, 'Texture Calculator'!$C$4>0.2, 'Texture Calculator'!$C$4<=0.45), 8, 0) -> 0 | B9: ((clay >= 27 && clay < 40) && (sand > 20 && sand <= 45)) | C9: CLAY LOAM | D9: =IF(AND('Texture Calculator'!$E$5>=0.27, 'Texture Calculator'!$E$5<0.4, 'Texture Calculator'!$C$5>0.2, 'Texture Calculator'!$C$5<=0.45), 8, 0) -> 0 | E9: ((clay >= 27 && clay < 40) && (sand > 20 && sand <= 45)) | F9: CLAY LOAM | G9: =IF(AND('Texture Calculator'!$E$6>=0.27, 'Texture Calculator'!$E$6<0.4, 'Texture Calculator'!$C$6>0.2, 'Texture Calculator'!$C$6<=0.45), 8, 0) -> 0 | H9: ((clay >= 27 && clay < 40) && (sand > 20 && sand <= 45)) | I9: CLAY LOAM | J9: =IF(AND('Texture Calculator'!$E$7>=0.27, 'Texture Calculator'!$E$7<0.4, 'Texture Calculator'!$C$7>0.2, 'Texture Calculator'!$C$7<=0.45), 8, 0) -> 0 | K9: ((clay >= 27 && clay < 40) && (sand > 20 && sand <= 45)) | L9: CLAY LOAM
A10: =IF(AND('Texture Calculator'!$E$4>=0.27, 'Texture Calculator'!$E$4<0.4, 'Texture Calculator'!$C$4<=0.2), 9, 0) -> 0 | B10: ((clay >= 27 && clay < 40) && (sand <= 20)) | C10: SILTY CLAY LOAM | D10: =IF(AND('Texture Calculator'!$E$5>=0.27, 'Texture Calculator'!$E$5<0.4, 'Texture Calculator'!$C$5<=0.2), 9, 0) -> 0 | E10: ((clay >= 27 && clay < 40) && (sand <= 20)) | F10: SILTY CLAY LOAM | G10: =IF(AND('Texture Calculator'!$E$6>=0.27, 'Texture Calculator'!$E$6<0.4, 'Texture Calculator'!$C$6<=0.2), 9, 0) -> 0 | H10: ((clay >= 27 && clay < 40) && (sand <= 20)) | I10: SILTY CLAY LOAM | J10: =IF(AND('Texture Calculator'!$E$7>=0.27, 'Texture Calculator'!$E$7<0.4, 'Texture Calculator'!$C$7<=0.2), 9, 0) -> 0 | K10: ((clay >= 27 && clay < 40) && (sand <= 20)) | L10: SILTY CLAY LOAM
A11: =IF(AND('Texture Calculator'!$E$4>=0.35, 'Texture Calculator'!$C$4>0.45), 10, 0) -> 0 | B11: (clay >= 35 && sand > 45) | C11: SANDY CLAY | D11: =IF(AND('Texture Calculator'!$E$5>=0.35, 'Texture Calculator'!$C$5>0.45), 10, 0) -> 0 | E11: (clay >= 35 && sand > 45) | F11: SANDY CLAY | G11: =IF(AND('Texture Calculator'!$E$6>=0.35, 'Texture Calculator'!$C$6>0.45), 10, 0) -> 0 | H11: (clay >= 35 && sand > 45) | I11: SANDY CLAY | J11: =IF(AND('Texture Calculator'!$E$7>=0.35, 'Texture Calculator'!$C$7>0.45), 10, 0) -> 0 | K11: (clay >= 35 && sand > 45) | L11: SANDY CLAY
A12: =IF(AND('Texture Calculator'!$E$4>=0.4, 'Texture Calculator'!$G$4>=0.4), 11, 0) -> 0 | B12: (clay >= 40 && silt >= 40) | C12: SILTY CLAY | D12: =IF(AND('Texture Calculator'!$E$5>=0.4, 'Texture Calculator'!$G$5>=0.4), 11, 0) -> 0 | E12: (clay >= 40 && silt >= 40) | F12: SILTY CLAY | G12: =IF(AND('Texture Calculator'!$E$6>=0.4, 'Texture Calculator'!$G$6>=0.4), 11, 0) -> 0 | H12: (clay >= 40 && silt >= 40) | I12: SILTY CLAY | J12: =IF(AND('Texture Calculator'!$E$7>=0.4, 'Texture Calculator'!$G$7>=0.4), 11, 0) -> 0 | K12: (clay >= 40 && silt >= 40) | L12: SILTY CLAY
A13: =IF(AND('Texture Calculator'!$E$4>=0.4, 'Texture Calculator'!$C$4<=0.45,'Texture Calculator'!$G$4<0.4), 12, 0) -> 0 | B13: (clay >= 40 && sand <= 45 && silt < 40) | C13: CLAY | D13: =IF(AND('Texture Calculator'!$E$5>=0.4, 'Texture Calculator'!$C$5<=0.45,'Texture Calculator'!$G$5<0.4), 12, 0) -> 0 | E13: (clay >= 40 && sand <= 45 && silt < 40) | F13: CLAY | G13: =IF(AND('Texture Calculator'!$E$6>=0.4, 'Texture Calculator'!$C$6<=0.45,'Texture Calculator'!$G$6<0.4), 12, 0) -> 0 | H13: (clay >= 40 && sand <= 45 && silt < 40) | I13: CLAY | J13: =IF(AND('Texture Calculator'!$E$7>=0.4, 'Texture Calculator'!$C$7<=0.45,'Texture Calculator'!$G$7<0.4), 12, 0) -> 0 | K13: (clay >= 40 && sand <= 45 && silt < 40) | L13: CLAY
A14: =SUM(A2:A13) -> 1 | D14: =SUM(D2:D13) -> 1 | G14: =SUM(G2:G13) -> 1 | J14: =SUM(J2:J13) -> 1
A17: Sand | D17: Sand | G17: Sand | J17: Sand
A18: =IF(AND(SUM('Texture Calculator'!$C$13:$C$17)='Texture Calculator'!$C$4, 'Texture Calculator'!$C$13+'Texture Calculator'!$C$14>=0.25, 'Texture Calculator'!$C$15<0.5, 'Texture Calculator'!$C$16<0.5, 'Texture Calculator'!$C$17<0.5), 1, 0) -> 0 | B18: vcscs >= 25 && ms < 50 && fs < 50 && vfs < 50 | C18: COARSE SAND | D18: =IF(AND(SUM('Texture Calculator'!$C$26:$C$47)='Texture Calculator'!$C$5, 'Texture Calculator'!$C$26+'Texture Calculator'!#REF!>=0.25, 'Texture Calculator'!#REF!<0.5, 'Texture Calculator'!#REF!<0.5, 'Texture Calculator'!$C$47<0.5), 1, 0) ->  | E18: vcscs >= 25 && ms < 50 && fs < 50 && vfs < 50 | F18: COARSE SAND | G18: =IF(AND(SUM('Texture Calculator'!$C$52:$C$56)='Texture Calculator'!$C$6, 'Texture Calculator'!#REF!+'Texture Calculator'!$C$53>=0.25, 'Texture Calculator'!$C$54<0.5, 'Texture Calculator'!$C$55<0.5, 'Texture Calculator'!$C$56<0.5), 1, 0) ->  | H18: vcscs >= 25 && ms < 50 && fs < 50 && vfs < 50 | I18: COARSE SAND | J18: =IF(AND(SUM('Texture Calculator'!$C$60:$C$66)='Texture Calculator'!$C$7, 'Texture Calculator'!#REF!+'Texture Calculator'!#REF!>=0.25, 'Texture Calculator'!$C$64<0.5, 'Texture Calculator'!$C$65<0.5, 'Texture Calculator'!$C$66<0.5), 1, 0) ->  | K18: vcscs >= 25 && ms < 50 && fs < 50 && vfs < 50 | L18: COARSE SAND
A19: =IF(AND(SUM('Texture Calculator'!$C$13:$C$17)='Texture Calculator'!$C$4,SUM($A$18) = 0, 'Texture Calculator'!$C$13+'Texture Calculator'!$C$14+'Texture Calculator'!$C$15>=0.25, 'Texture Calculator'!$C$13+'Texture Calculator'!$C$14<0.25, 'Texture Calculator'!$C$16<0.5,'Texture Calculator'!$C$17<0.5), 2, 0) -> 0 | B19: vcscsms >= 25 && vcscs < 25 && fs < 50 && vfs < 50 | C19: SAND | D19: =IF(AND(SUM('Texture Calculator'!$C$26:$C$47)='Texture Calculator'!$C$5,SUM($D$18) = 0, 'Texture Calculator'!$C$26+'Texture Calculator'!#REF!+'Texture Calculator'!#REF!>=0.25, 'Texture Calculator'!$C$26+'Texture Calculator'!#REF!<0.25, 'Texture Calculator'!#REF!<0.5,'Texture Calculator'!$C$47<0.5), 2, 0) ->  | E19: vcscsms >= 25 && vcscs < 25 && fs < 50 && vfs < 50 | F19: SAND | G19: =IF(AND(SUM('Texture Calculator'!$C$52:$C$56)='Texture Calculator'!$C$6,SUM($G$18) = 0, 'Texture Calculator'!#REF!+'Texture Calculator'!$C$53+'Texture Calculator'!$C$54>=0.25, 'Texture Calculator'!#REF!+'Texture Calculator'!$C$53<0.25, 'Texture Calculator'!$C$55<0.5,'Texture Calculator'!$C$56<0.5), 2, 0) ->  | H19: vcscsms >= 25 && vcscs < 25 && fs < 50 && vfs < 50 | I19: SAND | J19: =IF(AND(SUM('Texture Calculator'!$C$60:$C$66)='Texture Calculator'!$C$7,SUM($J$18) = 0, 'Texture Calculator'!#REF!+'Texture Calculator'!#REF!+'Texture Calculator'!$C$64>=0.25, 'Texture Calculator'!#REF!+'Texture Calculator'!#REF!<0.25, 'Texture Calculator'!$C$65<0.5,'Texture Calculator'!$C$66<0.5), 2, 0) ->  | K19: vcscsms >= 25 && vcscs < 25 && fs < 50 && vfs < 50 | L19: SAND
A20: =IF(AND(SUM('Texture Calculator'!$C$13:$C$17)='Texture Calculator'!$C$4,SUM($A$18:$A$19) = 0, 'Texture Calculator'!$C$15>=0.5, 'Texture Calculator'!$C$13+'Texture Calculator'!$C$14>=0.25), 3, 0) -> 0 | B20: ms >= 50 && vcscs >= 25 | C20: SAND | D20: =IF(AND(SUM('Texture Calculator'!$C$26:$C$47)='Texture Calculator'!$C$5,SUM($D$18:$D$19) = 0, 'Texture Calculator'!#REF!>=0.5, 'Texture Calculator'!$C$26+'Texture Calculator'!#REF!>=0.25), 3, 0) ->  | E20: ms >= 50 && vcscs >= 25 | F20: SAND | G20: =IF(AND(SUM('Texture Calculator'!$C$52:$C$56)='Texture Calculator'!$C$6,SUM($G$18:$G$19) = 0, 'Texture Calculator'!$C$54>=0.5, 'Texture Calculator'!#REF!+'Texture Calculator'!$C$53>=0.25), 3, 0) ->  | H20: ms >= 50 && vcscs >= 25 | I20: SAND | J20: =IF(AND(SUM('Texture Calculator'!$C$60:$C$66)='Texture Calculator'!$C$7,SUM($J$18:$J$19) = 0, 'Texture Calculator'!$C$64>=0.5, 'Texture Calculator'!#REF!+'Texture Calculator'!#REF!>=0.25), 3, 0) ->  | K20: ms >= 50 && vcscs >= 25 | L20: SAND
A21: =IF(AND(SUM('Texture Calculator'!$C$13:$C$17)='Texture Calculator'!$C$4,SUM($A$18:$A$20) = 0, 'Texture Calculator'!$C$16>=0.5, 'Texture Calculator'!$C$16>'Texture Calculator'!$C$17), 4, 0) -> 0 | B21: fs >= 50 && fs > vfs | C21: FINE SAND | D21: =IF(AND(SUM('Texture Calculator'!$C$26:$C$47)='Texture Calculator'!$C$5,SUM($D$18:$D$20) = 0, 'Texture Calculator'!#REF!>=0.5, 'Texture Calculator'!#REF!>'Texture Calculator'!$C$47), 4, 0) ->  | E21: fs >= 50 && fs > vfs | F21: FINE SAND | G21: =IF(AND(SUM('Texture Calculator'!$C$52:$C$56)='Texture Calculator'!$C$6,SUM($G$18:$G$20) = 0, 'Texture Calculator'!$C$55>=0.5, 'Texture Calculator'!$C$55>'Texture Calculator'!$C$56), 4, 0) ->  | H21: fs >= 50 && fs > vfs | I21: FINE SAND | J21: =IF(AND(SUM('Texture Calculator'!$C$60:$C$66)='Texture Calculator'!$C$7,SUM($J$18:$J$20) = 0, 'Texture Calculator'!$C$65>=0.5, 'Texture Calculator'!$C$65>'Texture Calculator'!$C$66), 4, 0) ->  | K21: fs >= 50 && fs > vfs | L21: FINE SAND
A22: =IF(AND(SUM('Texture Calculator'!$C$13:$C$17)='Texture Calculator'!$C$4,SUM($A$18:$A$21) = 0, 'Texture Calculator'!$C$13+'Texture Calculator'!$C$14+'Texture Calculator'!$C$15<0.25, 'Texture Calculator'!$C$17<0.5), 5, 0) -> 0 | B22: vcscsms < 25 && vfs < 50 | C22: FINE SAND | D22: =IF(AND(SUM('Texture Calculator'!$C$26:$C$47)='Texture Calculator'!$C$5,SUM($D$18:$D$21) = 0, 'Texture Calculator'!$C$26+'Texture Calculator'!#REF!+'Texture Calculator'!#REF!<0.25, 'Texture Calculator'!$C$47<0.5), 5, 0) ->  | E22: vcscsms < 25 && vfs < 50 | F22: FINE SAND | G22: =IF(AND(SUM('Texture Calculator'!$C$52:$C$56)='Texture Calculator'!$C$6,SUM($G$18:$G$21) = 0, 'Texture Calculator'!#REF!+'Texture Calculator'!$C$53+'Texture Calculator'!$C$54<0.25, 'Texture Calculator'!$C$56<0.5), 5, 0) ->  | H22: vcscsms < 25 && vfs < 50 | I22: FINE SAND | J22: =IF(AND(SUM('Texture Calculator'!$C$60:$C$66)='Texture Calculator'!$C$7,SUM($J$18:$J$21) = 0, 'Texture Calculator'!#REF!+'Texture Calculator'!#REF!+'Texture Calculator'!$C$64<0.25, 'Texture Calculator'!$C$66<0.5), 5, 0) ->  | K22: vcscsms < 25 && vfs < 50 | L22: FINE SAND
A23: =IF(AND(SUM('Texture Calculator'!$C$13:$C$17)='Texture Calculator'!$C$4,SUM($A$18:$A$22) = 0, 'Texture Calculator'!$C$17>=0.5), 6, 0) -> 0 | B23: vfs >= 50 | C23: VERY FINE SAND | D23: =IF(AND(SUM('Texture Calculator'!$C$26:$C$47)='Texture Calculator'!$C$5,SUM($D$18:$D$22) = 0, 'Texture Calculator'!$C$47>=0.5), 6, 0) ->  | E23: vfs >= 50 | F23: VERY FINE SAND | G23: =IF(AND(SUM('Texture Calculator'!$C$52:$C$56)='Texture Calculator'!$C$6,SUM($G$18:$G$22) = 0, 'Texture Calculator'!$C$56>=0.5), 6, 0) ->  | H23: vfs >= 50 | I23: VERY FINE SAND | J23: =IF(AND(SUM('Texture Calculator'!$C$60:$C$66)='Texture Calculator'!$C$7,SUM($J$18:$J$22) = 0, 'Texture Calculator'!$C$66>=0.5), 6, 0) ->  | K23: vfs >= 50 | L23: VERY FINE SAND
A24: =SUM(A18:A23)+1 -> 1 | D24: =SUM(D18:D23)+1 ->  | G24: =SUM(G18:G23)+1 ->  | J24: =SUM(J18:J23)+1 -> 
A27: Loam Sand | D27: Loam Sand | G27: Loam Sand | J27: Loam Sand
A28: =IF(AND(SUM('Texture Calculator'!$C$13:$C$17)='Texture Calculator'!$C$4, 'Texture Calculator'!$C$13+'Texture Calculator'!$C$14>=0.25, 'Texture Calculator'!$C$15<0.5, 'Texture Calculator'!$C$16<0.5, 'Texture Calculator'!$C$17<0.5), 1, 0) -> 0 | B28: vcscs >= 25 && ms < 50 && fs < 50 && vfs < 50 | C28: LOAMY COARSE SAND | D28: =IF(AND(SUM('Texture Calculator'!$C$26:$C$47)='Texture Calculator'!$C$5, 'Texture Calculator'!$C$26+'Texture Calculator'!#REF!>=0.25, 'Texture Calculator'!#REF!<0.5, 'Texture Calculator'!#REF!<0.5, 'Texture Calculator'!$C$47<0.5), 1, 0) ->  | E28: vcscs >= 25 && ms < 50 && fs < 50 && vfs < 50 | F28: LOAMY COARSE SAND | G28: =IF(AND(SUM('Texture Calculator'!$C$52:$C$56)='Texture Calculator'!$C$6, 'Texture Calculator'!#REF!+'Texture Calculator'!$C$53>=0.25, 'Texture Calculator'!$C$54<0.5, 'Texture Calculator'!$C$55<0.5, 'Texture Calculator'!$C$56<0.5), 1, 0) ->  | H28: vcscs >= 25 && ms < 50 && fs < 50 && vfs < 50 | I28: LOAMY COARSE SAND | J28: =IF(AND(SUM('Texture Calculator'!$C$60:$C$66)='Texture Calculator'!$C$7, 'Texture Calculator'!#REF!+'Texture Calculator'!#REF!>=0.25, 'Texture Calculator'!$C$64<0.5, 'Texture Calculator'!$C$65<0.5, 'Texture Calculator'!$C$66<0.5), 1, 0) ->  | K28: vcscs >= 25 && ms < 50 && fs < 50 && vfs < 50 | L28: LOAMY COARSE SAND
A29: =IF(AND(SUM('Texture Calculator'!$C$13:$C$17)='Texture Calculator'!$C$4,SUM($A$28) = 0, 'Texture Calculator'!$C$13+'Texture Calculator'!$C$14+'Texture Calculator'!$C$15>=0.25, 'Texture Calculator'!$C$13+'Texture Calculator'!$C$14<0.25, 'Texture Calculator'!$C$16<0.5,'Texture Calculator'!$C$17<0.5), 2, 0) -> 0 | B29: vcscsms >= 25 && vcscs < 25 && fs < 50 && vfs < 50 | C29: LOAMY SAND | D29: =IF(AND(SUM('Texture Calculator'!$C$26:$C$47)='Texture Calculator'!$C$5,SUM($D$28) = 0, 'Texture Calculator'!$C$26+'Texture Calculator'!#REF!+'Texture Calculator'!#REF!>=0.25, 'Texture Calculator'!$C$26+'Texture Calculator'!#REF!<0.25, 'Texture Calculator'!#REF!<0.5,'Texture Calculator'!$C$47<0.5), 2, 0) ->  | E29: vcscsms >= 25 && vcscs < 25 && fs < 50 && vfs < 50 | F29: LOAMY SAND | G29: =IF(AND(SUM('Texture Calculator'!$C$52:$C$56)='Texture Calculator'!$C$6,SUM($A$28) = 0, 'Texture Calculator'!$C$13+'Texture Calculator'!$C$14+'Texture Calculator'!$C$15>=0.25, 'Texture Calculator'!$C$13+'Texture Calculator'!$C$14<0.25, 'Texture Calculator'!$C$16<0.5,'Texture Calculator'!$C$17<0.5), 2, 0) -> 0 | H29: vcscsms >= 25 && vcscs < 25 && fs < 50 && vfs < 50 | I29: LOAMY SAND | J29: =IF(AND(SUM('Texture Calculator'!$C$60:$C$66)='Texture Calculator'!$C$7,SUM($J$28) = 0, 'Texture Calculator'!#REF!+'Texture Calculator'!#REF!+'Texture Calculator'!$C$64>=0.25, 'Texture Calculator'!#REF!+'Texture Calculator'!#REF!<0.25, 'Texture Calculator'!$C$65<0.5,'Texture Calculator'!$C$66<0.5), 2, 0) ->  | K29: vcscsms >= 25 && vcscs < 25 && fs < 50 && vfs < 50 | L29: LOAMY SAND
A30: =IF(AND(SUM('Texture Calculator'!$C$13:$C$17)='Texture Calculator'!$C$4,SUM($A$28:$A$29) = 0, 'Texture Calculator'!$C$15>=0.5, 'Texture Calculator'!$C$13+'Texture Calculator'!$C$14>=0.25),3, 0) -> 0 | B30: ms >= 50 && vcscs >= 25 | C30: LOAMY SAND | D30: =IF(AND(SUM('Texture Calculator'!$C$26:$C$47)='Texture Calculator'!$C$5,SUM($D$28:$D$29) = 0, 'Texture Calculator'!#REF!>=0.5, 'Texture Calculator'!$C$26+'Texture Calculator'!#REF!>=0.25),3, 0) ->  | E30: ms >= 50 && vcscs >= 25 | F30: LOAMY SAND | G30: =IF(AND(SUM('Texture Calculator'!$C$52:$C$56)='Texture Calculator'!$C$6,SUM($G$28:$G$29) = 0, 'Texture Calculator'!$C$54>=0.5, 'Texture Calculator'!#REF!+'Texture Calculator'!$C$53>=0.25),3, 0) ->  | H30: ms >= 50 && vcscs >= 25 | I30: LOAMY SAND | J30: =IF(AND(SUM('Texture Calculator'!$C$60:$C$66)='Texture Calculator'!$C$7,SUM($J$28:$J$29) = 0, 'Texture Calculator'!$C$64>=0.5, 'Texture Calculator'!#REF!+'Texture Calculator'!#REF!>=0.25),3, 0) ->  | K30: ms >= 50 && vcscs >= 25 | L30: LOAMY SAND
A31: =IF(AND(SUM('Texture Calculator'!$C$13:$C$17)='Texture Calculator'!$C$4,SUM($A$28:$A$30) = 0, 'Texture Calculator'!$C$16>=0.5), 4, 0) -> 0 | B31: fs >= 50 | C31: LOAMY FINE SAND | D31: =IF(AND(SUM('Texture Calculator'!$C$26:$C$47)='Texture Calculator'!$C$5,SUM($D$28:$D$30) = 0, 'Texture Calculator'!#REF!>=0.5), 4, 0) ->  | E31: fs >= 50 | F31: LOAMY FINE SAND | G31: =IF(AND(SUM('Texture Calculator'!$C$52:$C$56)='Texture Calculator'!$C$6,SUM($G$28:$G$30) = 0, 'Texture Calculator'!$C$55>=0.5), 4, 0) ->  | H31: fs >= 50 | I31: LOAMY FINE SAND | J31: =IF(AND(SUM('Texture Calculator'!$C$60:$C$66)='Texture Calculator'!$C$7,SUM($J$28:$J$30) = 0, 'Texture Calculator'!$C$65>=0.5), 4, 0) ->  | K31: fs >= 50 | L31: LOAMY FINE SAND
A32: =IF(AND(SUM('Texture Calculator'!$C$13:$C$17)='Texture Calculator'!$C$4,SUM($A$28:$A$31) = 0, 'Texture Calculator'!$C$13+'Texture Calculator'!$C$14+'Texture Calculator'!$C$15<0.25, 'Texture Calculator'!$C$17<0.5), 5, 0) -> 0 | B32: vcscsms < 25 && vfs < 50 | C32: LOAMY FINE SAND | D32: =IF(AND(SUM('Texture Calculator'!$C$26:$C$47)='Texture Calculator'!$C$5,SUM($D$28:$D$31) = 0, 'Texture Calculator'!$C$26+'Texture Calculator'!#REF!+'Texture Calculator'!#REF!<0.25, 'Texture Calculator'!$C$47<0.5), 5, 0) ->  | E32: vcscsms < 25 && vfs < 50 | F32: LOAMY FINE SAND | G32: =IF(AND(SUM('Texture Calculator'!$C$52:$C$56)='Texture Calculator'!$C$6,SUM($G$28:$G$31) = 0, 'Texture Calculator'!#REF!+'Texture Calculator'!$C$53+'Texture Calculator'!$C$54<0.25, 'Texture Calculator'!$C$56<0.5), 5, 0) ->  | H32: vcscsms < 25 && vfs < 50 | I32: LOAMY FINE SAND | J32: =IF(AND(SUM('Texture Calculator'!$C$60:$C$66)='Texture Calculator'!$C$7,SUM($J$28:$J$31) = 0, 'Texture Calculator'!#REF!+'Texture Calculator'!#REF!+'Texture Calculator'!$C$64<0.25, 'Texture Calculator'!$C$66<0.5), 5, 0) ->  | K32: vcscsms < 25 && vfs < 50 | L32: LOAMY FINE SAND
A33: =IF(AND(SUM('Texture Calculator'!$C$13:$C$17)='Texture Calculator'!$C$4,SUM($A$28:$A$32) = 0, 'Texture Calculator'!$C$17>=0.5), 6, 0) -> 0 | B33: vfs >= 50 | C33: LOAMY VERY FINE SAND | D33: =IF(AND(SUM('Texture Calculator'!$C$26:$C$47)='Texture Calculator'!$C$5,SUM($D$28:$D$32) = 0, 'Texture Calculator'!$C$47>=0.5), 6, 0) ->  | E33: vfs >= 50 | F33: LOAMY VERY FINE SAND | G33: =IF(AND(SUM('Texture Calculator'!$C$52:$C$56)='Texture Calculator'!$C$6,SUM($G$28:$G$32) = 0, 'Texture Calculator'!$C$56>=0.5), 6, 0) ->  | H33: vfs >= 50 | I33: LOAMY VERY FINE SAND | J33: =IF(AND(SUM('Texture Calculator'!$C$60:$C$66)='Texture Calculator'!$C$7,SUM($J$28:$J$32) = 0, 'Texture Calculator'!$C$66>=0.5), 6, 0) ->  | K33: vfs >= 50 | L33: LOAMY VERY FINE SAND
A34: =SUM(A28:A33)+1 -> 1 | D34: =SUM(D28:D33)+1 ->  | G34: =SUM(G28:G33)+1 ->  | J34: =SUM(J28:J33)+1 -> 
A36: Sand Loam | D36: Sand Loam | G36: Sand Loam | J36: Sand Loam
A37: =IF(AND(SUM('Texture Calculator'!$C$13:$C$17)='Texture Calculator'!$C$4, 'Texture Calculator'!$C$13+'Texture Calculator'!$C$14>=0.25, 'Texture Calculator'!$C$15<0.5, 'Texture Calculator'!$C$16<0.5, 'Texture Calculator'!$C$17<0.5), 1, 0) -> 0 | B37: vcscs >= 25 && ms < 50 && fs < 50 && vfs < 50 | C37: COARSE SANDY LOAM | D37: =IF(AND(SUM('Texture Calculator'!$C$26:$C$47)='Texture Calculator'!$C$5, 'Texture Calculator'!$C$26+'Texture Calculator'!#REF!>=0.25, 'Texture Calculator'!#REF!<0.5, 'Texture Calculator'!#REF!<0.5, 'Texture Calculator'!$C$47<0.5), 1, 0) ->  | E37: vcscs >= 25 && ms < 50 && fs < 50 && vfs < 50 | F37: COARSE SANDY LOAM | G37: =IF(AND(SUM('Texture Calculator'!$C$52:$C$56)='Texture Calculator'!$C$6, 'Texture Calculator'!#REF!+'Texture Calculator'!$C$53>=0.25, 'Texture Calculator'!$C$54<0.5, 'Texture Calculator'!$C$55<0.5, 'Texture Calculator'!$C$56<0.5), 1, 0) ->  | H37: vcscs >= 25 && ms < 50 && fs < 50 && vfs < 50 | I37: COARSE SANDY LOAM | J37: =IF(AND(SUM('Texture Calculator'!$C$60:$C$66)='Texture Calculator'!$C$7, 'Texture Calculator'!#REF!+'Texture Calculator'!#REF!>=0.25, 'Texture Calculator'!$C$64<0.5, 'Texture Calculator'!$C$65<0.5, 'Texture Calculator'!$C$66<0.5), 1, 0) ->  | K37: vcscs >= 25 && ms < 50 && fs < 50 && vfs < 50 | L37: COARSE SANDY LOAM
A38: =IF(AND(SUM('Texture Calculator'!$C$13:$C$17)='Texture Calculator'!$C$4,SUM($A$37) = 0,'Texture Calculator'!$C$13+'Texture Calculator'!$C$14+'Texture Calculator'!$C$15>=0.3, 'Texture Calculator'!$C$17>=0.3, 'Texture Calculator'!$C$17<0.5), 2,0) -> 0 | B38: vcscsms >= 30 && vfs >= 30 && vfs < 50 | C38: COARSE SANDY LOAM | D38: =IF(AND(SUM('Texture Calculator'!$C$26:$C$47)='Texture Calculator'!$C$5,SUM($D$37) = 0,'Texture Calculator'!$C$26+'Texture Calculator'!#REF!+'Texture Calculator'!#REF!>=0.3, 'Texture Calculator'!$C$47>=0.3, 'Texture Calculator'!$C$47<0.5), 2,0) ->  | E38: vcscsms >= 30 && vfs >= 30 && vfs < 50 | F38: COARSE SANDY LOAM | G38: =IF(AND(SUM('Texture Calculator'!$C$52:$C$56)='Texture Calculator'!$C$6,SUM($G$37) = 0,'Texture Calculator'!#REF!+'Texture Calculator'!$C$53+'Texture Calculator'!$C$54>=0.3, 'Texture Calculator'!$C$56>=0.3, 'Texture Calculator'!$C$56<0.5), 2,0) ->  | H38: vcscsms >= 30 && vfs >= 30 && vfs < 50 | I38: COARSE SANDY LOAM | J38: =IF(AND(SUM('Texture Calculator'!$C$60:$C$66)='Texture Calculator'!$C$7,SUM($J$37) = 0,'Texture Calculator'!#REF!+'Texture Calculator'!#REF!+'Texture Calculator'!$C$64>=0.3, 'Texture Calculator'!$C$66>=0.3, 'Texture Calculator'!$C$66<0.5), 2,0) ->  | K38: vcscsms >= 30 && vfs >= 30 && vfs < 50 | L38: COARSE SANDY LOAM
A39: =IF(AND(SUM('Texture Calculator'!$C$13:$C$17)='Texture Calculator'!$C$4,SUM($A$37:$A$38) = 0, 'Texture Calculator'!$C$13+'Texture Calculator'!$C$14+'Texture Calculator'!$C$15>=0.3, 'Texture Calculator'!$C$13+'Texture Calculator'!$C$14<0.25, 'Texture Calculator'!$C$16<0.3,'Texture Calculator'!$C$17<0.3), 3, 0) -> 0 | B39: vcscsms >= 30 && vcscs < 25 && fs < 30 && vfs < 30 | C39: SANDY LOAM | D39: =IF(AND(SUM('Texture Calculator'!$C$26:$C$47)='Texture Calculator'!$C$5,SUM($D$37:$D$38) = 0, 'Texture Calculator'!$C$26+'Texture Calculator'!#REF!+'Texture Calculator'!#REF!>=0.3, 'Texture Calculator'!$C$26+'Texture Calculator'!#REF!<0.25, 'Texture Calculator'!#REF!<0.3,'Texture Calculator'!$C$47<0.3), 3, 0) ->  | E39: vcscsms >= 30 && vcscs < 25 && fs < 30 && vfs < 30 | F39: SANDY LOAM | G39: =IF(AND(SUM('Texture Calculator'!$C$52:$C$56)='Texture Calculator'!$C$6,SUM($G$37:$G$38) = 0, 'Texture Calculator'!#REF!+'Texture Calculator'!$C$53+'Texture Calculator'!$C$54>=0.3, 'Texture Calculator'!#REF!+'Texture Calculator'!$C$53<0.25, 'Texture Calculator'!$C$55<0.3,'Texture Calculator'!$C$56<0.3), 3, 0) ->  | H39: vcscsms >= 30 && vcscs < 25 && fs < 30 && vfs < 30 | I39: SANDY LOAM | J39: =IF(AND(SUM('Texture Calculator'!$C$60:$C$66)='Texture Calculator'!$C$7,SUM($J$37:$J$38) = 0, 'Texture Calculator'!#REF!+'Texture Calculator'!#REF!+'Texture Calculator'!$C$64>=0.3, 'Texture Calculator'!#REF!+'Texture Calculator'!#REF!<0.25, 'Texture Calculator'!$C$65<0.3,'Texture Calculator'!$C$66<0.3), 3, 0) ->  | K39: vcscsms >= 30 && vcscs < 25 && fs < 30 && vfs < 30 | L39: SANDY LOAM
A40: =IF(AND(SUM('Texture Calculator'!$C$13:$C$17)='Texture Calculator'!$C$4,SUM($A$37:$A$39) = 0,'Texture Calculator'!$C$13+'Texture Calculator'!$C$14+'Texture Calculator'!$C$15<=0.15,'Texture Calculator'!$C$16<0.3,'Texture Calculator'!$C$17<0.3,'Texture Calculator'!$C$16+'Texture Calculator'!$C$17<0.4), 4, 0) -> 0 | B40: vcscsms <= 15 && fs < 30 && vfs < 30 && fsvfs < 40 | C40: SANDY LOAM | D40: =IF(AND(SUM('Texture Calculator'!$C$26:$C$47)='Texture Calculator'!$C$5,SUM($D$37:$D$39) = 0,'Texture Calculator'!$C$26+'Texture Calculator'!#REF!+'Texture Calculator'!#REF!<=0.15,'Texture Calculator'!#REF!<0.3,'Texture Calculator'!$C$47<0.3,'Texture Calculator'!#REF!+'Texture Calculator'!$C$47<0.4), 4, 0) ->  | E40: vcscsms <= 15 && fs < 30 && vfs < 30 && fsvfs < 40 | F40: SANDY LOAM | G40: =IF(AND(SUM('Texture Calculator'!$C$52:$C$56)='Texture Calculator'!$C$6,SUM($G$37:$G$39) = 0,'Texture Calculator'!#REF!+'Texture Calculator'!$C$53+'Texture Calculator'!$C$54<=0.15,'Texture Calculator'!$C$55<0.3,'Texture Calculator'!$C$56<0.3,'Texture Calculator'!$C$55+'Texture Calculator'!$C$56<0.4), 4, 0) ->  | H40: vcscsms <= 15 && fs < 30 && vfs < 30 && fsvfs < 40 | I40: SANDY LOAM | J40: =IF(AND(SUM('Texture Calculator'!$C$60:$C$66)='Texture Calculator'!$C$7,SUM($J$37:$J$39) = 0,'Texture Calculator'!#REF!+'Texture Calculator'!#REF!+'Texture Calculator'!$C$64<=0.15,'Texture Calculator'!$C$65<0.3,'Texture Calculator'!$C$66<0.3,'Texture Calculator'!$C$65+'Texture Calculator'!$C$66<0.4), 4, 0) ->  | K40: vcscsms <= 15 && fs < 30 && vfs < 30 && fsvfs < 40 | L40: SANDY LOAM
A41: =IF(AND(SUM('Texture Calculator'!$C$13:$C$17)='Texture Calculator'!$C$4,SUM($A$37:$A$40) = 0,'Texture Calculator'!$C$13+'Texture Calculator'!$C$14>=0.25, 'Texture Calculator'!$C$15>=0.5), 5, 0) -> 0 | B41: vcscs >= 25 && ms >= 50 | C41: SANDY LOAM | D41: =IF(AND(SUM('Texture Calculator'!$C$26:$C$47)='Texture Calculator'!$C$5,SUM($D$37:$D$40) = 0,'Texture Calculator'!$C$26+'Texture Calculator'!#REF!>=0.25, 'Texture Calculator'!#REF!>=0.5), 5, 0) ->  | E41: vcscs >= 25 && ms >= 50 | F41: SANDY LOAM | G41: =IF(AND(SUM('Texture Calculator'!$C$52:$C$56)='Texture Calculator'!$C$6,SUM($G$37:$G$40) = 0,'Texture Calculator'!#REF!+'Texture Calculator'!$C$53>=0.25, 'Texture Calculator'!$C$54>=0.5), 5, 0) ->  | H41: vcscs >= 25 && ms >= 50 | I41: SANDY LOAM | J41: =IF(AND(SUM('Texture Calculator'!$C$60:$C$66)='Texture Calculator'!$C$7,SUM($J$37:$J$40) = 0,'Texture Calculator'!#REF!+'Texture Calculator'!#REF!>=0.25, 'Texture Calculator'!$C$64>=0.5), 5, 0) ->  | K41: vcscs >= 25 && ms >= 50 | L41: SANDY LOAM
A42: =IF(AND(SUM('Texture Calculator'!$C$13:$C$17)='Texture Calculator'!$C$4,SUM($A$37:$A$41) = 0,'Texture Calculator'!$C$16>=0.3,'Texture Calculator'!$C$17<0.3, 'Texture Calculator'!$C$13+'Texture Calculator'!$C$14<0.25), 6, 0) -> 0 | B42: fs >= 30 && vfs < 30 && vcscs < 25 | C42: FINE SANDY LOAM | D42: =IF(AND(SUM('Texture Calculator'!$C$26:$C$47)='Texture Calculator'!$C$5,SUM($D$37:$D$41) = 0,'Texture Calculator'!#REF!>=0.3,'Texture Calculator'!$C$47<0.3, 'Texture Calculator'!$C$26+'Texture Calculator'!#REF!<0.25), 6, 0) ->  | E42: fs >= 30 && vfs < 30 && vcscs < 25 | F42: FINE SANDY LOAM | G42: =IF(AND(SUM('Texture Calculator'!$C$52:$C$56)='Texture Calculator'!$C$6,SUM($G$37:$G$41) = 0,'Texture Calculator'!$C$55>=0.3,'Texture Calculator'!$C$56<0.3, 'Texture Calculator'!#REF!+'Texture Calculator'!$C$53<0.25), 6, 0) ->  | H42: fs >= 30 && vfs < 30 && vcscs < 25 | I42: FINE SANDY LOAM | J42: =IF(AND(SUM('Texture Calculator'!$C$60:$C$66)='Texture Calculator'!$C$7,SUM($J$37:$J$41) = 0,'Texture Calculator'!$C$65>=0.3,'Texture Calculator'!$C$66<0.3, 'Texture Calculator'!#REF!+'Texture Calculator'!#REF!<0.25), 6, 0) ->  | K42: fs >= 30 && vfs < 30 && vcscs < 25 | L42: FINE SANDY LOAM
A43: =IF(AND(SUM('Texture Calculator'!$C$13:$C$17)='Texture Calculator'!$C$4,SUM($A$37:$A$42) = 0,'Texture Calculator'!$C$13+'Texture Calculator'!$C$14+'Texture Calculator'!$C$15>=0.15, 'Texture Calculator'!$C$13+'Texture Calculator'!$C$14+'Texture Calculator'!$C$15<0.3, 'Texture Calculator'!$C$13+'Texture Calculator'!$C$14<0.25), 7, 0) -> 0 | B43: vcscsms >= 15 && vcscsms < 30 && vcscs < 25 | C43: FINE SANDY LOAM | D43: =IF(AND(SUM('Texture Calculator'!$C$26:$C$47)='Texture Calculator'!$C$5,SUM($D$37:$D$42) = 0,'Texture Calculator'!$C$26+'Texture Calculator'!#REF!+'Texture Calculator'!#REF!>=0.15, 'Texture Calculator'!$C$26+'Texture Calculator'!#REF!+'Texture Calculator'!#REF!<0.3, 'Texture Calculator'!$C$26+'Texture Calculator'!#REF!<0.25), 7, 0) ->  | E43: vcscsms >= 15 && vcscsms < 30 && vcscs < 25 | F43: FINE SANDY LOAM | G43: =IF(AND(SUM('Texture Calculator'!$C$52:$C$56)='Texture Calculator'!$C$6,SUM($G$37:$G$42) = 0,'Texture Calculator'!#REF!+'Texture Calculator'!$C$53+'Texture Calculator'!$C$54>=0.15, 'Texture Calculator'!#REF!+'Texture Calculator'!$C$53+'Texture Calculator'!$C$54<0.3, 'Texture Calculator'!#REF!+'Texture Calculator'!$C$53<0.25), 7, 0) ->  | H43: vcscsms >= 15 && vcscsms < 30 && vcscs < 25 | I43: FINE SANDY LOAM | J43: =IF(AND(SUM('Texture Calculator'!$C$60:$C$66)='Texture Calculator'!$C$7,SUM($J$37:$J$42) = 0,'Texture Calculator'!#REF!+'Texture Calculator'!#REF!+'Texture Calculator'!$C$64>=0.15, 'Texture Calculator'!#REF!+'Texture Calculator'!#REF!+'Texture Calculator'!$C$64<0.3, 'Texture Calculator'!#REF!+'Texture Calculator'!#REF!<0.25), 7, 0) ->  | K43: vcscsms >= 15 && vcscsms < 30 && vcscs < 25 | L43: FINE SANDY LOAM
A44: =IF(AND(SUM('Texture Calculator'!$C$13:$C$17)='Texture Calculator'!$C$4,SUM($A$37:$A$43) = 0,'Texture Calculator'!$C$16+'Texture Calculator'!$C$17>=0.4, 'Texture Calculator'!$C$16>='Texture Calculator'!$C$17, 'Texture Calculator'!$C$13+'Texture Calculator'!$C$14+'Texture Calculator'!$C$15<=0.15), 8, 0) -> 0 | B44: fsvfs >= 40 && fs >= vfs && vcscsms <= 15 | C44: FINE SANDY LOAM | D44: =IF(AND(SUM('Texture Calculator'!$C$26:$C$47)='Texture Calculator'!$C$5,SUM($D$37:$D$43) = 0,'Texture Calculator'!#REF!+'Texture Calculator'!$C$47>=0.4, 'Texture Calculator'!#REF!>='Texture Calculator'!$C$47, 'Texture Calculator'!$C$26+'Texture Calculator'!#REF!+'Texture Calculator'!#REF!<=0.15), 8, 0) ->  | E44: fsvfs >= 40 && fs >= vfs && vcscsms <= 15 | F44: FINE SANDY LOAM | G44: =IF(AND(SUM('Texture Calculator'!$C$52:$C$56)='Texture Calculator'!$C$6,SUM($G$37:$G$43) = 0,'Texture Calculator'!$C$55+'Texture Calculator'!$C$56>=0.4, 'Texture Calculator'!$C$55>='Texture Calculator'!$C$56, 'Texture Calculator'!#REF!+'Texture Calculator'!$C$53+'Texture Calculator'!$C$54<=0.15), 8, 0) ->  | H44: fsvfs >= 40 && fs >= vfs && vcscsms <= 15 | I44: FINE SANDY LOAM | J44: =IF(AND(SUM('Texture Calculator'!$C$60:$C$66)='Texture Calculator'!$C$7,SUM($J$37:$J$43) = 0,'Texture Calculator'!$C$65+'Texture Calculator'!$C$66>=0.4, 'Texture Calculator'!$C$65>='Texture Calculator'!$C$66, 'Texture Calculator'!#REF!+'Texture Calculator'!#REF!+'Texture Calculator'!$C$64<=0.15), 8, 0) ->  | K44: fsvfs >= 40 && fs >= vfs && vcscsms <= 15 | L44: FINE SANDY LOAM
A45: =IF(AND(SUM('Texture Calculator'!$C$13:$C$17)='Texture Calculator'!$C$4,SUM($A$37:$A$44) = 0,'Texture Calculator'!$C$13+'Texture Calculator'!$C$14>=0.25, 'Texture Calculator'!$C$16>=0.5), 9, 0) -> 0 | B45: vcscs >= 25 && fs >= 50 | C45: FINE SANDY LOAM | D45: =IF(AND(SUM('Texture Calculator'!$C$26:$C$47)='Texture Calculator'!$C$5,SUM($D$37:$D$44) = 0,'Texture Calculator'!$C$26+'Texture Calculator'!#REF!>=0.25, 'Texture Calculator'!#REF!>=0.5), 9, 0) ->  | E45: vcscs >= 25 && fs >= 50 | F45: FINE SANDY LOAM | G45: =IF(AND(SUM('Texture Calculator'!$C$52:$C$56)='Texture Calculator'!$C$6,SUM($G$37:$G$44) = 0,'Texture Calculator'!#REF!+'Texture Calculator'!$C$53>=0.25, 'Texture Calculator'!$C$55>=0.5), 9, 0) ->  | H45: vcscs >= 25 && fs >= 50 | I45: FINE SANDY LOAM | J45: =IF(AND(SUM('Texture Calculator'!$C$60:$C$66)='Texture Calculator'!$C$7,SUM($J$37:$J$44) = 0,'Texture Calculator'!#REF!+'Texture Calculator'!#REF!>=0.25, 'Texture Calculator'!$C$65>=0.5), 9, 0) ->  | K45: vcscs >= 25 && fs >= 50 | L45: FINE SANDY LOAM
A46: =IF(AND(SUM('Texture Calculator'!$C$13:$C$17)='Texture Calculator'!$C$4,SUM($A$37:$A$45) = 0,'Texture Calculator'!$C$17>=0.3, 'Texture Calculator'!$C$13+'Texture Calculator'!$C$14+'Texture Calculator'!$C$15<0.15, 'Texture Calculator'!$C$17>'Texture Calculator'!$C$16), 10, 0) -> 0 | B46: vfs >= 30 && vcscsms < 15 && vfs > fs | C46: VERY FINE SANDY LOAM | D46: =IF(AND(SUM('Texture Calculator'!$C$26:$C$47)='Texture Calculator'!$C$5,SUM($D$37:$D$45) = 0,'Texture Calculator'!$C$47>=0.3, 'Texture Calculator'!$C$26+'Texture Calculator'!#REF!+'Texture Calculator'!#REF!<0.15, 'Texture Calculator'!$C$47>'Texture Calculator'!#REF!), 10, 0) ->  | E46: vfs >= 30 && vcscsms < 15 && vfs > fs | F46: VERY FINE SANDY LOAM | G46: =IF(AND(SUM('Texture Calculator'!$C$52:$C$56)='Texture Calculator'!$C$6,SUM($G$37:$G$45) = 0,'Texture Calculator'!$C$56>=0.3, 'Texture Calculator'!#REF!+'Texture Calculator'!$C$53+'Texture Calculator'!$C$54<0.15, 'Texture Calculator'!$C$56>'Texture Calculator'!$C$55), 10, 0) ->  | H46: vfs >= 30 && vcscsms < 15 && vfs > fs | I46: VERY FINE SANDY LOAM | J46: =IF(AND(SUM('Texture Calculator'!$C$60:$C$66)='Texture Calculator'!$C$7,SUM($J$37:$J$45) = 0,'Texture Calculator'!$C$66>=0.3, 'Texture Calculator'!#REF!+'Texture Calculator'!#REF!+'Texture Calculator'!$C$64<0.15, 'Texture Calculator'!$C$66>'Texture Calculator'!$C$65), 10, 0) ->  | K46: vfs >= 30 && vcscsms < 15 && vfs > fs | L46: VERY FINE SANDY LOAM
A47: =IF(AND(SUM('Texture Calculator'!$C$13:$C$17)='Texture Calculator'!$C$4,SUM($A$37:$A$46) = 0,'Texture Calculator'!$C$16+'Texture Calculator'!$C$17>=0.4, 'Texture Calculator'!$C$17>'Texture Calculator'!$C$16, 'Texture Calculator'!$C$13+'Texture Calculator'!$C$14+'Texture Calculator'!$C$15<15), 11, 0) -> 0 | B47: fsvfs >= 40 && vfs > fs && vcscsms < 15 | C47: VERY FINE SANDY LOAM | D47: =IF(AND(SUM('Texture Calculator'!$C$26:$C$47)='Texture Calculator'!$C$5,SUM($D$37:$D$46) = 0,'Texture Calculator'!#REF!+'Texture Calculator'!$C$47>=0.4, 'Texture Calculator'!$C$47>'Texture Calculator'!#REF!, 'Texture Calculator'!$C$26+'Texture Calculator'!#REF!+'Texture Calculator'!#REF!<15), 11, 0) ->  | E47: fsvfs >= 40 && vfs > fs && vcscsms < 15 | F47: VERY FINE SANDY LOAM | G47: =IF(AND(SUM('Texture Calculator'!$C$52:$C$56)='Texture Calculator'!$C$6,SUM($G$37:$G$46) = 0,'Texture Calculator'!$C$55+'Texture Calculator'!$C$56>=0.4, 'Texture Calculator'!$C$56>'Texture Calculator'!$C$55, 'Texture Calculator'!#REF!+'Texture Calculator'!$C$53+'Texture Calculator'!$C$54<15), 11, 0) ->  | H47: fsvfs >= 40 && vfs > fs && vcscsms < 15 | I47: VERY FINE SANDY LOAM | J47: =IF(AND(SUM('Texture Calculator'!$C$60:$C$66)='Texture Calculator'!$C$7,SUM($J$37:$J$46) = 0,'Texture Calculator'!$C$65+'Texture Calculator'!$C$66>=0.4, 'Texture Calculator'!$C$66>'Texture Calculator'!$C$65, 'Texture Calculator'!#REF!+'Texture Calculator'!#REF!+'Texture Calculator'!$C$64<15), 11, 0) ->  | K47: fsvfs >= 40 && vfs > fs && vcscsms < 15 | L47: VERY FINE SANDY LOAM
A48: =IF(AND(SUM('Texture Calculator'!$C$13:$C$17)='Texture Calculator'!$C$4,SUM($A$37:$A$47) = 0,'Texture Calculator'!$C$13+'Texture Calculator'!$C$14>=0.25, 'Texture Calculator'!$C$17>=0.5), 12, 0) -> 0 | B48: vcscs >= 25 && vfs >= 50 | C48: VERY FINE SANDY LOAM | D48: =IF(AND(SUM('Texture Calculator'!$C$26:$C$47)='Texture Calculator'!$C$5,SUM($D$37:$D$47) = 0,'Texture Calculator'!$C$26+'Texture Calculator'!#REF!>=0.25, 'Texture Calculator'!$C$47>=0.5), 12, 0) ->  | E48: vcscs >= 25 && vfs >= 50 | F48: VERY FINE SANDY LOAM | G48: =IF(AND(SUM('Texture Calculator'!$C$52:$C$56)='Texture Calculator'!$C$6,SUM($G$37:$G$47) = 0,'Texture Calculator'!#REF!+'Texture Calculator'!$C$53>=0.25, 'Texture Calculator'!$C$56>=0.5), 12, 0) ->  | H48: vcscs >= 25 && vfs >= 50 | I48: VERY FINE SANDY LOAM | J48: =IF(AND(SUM('Texture Calculator'!$C$60:$C$66)='Texture Calculator'!$C$7,SUM($J$37:$J$47) = 0,'Texture Calculator'!#REF!+'Texture Calculator'!#REF!>=0.25, 'Texture Calculator'!$C$66>=0.5), 12, 0) ->  | K48: vcscs >= 25 && vfs >= 50 | L48: VERY FINE SANDY LOAM
A49: =IF(AND(SUM('Texture Calculator'!$C$13:$C$17)='Texture Calculator'!$C$4,SUM($A$37:$A$48) = 0,'Texture Calculator'!$C$13+'Texture Calculator'!$C$14+'Texture Calculator'!$C$15>=0.3, 'Texture Calculator'!$C$17>=0.5), 13,0) -> 0 | B49: vcscsms >= 30 && vfs >= 50 | C49: VERY FINE SANDY LOAM | D49: =IF(AND(SUM('Texture Calculator'!$C$26:$C$47)='Texture Calculator'!$C$5,SUM($D$37:$D$48) = 0,'Texture Calculator'!$C$26+'Texture Calculator'!#REF!+'Texture Calculator'!#REF!>=0.3, 'Texture Calculator'!$C$47>=0.5), 13,0) ->  | E49: vcscsms >= 30 && vfs >= 50 | F49: VERY FINE SANDY LOAM | G49: =IF(AND(SUM('Texture Calculator'!$C$52:$C$56)='Texture Calculator'!$C$6,SUM($G$37:$G$48) = 0,'Texture Calculator'!#REF!+'Texture Calculator'!$C$53+'Texture Calculator'!$C$54>=0.3, 'Texture Calculator'!$C$56>=0.5), 13,0) ->  | H49: vcscsms >= 30 && vfs >= 50 | I49: VERY FINE SANDY LOAM | J49: =IF(AND(SUM('Texture Calculator'!$C$60:$C$66)='Texture Calculator'!$C$7,SUM($J$37:$J$48) = 0,'Texture Calculator'!#REF!+'Texture Calculator'!#REF!+'Texture Calculator'!$C$64>=0.3, 'Texture Calculator'!$C$66>=0.5), 13,0) ->  | K49: vcscsms >= 30 && vfs >= 50 | L49: VERY FINE SANDY LOAM
A50: =SUM(A37:A49)+1 -> 1 | D50: =SUM(D37:D49)+1 ->  | G50: =SUM(G37:G49)+1 ->  | J50: =SUM(J37:J49)+1 -> 

Sheet Sheet1
